Workbook

Sheet Design Converter
A1: LM51772 DC/DC Controller Design Tool
A3: About | C3: xx | F3: = Input Box | J3: http://www.ti.com/product/lm51772 | N3: TERMS OF USE
A4: Version | B4: =Licenses!B5 -> 1.1.1
A5: Step 1: Operating Specifications
D6: Input Voltage - Min, VIN(min) | E6: 12 | F6: V
D7: Input Voltage - Nom, VIN(nom) | E7: 24 | F7: V
D8: Input Voltage - Max, VIN(max) | E8: 36 | F8: V
D9: Output Voltage, VOUT | E9: 24 | F9: V
D10: Full Load Output Current, IOUT(max) | E10: 6 | F10: A
D11: Switching Frequency | E11: 602 | F11: kHz
D12: Frequency Set Resistor, RT | E12: =IF('Standard Value Calculator'!O4/1000>288, "N/A",'Standard Value Calculator'!O4/1000) -> 52.3 | F12: kΩ
A14: Step 2: Filter Inductor
D15: Recommended Filter Inductance | E15: =Lopt_Limit*1000000 -> 3.08989875 | F15: µH
D16: Inductance, LF | E16: 3.3 | F16: µH
D17: Inductor DCR | E17: 5.7 | F17: mΩ
D18: Pk-to-Pk Ripple Current at VIN(min), DIL1 | E18: ='Variable Management'!B84 -> 3.042360097 | F18: Apk-pk
D19: Pk-to-Pk Ripple Current at VIN(nom), DIL2 | E19: ='Variable Management'!B85 -> 0.0181333433 | F19: Apk-pk
D20: Pk-to-Pk Ripple Current at VIN(max), DIL3 | E20: ='Variable Management'!B86 -> 4.033555434 | F20: Apk-pk
D21: DIL as a % at VIN(min) | E21: ='Variable Management'!B96*100 -> 24.08535077 | F21: %
D22: DIL as a % at VIN(nom) | E22: ='Variable Management'!B97*100 -> 0.2871112689 | F22: %
D23: DIL as a % at VIN(max) | E23: ='Variable Management'!B98*100 -> 67.22592389 | F23: %
A25: Step 3: OCP, Sense Resistors, Slope Comp
D26: Peak Current Limit Margin | E26: 20 | F26: %
D27: Recommended Sense Resistance | E27: =Rs_ideal*1000 -> 2.944066714 | F27: mΩ
D28: Sense Resistance, RS | E28: 2.5 | F28: mΩ
D29: Peak Inductor Over-Current Limit, ILPK,Limit | E29: ='Variable Management'!B143 -> 23.4 | F29: A
D30: Max Peak Inductor Current, ILPk,Max | E30: =Ipeak_inductor_max -> 14.152759 | F30: A
D31: =IF('Variable Management'!B91>'Variable Management'!B89, "Power Loss in Rs at Full Load (Max VIN)", "Power Loss in Rs at Full Load (Min VIN)") -> Power Loss in Rs at Full Load (Min VIN) | E31: ='Variable Management'!B92 -> 0.2018782355 | F31: W
D32: Recommended SLOPE Factor | E32: ='Variable Management'!B148 -> 0.875
D34: VIN(min) | E34: ='Variable Management'!B135 -> 9.171727341 | F34: A
C35: IOUT(typ) at OCP Inception: | D35: VIN(nom) | E35: ='Variable Management'!B136 -> 19.96092719 | F35: A
D36: VIN(max) | E36: ='Variable Management'!B137 -> 17.98322228 | F36: A
A38: Step 4: Output Capacitor
D39: Output Voltage Ripple Spec | E39: 150 | F39: mVpk-pk
D40: Minimum Output Capacitance | E40: ='Variable Management'!B176 -> 33.46596107 | F40: µF
D41: Output Capacitance, COUT | E41: 80 | F41: µF | H41: LM51772
D42: Maximum Permitted ESR | E42: ='Variable Management'!B180 -> 14.54188717 | F42: mΩ | N42: ='CFG Setting'!H56 -> R_CFG1 | O42: ='CFG Setting'!H57 -> 5.1 | P42: kΩ
D43: Output Capacitor ESR | E43: 3 | F43: mΩ | N43: ='CFG Setting'!H85 -> R_CFG2 | O43: ='CFG Setting'!H86 -> 8.3 | P43: kΩ
D44: Resulting Output Voltage Ripple (max) | E44: =Vripple2*1000 -> 80.74867701 | F44: mVpk-pk | N44: ='CFG Setting'!H115 -> R_CFG3 | O44: ='CFG Setting'!H116 -> 30.1 | P44: kΩ
D45: Output Capacitor RMS Current (max) | E45: ='Variable Management'!B171 -> 6 | F45: A (rms) | N45: ='CFG Setting'!H145 -> R_CFG4 | O45: ='CFG Setting'!H146 -> 0 | P45: kΩ
A47: Step 5: Input Capacitor
D48: Input Voltage Ripple Spec | E48: 180 | F48: mVpk-pk | J48: CDC | N48: =_xlfn.SWITCH(IMONLIM_select+1,1,"",2,"Current Limiter (external)", 3,"Current Limiter via I2C") -> Current Limiter (external)
D49: Minimum Input Capacitance | E49: ='Variable Management'!B196 -> 12.28450862 | F49: µF | J49: Maximum Output Current | K49: 6 | L49: A | N49: =CHOOSE(IMONLIM_select+1,"","Average Current Limit","Average Current Limit") -> Average Current Limit | O49: 6 | P49: A
D50: Input Capacitance, CIN | E50: 100 | F50: µF | J50: Maximum Voltage at VCDC | K50: 1 | L50: V | N50: =_xlfn.SWITCH(IMONLIM_select+1,1,"",2,"", 3,"DAC ILIM_THRESHOLD") ->  | O50: 100 | P50: =_xlfn.SWITCH(IMONLIM_select+1,1,"",2,"",3,"", 4,"") -> 
D51: Maximum Permitted ESR | E51: ='Variable Management'!B201 -> 19.69468159 | F51: mΩ | J51: Recommended Current Sense, RISNS(out/in) | K51: =CDC_Threshold/K49*1000 -> 8.333333333 | L51: mΩ | N51: Recommended Current Sense, RISNS(out/in) | O51: =_xlfn.SWITCH(IMONLIM_select+1,1,0,2,ILIM_Threshold/O49, 3,0.05/O49)*1000 ->  | P51: mΩ
D52: Input Capacitor ESR | E52: 2 | F52: mΩ | J52: Used Current Sense, RISNS(out/in) | K52: 10 | L52: mΩ | N52: Used Current Sense, RISNS(out/in) | O52: 10 | P52: mΩ
D53: Resulting Input Voltage Ripple (max) | E53: =Vinripple2*1000 -> 38.14567096 | F53: mVpk-pk | J53: CDC Resistance, RCDC | K53: =(K50)/(K52/1000*K49*gm_CDC)/1000 -> 33.33333333 | L53: kΩ | N53: =_xlfn.SWITCH(IMONLIM_select+1,1,"",2,"ILIMCOMP Resistance, RILIM", 3,"Effective average Current Limit") -> ILIMCOMP Resistance, RILIM | O53: =(_xlfn.SWITCH(IMONLIM_select+1,1,"",2,V_Ilimit/(O52/1000*O49*gm_IL)/1000,3,O50*0.0005/(O52*0.001))) ->  | P53: =_xlfn.SWITCH(IMONLIM_select+1,1,"",2,"kΩ", 3,"A") -> kΩ
D54: Input Capacitor RMS Current (max) | E54: ='Variable Management'!B189 -> 2.826109716 | F54: A (rms) | N54: =_xlfn.SWITCH(IMONLIM_select+1,1,"",2,"ILIMCOMP Capacitor, CILIM,HF", 3,"ILIMCOMP Capacitor, CILIM") -> ILIMCOMP Capacitor, CILIM,HF | O54: =(_xlfn.SWITCH(IMONLIM_select+1,1,"",2,C_ILimit_HF_STD*1000000000000,3,C_limitcomp_STD*1000000000)) ->  | P54: =_xlfn.SWITCH(IMONLIM_select+1,1,"",2,"pF", 3,"nF") -> pF
A56: Step 6: Soft-start, UVLO, CFG
D57: recommended Soft-Start Time, tSS for ISCP(MIN) | E57: =E41*0.000001*E9/(E26-E10)*1000 -> 0.1371428571 | F57: ms | M57: VIN(nom) | N57: =VIN_nom&"V" -> 24V
D58: Soft-Start Time, tSS | E58: 1.8 | F58: ms
D59: Soft-Start Capacitance, CSS | E59: =Css_u*1000000000 ->  | F59: nF
D61: Required Input Voltage UVLO On | E61: 8.7 | F61: V
D62: Input Voltage UVLO Off | E62: =E61-0.375 -> 8.325 | F62: V
D63: Upper UVLO Resistor, RUV1 | E63: =Ruvlo1 -> 75 | F63: kΩ
D64: Lower UVLO Resistor, RUV2 | E64: ='Variable Management'!E221 -> 12.4 | F64: kΩ
A73: Step 7: Compensation Design
D74: Load Pole Frequency | E74: =Fp_dominant -> 994.7183943 | F74: Hz
D75: COUT ESR Zero Frequency | E75: =Fesr/1000 -> 663.1455962 | F75: kHz
D76: Boost RHP Zero Frequency @ VIN(MIN) | E76: =IF(E6<E9,Frhp_Vinmin/1000,"---") -> 47.52476589 | F76: kHz
D77: Boost RHP Zero Frequency @ VIN(NOM) | E77: =IF(E7<E9,Frhp/1000,"---") -> --- | F77: kHz
D78: Desired Crossover Frequency | E78: =MIN(Fsw*0.05,E76/4,E77/4) ->  | F78: kHz
D79: Desired Crossover Frequency | E79: 8 | F79: =" kHz " -> kHz
D80: Error Amp Pole Frequency | E80: =Fp1_u -> 1.325343572 | F80: Hz
D81: Upper Feedback Resistor, RFBT | E81: 100 | F81: kΩ
D82: Lower Feedback Resistor, RFBB | E82: =Rfb2_u/1000 ->  | F82: kΩ
A84: Compensation Components
B85: Calculated / | C85: Std Values | E85: =" Selected" -> Selected | G85: Actual P/Z Frequencies
A86: RC | B86: =Rcea1/1000 ->  | C86: ='Standard Value Calculator'!O27 ->  | E86: 7.15 | F86: kΩ | G86: =Fp1_u -> 1.325343572 | H86: Hz (FPEA)
A87: CC1 | B87: =Cc1ea*1000000000 ->  | C87: ='Standard Value Calculator'!O28 ->  | E87: 12 | F87: nF | G87: =Fz1_u/1000 -> 1.854952717 | H87: kHz (FZCOMP)
A88: CC2 | B88: =IF(Cc2ea*1000000000000<0, 0, Cc2ea*1000000000000) ->  | C88: ='Standard Value Calculator'!O29 ->  | E88: 220 | F88: pF | G88: =Fp2_u/1000 -> 97.91010405 | H88: kHz (FPCOMP)
A90: Efficiency / Power Loss Analyzer
A92: Step 8: Efficiency | M92: VIN(nom) | N92: =VIN_nom&"V" -> 24V
D93: Buck-Leg Power MOSFETs (Q1, Q2) | E93: SQJ422EP
E94: Hi-side | F94: Low-side
D95: On-State Resistance, RDS(on) | E95: 3.5 | F95: 3.5 | G95: mΩ
D96: Total Gate Charge, QG | E96: 67 | F96: 67 | G96: nC
D97: Gate-Drain Charge, QGD | E97: 10.31 | F97: 10.31 | G97: nC
D98: Gate-Source Charge, QGS | E98: 11.25 | F98: 11.25 | G98: nC
D99: Gate Resistance, RG | E99: 0.63 | F99: 0.63 | G99: Ω
D100: Transconductance, gFS | E100: 117 | F100: 117 | G100: S
D101: Gate-Source Threshold Voltage, VTH | E101: 2 | F101: 2 | G101: V
D102: Body Diode Forward Voltage, VBD | E102: 0.75 | F102: 0.75 | G102: V
D103: Body Diode Rev Recovery Charge, QRR | F103: =45 -> 45 | G103: nC
D104: Thermal Resistance, θJA | E104: 65 | F104: 65 | G104: °C/W
D106: Boost-Leg Power MOSFETs (Q3, Q4) | E106: SQJ422EP
E107: Hi-side | F107: Low-side
D108: On-State Resistance, RDS(on) | E108: 3.5 | F108: 3.5 | G108: mΩ
D109: Total Gate Charge, QG | E109: 67 | F109: 67 | G109: nC
D110: Gate-Drain Charge, QGD | E110: 10.31 | F110: 10.31 | G110: nC
D111: Gate-Source Charge, QGS | E111: 11.25 | F111: 11.25 | G111: nC
D112: Gate Resistance, RG | E112: 0.63 | F112: 0.63 | G112: Ω
D113: Transconductance, gFS | E113: 117 | F113: 117 | G113: S
D114: Gate-Source Threshold Voltage, VTH | E114: 2 | F114: 2 | G114: V
D115: Body Diode Forward Voltage, VBD | E115: 0.75 | F115: 0.75 | G115: V
D116: Body Diode Rev Recovery Charge, QRR | E116: 56 | G116: nC
D117: Thermal Resistance, θJA | E117: 65 | F117: 65 | G117: °C/W
A119: External Schottky Diode (if applicable) | E119: Buck Leg | F119: Boost Leg
D120: Schottky Fwd Voltage, VFWDsch | E120: 0 | F120: 0 | G120: V
D121: Schottky Rev Recovery Charge, QRRsch | E121: 0 | F121: 0 | G121: nC

Sheet Licenses
A5: Version Number | B5: 1.1.1
A35: Version History
A36: Version | B36: Change List Description
A37: 1.0.0 | B37: Initial Release
A38: 1.0.1 | B38: Reworked inductor selection, updated current monitor and limiter configuration
A39: 1.1.0 | B39: updated input limit to 55V
B40: fixed error in efficency calculation - R for ISNS was not implemented right
B41: Fixed labeling in efficiency graph
B42: Updated Current Limit and Monitor configuration
B43: Added internal FB divider configuration
A44: 1.1.1 | B44: updated calculation for ILIM with DAC and ISET
B45: fixed resistor value for R(CFG) setting 3

Sheet BOM & Schematic (hidden)
B45: ** Tie MODE to VCC (or voltage > 2.4V) for No Hiccup **
A46: ="VIN = "&VIN_min&" V to "&VIN_max&" V, VOUT = "& Vout &" V, IOUT = " &Iout & " A, Fsw = " & Fsw/1000 &" kHz, Current Limit = "&ROUNDUP(Ilimit_DC,0)&" A" -> 
A47: High Efficiency Synchronous Buck-Boost Regulator BOM
A48: Count | B48: Ref Des | C48: Value | D48: Description | H48: Size | I48: Part Number | J48: MFR
A49: 2 | B49: CBOOT1, CBOOT2 | C49: 0.1 | D49: =C49 -> 0.1 | H49: 0603 | I49: Std | J49: Std
A50: 1 | B50: CC1 | C50: ='Design Converter'!E87 -> 12 | D50: 12 | H50: 0603 | I50: Std | J50: Std
A51: 1 | B51: CC2 | C51: ='Design Converter'!E88 -> 220 | D51: 220 | H51: 0603 | I51: Std | J51: Std
A52: 1 | B52: RSLOPE | C52: =Rslope/1000 -> 59.326056 | H52: 0603 | I52: Std | J52: Std
A53: 1 | B53: CCS | C53: 100 | D53: =C53 -> 100 | H53: 0603 | I53: Std | J53: Std
A54: 1 | B54: CDITH | C54: =Cdither*1000000000 -> 0 | D54: =C54 -> 0 | H54: 0603 | I54: Std | J54: Std
A55: =ROUNDUP('Design Converter'!E50/10,0) -> 10 | B55: CIN | C55: 10 | D55: =C55 -> 10 | H55: 1210 | I55: Std | J55: Std
A56: =ROUNDUP('Design Converter'!E41/22,0) -> 4 | B56: COUT | C56: 22 | D56: =C56 -> 22 | H56: 1210 | I56: Std | J56: Std
A57: 1 | B57: CSS | C57: ='Design Converter'!E59 ->  | D57: =C57 ->  | H57: 0603 | I57: Std | J57: Std
A58: 1 | B58: CVCC | C58: 1 | D58: 1 | H58: 0603 | I58: Std | J58: Std
A59: 1 | B59: CVIN | C59: 0.1 | D59: 0.1 | H59: 0603 | I59: Std | J59: Std
A60: 3 | B60: DBOOT1, DBOOT2, DVIN | C60: See description | D60: Schottky Diode, 200mA | H60: - | I60: - | J60: Various
A61: 1 | B61: LF | C61: ='Design Converter'!E16 -> 3.3 | D61: ="Inductor, "&Lf*1000000&"µH, "&Rdcr*1000&"mΩ, >"&ROUNDUP(IL_peak_OCP*1.1,0)&"A" -> Inductor, 3.3µH, 5.7mΩ, >26A | H61: - | I61: - | J61: Various
A62: 2 | B62: Q1, Q2 | C62: See description | D62: ='Design Converter'!E95 -> 3.5 | H62: Std | I62: ='Design Converter'!E93 -> SQJ422EP | J62: -
A63: 2 | B63: Q3, Q4 | C63: See description | D63: ='Design Converter'!E108 -> 3.5 | H63: Std | I63: ='Design Converter'!E106 -> SQJ422EP | J63: -
A64: 1 | B64: RC1 | C64: ='Design Converter'!E86 -> 7.15 | D64: =C64 -> 7.15 | H64: 0603 | I64: Std | J64: Std
A65: 1 | B65: RS | C65: =Rs*1000 -> 2.5 | D65: 2.5 | H65: 2512 | I65: Std | J65: Std
A66: 1 | B66: RCS(out) | C66: ='Standard Value Calculator'!O21 -> 10 | D66: =C66 -> 10 | H66: 2512 | I66: Std | J66: Std
A67: 1 | B67: RT | C67: ='Design Converter'!E12 -> 52.3 | D67: 52.3 | H67: 0603 | I67: Std | J67: Std
A68: 1 | B68: RFB1 | C68: ='Design Converter'!E81 -> 100 | D68: 100 | H68: 0603 | I68: Std | J68: Std
A69: 1 | B69: RFB2 | C69: ='Design Converter'!E82 ->  | H69: 0603 | I69: Std | J69: Std
A70: 1 | B70: RPGOOD | C70: 20 | D70: 20 | H70: 0603 | I70: Std | J70: Std
A71: 2 | B71: RCS, RCSG | C71: 100 | D71: 100 | H71: 0603 | I71: Std | J71: Std
A72: 1 | B72: RUV1 | C72: ='Design Converter'!E63 -> 75 | D72: 75 | H72: 0603 | I72: Std | J72: Std
A73: 1 | B73: RUV2 | C73: ='Design Converter'!E64 -> 12.4 | D73: 12.4 | H73: 0603 | I73: Std | J73: Std
A74: 1 | B74: RVIN | C74: 2.2 | D74: 2.2 | H74: 0603 | I74: Std | J74: Std
A75: 1 | B75: U1 | C75: LM5177 | D75: IC, LM5177, Buck-Boost PWM Controller | H75: TSSOP-38 | I75: LM5177HTSSOP | J75: TI
A78: NOTES:
A79: ** For information on TI NexFETTM MOSFETs, see ** | D79: http://www.ti.com/nexfet | E79: **
A80: ** Inductor saturation current should be higher than the peak inductor current at the OCP setpoint for all input voltages and operating temperatures **
A81: ** Effective input and output capacitances should be appropriately derated for applied voltage and temperature, particularly with ceramics **

Sheet EVMs (hidden)
A1: LM5175 Quickstart Design Tool
B6: LM5175EVM-HD PCB Layout | M6: LM5175EVM-HP PCB Layout | W6: LM5175EVM PCB Layout

Sheet MOSFET LOSS (hidden)

Sheet DeviceParameter (hidden)
A1: EXCEL Device Parameter
B2: Input from user = | F2: to check
B3: Output =
B4: Constant
A5: Variable Name | B5: Selected Value | C5: STD Units | D5: Device
D6: LM5177 | E6: LM51771 | F6: LM51772
A7: MaxVin | B7: =IF(Device=DeviceParameter!$D$6,DeviceParameter!D7,IF(Device=DeviceParameter!$E$6,DeviceParameter!E7,IF(Device=DeviceParameter!$F$6,DeviceParameter!F7,""))) -> 55 | C7: V | D7: 60 | F7: 55
A8: MinVin | B8: =IF(Device=DeviceParameter!$D$6,DeviceParameter!D8,IF(Device=DeviceParameter!$E$6,DeviceParameter!E8,IF(Device=DeviceParameter!$F$6,DeviceParameter!F8,""))) -> 3.3 | C8: V | D8: 2.8 | F8: 3.3
A9: MaxfSW | B9: =IF(Device=DeviceParameter!$D$6,DeviceParameter!D9,IF(Device=DeviceParameter!$E$6,DeviceParameter!E9,IF(Device=DeviceParameter!$F$6,DeviceParameter!F9,""))) -> 2200 | C9: kHz | D9: 600 | F9: 2200
A11: gm_monitor | B11: =IF(Device=DeviceParameter!$D$6,DeviceParameter!D11,IF(Device=DeviceParameter!$E$6,DeviceParameter!E11,IF(Device=DeviceParameter!$F$6,DeviceParameter!F11,""))) -> 0.001 | C11: S | D11: 0.001 | F11: 0.001
A12: gm_IL_DAC | B12: =IF(Device=DeviceParameter!$D$6,DeviceParameter!D12,IF(Device=DeviceParameter!$E$6,DeviceParameter!E12,IF(Device=DeviceParameter!$F$6,DeviceParameter!F12,""))) -> 0.0005 | C12: S | F12: 0.0005
A13: gm_IL | B13: =IF(Device=DeviceParameter!$D$6,DeviceParameter!D13,IF(Device=DeviceParameter!$E$6,DeviceParameter!E13,IF(Device=DeviceParameter!$F$6,DeviceParameter!F13,""))) -> 0.001 | C13: S | D13: 0.0002 | F13: 0.001
A14: gm_CDC | B14: 0.0005 | C14: S | F14: 0.0005 | J14: CDC Transconductance
A16: CDC_Threshold | B16: 0.05 | C16: V
A17: IMON_Threshold | B17: 0.05 | C17: V
A18: ILIM_Threshold | B18: 0.05 | C18: V
A20: V_Ilimit | B20: 1 | C20: V

Sheet Variable Management (hidden)
A1: EXCEL Variables Names/Calculations
B2: Input from user = | F2: to check
B3: Output =
B4: Constant
A5: Variable Name | B5: Value | C5: STD Units | E5: Notes | I5: Iteration
A6: Step 1: Operational Specs
A7: VIN_min | B7: ='Design Converter'!E6 -> 12 | C7: V | D7: Minimum input voltage | I7: 1
B8: ='Design Converter'!E7 -> 24 | C8: V | D8: Nominal input voltage | K8: Efficiency vs IOUT Plot | L8: 1
A9: VIN_max | B9: ='Design Converter'!E8 -> 36 | C9: V | D9: Maximum input voltage | K9: Efficiency vs VIN Plot | L9: 2
A10: VIN_edgebuckboost | B10: =B44 -> 19.18370825 | C10: V | K10: PLOT_TYPE | L10: 2 | M10: CFG | O10: ='CFG Setting'!G28 -> 13 | P10: 1 = Yes, 2 = No
K11: BODEPLOT_TYPE | L11: FALSE
A12: Vout | B12: ='Design Converter'!E9 -> 24 | C12: V | D12: Output Voltage | I12: 1
A13: Iout | B13: ='Design Converter'!E10 -> 6 | C13: A | D13: Maximum Output Current | I13: 1
A14: Rout | B14: =Vout/Iout -> 4 | C14: W | D14: Load resistance
A15: Pout | B15: =Vout*Iout -> 144 | C15: W | D15: Output power
A16: Efficiency | B16: 0.95 | D16: Edited by Vijay from 96% to 90% to match datasheet calculations.
A17: Pin | B17: =Pout/Efficiency -> 151.5789474 | C17: W | D17: Calculate input power assuming 90% efficiency
A18: Iin_Vinmin | B18: =Pin/VIN_min -> 12.63157895 | C18: A
A19: Iin_Vinnom | B19: =Pin/VIN_nom -> 6.315789474 | C19: A | D19: Input currents at min, nom, max Vin
A20: Iin_Vinmax | B20: =Pin/VIN_max -> 4.210526316 | C20: A
A22: Fsw | B22: ='Design Converter'!E11*1000 -> 602000 | C22: Hz | D22: Nominal Switching Frequency | I22: 1
A23: Ts | B23: =1/Fsw -> 1.661129568e-06 | C23: sec | D23: Period
A24: Vref | B24: =_xlfn.SWITCH(Internal_FB_enabled,1,1,Vout/10,2,3,Vout/20) ->  | C24: V | D24: Reference Voltage
A25: Vref_eff | B25: =Vref ->  | C25: V | D25: effective Vref with Tracking
A26: Rt | B26: =IF(Device<>"LM51772",(1/Fsw -0.00000002)*30300000000,(1/Fsw -0.000000018)*31500000000) -> 51758.5814 | C26: W | D26: Frequency Set Resistor | F26: edited based on LM5177 curve fit.
A27: Ifb | B27: 6e-08 | C27: A
A29: Device | B29: =CHOOSE(C29,L29,L30) -> LM51772 | C29: 2 | K29: Device | L29: LM5177
A30: Mode | B30: 1 | D30: 0: PSM 1: FPWM | L30: LM51772
A32: Toff_min_buck | B32: =MinToffBuck -> 2.287688088e-07 | C32: sec | D32: 200ns | E32: buck min timer
A33: Ton_min_boost | B33: =MinTonBoost -> 1.887688088e-07 | C33: sec | D33: 300ns | E33: boost min timer
A34: T_max_BB | B34: =TonBubo -> 1.327776042e-06 | C34: sec | E34: max timer before transition from BB
A36: D_min_boost | B36: =MinTonBoost*Fsw -> 0.1136388229
A37: D_max_exitBB_to_boost | B37: =TBubo*Fsw -> 0.2006788229 | C37: =MinTonBoost*Fsw -> 0.1136388229
A38: D_max_buck_BB | B38: 1 | C38: =MaxTonBuck*Fsw -> 0.8622811771
A40: D_min_boost_exitBB_to_buck | B40: =TBubo*Fsw -> 0.2006788229
A41: D_max_exitBB_to_buck | B41: =MaxTonBuck*Fsw -> 0.8622811771
A42: D_max_buck_enterBB | B42: =MaxTonBoost*Fsw -> 0.91296
A44: VIN_BB_to_boost | B44: =Vout*(1-B40) -> 19.18370825 | C44: V
A45: VIN_boost_to_BB | B45: =IF(B30=0,Vout,Vout*(1-B36)) -> 21.27266825 | C45: V
A46: VIN_buck_to_BB | B46: =IF(B30=0,Vout,Vout/B42) -> 26.28811777 | C46: V
A47: VIN_BB_to_buck | B47: =IF(B30=0,Vout,Vout/B41) -> 27.83314844 | C47: V
A51: Step 2: Filter Inductor
A52: Don1 | B52: =Vout/VIN_nom -> 1 | C52: =(Vout-VIN_nom)/Vout -> 0 | E52: Ideal Duty Cycle at VIN(nom) | I52: 1
A53: Doff1 | B53: =1-_Don1 -> 0 | E53: Ideal 1- Duty Cycle at VIN(nom) | I53: 1
A55: Don_Vinmin | B55: =IF(VIN_min>Vout, Vout/VIN_min, (Vout-VIN_min)/Vout) -> 0.5 | C55: =IF(VIN_min>Vout, "BUCK", "BOOST") -> BOOST
A56: Don_Vinnom | B56: =IF(VIN_nom>Vout, Vout/VIN_nom, (Vout-VIN_nom)/Vout) -> 0 | C56: =IF(VIN_nom>Vout, "BUCK", "BOOST") -> BOOST
A57: Don_Vinmax | B57: =IF(VIN_max>Vout, Vout/VIN_max, (Vout-VIN_max)/Vout) -> 0.6666666667 | C57: =IF(VIN_max>Vout, "BUCK", "BOOST") -> BUCK
A58: Don_buckboost | B58: =B37 -> 0.2006788229 | C58: lower edge of BUCK-BOOST
B59: BUCK | C59: BOOST
A60: Lf_Vinmin | B60: =(VIN_min-Vout)*Don_Vinmin/(Fsw*Iout*0.3) -> -5.53709856e-06 | C60: =VIN_min/(Iin_Vinmin*0.3*Fsw)*(1-VIN_min/Vout) -> 2.630121816e-06 | D60: H | E60: Calculated inductance for 30% ripple at VIN(min)
A61: Lf_Vinnom | B61: =(VIN_nom-Vout)*Don_Vinnom/(Fsw*Iout*0.35) -> 0 | C61: =VIN_nom/(Iin_Vinnom*0.35*Fsw)*(1-VIN_nom/Vout) -> 0 | D61: H | E61: Calculated inductance for 35% ripple at VIN(nom) | I61: 1
A62: Lf_Vinmax | B62: =(VIN_max-Vout)*Don_Vinmax/(Fsw*Iout*0.4) -> 5.53709856e-06 | C62: =VIN_max/(Iin_Vinmax*0.4*Fsw)*(1-VIN_max/Vout) -> -1.775332226e-05 | D62: H | E62: Calculated inductance for 40% ripple at VIN(max) | K62: Joerg's Calculation | R62: LM5177
A64: L_Vinmin | B64: =MAX(IF(VIN_min>Vout,B60,C60),O64) -> 2.630121816e-06 | C64: H | D64: =IF(VIN_min>Vout, "BUCK", "BOOST") -> BOOST | E64: Calculated inductance for 30% ripple at VIN(min) | K64: Lbuck | L64: =(VIN_max-Vout)*Vout/(0.4*Iout*Fsw*VIN_max) -> 5.53709856e-06 | M64: H | N64: Lmin | O64: =MAX(10*Vout*Rs/Fsw,Rs*125/Fsw) -> 9.966777409e-07 | P64: H
A65: L_Vinnom | B65: =IF(VIN_nom>Vout, B61,C61) -> 0 | C65: H | D65: =IF(VIN_nom>Vout, "BUCK", "BOOST") -> BOOST | E65: Calculated inductance for 35% ripple at VIN(nom) | K65: Lboost | L65: =(Vout-VIN_min)*VIN_min^2/(0.3*Iout*Fsw*Vout^2) -> 2.76854928e-06 | M65: H | N65: Lmax | O65: =Rs*5000/Fsw -> 2.07641196e-05 | P65: H
A66: L_Vinmax | B66: =MIN(IF(VIN_max>Vout,B62,C62),O65) -> 5.53709856e-06 | C66: H | D66: =IF(VIN_max>Vout, "BUCK", "BOOST") -> BUCK | E66: Calculated inductance for 40% ripple at VIN(max) | K66: Lmax(0.5d boost) | L66: =Rs*25*Vout/Fsw -> 2.491694352e-06 | M66: H | N66: Ltyp | O66: =Rs*625/Fsw -> 2.59551495e-06 | P66: H
K67: Iinpeakmax | L67: =Vout/VIN_min*1.4*Iout -> 16.8 | M67: A | N67: Lminheadroom | O67: =Rs*10*Vout/Fsw -> 9.966777409e-07 | P67: H
A68: Lopt | B68: =O74 -> 3.08989875e-06 | C68: H | D68: average of calculated inductances at VIN(min), VIN(max) and VIN(nom) | K68: Rsns_suggest | L68: =Buck_CS_threshold/L67 -> 0.002976190476 | M68: W | N68: LminSC | O68: =Rs*125/Fsw -> 5.1910299e-07 | P68: H
A69: Lmin | B69: =O64 -> 9.966777409e-07 | C69: H
A70: Lmax | B70: =O65 -> 2.07641196e-05 | C70: H | K70: L_avg | L70: =(MAX(MIN(AVERAGE(L64:L65),O65),O64)) -> 4.15282392e-06 | M70: H
A71: Lopt_Limit | B71: =MAX(MIN(B68,B70),B69) -> 3.08989875e-06 | C71: H | K71: L_min | L71: =(MAX(MIN(MIN(L64:L65),O65),O64)) -> 2.76854928e-06 | M71: H
A72: Lf | B72: ='Design Converter'!E16/1000000 -> 3.3e-06 | C72: H | E72: Chosen inductance | I72: 2
A73: Rdcr | B73: ='Design Converter'!E17/1000 -> 0.0057 | C73: W | E73: Chosen inductor DCR | I73: 1 | N73: Ltyp_sugguest | O73: =L68*625/Fsw -> 3.08989875e-06 | P73: H
N74: Ltyp_sugguest_limit | O74: =MAX(O64,MIN(O65,O73)) -> 3.08989875e-06 | P74: H
A75: Don2 | B75: =(Vout+Iout*(Rdcr+Rs))/(Vin+Iout*Rs) -> 1.00142411 | I75: 2
A76: Doff2 | B76: =1-_Don2 -> -0.001424109931 | I76: 2
A78: Don_Vinmin_2 | B78: =IF(VIN_min>Vout, (Vout+Iout*(Rdcr+Rs))/(VIN_min+Iout*Rs), (Vout-VIN_min+Iin_Vinmin*(Rdcr))/(Vout-Iin_Vinmin*Rs)) -> 0.5036627141 | C78: =IF(VIN_min>Vout, "BUCK", "BOOST") -> BOOST | E78: Duty cycles adjusted for DCR and shunt voltage drops | I78: 2
A79: Don_Vinnom_2 | B79: =IF(VIN_nom>Vout, (Vout+Iout*(Rdcr+Rs))/(VIN_nom+Iout*Rs), (Vout-VIN_nom+Iin_Vinnom*(Rdcr))/(Vout-Iin_Vinnom*Rs)) -> 0.001500987492 | C79: =IF(VIN_nom>Vout, "BUCK", "BOOST") -> BOOST | E79: need to include RDS(on) later | R79: LM51772
A80: Don_Vinmax_2 | B80: =IF(VIN_max>Vout, (Vout+Iout*(Rdcr+Rs))/(VIN_max+Iout*Rs), (Vout-VIN_max+Iin_Vinmax*(Rdcr))/(Vout-Iin_Vinmax*Rs)) -> 0.667755102 | C80: =IF(VIN_max>Vout, "BUCK", "BOOST") -> BUCK
A82: Vripple1 | B82: ='Design Converter'!E39/1000 -> 0.15 | C82: V | E82: Output voltage ripple spec(pk-pk) | I82: 1
A84: Iripple_Vinmin | B84: =IF(VIN_min>Vout, (VIN_min-Vout)*Don_Vinmin_2/(Fsw*Lf),VIN_min*Don_Vinmin_2/(Lf*Fsw)) -> 3.042360097 | C84: =(VIN_min-Vout)*Don_Vinmin_2/(Fsw*Lf) -> -3.042360097 | D84: A | E84: =IF(VIN_min>Vout, "BUCK", "BOOST") -> BOOST | H84: =VIN_min*Don_Vinmin_2/(Lopt*Fsw) -> 3.249228901
A85: Iripple_Vinnom | B85: =IF(VIN_nom>Vout, (VIN_nom-Vout)*Don_Vinnom_2/(Fsw*Lf),VIN_nom*Don_Vinnom_2/(Lf*Fsw)) -> 0.0181333433 | C85: =(VIN_nom-Vout)*Don_Vinnom_2/(Fsw*Lf) -> 0 | D85: A | E85: =IF(VIN_nom>Vout, "BUCK", "BOOST") -> BOOST
A86: Iripple_Vinmax | B86: =IF(VIN_max>Vout, (VIN_max-Vout)*Don_Vinmax_2/(Fsw*Lf),VIN_max*Don_Vinmax_2/(Lf*Fsw)) -> 4.033555434 | C86: =(VIN_max-Vout)*Don_Vinmax_2/(Fsw*Lf) -> 4.033555434 | D86: A | E86: =IF(VIN_max>Vout, "BUCK", "BOOST") -> BUCK
A87: Iripple_edgebuckboost | B87: =VIN_edgebuckboost*Don_buckboost/(Lf*Fsw) -> 1.937865696 | D87: A | E87: BUCK-BOOST
A89: Ishunt_rms_Vinmin | B89: =IF(VIN_min>Vout, SQRT(1-Don_Vinmin_2)*SQRT(Iout^2+(Iripple_Vinmin^2)/12), SQRT(Don_Vinmin_2)*SQRT(Iin_Vinmin^2+(Iripple_Vinmin^2)/12)) -> 8.986172388 | C89: A | E89: =SQRT(1-Don_Vinmin_2)*SQRT(Iout^2+(Iripple_Vinmin^2)/12) -> 4.272116796 | F89: =SQRT(Don_Vinmin_2)*SQRT(Iout^2+(Iripple_Vinmin^2)/12) -> 4.303527351
A90: Ishunt_rms_Vinnom | B90: =IF(VIN_nom>Vout, SQRT(1-Don_Vinnom_2)*SQRT(Iout^2+(Iripple_Vinnom^2)/12), SQRT(Don_Vinnom_2)*SQRT(Iin_Vinnom^2+(Iripple_Vinnom^2)/12)) -> 0.2446900619 | C90: A | E90: =SQRT(1-Don_Vinnom_2)*SQRT(Iout^2+(Iripple_Vinnom^2)/12) -> 5.995497628 | F90: =SQRT(Don_Vinnom_2)*SQRT(Iout^2+(Iripple_Vinnom^2)/12) -> 0.2324555674
A91: Ishunt_rms_Vinmax | B91: =IF(VIN_max>Vout, SQRT(1-Don_Vinmax_2)*SQRT(Iout^2+(Iripple_Vinmax^2)/12), SQRT(Don_Vinmax_2)*SQRT(Iin_Vinmax^2+(Iripple_Vinmax^2)/12)) -> 3.522963683 | C91: A | E91: =SQRT(1-Don_Vinmax_2)*SQRT(Iout^2+(Iripple_Vinmax^2)/12) -> 3.522963683 | F91: =SQRT(Don_Vinmax_2)*SQRT(Iout^2+(Iripple_Vinmax^2)/12) -> 4.994449353
A92: Max shunt power loss at full load | B92: =MAX(B89,B91)^2*Rs -> 0.2018782355 | C92: W | D92: =IF(B91>B89, "BUCK", "BOOST") -> BOOST
A94: Max inductor ripple current | B94: =MAX(B84:B86) -> 4.033555434 | C94: A
F95: Ripple I | G95: Iin
A96: % Ripple Current | B96: =IF(VIN_min>Vout, B84/Iout, B84/Iin_Vinmin) -> 0.2408535077 | C96: =IF(VIN_min>Vout, "BUCK", "BOOST") -> BOOST | F96: =B84 -> 3.042360097 | G96: =Iin_Vinmin -> 12.63157895
B97: =IF(VIN_nom>Vout, B85/Iout, B85/Iin_Vinnom) -> 0.002871112689 | C97: =IF(VIN_nom>Vout, "BUCK", "BOOST") -> BOOST | F97: =B85 -> 0.0181333433 | G97: =Iin_Vinnom -> 6.315789474
B98: =IF(VIN_max>Vout, B86/Iout, B86/Iin_Vinmax) -> 0.6722592389 | C98: =IF(VIN_max>Vout, "BUCK", "BOOST") -> BUCK | F98: =B86 -> 4.033555434 | G98: =Iin_Vinmax -> 4.210526316
A100: Temp | B100: 100
A101: DCR at hot | B101: =Rdcr*(1+0.0039*(B100-25)) -> 0.00736725 | C101: W
A104: Step 3: Sense Resistors, Slope Comp, Current Limit
A106: Ilimit_Margin | B106: ='Design Converter'!E26 -> 20 | C106: % | E106: Chosen OCP level - based on output current
A108: Ipeak_inductor_Vinmin | B108: =IF(VIN_min>Vout, Iout/Efficiency+Iripple_Vinmin/2, Iin_Vinmin+Iripple_Vinmin/2) -> 14.152759 | C108: A | D108: =IF(VIN_min>Vout, "BUCK", "BOOST") -> BOOST
A109: Ipeak_inductor_Vinnom | B109: =IF(VIN_nom>Vout, Iout/Efficiency+Iripple_Vinnom/2,Iin_Vinnom+Iripple_Vinnom/2) -> 6.324856145 | C109: A | D109: =IF(VIN_nom>Vout, "BUCK", "BOOST") -> BOOST
A110: Ipeak_inductor_Vinmax | B110: =IF(VIN_max>Vout, Iout/Efficiency+Iripple_Vinmax/2,Iin_Vinmin+Iripple_Vinmax/2) -> 8.332567191 | C110: A | D110: =IF(VIN_max>Vout, "BUCK", "BOOST") -> BUCK
A111: Ipeak_inductor_buckboost | B111: =Iout/Efficiency+Iripple_edgebuckboost/2 -> 7.284722321 | C111: A | D111: edge of buck-boost
A112: Ipeak_inductor_max | B112: =MAX(B108:B110) -> 14.152759 | C112: A | D112: Max inductor of Boost and Buck
A113: Ipeak_inductor_max_margin | B113: =Ipeak_inductor_max*(1+Ilimit_Margin/100) -> 16.9833108 | C113: A | D113: with added margin
A115: Buck CS threshold_min | B115: 0.0385 | C115: V
A116: Buck CS threshold | B116: 0.05 | C116: V | E116: Pos and neg. is identical - otherwise take lower value
A117: Buck CS threshold_max | B117: 0.0585 | C117: V | E117: Identical for Buck and Boost
A119: Boost CS Threshold_min | B119: 0.0385 | C119: V
A120: Boost CS Threshold | B120: 0.05 | C120: V | E120: Pos and neg. is identical - otherwise take lower value
A121: Boost CS Threshold_max | B121: 0.0585 | C121: V | E121: Identical for Buck and Boost
A123: Assume we'd like to achieve current limit particularly at VIN(min) and boost side of buck-boost region; accept inevitable variation over line thereafter
A124: Shunt required to get OCP at VIN(min) | B124: =IF(VIN_min>Vout,Buck_CS_threshold/B108, Boost_CS_Threshold/B108)/(1+Ilimit_Margin/100) -> 0.002944066714 | C124: W | D124: =IF(VIN_min>Vout, "BUCK", "BOOST") -> BOOST
A125: Shunt required to get OCP at VIN(nom) | B125: =IF(VIN_nom>Vout,Buck_CS_threshold/B109, Boost_CS_Threshold/B109)/(1+Ilimit_Margin/100) -> 0.006587765114 | C125: W | D125: =IF(VIN_nom>Vout, "BUCK", "BOOST") -> BOOST
A126: Shunt required to get OCP at VIN(max) | B126: =IF(VIN_max>Vout,Buck_CS_threshold/B110, Boost_CS_Threshold/B110)/(1+Ilimit_Margin/100) -> 0.005000459728 | C126: W | D126: =IF(VIN_max>Vout, "BUCK", "BOOST") -> BUCK
A127: Shunt required to get OCP at VIN(edge-bb) | B127: =IF(VIN_min<VIN_edgebuckboost,Buck_CS_threshold/B111, 10)/(1+Ilimit_Margin/100) -> 0.005719733001 | C127: W | D127: Edge of B-B
A129: Rs_ideal | B129: =MIN(B124:B126) -> 0.002944066714 | C129: W | E129: Ideal Rs for the required OCP -- based on 80mV or 160mV CL threshold
A130: Rs | B130: ='Design Converter'!E28/1000 -> 0.0025 | C130: W | E130: Selected (starndard value) current limit sense resistor
A131: Rs_in_range | B131: =IF(AND(100<Rs/Lf,Rs/Lf<8000,Rs/Lf<(1*Fsw/(Vout*10))),1,0) -> 1
A132: BOOST current limit - peak | B132: =Boost_CS_Threshold_max/Rs -> 23.4 | C132: A | E132: Peak inductor current limit in BOOST
A133: BUCK current limit - peak | B133: =Buck_CS_threshold_max/Rs -> 23.4 | C133: A | E133: Peak inductor current limit in BUCK
A135: Iout_OCP_Vinmin | B135: =IF(VIN_min>Vout,Buck_CS_threshold/Rs-Iripple_Vinmin/2, (Boost_CS_Threshold/Rs-Iripple_Vinmin/2)*(1-Don_Vinmin_2)) -> 9.171727341 | C135: A | D135: =IF(VIN_min>Vout, "BUCK", "BOOST") -> BOOST | E135: Current limit setpoints (i.e. IOUT) after standard components are selected
A136: Iout_OCP_Vinnom | B136: =IF(VIN_nom>Vout,Buck_CS_threshold/Rs-Iripple_Vinnom/2, IF(VIN_nom<VIN_edgebuckboost,(Boost_CS_Threshold/Rs-Iripple_Vinnom/2)*(1-Don_Vinnom_2),(Buck_CS_threshold/Rs-Iripple_Vinnom/2)*(1-Don_Vinnom_2))) -> 19.96092719 | C136: A | D136: =IF(VIN_nom>Vout,"BUCK",IF(VIN_nom<VIN_edgebuckboost,"BOOST","BUCK-BOOST")) -> BUCK-BOOST
A137: Iout_OCP_Vinmax | B137: =IF(VIN_max>Vout, Buck_CS_threshold/Rs-Iripple_Vinmax/2, (Boost_CS_Threshold/Rs-Iripple_Vinmax/2)*(1-Don_Vinmax_2)) -> 17.98322228 | C137: A | D137: =IF(VIN_max>Vout, "BUCK", "BOOST") -> BUCK
A138: Iout_edgebuckboost | B138: =(Buck_CS_threshold/Rs-Iripple_edgebuckboost/2)*(1-Don_buckboost) -> 15.211935 | C138: A | D138: lower edge of buck-boost window | K138: RMS current in Rs | M138: Power diss in Rs
A140: ILpeak_OCP_Vinmin | B140: =IF(VIN_min>Vout, Buck_CS_threshold_max/Rs, Boost_CS_Threshold_max/Rs) -> 23.4 | C140: A | D140: =IF(VIN_min>Vout, "BUCK", "BOOST") -> BOOST | E140: Peak inductor currents in OCP | H140: =SQRT(Don_Vinmin_2)*SQRT(Iin_Vinmin^2+(Iripple_Vinmin^2)/12) -> 8.986172388 | K140: =IF(VIN_min>Vout, SQRT(1-Don_Vinmin_2)*SQRT(Iout_OCP_Vinmin^2+(Iripple_Vinmin^2)/12), SQRT(Don_Vinmin_2)*SQRT(Iin_Vinmin^2+(Iripple_Vinmin^2)/12)) -> 8.986172388 | L140: A | M140: =K140^2*Rs -> 0.2018782355 | N140: W
A141: ILpeak_OCP_Vinnom | B141: =IF(VIN_nom>Vout, Buck_CS_threshold_max/Rs, IF(VIN_nom<VIN_edgebuckboost, Boost_CS_Threshold_max/Rs, Buck_CS_threshold_max/Rs)) -> 23.4 | C141: A | D141: =IF(VIN_nom>Vout,"BUCK",IF(VIN_nom<VIN_edgebuckboost,"BOOST","BUCK-BOOST")) -> BUCK-BOOST | H141: =SQRT(1-Don_Vinnom_2)*SQRT(Iout_OCP_Vinnom^2+(Iripple_Vinnom^2)/12) -> 19.9459417 | K141: =IF(VIN_nom>Vout, SQRT(1-Don_Vinnom_2)*SQRT(Iout_OCP_Vinnom^2+(Iripple_Vinnom^2)/12), SQRT(Don_Vinnom_2)*SQRT(Iin_Vinnom^2+(Iripple_Vinnom^2)/12)) -> 0.2446900619 | L141: A | M141: =K141^2*Rs -> 0.000149683066 | N141: W
A142: ILpeak_OCP_Vinmax | B142: =IF(VIN_max>Vout, Buck_CS_threshold_max/Rs, Boost_CS_Threshold_max/Rs) -> 23.4 | C142: A | D142: =IF(VIN_max>Vout, "BUCK", "BOOST") -> BUCK | H142: =SQRT(1-Don_Vinmax_2)*SQRT(Iout_OCP_Vinmax^2+(Iripple_Vinmax^2)/12) -> 10.38735876 | K142: =IF(VIN_max>Vout, SQRT(1-Don_Vinmax_2)*SQRT(Iout_OCP_Vinmax^2+(Iripple_Vinmax^2)/12), SQRT(Don_Vinmax_2)*SQRT(Iin_Vinmax^2+(Iripple_Vinmax^2)/12)) -> 10.38735876 | L142: A | M142: =K142^2*Rs -> 0.2697430552 | N142: W
A143: Worst case peak inductor current | B143: =MAX(B140:B142) -> 23.4 | C143: A
A145: IL_peak_OCP | B145: =MAX(B140:B142) -> 23.4 | C145: A | E145: Peak inductor current over the full input range
A147: Rslope calc LM51772 | B147: =Rs/Lf/Fsw*625 -> 0.7865196819
A148: Rslope select LM51772 | B148: =INDEX(P153:P168,MATCH(B147,P153:P168,1)+1) -> 0.875
A149: Rslope setting for CFG1 in LM51772 | B149: =INDEX(O153:O168,MATCH(B147,P153:P168)+1)+1 -> 7
A150: Rslope_equ_772 | B150: =625*50000000/(Fsw*B148) -> 59326.056 | C150: W
A151: Islope_fixed | B151: =Isc_const -> 0 | C151: A | K151: BUCK | L151: BOOST | O151: LM51772 Slope table
A152: Rslope | B152: =B150 -> 59326.056 | C152: W | K152: =B153*(1-Don_Vinmin_2)/Fsw -> 0.125076996 | L152: =B153*Don_Vinmin_2/Fsw -> 0.126923004 | M152: =IF(VIN_min>Vout, "BUCK", "BOOST") -> BOOST | O152: SEL_SLOPE | P152: Factor
A153: SLOPE comp dv/dt = I_slope_total/Cslope | B153: =(ABS((VIN_min-Vout))*gm_slopecomp/Cslope + Islope_fixed)/(Rslope) -> 151704 | C153: V/s | E153: at VIN_min | K153: =B154*(1-Don_Vinnom_2)/Fsw -> 0 | L153: =B154*Don_Vinnom_2/Fsw -> 0 | M153: =IF(VIN_nom>Vout, "BUCK", "BOOST") -> BOOST | O153: 0 | P153: =0.125 + 0.125 *O153 -> 0.125
A154: SLOPE comp dv/dt = I_slope_total/Cslope | B154: =(ABS((VIN_nom-Vout))*gm_slopecomp/Cslope + Islope_fixed)/(Rslope) -> 0 | C154: V/s | E154: at VIN_nom | K154: =B155*(1-Don_Vinmax_2)/Fsw -> 0.08372571429 | L154: =B155*Don_Vinmax_2/Fsw -> 0.1682742857 | M154: =IF(VIN_max>Vout, "BUCK", "BOOST") -> BUCK | O154: 1 | P154: =0.125 + 0.125 *O154 -> 0.25
A155: SLOPE comp dv/dt = I_slope_total/Cslope | B155: =(ABS((VIN_max-Vout))*gm_slopecomp/Cslope + Islope_fixed)/(Rslope) -> 151704 | C155: V/s | E155: at VIN_max | O155: 2 | P155: =0.125 + 0.125 *O155 -> 0.375
O156: 3 | P156: 0.5
A157: DV_SLOPEcomp at Vinmin | B157: =IF(D157="BUCK", K152,L152) -> 0.126923004 | C157: V | D157: =IF(VIN_min>Vout, "BUCK", "BOOST") -> BOOST | E157: at VIN_min | O157: 4 | P157: 0.625
A158: DV_SLOPEcomp at Vinnom | B158: =IF(D158="BUCK", K153,L153) -> 0 | C158: V | D158: =IF(VIN_nom>Vout,"BUCK",IF(VIN_nom<VIN_edgebuckboost,"BOOST","BUCK-BOOST")) -> BUCK-BOOST | E158: at VIN_nom | O158: 5 | P158: 0.75
A159: DV_SLOPEcomp at Vinmax | B159: =IF(D159="BUCK", K154,L154) -> 0.08372571429 | C159: V | D159: =IF(VIN_max>Vout, "BUCK", "BOOST") -> BUCK | E159: at VIN_max | O159: 6 | P159: 0.875
O160: 7 | P160: 1
O161: 8 | P161: =1 + 4 *P153 -> 1.5
O162: 9 | P162: =1 + 4 *P154 -> 2
O163: 10 | P163: 2.5
O164: 11 | P164: 3
O165: 12 | P165: 3.5
O166: 13 | P166: 4
A167: Step 4: Output Capacitor | O167: 14 | P167: 4.5
A168: Icoutrms_VINmin | B168: =IF(D168="BUCK", Iripple_Vinmin/SQRT(12), Iout*SQRT((Vout-VIN_min)/VIN_min)) -> 6 | C168: A | D168: =IF(VIN_min>Vout, "BUCK", "BOOST") -> BOOST | E168: Output Cap RMS current | O168: 15 | P168: 5
A169: Icoutrms_VINnom | B169: =IF(D169="BUCK", Iripple_Vinnom/SQRT(12), Iout*SQRT((Vout-VIN_nom)/VIN_nom)) -> 0 | C169: A | D169: =IF(VIN_nom>Vout,"BUCK",IF(VIN_nom<VIN_edgebuckboost,"BOOST","BUCK-BOOST")) -> BUCK-BOOST
A170: Icoutrms_VINmax | B170: =IF(D170="BUCK", Iripple_Vinmax/SQRT(12), Iout*SQRT((Vout-VIN_max)/VIN_max)) -> 1.164387158 | C170: A | D170: =IF(VIN_max>Vout, "BUCK", "BOOST") -> BUCK
A171: Max Cout rms current | B171: =MAX(B168:B170) -> 6 | C171: A
A173: Output Ripple Spec (pk-pk) | B173: =Vripple1*1000 -> 150 | C173: mV | E173: Vout ripple spec at Vin(nom)
A175: Coutmin | B175: =IF(VIN_min>Vout, Iripple_Vinmin/(Fsw*8*Vripple1), Iout*Don_Vinmin_2/(Vripple1*Fsw)) -> 3.346596107e-05 | C175: F | E175: Minimum Output Capacitnace | H175: =Vripple2 -> 0.08074867701 | I175: 1 | K175: =Coutmin -> 3.346596107e-05
A176: Reported Coutmin | B176: =IF(Coutmin*1000000<H176, H176,Coutmin*1000000) -> 33.46596107 | C176: uF | E176: Limit Min. output Cap | H176: 0.1 | K176: =Coutmin*1000000 -> 33.46596107
A177: Cout | B177: ='Design Converter'!E41/1000000 -> 8e-05 | C177: F | E177: Chosen Output Capacitance | I177: 1
A178: Resrmax | B178: =IF(VIN_min>Vout, SQRT((Vripple1/Iripple_Vinmin)^2-(1/(Fsw*Cout*8))^2), (Vripple1-Iout*Don_Vinmin_2/(Fsw*Cout))/Iout) -> 0.01454188717 | C178: W | E178: Max ESR before ripple exceeds Vripple1 | I178: 1
A180: Reported Cout ESR max | B180: =IF(OR(CoutEsrMax>0.3, CoutEsrMax<0, (ISERROR(CoutEsrMax))), "N/A", CoutEsrMax*1000) -> 14.54188717 | C180: mΩ
A181: CoutEsr | B181: ='Design Converter'!E43/1000 -> 0.003 | C181: W | E181: Chosen ESR | I181: 1 | K181: =ISERROR(CoutEsrMax) -> FALSE | L181: =ISERROR(B180) -> FALSE
A182: Vripple | B182: =IF(VIN_min>Vout, Iripple_Vinmax*SQRT(CoutEsr^2+(1/(8*Fsw*Cout))^2), CoutEsr*Iout+Iout*Don_Vinmin_2/(Fsw*Cout)) -> 0.08074867701 | C182: Vp-p | L182: =OR(CoutEsrMax>0.3,CoutEsrMax<0) -> FALSE
K183: =OR(TRUE, FALSE, TRUE) -> TRUE
A184: Step 5: Input Capacitor
A186: Icinrms_VINmin | B186: =IF(D186="BUCK", Iout*SQRT(Don_Vinmin_2*(1-Don_Vinmax_2)), Iripple_Vinmin/SQRT(12)) -> 0.8782537106 | C186: A | D186: =IF(VIN_min>Vout, "BUCK", "BOOST") -> BOOST | F186: =Iripple_Vinmin/SQRT(12) -> 0.8782537106 | G186: =Iout*SQRT(Don_Vinmax_2*(1-Don_Vinmax_2)) -> 2.826109716 | H186: =Iout*0.25 -> 1.5
A187: Icinrms_VINnom | B187: =IF(D187="BUCK", Iout*SQRT(Don_Vinnom_2*(1-Don_Vinnom_2)), Iripple_Vinnom/SQRT(12)) -> 0.005234645318 | C187: A | D187: =IF(VIN_nom>Vout,"BUCK",IF(VIN_nom<VIN_edgebuckboost,"BOOST","BUCK-BOOST")) -> BUCK-BOOST
A188: Icinrms_VINmiax | B188: =IF(D188="BUCK", Iout*SQRT(Don_Vinmax_2*(1-Don_Vinmax_2)), Iripple_Vinmax/SQRT(12)) -> 2.826109716 | C188: A | D188: =IF(VIN_max>Vout, "BUCK", "BOOST") -> BUCK
A189: Max Cin rms current | B189: =MAX(B186:B188) -> 2.826109716 | C189: A | D189: …report this
A191: Vinripple1 | B191: ='Design Converter'!E48/1000 -> 0.18 | C191: Vp-p | D191: Input voltage ripple spec (pk-pk)
A193: Cinmin_Vinmax | B193: =IF(VIN_max>Vout, Iout*Don_Vinmax_2*(1-Don_Vinmax_2)/(Vinripple1*Fsw), Iripple_Vinmax/(Fsw*8*Vinripple1)) -> 1.228450862e-05 | C193: F | D193: Calculate cap at Vinmax and 50% duty cycle (Vin = 2*Vout) | K193: =Iripple_Vinnom/(Fsw*8*Vinripple1) -> 2.091793939e-08
A194: Cinmin_50%D | B194: =IF(VIN_max>Vout, Iout*0.5*(1-0.5)/(Vinripple1*Fsw), Iripple_Vinmax/(Fsw*8*Vinripple1)) -> 1.38427464e-05 | D194: Buck 50% typically worst case
A195: Cinmin | B195: =IF(VIN_max<2*Vout, B193,B194) -> 1.228450862e-05
A196: Reported Cinmin | B196: =IF(Cinmin*1000000<10, 10,Cinmin*1000000) -> 12.28450862 | C196: uF | D196: …report this
A197: Cin | B197: ='Design Converter'!E50/1000000 -> 0.0001 | C197: F | D197: Input capacitance
A198: CinEsrMax_Vinmax | B198: =IF(VIN_max>Vout, -(Iout*Don_Vinmax_2*(1-Don_Vinmax_2)/(Cin*Fsw)-Vinripple1)/(Iout+Iripple_Vinmax/2), SQRT((Vinripple1/Iripple_Vinmax)^2-(1/(Fsw*Cin*8))^2)) -> 0.01969468159 | C198: W
A199: CinEsrMax_50%D | B199: =IF(VIN_max>Vout, -(Iout*0.5*(1-0.5)/(Cin*Fsw)-Vinripple1)/(Iout+Iripple_Vinmax/2), SQRT((Vinripple1/Iripple_Vinmax)^2-(1/(Fsw*Cin*8))^2)) -> 0.01934481184 | C199: W | D199: Calculate ESR at Vinmax and 50% duty cycle (Vin = 2*Vout)
A200: CinEsrMax | B200: =IF(VIN_max<2*Vout, B198,B199) -> 0.01969468159 | C200: W
A201: Reported Cin ESR max | B201: =IF(OR(CinEsrMax>0.3, CinEsrMax<0), "N/A",CinEsrMax*1000) -> 19.69468159 | C201: mΩ | D201: …report this
A202: RCinEsr | B202: ='Design Converter'!E52/1000 -> 0.002 | C202: W | D202: Input capacitance series resistance (ESR)
K203: =CinEsrMax -> 0.01969468159
A204: Vinripple2_Vinmax | B204: =IF(VIN_max>Vout, Iout*Don_Vinmax_2*(1-Don_Vinmax_2)/(Cin*Fsw)+(Iout +Iripple_Vinmax/2)*RCinEsr, Iripple_Vinmax*SQRT(RCinEsr^2+(1/(8*Fsw*Cin))^2)) -> 0.03814567096 | C204: Vp-p
A205: Vinripple2_50%D | B205: =IF(VIN_max>Vout, Iout*0.5*(1-0.5)/(Cin*Fsw)+(Iout +Iripple_Vinmax/2)*RCinEsr, Iripple_Vinmax*SQRT(RCinEsr^2+(1/(8*Fsw*Cin))^2)) -> 0.04095049896 | C205: Vp-p | D205: Calculate ripple at Vinmax and 50% duty cycle (Vin = 2*Vout)
A206: Vinripple2 | B206: =IF(VIN_max<2*Vout, B204,B205) -> 0.03814567096 | C206: Vp-p | D206: …report highest of these
B208: =Iout*Don_Vinmax_2*(1-Don_Vinmax_2)/(Cin*Fsw) -> 0.02211211552 | C208: Vp-p
A210: Step 6a: Soft Start
A211: Tss | B211: ='Design Converter'!E58/1000 -> 0.0018 | C211: s | D211: Soft-start time
A212: Iss | B212: 1e-05 | C212: A | D212: Load cap current during soft start
A213: Css | B213: =Iss*Tss/Vref ->  | C213: F
A214: Css_u | B214: ='Standard Value Calculator'!B4 ->  | C214: F
A216: Step 6b: Other Components - UVLO, Dither, MODE
A218: VINUVLO_ON | B218: ='Design Converter'!E61 -> 8.7 | C218: V
A219: VINUVLO_OFF | B219: ='Design Converter'!E62 -> 8.325 | C219: V
A220: RUV1 | B220: =(VINuvlo_on-VINuvlo_off)/Iuvlo1 -> 75 | C220: kΩ | E220: ='Standard Value Calculator'!O16 -> 75 | F220: kΩ | G220: =IF(Ruvlo1<0,"N/A",E220) -> 75 | H220: =IF(Ruvlo1<0,"N/A",E220&"kΩ") -> 75kΩ
A221: RUV2 | B221: =Ruvlo1/(('Design Converter'!E61-Vuvlo_hys)/Vuvlo_off-1) -> 12.43261456 | C221: kΩ | E221: ='Standard Value Calculator'!O17 -> 12.4 | F221: kΩ | G221: =IF(G220="N/A","N/A",E221) -> 12.4 | H221: =IF(H220="N/A","N/A",E221&"kΩ") -> 12.4kΩ
A223: VINUVLO_ON_ACTUAL | B223: =(E220+E221)/E221*Vuvlo_on+Iuvlo1*E220 -> 9.396935484
A224: VINUVLO_OFF_ACTUAL | B224: =(E220+E221)/E221*Vuvlo_off -> 8.669516129
A226: Rising UVLO/EN Threshold | B226: 1.28 | C226: V
A227: Falling UVLO/EN Threshold | B227: 1.23 | C227: V
A228: Voltage Hysteresis | B228: =B226-B227 -> 0.05 | C228: V
A229: Rising UVLO/EN Current | B229: 0.005 | C229: mA
A230: Falling UVLO/EN Current | C230: mA
A231: UVLO/EN Current Hysteresis | C231: mA
A233: RPG | B233: 20 | C233: kΩ
A234: RSB | C234: W
A235: Rh | B235: 0 | C235: W
A236: Rmode | C236: W | D236: TBD | E236: Tie to GND or VCC for DCM/CCM, respectively. Use 93.1k or 200k for hiccup in DCM, CCM, respectively.
A243: Step 6c: Current Monitor / Current Limiter
A244: Monitor
A245: With Rcs | B245: ='CFG Setting'!J146 -> 2 | E245: Flag to show current sense is used
A246: With_CDC | B246: ='CFG Setting'!B159 -> 2 | E246: Flag to show CDC is used
A247: IMONLIM_select | B247: ='CFG Setting'!F145-1 -> 1 | E247: 0:off / 1: ILIM (ext) / 2: ILIM (DAC)
A248: Imonitor,Max
... 236 more rows

Sheet Inductor Current (hidden)
A1: VIN_min | B1: ='Design Converter'!E6 -> 12 | C1: V | D1: Minimum input voltage
B2: ='Design Converter'!E7 -> 24 | C2: V | D2: Nominal input voltage
A3: VIN_max | B3: ='Design Converter'!E8 -> 36 | C3: V | D3: Maximum input voltage | I3: Vin | J3: Iin | K3: D | L3: IL | N3: Ripple
H4: 0 | I4: =Vin -> 24 | J4: =Pin/I4 -> 6.315789474 | K4: =IF(I4>Vout, (Vout+Iout*(Rdcr+Rs))/(I4+Iout*Rs), (Vout-I4+J4*(Rdcr))/(Vout-J4*Rs)) -> 0.001500987492 | L4: =IF(I4>Vout, (I4-Vout)*K4/(Fsw*Lf),I4*K4/(Lf*Fsw)) -> 0.0181333433 | M4: =(I4-Vout)*K4/(Fsw*Lf) -> 0 | N4: =IF(I4>Vout, L4/Iout, L4/J4) -> 0.002871112689 | Q4: =IF(I4>Vout, "BUCK", "BOOST") -> BOOST
H5: 1 | I5: =VIN_min+(VIN_max-VIN_min)/20*H5 -> 13.2 | J5: 11.48325359 | K5: 0.4532694611 | L5: 3.011757216 | M5: -2.464164995 | N5: 0.2622738576 | Q5: BOOST
H6: 2 | I6: 14.4 | J6: 10.52631579 | K6: 0.4029418222 | L6: 2.920750146 | M6: -1.947166764 | N6: 0.2774712638 | Q6: BOOST
H7: 3 | I7: 15.6 | J7: 9.71659919 | K7: 0.3526646403 | L7: 2.769338764 | M7: -1.491182412 | N7: 0.2850111145 | Q7: BOOST
H8: 4 | I8: 16.8 | J8: 9.022556391 | K8: 0.3024270931 | L8: 2.557522986 | M8: -1.09608128 | N8: 0.2834587977 | Q8: BOOST
H9: 5 | I9: 18 | J9: 8.421052632 | K9: 0.2522212467 | L9: 2.285302749 | M9: -0.7617675829 | N9: 0.2713797014 | Q9: BOOST
H10: 6 | I10: 19.2 | J10: 7.894736842 | K10: 0.2020411523 | L10: 1.952678004 | M10: -0.4881695011 | N10: 0.2473392139 | Q10: BOOST
H11: 7 | I11: 20.4 | J11: 7.430340557 | K11: 0.1518822618 | L11: 1.559648717 | M11: -0.2752321265 | N11: 0.2099027231 | Q11: BOOST
H12: 8 | I12: 21.6 | J12: 7.01754386 | K12: 0.1017410388 | L12: 1.106214858 | M12: -0.122912762 | N12: 0.1576356173 | Q12: BOOST
H13: 9 | I13: 22.8 | J13: 6.648199446 | K13: 0.05161469161 | L13: 0.5923764063 | M13: -0.0311777056 | N13: 0.08910328445 | Q13: BOOST
H14: 10 | I14: 24 | J14: 6.315789474 | K14: 0.001500987492 | L14: 0.0181333433 | M14: 0 | N14: 0.002871112689 | Q14: BOOST
H15: 11 | I15: 25.2 | J15: 6.015037594 | K15: 0.9537656157 | L15: 0.5761193692 | M15: 0.5761193692 | N15: 0.09601989487 | Q15: BUCK
H16: 12 | I16: 26.4 | J16: 5.741626794 | K16: 0.9104372516 | L16: 1.099893992 | M16: 1.099893992 | N16: 0.1833156653 | Q16: BUCK
H17: 13 | I17: 27.6 | J17: 5.491990847 | K17: 0.8708745247 | L17: 1.578147734 | M17: 1.578147734 | N17: 0.2630246224 | Q17: BUCK
H18: 14 | I18: 28.8 | J18: 5.263157895 | K18: 0.8346069755 | L18: 2.016567745 | M18: 2.016567745 | N18: 0.3360946242 | Q18: BUCK
H19: 15 | I19: 30 | J19: 5.052631579 | K19: 0.8012393803 | L19: 2.419931683 | M19: 2.419931683 | N19: 0.4033219472 | Q19: BUCK
H20: 16 | I20: 31.2 | J20: 4.858299595 | K20: 0.7704372898 | L20: 2.792282536 | M20: 2.792282536 | N20: 0.4653804227 | Q20: BUCK
H21: 17 | I21: 32.4 | J21: 4.678362573 | K21: 0.7419157797 | L21: 3.137064608 | M21: 3.137064608 | N21: 0.5228441013 | Q21: BUCK
H22: 18 | I22: 33.6 | J22: 4.511278195 | K22: 0.7154306113 | L22: 3.457230378 | M22: 3.457230378 | N22: 0.576205063 | Q22: BUCK
H23: 19 | I23: 34.8 | J23: 4.355716878 | K23: 0.6907712193 | L23: 3.755325263 | M23: 3.755325263 | N23: 0.6258875439 | Q23: BUCK
H24: 20 | I24: 36 | J24: 4.210526316 | K24: 0.667755102 | L24: 4.033555434 | M24: 4.033555434 | N24: 0.6722592389 | Q24: BUCK
H28: Vin | I28: =VIN_min -> 12
I29: L | J29: Iin | K29: D | L29: IL Peak,Peak | N29: Ripple Ratio | O29: IL Peak
H30: 0 | I30: =Lmin -> 9.966777409e-07 | J30: =Pin/$I$28 -> 12.63157895 | K30: =IF($I$28>Vout, (Vout+Iout*(Rdcr+Rs))/($I$28+Iout*Rs), (Vout-$I$28+J30*(Rdcr))/(Vout-J30*Rs)) -> 0.5036627141 | L30: =IF($I$28>Vout, ($I$28-Vout)*K30/(Fsw*I30),$I$28*K30/(I30*Fsw)) -> 10.07325428 | M30: =($I$28-Vout)*K30/(Fsw*I30) -> -10.07325428 | N30: =IF($I$28>Vout, L30/Iout, L30/J30) -> 0.797465964 | O30: =IF($I$80>Vout, L30/2+Iout, L30/2+J30) -> 11.03662714 | Q30: =IF(I30>Vout, "BUCK", "BOOST") -> BOOST
H31: 1 | I31: =Lmin+(Lmax-Lmin)/20*H5 -> 1.985049834e-06 | J31: 12.63157895 | K31: 0.5036627141 | L31: 5.057700895 | M31: -5.057700895 | N31: 0.4004013208 | O31: 8.528850447 | Q31: BOOST
H32: 2 | I32: 2.973421927e-06 | J32: 12.63157895 | K32: 0.5036627141 | L32: 3.376509815 | M32: -3.376509815 | N32: 0.267307027 | O32: 7.688254908 | Q32: BOOST
H33: 3 | I33: 3.96179402e-06 | J33: 12.63157895 | K33: 0.5036627141 | L33: 2.534152021 | M33: -2.534152021 | N33: 0.2006203683 | O33: 7.26707601 | Q33: BOOST
H34: 4 | I34: 4.950166113e-06 | J34: 12.63157895 | K34: 0.5036627141 | L34: 2.028172003 | M34: -2.028172003 | N34: 0.1605636169 | O34: 7.014086002 | Q34: BOOST
H35: 5 | I35: 5.938538206e-06 | J35: 12.63157895 | K35: 0.5036627141 | L35: 1.690616103 | M35: -1.690616103 | N35: 0.1338404415 | O35: 6.845308052 | Q35: BOOST
H36: 6 | I36: 6.926910299e-06 | J36: 12.63157895 | K36: 0.5036627141 | L36: 1.449389105 | M36: -1.449389105 | N36: 0.1147433042 | O36: 6.724694553 | Q36: BOOST
H37: 7 | I37: 7.915282392e-06 | J37: 12.63157895 | K37: 0.5036627141 | L37: 1.268405576 | M37: -1.268405576 | N37: 0.1004154414 | O37: 6.634202788 | Q37: BOOST
H38: 8 | I38: 8.903654485e-06 | J38: 12.63157895 | K38: 0.5036627141 | L38: 1.127603091 | M38: -1.127603091 | N38: 0.08926857806 | O38: 6.563801546 | Q38: BOOST
H39: 9 | I39: 9.892026578e-06 | J39: 12.63157895 | K39: 0.5036627141 | L39: 1.014937459 | M39: -1.014937459 | N39: 0.08034921552 | O39: 6.50746873 | Q39: BOOST
H40: 10 | I40: 1.088039867e-05 | J40: 12.63157895 | K40: 0.5036627141 | L40: 0.9227408503 | M40: -0.9227408503 | N40: 0.07305031731 | O40: 6.461370425 | Q40: BOOST
H41: 11 | I41: 1.186877076e-05 | J41: 12.63157895 | K41: 0.5036627141 | L41: 0.8458995898 | M41: -0.8458995898 | N41: 0.06696705086 | O41: 6.422949795 | Q41: BOOST
H42: 12 | I42: 1.285714286e-05 | J42: 12.63157895 | K42: 0.5036627141 | L42: 0.780872425 | M42: -0.780872425 | N42: 0.06181906698 | O42: 6.390436212 | Q42: BOOST
H43: 13 | I43: 1.384551495e-05 | J43: 12.63157895 | K43: 0.5036627141 | L43: 0.7251292824 | M43: -0.7251292824 | N43: 0.05740606819 | O43: 6.362564641 | Q43: BOOST
H44: 14 | I44: 1.483388704e-05 | J44: 12.63157895 | K44: 0.5036627141 | L44: 0.6768143974 | M44: -0.6768143974 | N44: 0.0535811398 | O44: 6.338407199 | Q44: BOOST
H45: 15 | I45: 1.582225914e-05 | J45: 12.63157895 | K45: 0.5036627141 | L45: 0.6345357028 | M45: -0.6345357028 | N45: 0.05023407647 | O45: 6.317267851 | Q45: BOOST
H46: 16 | I46: 1.681063123e-05 | J46: 12.63157895 | K46: 0.5036627141 | L46: 0.5972285147 | M46: -0.5972285147 | N46: 0.04728059075 | O46: 6.298614257 | Q46: BOOST
H47: 17 | I47: 1.779900332e-05 | J47: 12.63157895 | K47: 0.5036627141 | L47: 0.5640646355 | M47: -0.5640646355 | N47: 0.04465511698 | O47: 6.282032318 | Q47: BOOST
H48: 18 | I48: 1.878737542e-05 | J48: 12.63157895 | K48: 0.5036627141 | L48: 0.5343901476 | M48: -0.5343901476 | N48: 0.04230588668 | O48: 6.267195074 | Q48: BOOST
H49: 19 | I49: 1.977574751e-05 | J49: 12.63157895 | K49: 0.5036627141 | L49: 0.5076818622 | M49: -0.5076818622 | N49: 0.04019148076 | O49: 6.253840931 | Q49: BOOST
H50: 20 | I50: 2.07641196e-05 | J50: 12.63157895 | K50: 0.5036627141 | L50: 0.4835162055 | M50: -0.4835162055 | N50: 0.03827836627 | O50: 6.241758103 | Q50: BOOST
H54: Vin | I54: =VIN_nom -> 24
I55: L | J55: Iin | K55: D | L55: IL Peak,Peak | N55: Ripple Ratio | O55: IL Peak
H56: 0 | I56: =Lmin -> 9.966777409e-07 | J56: =Pin/$I$54 -> 6.315789474 | K56: =IF($I$54>Vout, (Vout+Iout*(Rdcr+Rs))/($I$54+Iout*Rs), (Vout-$I$54+J56*(Rdcr))/(Vout-J56*Rs)) -> 0.001500987492 | L56: =IF($I$54>Vout, ($I$54-Vout)*K56/(Fsw*I56),$I$54*K56/(I56*Fsw)) -> 0.06003949967 | M56: =($I$54-Vout)*K56/(Fsw*I56) -> 0 | N56: =IF($I$54>Vout, L56/Iout, L56/J56) -> 0.009506254115 | O56: =IF($I$80>Vout, L56/2+Iout, L56/2+J56) -> 6.03001975 | Q56: =IF(I56>Vout, "BUCK", "BOOST") -> BOOST
H57: 1 | I57: =Lmin+(Lmax-Lmin)/20*H31 -> 1.985049834e-06 | J57: 6.315789474 | K57: 0.001500987492 | L57: 0.03014535548 | M57: 0 | N57: 0.004773014618 | O57: 6.015072678 | Q57: BOOST
H58: 2 | I58: 2.973421927e-06 | J58: 6.315789474 | K58: 0.001500987492 | L58: 0.02012497196 | M58: 0 | N58: 0.003186453893 | O58: 6.010062486 | Q58: BOOST
H59: 3 | I59: 3.96179402e-06 | J59: 6.315789474 | K59: 0.001500987492 | L59: 0.01510427665 | M59: 0 | N59: 0.002391510469 | O59: 6.007552138 | Q59: BOOST
H60: 4 | I60: 4.950166113e-06 | J60: 6.315789474 | K60: 0.001500987492 | L60: 0.01208848987 | M60: 0 | N60: 0.001914010896 | O60: 6.006044245 | Q60: BOOST
H61: 5 | I61: 5.938538206e-06 | J61: 6.315789474 | K61: 0.001500987492 | L61: 0.01007655939 | M61: 0 | N61: 0.001595455236 | O61: 6.00503828 | Q61: BOOST
H62: 6 | I62: 6.926910299e-06 | J62: 6.315789474 | K62: 0.001500987492 | L62: 0.008638776931 | M62: 0 | N62: 0.001367806347 | O62: 6.004319388 | Q62: BOOST
H63: 7 | I63: 7.915282392e-06 | J63: 6.315789474 | K63: 0.001500987492 | L63: 0.007560062918 | M63: 0 | N63: 0.001197009962 | O63: 6.003780031 | Q63: BOOST
H64: 8 | I64: 8.903654485e-06 | J64: 6.315789474 | K64: 0.001500987492 | L64: 0.006720839515 | M64: 0 | N64: 0.001064132923 | O64: 6.00336042 | Q64: BOOST
H65: 9 | I65: 9.892026578e-06 | J65: 6.315789474 | K65: 0.001500987492 | L65: 0.006049319866 | M65: 0 | N65: 0.0009578089788 | O65: 6.00302466 | Q65: BOOST
H66: 10 | I66: 1.088039867e-05 | J66: 6.315789474 | K66: 0.001500987492 | L66: 0.005499801497 | M66: 0 | N66: 0.0008708019036 | O66: 6.002749901 | Q66: BOOST
H67: 11 | I67: 1.186877076e-05 | J67: 6.315789474 | K67: 0.001500987492 | L67: 0.005041805431 | M67: 0 | N67: 0.0007982858599 | O67: 6.002520903 | Q67: BOOST
H68: 12 | I68: 1.285714286e-05 | J68: 6.315789474 | K68: 0.001500987492 | L68: 0.004654224781 | M68: 0 | N68: 0.0007369189236 | O68: 6.002327112 | Q68: BOOST
H69: 13 | I69: 1.384551495e-05 | J69: 6.315789474 | K69: 0.001500987492 | L69: 0.00432197958 | M69: 0 | N69: 0.0006843134336 | O69: 6.00216099 | Q69: BOOST
H70: 14 | I70: 1.483388704e-05 | J70: 6.315789474 | K70: 0.001500987492 | L70: 0.004034008936 | M70: 0 | N70: 0.0006387180816 | O70: 6.002017004 | Q70: BOOST
H71: 15 | I71: 1.582225914e-05 | J71: 6.315789474 | K71: 0.001500987492 | L71: 0.003782015727 | M71: 0 | N71: 0.0005988191568 | O71: 6.001891008 | Q71: BOOST
H72: 16 | I72: 1.681063123e-05 | J72: 6.315789474 | K72: 0.001500987492 | L72: 0.003559654131 | M72: 0 | N72: 0.000563611904 | O72: 6.001779827 | Q72: BOOST
H73: 17 | I73: 1.779900332e-05 | J73: 6.315789474 | K73: 0.001500987492 | L73: 0.003361987849 | M73: 0 | N73: 0.0005323147428 | O73: 6.001680994 | Q73: BOOST
H74: 18 | I74: 1.878737542e-05 | J74: 6.315789474 | K74: 0.001500987492 | L74: 0.003185119346 | M74: 0 | N74: 0.0005043105631 | O74: 6.00159256 | Q74: BOOST
H75: 19 | I75: 1.977574751e-05 | J75: 6.315789474 | K75: 0.001500987492 | L75: 0.003025930265 | M75: 0 | N75: 0.0004791056253 | O75: 6.001512965 | Q75: BOOST
H76: 20 | I76: 2.07641196e-05 | J76: 6.315789474 | K76: 0.001500987492 | L76: 0.002881895984 | M76: 0 | N76: 0.0004563001975 | O76: 6.001440948 | Q76: BOOST
H80: Vin | I80: =VIN_max -> 36 | S80: IL Peak,Peak | X80: IL Peak | AC80: Ripple Ratio
I81: L | J81: Iin | K81: D | L81: IL Peak,Peak | N81: Ripple Ratio | O81: IL Peak | R81: =I81 -> L | S81: =CONCATENATE("Vin = ",$I$28," V") -> Vin = 12 V | T81: =CONCATENATE("Vin = ",$I$54," V") -> Vin = 24 V | U81: =CONCATENATE("Vin = ",$I$80," V") -> Vin = 36 V | W81: =I81 -> L | X81: =CONCATENATE("Vin = ",$I$28," V") -> Vin = 12 V | Y81: =CONCATENATE("Vin = ",$I$54," V") -> Vin = 24 V | Z81: =CONCATENATE("Vin = ",$I$80," V") -> Vin = 36 V | AB81: =I81 -> L | AC81: =CONCATENATE("Vin = ",$I$28," V") -> Vin = 12 V | AD81: =CONCATENATE("Vin = ",$I$54," V") -> Vin = 24 V | AE81: =CONCATENATE("Vin = ",$I$80," V") -> Vin = 36 V
H82: 0 | I82: =Lmin -> 9.966777409e-07 | J82: =Pin/$I$80 -> 4.210526316 | K82: =IF($I$80>Vout, (Vout+Iout*(Rdcr+Rs))/($I$80+Iout*Rs), (Vout-$I$80+J82*(Rdcr))/(Vout-J82*Rs)) -> 0.667755102 | L82: =IF($I$80>Vout, ($I$80-Vout)*K82/(Fsw*I82),$I$80*K82/(I82*Fsw)) -> 13.35510204 | M82: =($I$80-Vout)*K82/(Fsw*I82) -> 13.35510204 | N82: =IF($I$80>Vout, L82/Iout, L82/J82) -> 2.22585034 | O82: =IF($I$80>Vout, L82/2+Iout, L82/2+J82) -> 12.67755102 | Q82: =IF(I82>Vout, "BUCK", "BOOST") -> BOOST | R82: =I82*1000000 -> 0.9966777409 | S82: =L30 -> 10.07325428 | T82: =L56 -> 0.06003949967 | U82: =L82 -> 13.35510204 | W82: =I82 -> 9.966777409e-07 | X82: =O30 -> 11.03662714 | Y82: =O56 -> 6.03001975 | Z82: =O82 -> 12.67755102 | AB82: =I82*1000000 -> 0.9966777409 | AC82: =N30 -> 0.797465964 | AD82: =N56 -> 0.009506254115 | AE82: =N82 -> 2.22585034
H83: 1 | I83: =Lmin+(Lmax-Lmin)/20*H57 -> 1.985049834e-06 | J83: 4.210526316 | K83: 0.667755102 | L83: 6.705490564 | M83: 6.705490564 | N83: 1.117581761 | O83: 9.352745282 | Q83: BOOST | R83: =I83*1000000 -> 1.985049834 | S83: =L31 -> 5.057700895 | T83: =L57 -> 0.03014535548 | U83: =L83 -> 6.705490564 | W83: =I83 -> 1.985049834e-06 | X83: =O31 -> 8.528850447 | Y83: =O57 -> 6.015072678 | Z83: =O83 -> 9.352745282 | AB83: 1.985049834 | AC83: 0.4004013208 | AD83: 0.004773014618 | AE83: 1.117581761
H84: 2 | I84: 2.973421927e-06 | J84: 4.210526316 | K84: 0.667755102 | L84: 4.476570516 | M84: 4.476570516 | N84: 0.7460950861 | O84: 8.238285258 | Q84: BOOST | R84: =I84*1000000 -> 2.973421927 | S84: 3.376509815 | T84: 0.02012497196 | U84: 4.476570516 | W84: 2.973421927e-06 | X84: 7.688254908 | Y84: 6.010062486 | Z84: 8.238285258 | AB84: 2.973421927 | AC84: 0.267307027 | AD84: 0.003186453893 | AE84: 0.7460950861
H85: 3 | I85: 3.96179402e-06 | J85: 4.210526316 | K85: 0.667755102 | L85: 3.359774098 | M85: 3.359774098 | N85: 0.5599623497 | O85: 7.679887049 | Q85: BOOST | R85: 3.96179402 | S85: 2.534152021 | T85: 0.01510427665 | U85: 3.359774098 | W85: 3.96179402e-06 | X85: 7.26707601 | Y85: 6.007552138 | Z85: 7.679887049 | AB85: 3.96179402 | AC85: 0.2006203683 | AD85: 0.002391510469 | AE85: 0.5599623497
H86: 4 | I86: 4.950166113e-06 | J86: 4.210526316 | K86: 0.667755102 | L86: 2.68894672 | M86: 2.68894672 | N86: 0.4481577866 | O86: 7.34447336 | Q86: BOOST | R86: 4.950166113 | S86: 2.028172003 | T86: 0.01208848987 | U86: 2.68894672 | W86: 4.950166113e-06 | X86: 7.014086002 | Y86: 6.006044245 | Z86: 7.34447336 | AB86: 4.950166113 | AC86: 0.1605636169 | AD86: 0.001914010896 | AE86: 0.4481577866
H87: 5 | I87: 5.938538206e-06 | J87: 4.210526316 | K87: 0.667755102 | L87: 2.241415727 | M87: 2.241415727 | N87: 0.3735692879 | O87: 7.120707864 | Q87: BOOST | R87: 5.938538206 | S87: 1.690616103 | T87: 0.01007655939 | U87: 2.241415727 | W87: 5.938538206e-06 | X87: 6.845308052 | Y87: 6.00503828 | Z87: 7.120707864 | AB87: 5.938538206 | AC87: 0.1338404415 | AD87: 0.001595455236 | AE87: 0.3735692879
H88: 6 | I88: 6.926910299e-06 | J88: 4.210526316 | K88: 0.667755102 | L88: 1.921597416 | M88: 1.921597416 | N88: 0.320266236 | O88: 6.960798708 | Q88: BOOST | R88: 6.926910299 | S88: 1.449389105 | T88: 0.008638776931 | U88: 1.921597416 | W88: 6.926910299e-06 | X88: 6.724694553 | Y88: 6.004319388 | Z88: 6.960798708 | AB88: 6.926910299 | AC88: 0.1147433042 | AD88: 0.001367806347 | AE88: 0.320266236
H89: 7 | I89: 7.915282392e-06 | J89: 4.210526316 | K89: 0.667755102 | L89: 1.681649785 | M89: 1.681649785 | N89: 0.2802749641 | O89: 6.840824892 | Q89: BOOST | R89: 7.915282392 | S89: 1.268405576 | T89: 0.007560062918 | U89: 1.681649785 | W89: 7.915282392e-06 | X89: 6.634202788 | Y89: 6.003780031 | Z89: 6.840824892 | AB89: 7.915282392 | AC89: 0.1004154414 | AD89: 0.001197009962 | AE89: 0.2802749641
H90: 8 | I90: 8.903654485e-06 | J90: 4.210526316 | K90: 0.667755102 | L90: 1.494974109 | M90: 1.494974109 | N90: 0.2491623515 | O90: 6.747487055 | Q90: BOOST | R90: 8.903654485 | S90: 1.127603091 | T90: 0.006720839515 | U90: 1.494974109 | W90: 8.903654485e-06 | X90: 6.563801546 | Y90: 6.00336042 | Z90: 6.747487055 | AB90: 8.903654485 | AC90: 0.08926857806 | AD90: 0.001064132923 | AE90: 0.2491623515
H91: 9 | I91: 9.892026578e-06 | J91: 4.210526316 | K91: 0.667755102 | L91: 1.345602221 | M91: 1.345602221 | N91: 0.2242670368 | O91: 6.67280111 | Q91: BOOST | R91: 9.892026578 | S91: 1.014937459 | T91: 0.006049319866 | U91: 1.345602221 | W91: 9.892026578e-06 | X91: 6.50746873 | Y91: 6.00302466 | Z91: 6.67280111 | AB91: 9.892026578 | AC91: 0.08034921552 | AD91: 0.0009578089788 | AE91: 0.2242670368
H92: 10 | I92: 1.088039867e-05 | J92: 4.210526316 | K92: 0.667755102 | L92: 1.223368126 | M92: 1.223368126 | N92: 0.2038946876 | O92: 6.611684063 | Q92: BOOST | R92: 10.88039867 | S92: 0.9227408503 | T92: 0.005499801497 | U92: 1.223368126 | W92: 1.088039867e-05 | X92: 6.461370425 | Y92: 6.002749901 | Z92: 6.611684063 | AB92: 10.88039867 | AC92: 0.07305031731 | AD92: 0.0008708019036 | AE92: 0.2038946876
H93: 11 | I93: 1.186877076e-05 | J93: 4.210526316 | K93: 0.667755102 | L93: 1.121492124 | M93: 1.121492124 | N93: 0.186915354 | O93: 6.560746062 | Q93: BOOST | R93: 11.86877076 | S93: 0.8458995898 | T93: 0.005041805431 | U93: 1.121492124 | W93: 1.186877076e-05 | X93: 6.422949795 | Y93: 6.002520903 | Z93: 6.560746062 | AB93: 11.86877076 | AC93: 0.06696705086 | AD93: 0.0007982858599 | AE93: 0.186915354
H94: 12 | I94: 1.285714286e-05 | J94: 4.210526316 | K94: 0.667755102 | L94: 1.035279228 | M94: 1.035279228 | N94: 0.172546538 | O94: 6.517639614 | Q94: BOOST | R94: 12.85714286 | S94: 0.780872425 | T94: 0.004654224781 | U94: 1.035279228 | W94: 1.285714286e-05 | X94: 6.390436212 | Y94: 6.002327112 | Z94: 6.517639614 | AB94: 12.85714286 | AC94: 0.06181906698 | AD94: 0.0007369189236 | AE94: 0.172546538
H95: 13 | I95: 1.384551495e-05 | J95: 4.210526316 | K95: 0.667755102 | L95: 0.9613750719 | M95: 0.9613750719 | N95: 0.1602291787 | O95: 6.480687536 | Q95: BOOST | R95: 13.84551495 | S95: 0.7251292824 | T95: 0.00432197958 | U95: 0.9613750719 | W95: 1.384551495e-05 | X95: 6.362564641 | Y95: 6.00216099 | Z95: 6.480687536 | AB95: 13.84551495 | AC95: 0.05740606819 | AD95: 0.0006843134336 | AE95: 0.1602291787
H96: 14 | I96: 1.483388704e-05 | J96: 4.210526316 | K96: 0.667755102 | L96: 0.8973192861 | M96: 0.8973192861 | N96: 0.1495532143 | O96: 6.448659643 | Q96: BOOST | R96: 14.83388704 | S96: 0.6768143974 | T96: 0.004034008936 | U96: 0.8973192861 | W96: 1.483388704e-05 | X96: 6.338407199 | Y96: 6.002017004 | Z96: 6.448659643 | AB96: 14.83388704 | AC96: 0.0535811398 | AD96: 0.0006387180816 | AE96: 0.1495532143
H97: 15 | I97: 1.582225914e-05 | J97: 4.210526316 | K97: 0.667755102 | L97: 0.8412662703 | M97: 0.8412662703 | N97: 0.140211045 | O97: 6.420633135 | Q97: BOOST | R97: 15.82225914 | S97: 0.6345357028 | T97: 0.003782015727 | U97: 0.8412662703 | W97: 1.582225914e-05 | X97: 6.317267851 | Y97: 6.001891008 | Z97: 6.420633135 | AB97: 15.82225914 | AC97: 0.05023407647 | AD97: 0.0005988191568 | AE97: 0.140211045
H98: 16 | I98: 1.681063123e-05 | J98: 4.210526316 | K98: 0.667755102 | L98: 0.7918044688 | M98: 0.7918044688 | N98: 0.1319674115 | O98: 6.395902234 | Q98: BOOST | R98: 16.81063123 | S98: 0.5972285147 | T98: 0.003559654131 | U98: 0.7918044688 | W98: 1.681063123e-05 | X98: 6.298614257 | Y98: 6.001779827 | Z98: 6.395902234 | AB98: 16.81063123 | AC98: 0.04728059075 | AD98: 0.000563611904 | AE98: 0.1319674115
H99: 17 | I99: 1.779900332e-05 | J99: 4.210526316 | K99: 0.667755102 | L99: 0.7478358586 | M99: 0.7478358586 | N99: 0.1246393098 | O99: 6.373917929 | Q99: BOOST | R99: 17.79900332 | S99: 0.5640646355 | T99: 0.003361987849 | U99: 0.7478358586 | W99: 1.779900332e-05 | X99: 6.282032318 | Y99: 6.001680994 | Z99: 6.373917929 | AB99: 17.79900332 | AC99: 0.04465511698 | AD99: 0.0005323147428 | AE99: 0.1246393098
H100: 18 | I100: 1.878737542e-05 | J100: 4.210526316 | K100: 0.667755102 | L100: 0.708493477 | M100: 0.708493477 | N100: 0.1180822462 | O100: 6.354246738 | Q100: BOOST | R100: 18.78737542 | S100: 0.5343901476 | T100: 0.003185119346 | U100: 0.708493477 | W100: 1.878737542e-05 | X100: 6.267195074 | Y100: 6.00159256 | Z100: 6.354246738 | AB100: 18.78737542 | AC100: 0.04230588668 | AD100: 0.0005043105631 | AE100: 0.1180822462
H101: 19 | I101: 1.977574751e-05 | J101: 4.210526316 | K101: 0.667755102 | L101: 0.6730836812 | M101: 0.6730836812 | N101: 0.1121806135 | O101: 6.336541841 | Q101: BOOST | R101: 19.77574751 | S101: 0.5076818622 | T101: 0.003025930265 | U101: 0.6730836812 | W101: 1.977574751e-05 | X101: 6.253840931 | Y101: 6.001512965 | Z101: 6.336541841 | AB101: 19.77574751 | AC101: 0.04019148076 | AD101: 0.0004791056253 | AE101: 0.1121806135
H102: 20 | I102: 2.07641196e-05 | J102: 4.210526316 | K102: 0.667755102 | L102: 0.641044898 | M102: 0.641044898 | N102: 0.1068408163 | O102: 6.320522449 | Q102: BOOST | R102: 20.7641196 | S102: 0.4835162055 | T102: 0.002881895984 | U102: 0.641044898 | W102: 2.07641196e-05 | X102: 6.241758103 | Y102: 6.001440948 | Z102: 6.320522449 | AB102: 20.7641196 | AC102: 0.03827836627 | AD102: 0.0004563001975 | AE102: 0.1068408163

Sheet Timings (hidden)
A1: DeadTime | B1: 2e-08 | D1: fsw | E1: =Fsw -> 602000
A2: GdrvDelay | B2: 2e-08 | D2: Tsw | E2: =1/E1 -> 1.661129568e-06
A3: IL | B3: 1
A4: IlPos | B4: =IF(B3>0,1,0) -> 1
A5: IlNeg | B5: =IF(B3<0,1,0) -> 0
A6: IlDir | B6: =B4-B5 -> 1
A8: Ifsw_2M | B8: 1e-06
A9: Iconst | B9: 1e-06
A10: T12_min | B10: 7.5e-08
A11: T23_min | B11: 7.5e-08
A12: I_T12_max | B12: =0.75/T12_min*Ifsw_2M/2000000*0.2 -> 1e-06
A13: I_T23_max | B13: =0.75/T23_min*Ifsw_2M/2000000*0.2 -> 1e-06
A14: Kgain_12 | B14: =1+4*0.25 -> 2
A15: Kratio_23 | B15: =1-2*0.041666 -> 0.916668
A17: I_T12(FSW) | B17: =MIN(Ifsw_2M/2000000*Fsw*Kgain_12,I_T12_max) -> 6.02e-07
A18: I_T23(FSW) | B18: =MIN(Ifsw_2M/2000000*Fsw*Kratio_23+Iconst*(1-Kratio_23),I_T23_max) -> 3.59249068e-07 | E18: D
A20: T1_to_T2(Fsw) | B20: =0.000000075/I_T12_FSW*0.000001 -> 1.245847176e-07 | E20: =T1_to_T2_Fsw*Fsw -> 0.075
A21: T2_to_T3(Fsw) | B21: =0.000000075/I_T23_FSW*0.000001 -> 2.087688088e-07 | E21: =T2_to_T3_Fsw*Fsw -> 0.1256788229
A22: T3_to_T4(Fsw) | B22: =T2_to_T3_Fsw -> 2.087688088e-07 | E22: =T3_to_T4_Fsw*Fsw -> 0.1256788229
A23: T1_to_T3(Fsw) | B23: =T1_to_T2_Fsw+T2_to_T3_Fsw -> 3.333535264e-07 | E23: =B23*Fsw -> 0.2006788229
A25: MinT1FallCtrl(Fsw) | B25: =0.2*T1_to_T2_Fsw -> 2.491694352e-08
A26: MinT1RiseCtrl(Fsw) | B26: =0.2*T1_to_T2_Fsw -> 2.491694352e-08 | G26: Vin
A28: MinTonBuck(Fsw) | B28: =T3_to_T4_Fsw-IlDir*DeadTime -> 1.887688088e-07 | E28: =MinTonBuck*Fsw -> 0.1136388229 | G28: =Vout/E28 -> 211.1954294
A29: MinToffBuck(Fsw) | B29: =T2_to_T3_Fsw+IlDir*DeadTime -> 2.287688088e-07 | E29: =(E2-MinToffBuck)*Fsw -> 0.8622811771 | G29: =Vout/E29 -> 27.83314844
A30: MaxTonBuck(Fsw) | B30: =1/Fsw-MinToffBuck -> 1.432360759e-06 | E30: =MaxTonBuck*Fsw -> 0.8622811771 | G30: =Vout/E30 -> 27.83314844
A32: MinTonBoost(Fsw) | B32: =T2_to_T3_Fsw-IlDir*DeadTime -> 1.887688088e-07 | E32: =MinTonBoost*Fsw -> 0.1136388229 | G32: =Vout*(1-E32) -> 21.27266825
A33: MinToffBoost(Fsw) | B33: =T1_to_T2_Fsw+IlDir*DeadTime -> 1.445847176e-07 | E33: =(E2-MinToffBoost)*Fsw -> 0.91296 | G33: =Vout*(1-E33) -> 2.08896
A34: MaxTonBoost(Fsw) | B34: =1/Fsw-MinToffBoost -> 1.51654485e-06 | E34: =MaxTonBoost*Fsw -> 0.91296 | G34: =Vout*(1-E34) -> 2.08896
A35: MaxToffBoost(Fsw) | B35: =1/Fsw-MaxTonBoost -> 1.445847176e-07 | E35: =MaxToffBoost*Fsw -> 0.08704
A36: MinTlRise(Fsw) | B36: =MAX(MAX(MinT1RiseCtrl,IlNeg*GdrvDelay)-IlDir*DeadTime,0) -> 4.916943522e-09 | E36: =MinTlRise*Fsw -> 0.00296
A37: MinTlFall(Fsw) | B37: =MAX(MinT1FallCtrl,IlPos*GdrvDelay) -> 2.491694352e-08 | E37: =MinTlFall*Fsw -> 0.015
A39: TBubo(Fsw) | B39: =T1_to_T2_Fsw+T2_to_T3_Fsw -> 3.333535264e-07 | E39: =TBubo*Fsw -> 0.2006788229 | G39: =Vout*(1-E39) -> 19.18370825
A40: TonBubo(Fsw) | B40: =1/Fsw-TBubo+0*DeadTime -> 1.327776042e-06 | E40: =TonBubo*Fsw -> 0.7993211771 | G40: =Vout*(1-E40) -> 4.81629175
A41: MaxTlRise(Fsw) | B41: =MAX(TBubo-MinTlFall-IlDir*DeadTime,0) -> 2.884365829e-07 | E41: =MaxTlRise*Fsw -> 0.1736388229
B43: =DeadTime+GdrvDelay -> 4e-08 | E43: =B43*Fsw -> 0.02408

Sheet CFG Setting (hidden)
A1: LM5177
A2: CFG
A3: Setting | B3: R_CFG [ | C3: DRSS | D3: HICCUP | E3: USLEEP | F3: IMON_LIMIT | G3: =C3 -> DRSS | H3: =D3 -> HICCUP | I3: =E3 -> USLEEP | J3: =F3 -> IMON_LIMIT
A4: 1 | B4: 0 | C4: 0 | D4: 0 | E4: 0 | F4: 0 | G4: =IF(C4=1,"Enable","Disable") -> Disable | H4: =IF(D4=1,"Enable","Disable") -> Disable | I4: =IF(E4=1,"Enable","Disable") -> Disable | J4: =IF(F4=1,"Enable","Disable") -> Disable | L4: =CONCATENATE(G$3,": ",C4) -> DRSS: 0 | M4: =CONCATENATE(H$3,": ",D4) -> HICCUP: 0 | N4: =CONCATENATE(I$3,": ",E4) -> USLEEP: 0 | O4: =CONCATENATE(J$3,": ",F4) -> IMON_LIMIT: 0 | P4: =CONCATENATE(K$3,": ",G4) -> : Disable | R4: =CONCATENATE(L4," / ",M4," / ",N4," / ",O4) -> DRSS: 0 / HICCUP: 0 / USLEEP: 0 / IMON_LIMIT: 0
A5: 2 | B5: 0.511 | C5: 1 | D5: 0 | E5: 0 | F5: 0 | G5: =IF(C5=1,"Enable","Disable") -> Enable | H5: Disable | I5: Disable | J5: Disable | L5: =CONCATENATE(G$3,": ",C5) -> DRSS: 1 | M5: HICCUP: 0 | N5: USLEEP: 0 | O5: IMON_LIMIT: 0 | P5: : Enable | R5: =CONCATENATE(L5," / ",M5," / ",N5," / ",O5) -> DRSS: 1 / HICCUP: 0 / USLEEP: 0 / IMON_LIMIT: 0
A6: 3 | B6: 1.15 | C6: 0 | D6: 1 | E6: 0 | F6: 0 | G6: Disable | H6: Enable | I6: Disable | J6: Disable | L6: DRSS: 0 | M6: HICCUP: 1 | N6: USLEEP: 0 | O6: IMON_LIMIT: 0 | P6: : Disable | R6: DRSS: 0 / HICCUP: 1 / USLEEP: 0 / IMON_LIMIT: 0
A7: 4 | B7: 1.9 | C7: 1 | D7: 1 | E7: 0 | F7: 0 | G7: Enable | H7: Enable | I7: Disable | J7: Disable | L7: DRSS: 1 | M7: HICCUP: 1 | N7: USLEEP: 0 | O7: IMON_LIMIT: 0 | P7: : Enable | R7: DRSS: 1 / HICCUP: 1 / USLEEP: 0 / IMON_LIMIT: 0
A8: 5 | B8: 2.7 | C8: 0 | D8: 0 | E8: 0 | F8: 1 | G8: Disable | H8: Disable | I8: Disable | J8: Enable | L8: DRSS: 0 | M8: HICCUP: 0 | N8: USLEEP: 0 | O8: IMON_LIMIT: 1 | P8: : Disable | R8: DRSS: 0 / HICCUP: 0 / USLEEP: 0 / IMON_LIMIT: 1
A9: 6 | B9: 3.8 | C9: 1 | D9: 0 | E9: 0 | F9: 1 | G9: Enable | H9: Disable | I9: Disable | J9: Enable | L9: DRSS: 1 | M9: HICCUP: 0 | N9: USLEEP: 0 | O9: IMON_LIMIT: 1 | P9: : Enable | R9: DRSS: 1 / HICCUP: 0 / USLEEP: 0 / IMON_LIMIT: 1
A10: 7 | B10: 5.1 | C10: 0 | D10: 1 | E10: 0 | F10: 1 | G10: Disable | H10: Enable | I10: Disable | J10: Enable | L10: DRSS: 0 | M10: HICCUP: 1 | N10: USLEEP: 0 | O10: IMON_LIMIT: 1 | P10: : Disable | R10: DRSS: 0 / HICCUP: 1 / USLEEP: 0 / IMON_LIMIT: 1
A11: 8 | B11: 6.5 | C11: 1 | D11: 1 | E11: 0 | F11: 1 | G11: Enable | H11: Enable | I11: Disable | J11: Enable | L11: DRSS: 1 | M11: HICCUP: 1 | N11: USLEEP: 0 | O11: IMON_LIMIT: 1 | P11: : Enable | R11: DRSS: 1 / HICCUP: 1 / USLEEP: 0 / IMON_LIMIT: 1
A12: 9 | B12: 8.3 | C12: 0 | D12: 0 | E12: 1 | F12: 0 | G12: Disable | H12: Disable | I12: Enable | J12: Disable | L12: DRSS: 0 | M12: HICCUP: 0 | N12: USLEEP: 1 | O12: IMON_LIMIT: 0 | P12: : Disable | R12: DRSS: 0 / HICCUP: 0 / USLEEP: 1 / IMON_LIMIT: 0
A13: 10 | B13: 10.5 | C13: 1 | D13: 0 | E13: 1 | F13: 0 | G13: Enable | H13: Disable | I13: Enable | J13: Disable | L13: DRSS: 1 | M13: HICCUP: 0 | N13: USLEEP: 1 | O13: IMON_LIMIT: 0 | P13: : Enable | R13: DRSS: 1 / HICCUP: 0 / USLEEP: 1 / IMON_LIMIT: 0
A14: 11 | B14: 13.3 | C14: 0 | D14: 1 | E14: 1 | F14: 0 | G14: Disable | H14: Enable | I14: Enable | J14: Disable | L14: DRSS: 0 | M14: HICCUP: 1 | N14: USLEEP: 1 | O14: IMON_LIMIT: 0 | P14: : Disable | R14: DRSS: 0 / HICCUP: 1 / USLEEP: 1 / IMON_LIMIT: 0
A15: 12 | B15: 16.2 | C15: 1 | D15: 1 | E15: 1 | F15: 0 | G15: Enable | H15: Enable | I15: Enable | J15: Disable | L15: DRSS: 1 | M15: HICCUP: 1 | N15: USLEEP: 1 | O15: IMON_LIMIT: 0 | P15: : Enable | R15: DRSS: 1 / HICCUP: 1 / USLEEP: 1 / IMON_LIMIT: 0
A16: 13 | B16: 20.5 | C16: 0 | D16: 0 | E16: 1 | F16: 1 | G16: Disable | H16: Disable | I16: Enable | J16: Enable | L16: DRSS: 0 | M16: HICCUP: 0 | N16: USLEEP: 1 | O16: IMON_LIMIT: 1 | P16: : Disable | R16: DRSS: 0 / HICCUP: 0 / USLEEP: 1 / IMON_LIMIT: 1
A17: 14 | B17: 24.9 | C17: 1 | D17: 0 | E17: 1 | F17: 1 | G17: Enable | H17: Disable | I17: Enable | J17: Enable | L17: DRSS: 1 | M17: HICCUP: 0 | N17: USLEEP: 1 | O17: IMON_LIMIT: 1 | P17: : Enable | R17: DRSS: 1 / HICCUP: 0 / USLEEP: 1 / IMON_LIMIT: 1
A18: 15 | B18: 30.1 | C18: 0 | D18: 1 | E18: 1 | F18: 1 | G18: Disable | H18: Enable | I18: Enable | J18: Enable | L18: DRSS: 0 | M18: HICCUP: 1 | N18: USLEEP: 1 | O18: IMON_LIMIT: 1 | P18: : Disable | R18: DRSS: 0 / HICCUP: 1 / USLEEP: 1 / IMON_LIMIT: 1
A19: 16 | B19: 36.5 | C19: 1 | D19: 1 | E19: 1 | F19: 1 | G19: Enable | H19: Enable | I19: Enable | J19: Enable | L19: DRSS: 1 | M19: HICCUP: 1 | N19: USLEEP: 1 | O19: IMON_LIMIT: 1 | P19: : Enable | R19: DRSS: 1 / HICCUP: 1 / USLEEP: 1 / IMON_LIMIT: 1
C21: 0 | D21: 1 | E21: 3 | F21: 2
C22: DRSS: off | D22: HICCUP: off | E22: uSleep: off | F22: IMON_LIMIT: off
C23: DRSS: on | D23: HICCUP: on | E23: uSleep: on | F23: IMON: on
F24: ILIMIT: positive
F25: ILIMIT: negative
B27: CFG Setting | C27: 1 | D27: 1 | E27: 2 | F27: 3 | G27: Calc Setting | H27: =CONCATENATE("R_",A2) -> R_CFG | J27: This cell give 1 for disable and 2 for enable
C28: =(C27-1)*2^C21 -> 0 | D28: =(D27-1)*2^D21 -> 0 | E28: =(E27-1)*2^E21 -> 8 | F28: =(IF(F27>2,1,0)*2^F21) -> 4 | G28: =SUM(C28:F28)+1 -> 13 | H28: =INDEX(B4:B19,G28) -> 20.5
A30: LM51772
A31: CFG1
A32: Setting | B32: R_CFG2 [ | C32: Slope Comp. | D32: I2C
A33: 1 | B33: 0 | C33: n/a | D33: ADDR LSB: 0 | L33: =CONCATENATE($C$32,": ",C33) -> Slope Comp.: n/a | M33: =CONCATENATE(D$32," ",D33) -> I2C ADDR LSB: 0 | R33: =CONCATENATE(L33," / ",M33) -> Slope Comp.: n/a / I2C ADDR LSB: 0
A34: 2 | B34: 0.511 | C34: 0.25 | D34: Disabled | L34: =CONCATENATE($C$32,": ",C34) -> Slope Comp.: 0.25 | M34: =CONCATENATE(D$32," ",D34) -> I2C Disabled | R34: =CONCATENATE(L34," / ",M34," / ",N34," / ",O34) -> Slope Comp.: 0.25 / I2C Disabled / /
A35: 3 | B35: 1.15 | C35: 0.375 | D35: Disabled | L35: Slope Comp.: 0.375 | M35: I2C Disabled | R35: Slope Comp.: 0.375 / I2C Disabled / /
A36: 4 | B36: 1.9 | C36: 0.5 | D36: Disabled | L36: Slope Comp.: 0.5 | M36: I2C Disabled | R36: Slope Comp.: 0.5 / I2C Disabled / /
A37: 5 | B37: 2.7 | C37: 0.625 | D37: Disabled | L37: Slope Comp.: 0.625 | M37: I2C Disabled | R37: Slope Comp.: 0.625 / I2C Disabled / /
A38: 6 | B38: 3.8 | C38: 0.75 | D38: Disabled | L38: Slope Comp.: 0.75 | M38: I2C Disabled | R38: Slope Comp.: 0.75 / I2C Disabled / /
A39: 7 | B39: 5.1 | C39: 0.875 | D39: Disabled | L39: Slope Comp.: 0.875 | M39: I2C Disabled | R39: Slope Comp.: 0.875 / I2C Disabled / /
A40: 8 | B40: 6.5 | C40: 1 | D40: Disabled | L40: Slope Comp.: 1 | M40: I2C Disabled | R40: Slope Comp.: 1 / I2C Disabled / /
A41: 9 | B41: 8.3 | C41: 1.5 | D41: Disabled | L41: Slope Comp.: 1.5 | M41: I2C Disabled | R41: Slope Comp.: 1.5 / I2C Disabled / /
A42: 10 | B42: 10.5 | C42: 2 | D42: Disabled | L42: Slope Comp.: 2 | M42: I2C Disabled | R42: Slope Comp.: 2 / I2C Disabled / /
A43: 11 | B43: 13.3 | C43: 2.5 | D43: Disabled | L43: Slope Comp.: 2.5 | M43: I2C Disabled | R43: Slope Comp.: 2.5 / I2C Disabled / /
A44: 12 | B44: 16.2 | C44: 3 | D44: Disabled | L44: Slope Comp.: 3 | M44: I2C Disabled | R44: Slope Comp.: 3 / I2C Disabled / /
A45: 13 | B45: 20.5 | C45: 3.5 | D45: Disabled | L45: Slope Comp.: 3.5 | M45: I2C Disabled | R45: Slope Comp.: 3.5 / I2C Disabled / /
A46: 14 | B46: 24.9 | C46: 4 | D46: Disabled | L46: Slope Comp.: 4 | M46: I2C Disabled | R46: Slope Comp.: 4 / I2C Disabled / /
A47: 15 | B47: 30.1 | C47: 4.5 | D47: Disabled | L47: Slope Comp.: 4.5 | M47: I2C Disabled | R47: Slope Comp.: 4.5 / I2C Disabled / /
A48: 16 | B48: 36.5 | C48: n/a | D48: ADDR LSB: 1 | L48: Slope Comp.: n/a | M48: I2C ADDR LSB: 1 | R48: Slope Comp.: n/a / I2C ADDR LSB: 1 / /
C51: =CONCATENATE(C32,": off") -> Slope Comp.: off | D51: =CONCATENATE(D32,": 0") -> I2C: 0
C52: =CONCATENATE(C32,": on") -> Slope Comp.: on | D52: =CONCATENATE(D32,": 1") -> I2C: 1
B56: CFG Setting | C56: 7 | D56: =IF(OR(C56=1,B56=16),1,2) -> 2 | E56: 1 | F56: 1 | G56: Calc Setting | H56: =CONCATENATE("R_",A31) -> R_CFG1 | J56: This cell give 1 for disable and 2 for enable
C57: =C56 -> 7 | D57: =(D56-1)*2^D50 -> 1 | E57: =(E56-1)*2^E50 -> 0 | F57: =(IF(F56>1,1,0)*2^F50) -> 0 | G57: =C57 -> 7 | H57: =INDEX(B33:B48,G57) -> 5.1
A60: CFG2
A61: Setting | B61: R_CFG2 [ | C61: EN_SYNC_OUT | D61: SYNC_IN_FALLING | E61: VDET_EN | F61: PCM_HYST_30 | G61: =C61 -> EN_SYNC_OUT | H61: =D61 -> SYNC_IN_FALLING | I61: =E61 -> VDET_EN | J61: =F61 -> PCM_HYST_30
A62: 1 | B62: 0 | C62: 0 | D62: 0 | E62: 0 | F62: 0 | G62: =IF(C62=1,"Enable","Disable") -> Disable | H62: =IF(D62=1,"Enable","Disable") -> Disable | I62: =IF(E62=1,"Enable","Disable") -> Disable | J62: =IF(F62=1,"Enable","Disable") -> Disable | L62: =CONCATENATE($C$61,": ",C62) -> EN_SYNC_OUT: 0 | M62: =CONCATENATE(D$61,": ",D62) -> SYNC_IN_FALLING: 0 | N62: =CONCATENATE(E$61,": ",E62) -> VDET_EN: 0 | O62: =CONCATENATE(F$61,": ",F62) -> PCM_HYST_30: 0 | P62: =CONCATENATE(K$3,": ",G62) -> : Disable | R62: =CONCATENATE(L62," / ",M62," / ",N62," / ",O62) -> EN_SYNC_OUT: 0 / SYNC_IN_FALLING: 0 / VDET_EN: 0 / PCM_HYST_30: 0
A63: 2 | B63: 0.511 | C63: 1 | D63: 0 | E63: 0 | F63: 0 | G63: Enable | H63: Disable | I63: Disable | J63: Disable | L63: =CONCATENATE($C$61,": ",C63) -> EN_SYNC_OUT: 1 | M63: =CONCATENATE(D$61,": ",D63) -> SYNC_IN_FALLING: 0 | N63: =CONCATENATE(E$61,": ",E63) -> VDET_EN: 0 | O63: =CONCATENATE(F$61,": ",F63) -> PCM_HYST_30: 0 | P63: : Enable | R63: =CONCATENATE(L63," / ",M63," / ",N63," / ",O63) -> EN_SYNC_OUT: 1 / SYNC_IN_FALLING: 0 / VDET_EN: 0 / PCM_HYST_30: 0
A64: 3 | B64: 1.15 | C64: 0 | D64: 1 | E64: 0 | F64: 0 | G64: Disable | H64: Enable | I64: Disable | J64: Disable | L64: EN_SYNC_OUT: 0 | M64: SYNC_IN_FALLING: 1 | N64: VDET_EN: 0 | O64: PCM_HYST_30: 0 | P64: : Disable | R64: EN_SYNC_OUT: 0 / SYNC_IN_FALLING: 1 / VDET_EN: 0 / PCM_HYST_30: 0
A65: 4 | B65: 1.9 | C65: 1 | D65: 1 | E65: 0 | F65: 0 | G65: Enable | H65: Enable | I65: Disable | J65: Disable | L65: EN_SYNC_OUT: 1 | M65: SYNC_IN_FALLING: 1 | N65: VDET_EN: 0 | O65: PCM_HYST_30: 0 | P65: : Enable | R65: EN_SYNC_OUT: 1 / SYNC_IN_FALLING: 1 / VDET_EN: 0 / PCM_HYST_30: 0
A66: 5 | B66: 2.7 | C66: 0 | D66: 0 | E66: 1 | F66: 0 | G66: Disable | H66: Disable | I66: Enable | J66: Disable | L66: EN_SYNC_OUT: 0 | M66: SYNC_IN_FALLING: 0 | N66: VDET_EN: 1 | O66: PCM_HYST_30: 0 | P66: : Disable | R66: EN_SYNC_OUT: 0 / SYNC_IN_FALLING: 0 / VDET_EN: 1 / PCM_HYST_30: 0
A67: 6 | B67: 3.8 | C67: 1 | D67: 1 | E67: 1 | F67: 0 | G67: Enable | H67: Enable | I67: Enable | J67: Disable | L67: EN_SYNC_OUT: 1 | M67: SYNC_IN_FALLING: 1 | N67: VDET_EN: 1 | O67: PCM_HYST_30: 0 | P67: : Enable | R67: EN_SYNC_OUT: 1 / SYNC_IN_FALLING: 1 / VDET_EN: 1 / PCM_HYST_30: 0
A68: 7 | B68: 5.1 | C68: 0 | D68: 1 | E68: 1 | F68: 0 | G68: Disable | H68: Enable | I68: Enable | J68: Disable | L68: EN_SYNC_OUT: 0 | M68: SYNC_IN_FALLING: 1 | N68: VDET_EN: 1 | O68: PCM_HYST_30: 0 | P68: : Disable | R68: EN_SYNC_OUT: 0 / SYNC_IN_FALLING: 1 / VDET_EN: 1 / PCM_HYST_30: 0
A69: 8 | B69: 6.5 | C69: 1 | D69: 1 | E69: 1 | F69: 0 | G69: Enable | H69: Enable | I69: Enable | J69: Disable | L69: EN_SYNC_OUT: 1 | M69: SYNC_IN_FALLING: 1 | N69: VDET_EN: 1 | O69: PCM_HYST_30: 0 | P69: : Enable | R69: EN_SYNC_OUT: 1 / SYNC_IN_FALLING: 1 / VDET_EN: 1 / PCM_HYST_30: 0
A70: 9 | B70: 8.3 | C70: 0 | D70: 0 | E70: 0 | F70: 1 | G70: Disable | H70: Disable | I70: Disable | J70: Enable | L70: EN_SYNC_OUT: 0 | M70: SYNC_IN_FALLING: 0 | N70: VDET_EN: 0 | O70: PCM_HYST_30: 1 | P70: : Disable | R70: EN_SYNC_OUT: 0 / SYNC_IN_FALLING: 0 / VDET_EN: 0 / PCM_HYST_30: 1
A71: 10 | B71: 10.5 | C71: 1 | D71: 0 | E71: 0 | F71: 1 | G71: Enable | H71: Disable | I71: Disable | J71: Enable | L71: EN_SYNC_OUT: 1 | M71: SYNC_IN_FALLING: 0 | N71: VDET_EN: 0 | O71: PCM_HYST_30: 1 | P71: : Enable | R71: EN_SYNC_OUT: 1 / SYNC_IN_FALLING: 0 / VDET_EN: 0 / PCM_HYST_30: 1
A72: 11 | B72: 13.3 | C72: 0 | D72: 1 | E72: 0 | F72: 1 | G72: Disable | H72: Enable | I72: Disable | J72: Enable | L72: EN_SYNC_OUT: 0 | M72: SYNC_IN_FALLING: 1 | N72: VDET_EN: 0 | O72: PCM_HYST_30: 1 | P72: : Disable | R72: EN_SYNC_OUT: 0 / SYNC_IN_FALLING: 1 / VDET_EN: 0 / PCM_HYST_30: 1
A73: 12 | B73: 16.2 | C73: 1 | D73: 1 | E73: 0 | F73: 1 | G73: Enable | H73: Enable | I73: Disable | J73: Enable | L73: EN_SYNC_OUT: 1 | M73: SYNC_IN_FALLING: 1 | N73: VDET_EN: 0 | O73: PCM_HYST_30: 1 | P73: : Enable | R73: EN_SYNC_OUT: 1 / SYNC_IN_FALLING: 1 / VDET_EN: 0 / PCM_HYST_30: 1
A74: 13 | B74: 20.5 | C74: 0 | D74: 0 | E74: 1 | F74: 1 | G74: Disable | H74: Disable | I74: Enable | J74: Enable | L74: EN_SYNC_OUT: 0 | M74: SYNC_IN_FALLING: 0 | N74: VDET_EN: 1 | O74: PCM_HYST_30: 1 | P74: : Disable | R74: EN_SYNC_OUT: 0 / SYNC_IN_FALLING: 0 / VDET_EN: 1 / PCM_HYST_30: 1
A75: 14 | B75: 24.9 | C75: 1 | D75: 0 | E75: 1 | F75: 1 | G75: Enable | H75: Disable | I75: Enable | J75: Enable | L75: EN_SYNC_OUT: 1 | M75: SYNC_IN_FALLING: 0 | N75: VDET_EN: 1 | O75: PCM_HYST_30: 1 | P75: : Enable | R75: EN_SYNC_OUT: 1 / SYNC_IN_FALLING: 0 / VDET_EN: 1 / PCM_HYST_30: 1
A76: 15 | B76: 30.1 | C76: 0 | D76: 1 | E76: 1 | F76: 1 | G76: Disable | H76: Enable | I76: Enable | J76: Enable | L76: EN_SYNC_OUT: 0 | M76: SYNC_IN_FALLING: 1 | N76: VDET_EN: 1 | O76: PCM_HYST_30: 1 | P76: : Disable | R76: EN_SYNC_OUT: 0 / SYNC_IN_FALLING: 1 / VDET_EN: 1 / PCM_HYST_30: 1
A77: 16 | B77: 36.5 | C77: 1 | D77: 1 | E77: 1 | F77: 1 | G77: Enable | H77: Enable | I77: Enable | J77: Enable | L77: EN_SYNC_OUT: 1 | M77: SYNC_IN_FALLING: 1 | N77: VDET_EN: 1 | O77: PCM_HYST_30: 1 | P77: : Enable | R77: EN_SYNC_OUT: 1 / SYNC_IN_FALLING: 1 / VDET_EN: 1 / PCM_HYST_30: 1
C79: 0 | D79: 1 | E79: 2 | F79: 3
C80: =CONCATENATE(C61,": off") -> EN_SYNC_OUT: off | D80: =CONCATENATE(D61,": off") -> SYNC_IN_FALLING: off | E80: =CONCATENATE(E61,": off") -> VDET_EN: off | F80: =CONCATENATE(F61,": off") -> PCM_HYST_30: off
C81: =CONCATENATE(C61,": on") -> EN_SYNC_OUT: on | D81: =CONCATENATE(D61,": on") -> SYNC_IN_FALLING: on | E81: =CONCATENATE(E61,": on") -> VDET_EN: on | F81: =CONCATENATE(F61,": on") -> PCM_HYST_30: on
B85: CFG Setting | C85: 1 | D85: 1 | E85: 1 | F85: 2 | G85: Calc Setting | H85: =CONCATENATE("R_",A60) -> R_CFG2 | J85: This cell give 1 for disable and 2 for enable
C86: =(C85-1)*2^C79 -> 0 | D86: =(D85-1)*2^D79 -> 0 | E86: =(E85-1)*2^E79 -> 0 | F86: =(F85-1)*2^F79 -> 8 | G86: =SUM(C86:F86)+1 -> 9 | H86: =INDEX(B62:B77,G86) -> 8.3
A90: CFG3
A91: Setting | B91: R_CFG3 [ | C91: EN_VCC1 | D91: INC_INDUCT_De-Rate | E91: USLEEP | F91: SCALE_DT | G91: =C91 -> EN_VCC1 | H91: =D91 -> INC_INDUCT_De-Rate | I91: =E91 -> USLEEP | J91: =F91 -> SCALE_DT
A92: 1 | B92: 0 | C92: 0 | D92: 0 | E92: 0 | F92: 0 | G92: =IF(C92=1,"Enable","Disable") -> Disable | H92: =IF(D92=1,"Enable","Disable") -> Disable | I92: =IF(E92=1,"Enable","Disable") -> Disable | J92: =IF(F92=1,"Enable","Disable") -> Disable | L92: =CONCATENATE($C$91,": ",C92) -> EN_VCC1: 0 | M92: =CONCATENATE(D$91,": ",D92) -> INC_INDUCT_De-Rate: 0 | N92: =CONCATENATE(E$91,": ",E92) -> USLEEP: 0 | O92: =CONCATENATE(F$91,": ",F92) -> SCALE_DT: 0 | P92: =CONCATENATE(K$3,": ",G92) -> : Disable | R92: =CONCATENATE(L92," / ",M92," / ",N92," / ",O92) -> EN_VCC1: 0 / INC_INDUCT_De-Rate: 0 / USLEEP: 0 / SCALE_DT: 0
A93: 2 | B93: 0.511 | C93: 1 | D93: 0 | E93: 0 | F93: 0 | G93: Enable | H93: Disable | I93: Disable | J93: Disable | L93: =CONCATENATE($C$91,": ",C93) -> EN_VCC1: 1 | M93: =CONCATENATE(D$91,": ",D93) -> INC_INDUCT_De-Rate: 0 | N93: =CONCATENATE(E$91,": ",E93) -> USLEEP: 0 | O93: =CONCATENATE(F$91,": ",F93) -> SCALE_DT: 0 | P93: : Enable | R93: =CONCATENATE(L93," / ",M93," / ",N93," / ",O93) -> EN_VCC1: 1 / INC_INDUCT_De-Rate: 0 / USLEEP: 0 / SCALE_DT: 0
A94: 3 | B94: 1.15 | C94: 0 | D94: 1 | E94: 0 | F94: 0 | G94: Disable | H94: Enable | I94: Disable | J94: Disable | L94: EN_VCC1: 0 | M94: INC_INDUCT_De-Rate: 1 | N94: USLEEP: 0 | O94: SCALE_DT: 0 | P94: : Disable | R94: EN_VCC1: 0 / INC_INDUCT_De-Rate: 1 / USLEEP: 0 / SCALE_DT: 0
A95: 4 | B95: 1.9 | C95: 1 | D95: 1 | E95: 0 | F95: 0 | G95: Enable | H95: Enable | I95: Disable | J95: Disable | L95: EN_VCC1: 1 | M95: INC_INDUCT_De-Rate: 1 | N95: USLEEP: 0 | O95: SCALE_DT: 0 | P95: : Enable | R95: EN_VCC1: 1 / INC_INDUCT_De-Rate: 1 / USLEEP: 0 / SCALE_DT: 0
A96: 5 | B96: 2.7 | C96: 0 | D96: 0 | E96: 1 | F96: 0 | G96: Disable | H96: Disable | I96: Enable | J96: Disable | L96: EN_VCC1: 0 | M96: INC_INDUCT_De-Rate: 0 | N96: USLEEP: 1 | O96: SCALE_DT: 0 | P96: : Disable | R96: EN_VCC1: 0 / INC_INDUCT_De-Rate: 0 / USLEEP: 1 / SCALE_DT: 0
A97: 6 | B97: 3.8 | C97: 1 | D97: 0 | E97: 1 | F97: 0 | G97: Enable | H97: Disable | I97: Enable | J97: Disable | L97: EN_VCC1: 1 | M97: INC_INDUCT_De-Rate: 0 | N97: USLEEP: 1 | O97: SCALE_DT: 0 | P97: : Enable | R97: EN_VCC1: 1 / INC_INDUCT_De-Rate: 0 / USLEEP: 1 / SCALE_DT: 0
A98: 7 | B98: 5.1 | C98: 0 | D98: 1 | E98: 1 | F98: 0 | G98: Disable | H98: Enable | I98: Enable | J98: Disable | L98: EN_VCC1: 0 | M98: INC_INDUCT_De-Rate: 1 | N98: USLEEP: 1 | O98: SCALE_DT: 0 | P98: : Disable | R98: EN_VCC1: 0 / INC_INDUCT_De-Rate: 1 / USLEEP: 1 / SCALE_DT: 0
A99: 8 | B99: 6.5 | C99: 1 | D99: 1 | E99: 1 | F99: 0 | G99: Enable | H99: Enable | I99: Enable | J99: Disable | L99: EN_VCC1: 1 | M99: INC_INDUCT_De-Rate: 1 | N99: USLEEP: 1 | O99: SCALE_DT: 0 | P99: : Enable | R99: EN_VCC1: 1 / INC_INDUCT_De-Rate: 1 / USLEEP: 1 / SCALE_DT: 0
A100: 9 | B100: 8.3 | C100: 0 | D100: 0 | E100: 0 | F100: 1 | G100: Disable | H100: Disable | I100: Disable | J100: Enable | L100: EN_VCC1: 0 | M100: INC_INDUCT_De-Rate: 0 | N100: USLEEP: 0 | O100: SCALE_DT: 1 | P100: : Disable | R100: EN_VCC1: 0 / INC_INDUCT_De-Rate: 0 / USLEEP: 0 / SCALE_DT: 1
A101: 10 | B101: 10.5 | C101: 1 | D101: 0 | E101: 0 | F101: 1 | G101: Enable | H101: Disable | I101: Disable | J101: Enable | L101: EN_VCC1: 1 | M101: INC_INDUCT_De-Rate: 0 | N101: USLEEP: 0 | O101: SCALE_DT: 1 | P101: : Enable | R101: EN_VCC1: 1 / INC_INDUCT_De-Rate: 0 / USLEEP: 0 / SCALE_DT: 1
A102: 11 | B102: 13.3 | C102: 0 | D102: 1 | E102: 0 | F102: 1 | G102: Disable | H102: Enable | I102: Disable | J102: Enable | L102: EN_VCC1: 0 | M102: INC_INDUCT_De-Rate: 1 | N102: USLEEP: 0 | O102: SCALE_DT: 1 | P102: : Disable | R102: EN_VCC1: 0 / INC_INDUCT_De-Rate: 1 / USLEEP: 0 / SCALE_DT: 1
A103: 12 | B103: 16.2 | C103: 1 | D103: 1 | E103: 0 | F103: 1 | G103: Enable | H103: Enable | I103: Disable | J103: Enable | L103: EN_VCC1: 1 | M103: INC_INDUCT_De-Rate: 1 | N103: USLEEP: 0 | O103: SCALE_DT: 1 | P103: : Enable | R103: EN_VCC1: 1 / INC_INDUCT_De-Rate: 1 / USLEEP: 0 / SCALE_DT: 1
A104: 13 | B104: 20.5 | C104: 0 | D104: 0 | E104: 1 | F104: 1 | G104: Disable | H104: Disable | I104: Enable | J104: Enable | L104: EN_VCC1: 0 | M104: INC_INDUCT_De-Rate: 0 | N104: USLEEP: 1 | O104: SCALE_DT: 1 | P104: : Disable | R104: EN_VCC1: 0 / INC_INDUCT_De-Rate: 0 / USLEEP: 1 / SCALE_DT: 1
A105: 14 | B105: 24.9 | C105: 1 | D105: 0 | E105: 1 | F105: 1 | G105: Enable | H105: Disable | I105: Enable | J105: Enable | L105: EN_VCC1: 1 | M105: INC_INDUCT_De-Rate: 0 | N105: USLEEP: 1 | O105: SCALE_DT: 1 | P105: : Enable | R105: EN_VCC1: 1 / INC_INDUCT_De-Rate: 0 / USLEEP: 1 / SCALE_DT: 1
A106: 15 | B106: 30.1 | C106: 0 | D106: 1 | E106: 1 | F106: 1 | G106: Disable | H106: Enable | I106: Enable | J106: Enable | L106: EN_VCC1: 0 | M106: INC_INDUCT_De-Rate: 1 | N106: USLEEP: 1 | O106: SCALE_DT: 1 | P106: : Disable | R106: EN_VCC1: 0 / INC_INDUCT_De-Rate: 1 / USLEEP: 1 / SCALE_DT: 1
A107: 16 | B107: 36.5 | C107: 1 | D107: 1 | E107: 1 | F107: 1 | G107: Enable | H107: Enable | I107: Enable | J107: Enable | L107: EN_VCC1: 1 | M107: INC_INDUCT_De-Rate: 1 | N107: USLEEP: 1 | O107: SCALE_DT: 1 | P107: : Enable | R107: EN_VCC1: 1 / INC_INDUCT_De-Rate: 1 / USLEEP: 1 / SCALE_DT: 1
C109: 0 | D109: 1 | E109: 2 | F109: 3
C110: =CONCATENATE(C91,": off") -> EN_VCC1: off | D110: =CONCATENATE(D91,": off") -> INC_INDUCT_De-Rate: off | E110: =CONCATENATE(E91,": off") -> USLEEP: off | F110: =CONCATENATE(F91,": off") -> SCALE_DT: off
C111: =CONCATENATE(C91,": on") -> EN_VCC1: on | D111: =CONCATENATE(D91,": on") -> INC_INDUCT_De-Rate: on | E111: =CONCATENATE(E91,": on") -> USLEEP: on | F111: =CONCATENATE(F91,": on") -> SCALE_DT: on
B115: CFG Setting | C115: 1 | D115: 2 | E115: 2 | F115: 2 | G115: Calc Setting | H115: =CONCATENATE("R_",A90) -> R_CFG3 | J115: This cell give 1 for disable and 2 for enable
C116: =(C115-1)*2^C109 -> 0 | D116: =(D115-1)*2^D109 -> 2 | E116: =(E115-1)*2^E109 -> 4 | F116: =(F115-1)*2^F109 -> 8 | G116: =SUM(C116:F116)+1 -> 15 | H116: =INDEX(B92:B107,G116) -> 30.1
A120: CFG4
A121: Setting | B121: R_CFG4 [ | C121: DRSS | D121: SCP – Hiccup Mode | E121: Negative Current Limit | F121: Current Limit | G121: Current Limit | H121: =D121 -> SCP – Hiccup Mode | I121: =E121 -> Negative Current Limit | J121: =F121 -> Current Limit
A122: 1 | B122: 0 | C122: 0 | D122: 0 | E122: 0 | F122: 0 | G122: =IF(C122=1,"Enable","Disable") -> Disable | H122: =IF(D122=1,"Enable","Disable") -> Disable | I122: =IF(E122=1,"Enable","Disable") -> Disable | J122: =IF(F122=1,"Enable","Disable") -> Disable | L122: =CONCATENATE($C$121,": ",C122) -> DRSS: 0 | M122: =CONCATENATE(D$121,": ",D122) -> SCP – Hiccup Mode: 0 | N122: =CONCATENATE(E$121,": ",E122) -> Negative Current Limit: 0 | O122: =CONCATENATE(F$121,": ",F122) -> Current Limit: 0 | P122: =CONCATENATE(K$3,": ",G122) -> : Disable | R122: =CONCATENATE(L122," / ",M122," / ",N122," / ",O122) -> DRSS: 0 / SCP – Hiccup Mode: 0 / Negative Current Limit: 0 / Current Limit: 0
A123: 2 | B123: 0.511 | C123: 1 | D123: 0 | E123: 0 | F123: 0 | G123: Enable | H123: Disable | I123: Disable | J123: Disable | L123: =CONCATENATE($C$121,": ",C123) -> DRSS: 1 | M123: =CONCATENATE(D$121,": ",D123) -> SCP – Hiccup Mode: 0 | N123: =CONCATENATE(E$121,": ",E123) -> Negative Current Limit: 0 | O123: =CONCATENATE(F$121,": ",F123) -> Current Limit: 0 | P123: : Enable | R123: =CONCATENATE(L123," / ",M123," / ",N123," / ",O123) -> DRSS: 1 / SCP – Hiccup Mode: 0 / Negative Current Limit: 0 / Current Limit: 0
A124: 3 | B124: 1.15 | C124: 0 | D124: 1 | E124: 0 | F124: 0 | G124: Disable | H124: Enable | I124: Disable | J124: Disable | L124: DRSS: 0 | M124: SCP – Hiccup Mode: 1 | N124: Negative Current Limit: 0 | O124: Current Limit: 0 | P124: : Disable | R124: DRSS: 0 / SCP – Hiccup Mode: 1 / Negative Current Limit: 0 / Current Limit: 0
A125: 4 | B125: 1.9 | C125: 1 | D125: 1 | E125: 0 | F125: 0 | G125: Enable | H125: Enable | I125: Disable | J125: Disable | L125: DRSS: 1 | M125: SCP – Hiccup Mode: 1 | N125: Negative Current Limit: 0 | O125: Current Limit: 0 | P125: : Enable | R125: DRSS: 1 / SCP – Hiccup Mode: 1 / Negative Current Limit: 0 / Current Limit: 0
A126: 5 | B126: 2.7 | C126: 0 | D126: 0 | E126: 1 | F126: 0 | G126: Disable | H126: Disable | I126: Enable | J126: Disable | L126: DRSS: 0 | M126: SCP – Hiccup Mode: 0 | N126: Negative Current Limit: 1 | O126: Current Limit: 0 | P126: : Disable | R126: DRSS: 0 / SCP – Hiccup Mode: 0 / Negative Current Limit: 1 / Current Limit: 0
A127: 6 | B127: 3.8 | C127: 1 | D127: 0 | E127: 1 | F127: 0 | G127: Enable | H127: Disable | I127: Enable | J127: Disable | L127: DRSS: 1 | M127: SCP – Hiccup Mode: 0 | N127: Negative Current Limit: 1 | O127: Current Limit: 0 | P127: : Enable | R127: DRSS: 1 / SCP – Hiccup Mode: 0 / Negative Current Limit: 1 / Current Limit: 0
A128: 7 | B128: 5.1 | C128: 0 | D128: 1 | E128: 1 | F128: 0 | G128: Disable | H128: Enable | I128: Enable | J128: Disable | L128: DRSS: 0 | M128: SCP – Hiccup Mode: 1 | N128: Negative Current Limit: 1 | O128: Current Limit: 0 | P128: : Disable | R128: DRSS: 0 / SCP – Hiccup Mode: 1 / Negative Current Limit: 1 / Current Limit: 0
A129: 8 | B129: 6.5 | C129: 1 | D129: 1 | E129: 1 | F129: 0 | G129: Enable | H129: Enable | I129: Enable | J129: Disable | L129: DRSS: 1 | M129: SCP – Hiccup Mode: 1 | N129: Negative Current Limit: 1 | O129: Current Limit: 0 | P129: : Enable | R129: DRSS: 1 / SCP – Hiccup Mode: 1 / Negative Current Limit: 1 / Current Limit: 0
A130: 9 | B130: 8.3 | C130: 0 | D130: 0 | E130: 0 | F130: 1 | G130: Disable | H130: Disable | I130: Disable | J130: Enable | L130: DRSS: 0 | M130: SCP – Hiccup Mode: 0 | N130: Negative Current Limit: 0 | O130: Current Limit: 1 | P130: : Disable | R130: DRSS: 0 / SCP – Hiccup Mode: 0 / Negative Current Limit: 0 / Current Limit: 1
A131: 10 | B131: 10.5 | C131: 1 | D131: 0 | E131: 0 | F131: 1 | G131: Enable | H131: Disable | I131: Disable | J131: Enable | L131: DRSS: 1 | M131: SCP – Hiccup Mode: 0 | N131: Negative Current Limit: 0 | O131: Current Limit: 1 | P131: : Enable | R131: DRSS: 1 / SCP – Hiccup Mode: 0 / Negative Current Limit: 0 / Current Limit: 1
A132: 11 | B132: 13.3 | C132: 0 | D132: 1 | E132: 0 | F132: 1 | G132: Disable | H132: Enable | I132: Disable | J132: Enable | L132: DRSS: 0 | M132: SCP – Hiccup Mode: 1 | N132: Negative Current Limit: 0 | O132: Current Limit: 1 | P132: : Disable | R132: DRSS: 0 / SCP – Hiccup Mode: 1 / Negative Current Limit: 0 / Current Limit: 1
A133: 12 | B133: 16.2 | C133: 1 | D133: 1 | E133: 0 | F133: 1 | G133: Enable | H133: Enable | I133: Disable | J133: Enable | L133: DRSS: 1 | M133: SCP – Hiccup Mode: 1 | N133: Negative Current Limit: 0 | O133: Current Limit: 1 | P133: : Enable | R133: DRSS: 1 / SCP – Hiccup Mode: 1 / Negative Current Limit: 0 / Current Limit: 1
A134: 13 | B134: 20.5 | C134: 0 | D134: 0 | E134: 1 | F134: 1 | G134: Disable | H134: Disable | I134: Enable | J134: Enable | L134: DRSS: 0 | M134: SCP – Hiccup Mode: 0 | N134: Negative Current Limit: 1 | O134: Current Limit: 1 | P134: : Disable | R134: DRSS: 0 / SCP – Hiccup Mode: 0 / Negative Current Limit: 1 / Current Limit: 1
A135: 14 | B135: 24.9 | C135: 1 | D135: 0 | E135: 1 | F135: 1 | G135: Enable | H135: Disable | I135: Enable | J135: Enable | L135: DRSS: 1 | M135: SCP – Hiccup Mode: 0 | N135: Negative Current Limit: 1 | O135: Current Limit: 1 | P135: : Enable | R135: DRSS: 1 / SCP – Hiccup Mode: 0 / Negative Current Limit: 1 / Current Limit: 1
A136: 15 | B136: 30.1 | C136: 0 | D136: 1 | E136: 1 | F136: 1 | G136: Disable | H136: Enable | I136: Enable | J136: Enable | L136: DRSS: 0 | M136: SCP – Hiccup Mode: 1 | N136: Negative Current Limit: 1 | O136: Current Limit: 1 | P136: : Disable | R136: DRSS: 0 / SCP – Hiccup Mode: 1 / Negative Current Limit: 1 / Current Limit: 1
A137: 16 | B137: 36.5 | C137: 1 | D137: 1 | E137: 1 | F137: 1 | G137: Enable | H137: Enable | I137: Enable | J137: Enable | L137: DRSS: 1 | M137: SCP – Hiccup Mode: 1 | N137: Negative Current Limit: 1 | O137: Current Limit: 1 | P137: : Enable | R137: DRSS: 1 / SCP – Hiccup Mode: 1 / Negative Current Limit: 1 / Current Limit: 1
C139: 0 | D139: 1 | E139: 2 | F139: 3
C140: =CONCATENATE(C121,": off") -> DRSS: off | D140: =CONCATENATE(D121,": off") -> SCP – Hiccup Mode: off | E140: =CONCATENATE(E121,": off") -> Negative Current Limit: off | F140: IMON_LIMIT: off
C141: =CONCATENATE(C121,": on") -> DRSS: on | D141: =CONCATENATE(D121,": on") -> SCP – Hiccup Mode: on | E141: =CONCATENATE(E121,": on") -> Negative Current Limit: on | F141: ILIMIT: on (external)
F142: ILIMIT: on (ILIM_DAC)
B145: CFG Setting | C145: 1 | D145: 1 | E145: 1 | F145: 2 | G145: Calc Setting | H145: =CONCATENATE("R_",A120) -> R_CFG4 | J145: This cell give 1 for disable and 2 for enable
C146: =(C145-1)*2^C139 -> 0 | D146: =(D145-1)*2^D139 -> 0 | E146: =(E145-1)*2^E139 -> 0 | F146: =(IF(F145>2,1,0)*2^F139) -> 0 | G146: =SUM(C146:F146)+1 -> 1 | H146: =INDEX(B122:B137,G146) -> 0 | J146: =F145 -> 2 | K146: Decoded IMON/Limiter
A151: CDC Gain
A152: 0.25
A153: 0.5
A154: 1
A155: 2
A159: CDC disabled | B159: 2
A160: CDC enabled
A162: Internal FB disabled | B162: 1
A163: Int. FB (SEL_DIV20 = 0)
A164: Int. FB (SEL_DIV20 = 1)

Sheet Stability Calculations (hidden)
B2: Divider Network & EA Poles/Zeros | E2: Modulator | J2: Power Stage Poles/Zeros | M2: Complex Pole Pair | P2: Total System
B3: Afb1 | C3: =Afb ->  | D3: V/V | E3: Acs | F3: =Acs -> 40 | G3: A/V | H3: gm | I3: =gm -> 0.0006 | J3: z_ESR | K3: =Fesr -> 663145.5962 | L3: Hz | M3: p3 | N3: =Fsw/2 -> 301000 | O3: Hz | P3: Adc | Q3: =Am*Afb*AEA ->  | R3: V/V | S3: =20*LOG(Adc) ->  | T3: dB
B4: EA zero, z1 | C4: =Fz1_u -> 1854.952717 | D4: Hz | E4: Am | F4: =Am -> 79.879921 | G4: V/V | J4: p_dom | K4: =Fp_dominant -> 994.7183943 | L4: Hz | M4: pterm1 | N4: =Q*PS_Pole2 -> 192199.5297 | P4: Crossover | Q4: =AM8/1000 ->  | R4: kHz | U4: IL zero, z1 | V4: =1/(2*Pi*RcIL*Cc1IL) -> 
B5: EA pole, p1 | C5: =Fp1_u -> 1.325343572 | D5: Hz | E5: Q | F5: =Q -> 0.6385366434 | J5: z_RHP | K5: =IF(VIN_nom>Vout, 10000000,Frhp) -> 192336.3909 | L5: Hz | M5: pterm2 | N5: =PS_Pole2^2+0.01 -> 9.0601e+10 | P5: Phase Margin | Q5: =AM9 ->  | R5: ° | U5: IL pole, p1 | V5: =1/(2*Pi*(RoEA_IL+RcIL)*Cc1IL) -> 
B6: Aea | C6: =AEA -> 6000 | D6: V/V | E6: mc | F6: =mc -> 1 | P6: radconv | Q6: =180/Pi -> 57.29577951 | U6: AIL | V6: =gm_IL*RoEA_IL -> 10000 | AL6: XOVER SEARCH
B7: EA pole, p2 | C7: =Fp2_u -> 97910.10405 | D7: Hz | E7: k | F7: =k -> 0.9984990125 | U7: IL pole, p2 | V7: =1/(2*Pi*RcIL*(Cc2IL+Cbw_IL)) ->  | AL7: System | AN7: Error Amp | AP7: IL Error Amp
AL8: xover | AM8: =SUM(AL12:AL613) ->  | AN8: xover | AO8: =SUM(AN12:AN613) -> 398110 | AP8: xover | AQ8: =SUM(AP12:AP613) ->  | AR8: 0
AL9: phase margin | AM9: =SUM(AM13:AM613) ->  | AN9: phase margin | AO9: =SUM(AO13:AO613) -> -76.44981835 | AP9: phase margin | AQ9: =SUM(AQ13:AQ613) -> 
B10: Freq (Hz) | C10: Power Stage | I10: Error Amplifier | O10: ILimit Amplifier | U10: Sampling Double Pole | W10: System Response | AB10: ERROR AMP Response | AE10: ILimit AMP Response | AG10: EA*5 | AI10: PLANT Response
C11: p_dom | E11: z_ESR | G11: z_RHP | I11: p1 | K11: z1 | M11: p2 | O11: p1 | Q11: z1 | S11: p2 | U11: p3
C12: Gain(V/V) | D12: Phase(rad) | E12: Gain(V/V) | F12: Phase(rad) | G12: Gain(V/V) | H12: Phase(rad) | I12: Gain(V/V) | J12: Phase(rad) | K12: Gain(V/V) | L12: Phase(rad) | M12: Gain(V/V) | N12: Phase(rad) | O12: Gain(V/V) | P12: Phase(rad) | Q12: Gain(V/V) | R12: Phase(rad) | S12: Gain(V/V) | T12: Phase(rad) | U12: Gain(V/V) | V12: Phase(rad) | W12: Loop Gain (dB) | X12: :Loop Phase Margin (°) | Y12: Phase (°) | AB12: Gain(dB) | AC12: Phase(Deg) | AE12: ILimit Gain(dB) | AF12: ILimit Phase(Deg) | AG12: Gain(dB) | AI12: Gain(dB) | AJ12: Phase(Deg)
B13: 1 | C13: =SQRT(1+(B13/PS_Pole1)^2) -> 1.000000505 | D13: =ATAN(B13/PS_Pole1) -> 0.00100530931 | E13: =SQRT(1+(B13/PS_Zero1)^2) -> 1 | F13: =ATAN(B13/PS_Zero1) -> 1.507964474e-06 | G13: =IF(VIN_nom>Vout, 1, SQRT(1+(B13/PS_RHPZ)^2)) -> 1 | H13: =IF(VIN_nom>Vout, 0, -ATAN(B13/PS_RHPZ)) -> -5.199224105e-06 | I13: =SQRT(1+(B13/EA_Pole1)^2) -> 1.252718022 | J13: =ATAN(B13/EA_Pole1) -> 0.6463884883 | K13: =SQRT(1+(B13/EA_Zero1)^2) -> 1.000000145 | L13: =ATAN(B13/EA_Zero1) -> 0.0005390972471 | M13: =SQRT(1+(B13/EA_Pole2)^2) -> 1 | N13: =ATAN(B13/EA_Pole2) -> 1.021345049e-05 | O13: =SQRT(1+(B13/$V$5)^2) ->  | P13: =ATAN(B13/$V$5) ->  | Q13: =SQRT(1+(B13/$V$4)^2) ->  | R13: =ATAN(B13/$V$4) ->  | S13: =SQRT(1+(B13/$V$7)^2) ->  | T13: =ATAN(B13/$V$7) ->  | U13: =SQRT((1-(B13^2/pterm2))^2+(B13/pterm1)^2) -> 1 | V13: =IF((ATAN((B13/pterm1)/(1-B13^2/pterm2))>0),ATAN((B13/pterm1)/(1-B13^2/pterm2)),PI()+ATAN((B13/pterm1)/(1-B13^2/pterm2))) -> 5.202926364e-06 | W13: =20*LOG10(((E13*K13*G13)/(C13*I13*U13*M13))*Adc) ->  | X13: =IF(((F13+L13+H13)-(D13+J13+V13+N13))*radconv<-180,((F13+L13+H13)-(D13+J13+V13+N13))*radconv+180,((F13+L13+H13)-(D13+J13+V13+N13))*radconv) -> -37.06313908 | Y13: =IF(X13>0,X13-180,X13+180) -> 142.9368609 | AB13: =20*LOG10((K13/(I13*M13))*AEA) -> 73.60595976 | AC13: =(L13-(J13+N13))*radconv -> -37.0050295 | AE13: =20*LOG10((Q13/(O13*S13))*AIL) ->  | AF13: =(R13-(P13+T13))*radconv ->  | AI13: =20*LOG10((E13*G13/(C13*U13))*Acs*Am) -> 70.08994797 | AJ13: =(F13+H13-(D13+V13))*radconv -> -0.05810957992 | AL13: =SUM((W14<0)*(W13>0))*B13 ->  | AM13: =IF(AL13>0,Y11,0) ->  | AN13: =SUM((AB14<0)*(AB13>0))*B13 -> 0 | AO13: =IF(AN13>0,AC13,0) -> 0 | AP13: =SUM((AE14<0)*(AE13>0))*B13 ->  | AQ13: =IF(AP13>0,AE13,0) -> 
B14: 1.0965 | C14: 1.000000608 | D14: 0.001102321584 | E14: 1 | F14: 1.653483045e-06 | G14: 1 | H14: -5.700949232e-06 | I14: 1.297874918 | J14: 0.6911864179 | K14: 1.000000175 | L14: 0.0005911201199 | M14: 1 | N14: 1.119904846e-05 | U14: 1 | V14: 5.705008758e-06 | X14: =IF(((F14+L14+H14)-(D14+J14+V14+N14))*radconv<-180,((F14+L14+H14)-(D14+J14+V14+N14))*radconv+180,((F14+L14+H14)-(D14+J14+V14+N14))*radconv) -> -39.63255472 | Y14: =IF(X14>0,X14-180,X14+180) -> 140.3674453 | AB14: 73.29836973 | AC14: -39.56883757 | AI14: 70.08994708 | AJ14: -0.06371715007 | AN14: 0 | AO14: =IF(AN14>0,AC14,0) -> 0 | AP14: =SUM((AE15<0)*(AE14>0))*B14 ->  | AQ14: =IF(AP14>0,AE14,0) -> 
B15: 1.2023 | C15: 1.00000073 | D15: 0.001208683203 | E15: 1 | F15: 1.813025687e-06 | G15: 1 | H15: -6.251027142e-06 | I15: 1.350163353 | J15: 0.7367573975 | K15: 1.00000021 | L15: 0.0006481565923 | M15: 1 | N15: 1.227963152e-05 | U15: 1 | V15: 6.255478367e-06 | X15: =IF(((F15+L15+H15)-(D15+J15+V15+N15))*radconv<-180,((F15+L15+H15)-(D15+J15+V15+N15))*radconv+360,((F15+L15+H15)-(D15+J15+V15+N15))*radconv) -> -42.24652147 | Y15: 137.7534785 | AB15: 72.95530051 | AC15: -42.17665634 | AI15: 70.08994602 | AJ15: -0.06986513754 | AN15: 0 | AO15: 0
B16: 1.3183 | C16: 1.000000878 | D16: 0.001325298935 | E16: 1 | F16: 1.987949566e-06 | G16: 1 | H16: -6.854137138e-06 | I16: 1.410460632 | J16: 0.7827338273 | K16: 1.000000253 | L16: 0.0007106918501 | M16: 1 | N16: 1.346439178e-05 | U16: 1 | V16: 6.859017825e-06 | X16: -44.88400243 | Y16: 135.1159976 | AB16: 72.57580782 | AC16: -44.80739659 | AI16: 70.08994473 | AJ16: -0.07660584033 | AN16: 0 | AO16: 0
B17: 1.4454 | C17: 1.000001056 | D17: 0.001453073544 | E17: 1 | F17: 2.17961185e-06 | G17: 1 | H17: -7.514958522e-06 | I17: 1.479653993 | J17: 0.8287011161 | K17: 1.000000304 | L17: 0.0007792110788 | M17: 1 | N17: 1.476252133e-05 | U17: 1 | V17: 7.520309766e-06 | X17: -47.52126831 | Y17: 132.4787317 | AB17: 72.15982423 | AC17: -47.43727675 | AI17: 70.08994319 | AJ17: -0.08399155626 | AN17: 0 | AO17: 0
B18: 1.5849 | C18: 1.000001269 | D18: 0.001593313915 | E18: 1 | F18: 2.389972894e-06 | G18: 1 | H18: -8.240250285e-06 | I18: 1.558857071 | J18: 0.8743499939 | K18: 1.000000365 | L18: 0.0008544151018 | M18: 1 | N18: 1.618729768e-05 | U18: 1 | V18: 8.246117994e-06 | X18: -50.14063538 | Y18: 129.8593646 | AB18: 71.70690223 | AC18: -50.04853755 | AI18: 70.08994134 | AJ18: -0.09209782671 | AN18: 0 | AO18: 0
B19: 1.7378 | C19: 1.000001526 | D19: 0.001747025331 | E19: 1 | F19: 2.620540662e-06 | G19: 1 | H19: -9.03521165e-06 | I19: 1.64901918 | J19: 0.9192444695 | K19: 1.000000439 | L19: 0.0009368430127 | M19: 1 | N19: 1.774893426e-05 | U19: 1 | V19: 9.041645435e-06 | X19: -52.71715099 | Y19: 127.282849 | AB19: 71.21851468 | AC19: -52.61616823 | AI19: 70.08993911 | AJ19: -0.1009827599 | AN19: 0 | AO19: 0
B20: 1.9055 | C20: 1.000001835 | D20: 0.001915615193 | E20: 1 | F20: 2.873426305e-06 | G20: 1 | H20: -9.907121533e-06 | I20: 1.751313069 | J20: 0.9630727205 | K20: 1.000000528 | L20: 0.001027249543 | M20: 1 | N20: 1.94617299e-05 | U20: 1 | V20: 9.914176186e-06 | X20: -55.23298797 | Y20: 124.767012 | AB20: 70.69575382 | AC20: -55.12226026 | AI20: 70.08993642 | AJ20: -0.1107277072 | AN20: 0 | AO20: 0
B21: 2.0893 | C21: 1.000002206 | D21: 0.002100390361 | E21: 1 | F21: 3.150590175e-06 | G21: 1 | H21: -1.086273892e-05 | I21: 1.86684346 | J21: 1.005502977 | K21: 1.000000634 | L21: 0.001126335511 | M21: 1 | N21: 2.13389621e-05 | U21: 1 | V21: 1.087047405e-05 | X21: -57.66917346 | Y21: 122.3308265 | AB21: 70.14087246 | AC21: -57.54776525 | AI21: 70.0899332 | AJ21: -0.1214082089 | AN21: 0 | AO21: 0
B22: 2.2909 | C22: 1.000002652 | D22: 0.002303059803 | E22: 1 | F22: 3.454595813e-06 | G22: 1 | H22: -1.19109025e-05 | I22: 1.996954198 | J22: 1.046316739 | K22: 1.000000763 | L22: 0.001235017375 | M22: 1 | N22: 2.339799372e-05 | U22: 1 | V22: 1.191938401e-05 | X22: -60.01323554 | Y22: 119.9867645 | AB22: 69.55566955 | AC22: -59.8801125 | AI22: 70.08992933 | AJ22: -0.1331230478 | AN22: 0 | AO22: 0
B23: 2.5119 | C23: 1.000003188 | D23: 0.00252523194 | E23: 1 | F23: 3.787855962e-06 | G23: 1 | H23: -1.305993103e-05 | I23: 2.142917261 | J23: 1.085293007 | K23: 1.000000917 | L23: 0.001354157679 | M23: 1 | N23: 2.565516628e-05 | U23: 1 | V23: 1.306923073e-05 | X23: -62.25255645 | Y23: 117.7474435 | AB23: 68.94292491 | AC23: -62.10659126 | AI23: 70.08992467 | AJ23: -0.145965195 | AN23: 0 | AO23: 0
B24: 2.7542 | C24: 1.000003833 | D24: 0.00276881676 | E24: 1 | F24: 4.153235754e-06 | G24: 1 | H24: -1.431970303e-05 | I24: 2.306189641 | J24: 1.122294873 | K24: 1.000001102 | L24: 0.001484780691 | M24: 1 | N24: 2.812988533e-05 | U24: 1 | V24: 1.432989979e-05 | X24: -64.3793447 | Y24: 115.6206553 | AB24: 68.30513424 | AC24: -64.21929965 | AI24: 70.08991907 | AJ24: -0.160045053 | AN24: 0 | AO24: 0
B25: 3.02 | C25: 1.000004609 | D25: 0.003036025812 | E25: 1 | F25: 4.554052711e-06 | G25: 1 | H25: -1.57016568e-05 | I25: 2.488426412 | J25: 1.157248731 | K25: 1.000001325 | L25: 0.001628072406 | M25: 1 | N25: 3.084462046e-05 | U25: 1 | V25: 1.571283762e-05 | X25: -66.38944419 | Y25: 113.6105558 | AB25: 67.64454047 | AC25: -66.21395373 | AI25: 70.08991233 | AJ25: -0.1754904555 | AN25: 0 | AO25: 0
B26: 3.3113 | C26: 1.000005541 | D26: 0.003328869545 | E26: 1 | F26: 4.993322762e-06 | G26: 1 | H26: -1.721619078e-05 | I26: 2.691140071 | J26: 1.190075558 | K26: 1.000001593 | L26: 0.001785110991 | M26: 1.000000001 | N26: 3.381979859e-05 | U26: 1 | V26: 1.722845007e-05 | X26: -68.2783828 | Y26: 111.7216172 | AB26: 66.96431278 | AC26: -68.08596519 | AI26: 70.08990424 | AJ26: -0.1924176117 | AN26: 0 | AO26: 0
B27: 3.6308 | C27: 1.000006662 | D27: 0.003650062064 | E27: 1 | F27: 5.475117411e-06 | G27: 1 | H27: -1.887734288e-05 | I27: 2.916324441 | J27: 1.220796785 | K27: 1.000001916 | L27: 0.001957351975 | M27: 1.000000001 | N27: 3.708299602e-05 | U27: 1 | V27: 1.889078504e-05 | X27: -70.04746355 | Y27: 109.9525365 | AB27: 66.26632489 | AC27: -69.83648014 | AI27: 70.0898945 | AJ27: -0.2109834044 | AN27: 0 | AO27: 0
B28: 3.9811 | C28: 1.000008009 | D28: 0.004002216875 | E28: 1 | F28: 6.003357366e-06 | G28: 1 | H28: -2.069863108e-05 | I28: 3.165906494 | J28: 1.249427822 | K28: 1.000002303 | L28: 0.002146196963 | M28: 1.000000001 | N28: 4.066076772e-05 | U28: 1 | V28: 2.071337015e-05 | X28: -71.69764159 | Y28: 108.3023584 | AB28: 65.55308333 | AC28: -71.46630269 | AI28: 70.0898828 | AJ28: -0.2313389015 | AN28: 0 | AO28: 0
B29: 4.3652 | C29: 1.000009629 | D29: 0.004388349511 | E29: 1 | F29: 6.582566521e-06 | G29: 1 | H29: -2.269565306e-05 | I29: 3.442098427 | J29: 1.27602562 | K29: 1.000002769 | L29: 0.002353263187 | M29: 1.000000001 | N29: 4.458375404e-05 | U29: 1 | V29: 2.271181416e-05 | X29: -73.23226337 | Y29: 106.7677366 | AB29: 64.82658335 | AC29: -72.97860496 | AI29: 70.08986873 | AJ29: -0.2536584089 | AN29: 0 | AO29: 0
B30: 4.7863 | C30: 1.000011576 | D30: 0.00481167644 | E30: 1 | F30: 7.21757036e-06 | G30: 1 | H30: -2.488504633e-05 | I30: 3.747260399 | J30: 1.300661242 | K30: 1.000003329 | L30: 0.002580275678 | M30: 1.000000001 | N30: 4.888463803e-05 | U30: 1 | V30: 2.490276646e-05 | X30: -74.65548956 | Y30: 105.3445104 | AB30: 64.08877644 | AC30: -74.37736171 | AI30: 70.08985181 | AJ30: -0.2781278476 | AN30: 0 | AO30: 0
B31: 5.2481 | C31: 1.000013918 | D31: 0.005275916617 | E31: 1 | F31: 7.913948354e-06 | G31: 1 | H31: -2.728604802e-05 | I31: 4.084120845 | J31: 1.323430586 | K31: 1.000004002 | L31: 0.002829228988 | M31: 1.000000001 | N31: 5.360120946e-05 | U31: 1 | V31: 2.730547785e-05 | X31: -75.97291749 | Y31: 104.0270825 | AB31: 63.34108808 | AC31: -75.6679553 | AI31: 70.08983148 | AJ31: -0.3049621834 | AN31: 0 | AO31: 0
B32: 5.7544 | C32: 1.000016733 | D32: 0.005784889314 | E32: 1 | F32: 8.677430767e-06 | G32: 1 | H32: -2.991841518e-05 | I32: 4.455488724 | J32: 1.344425661 | K32: 1.000004812 | L32: 0.003102171548 | M32: 1.000000002 | N32: 5.877227942e-05 | U32: 1 | V32: 2.993971947e-05 | X32: -77.18992448 | Y32: 102.8100755 | AB32: 62.58515981 | AC32: -76.8555423 | AI32: 70.08980703 | AJ32: -0.334382181 | AN32: 0 | AO32: 0
B33: 6.3096 | C33: 1.000020117 | D33: 0.006343016693 | E33: 1 | F33: 9.514652643e-06 | G33: 1.000000001 | H33: -3.28050244e-05 | I33: 4.864620158 | J33: 1.363754409 | K33: 1.000005785 | L33: 0.003401475202 | M33: 1.000000002 | N33: 6.444278711e-05 | U33: 1 | V33: 3.282838419e-05 | X33: -78.31281754 | Y33: 101.6871825 | AB33: 61.82209654 | AC33: -77.94617408 | AI33: 70.08977763 | AJ33: -0.3666434538 | AN33: 0 | AO33: 0
B34: 6.9183 | C34: 1.000024186 | D34: 0.006954921605 | E34: 1 | F34: 1.043255062e-05 | G34: 1.000000001 | H34: -3.596979211e-05 | I34: 5.314927247 | J34: 1.381518845 | K34: 1.000006955 | L34: 0.003729619553 | M34: 1.000000002 | N34: 7.065971439e-05 | U34: 1 | V34: 3.599540547e-05 | X34: -79.34756939 | Y34: 100.6524306 | AB34: 61.05313892 | AC34: -78.94555617 | AI34: 70.08974229 | AJ34: -0.4020132158 | AN34: 0 | AO34: 0
B35: 7.5858 | C35: 1.000029078 | D35: 0.007625930105 | E35: 1 | F35: 1.14391169e-05 | G35: 1.000000001 | H35: -3.94402742e-05 | I35: 5.810348157 | J35: 1.397828417 | K35: 1.000008362 | L35: 0.004089461496 | M35: 1.000000003 | N35: 7.747719256e-05 | U35: 1 | V35: 3.946835882e-05 | X35: -80.30059834 | Y35: 99.69940166 | AB35: 60.27905449 | AC35: -79.85979901 | AI35: 70.0896998 | AJ35: -0.4407993284 | AN35: 0 | AO35: 0
B36: 8.3176 | C36: 1.000034959 | D36: 0.008361568664 | E36: 1 | F36: 1.254264531e-05 | G36: 1.000000001 | H36: -4.324506639e-05 | I36: 6.354978292 | J36: 1.412782641 | K36: 1.000010053 | L36: 0.004483965645 | M36: 1.000000004 | N36: 8.495139558e-05 | U36: 1 | V36: 4.327586033e-05 | X36: -81.177759 | Y36: 98.822241 | AB36: 59.50083087 | AC36: -80.69443776 | AI36: 70.08964872 | AJ36: -0.4833212378 | AN36: 0 | AO36: 0
B37: 9.1201 | C37: 1.00004203 | D37: 0.009168267636 | E37: 1 | F37: 1.37527868e-05 | G37: 1.000000001 | H37: -4.741744373e-05 | I37: 6.953590985 | J37: 1.426485366 | K37: 1.000012087 | L37: 0.004916581664 | M37: 1.000000004 | N37: 9.314768953e-05 | U37: 1 | V37: 4.745120874e-05 | X37: -81.98517925 | Y37: 98.01482075 | AB37: 58.71894712 | AC37: -81.45522862 | AI37: 70.08958731 | AJ37: -0.5299506378 | AN37: 0 | AO37: 0
B38: 10 | C38: 1.000050531 | D38: 0.01005275784 | E38: 1 | F38: 1.507964474e-05 | G38: 1.000000001 | H38: -5.199224101e-05 | I38: 7.611192047 | J38: 1.439029897 | K38: 1.000014531 | L38: 0.005390920769 | M38: 1.000000005 | N38: 0.0001021345045 | U38: 1 | V38: 5.202926365e-05 | X38: -82.72839114 | Y38: 97.27160886 | AB38: 57.93409757 | AC38: -82.14731455 | AI38: 70.08951347 | AJ38: -0.5810765899 | AN38: 0 | AO38: 0
B39: 10.965 | C39: 1.000060754 | D39: 0.01102277385 | E39: 1 | F39: 1.653483045e-05 | G39: 1.000000002 | H39: -5.700949225e-05 | I39: 8.333542476 | J39: 1.450509478 | K39: 1.000017471 | L39: 0.005911133039 | M39: 1.000000006 | N39: 0.0001119904841 | U39: 1 | V39: 5.705008759e-05 | X39: -83.41295101 | Y39: 96.58704899 | AB39: 57.14658364 | AC39: -82.77580483 | AI39: 70.08942469 | AJ39: -0.6371461769 | AN39: 0 | AO39: 0
B40: 12.023 | C40: 1.000073043 | D40: 0.01208624937 | E40: 1 | F40: 1.813025687e-05 | G40: 1.000000002 | H40: -6.251027134e-05 | I40: 9.126560579 | J40: 1.461005588 | K40: 1.000021005 | L40: 0.006481476067 | M40: 1.000000008 | N40: 0.0001227963146 | U40: 1 | V40: 6.255478369e-05 | X40: -84.04374651 | Y40: 95.95625349 | AB40: 56.35706457 | AC40: -83.34512852 | AI40: 70.08931795 | AJ40: -0.6986179915 | AN40: 0 | AO40: 0
B41: 13.183 | C41: 1.000087817 | D41: 0.01325222126 | E41: 1 | F41: 1.987949565e-05 | G41: 1.000000002 | H41: -6.854137127e-05 | I41: 9.996995518 | J41: 1.4705987 | K41: 1.000025254 | L41: 0.007106800048 | M41: 1.000000009 | N41: 0.000134643917 | U41: 1 | V41: 6.859017828e-05 | X41: -84.62563816 | Y41: 95.37436184 | AB41: 55.56585433 | AC41: -83.85962377 | AI41: 70.08918964 | AJ41: -0.7660143952 | AN41: 0 | AO41: 0
B42: 14.454 | C42: 1.000105566 | D42: 0.01452972311 | E42: 1 | F42: 2.17961185e-05 | G42: 1.000000003 | H42: -7.514958508e-05 | I42: 10.95160235 | J42: 1.479358123 | K42: 1.000030358 | L42: 0.007791954666 | M42: 1.000000011 | N42: 0.0001476252123 | U42: 1.000000001 | V42: 7.520309769e-05 | X42: -85.16284656 | Y42: 94.83715344 | AB42: 54.77373527 | AC42: -84.322989 | AI42: 70.0890355 | AJ42: -0.8398575604 | AN42: 0 | AO42: 0
B43: 15.849 | C43: 1.000126925 | D43: 0.01593180454 | E43: 1 | F43: 2.389972894e-05 | G43: 1.000000003 | H43: -8.240250266e-05 | I43: 12.00014737 | J43: 1.487367267 | K43: 1.000036501 | L43: 0.008543945192 | M43: 1.000000013 | N43: 0.0001618729754 | U43: 1.000000001 | V43: 8.246117998e-05 | X43: -85.66051143 | Y43: 94.33948857 | AB43: 53.97961034 | AC43: -84.73960963 | AI43: 70.08885 | AJ43: -0.9209017999 | AN43: 0 | AO43: 0
B44: 17.378 | C44: 1.000152594 | D44: 0.01746849404 | E44: 1 | F44: 2.620540662e-05 | G44: 1.000000004 | H44: -9.035211626e-05 | I44: 13.15014926 | J44: 1.494678079 | K44: 1.000043883 | L44: 0.009368158801 | M44: 1.000000016 | N44: 0.0001774893407 | U44: 1.000000001 | V44: 9.041645441e-05 | X44: -86.12188589 | Y44: 93.87811411 | AB44: 53.18479238 | AC44: -85.11215909 | AI44: 70.08862708 | AJ44: -1.0097268 | AN44: 0 | AO44: 0
B45: 19.055 | C45: 1.000183463 | D45: 0.0191538327 | E45: 1 | F45: 2.873426304e-05 | G45: 1.000000005 | H45: -9.907121501e-05 | I45: 14.41213886 | J45: 1.501354577 | K45: 1.000052761 | L45: 0.01027213773 | M45: 1.000000019 | N45: 0.0001946172966 | U45: 1.000000001 | V45: 9.914176194e-05 | X45: -86.5510256 | Y45: 93.4489744 | AB45: 52.38891435 | AC45: -85.44388141 | AI45: 70.08835901 | AJ45: -1.10714419 | AM45: =IF(AL45>0,Y43,0) ->  | AN45: 0 | AO45: 0
B46: 20.893 | C46: 1.000220558 | D46: 0.02100084658 | E46: 1 | F46: 3.150590174e-05 | G46: 1.000000006 | H46: -0.0001086273888 | I46: 15.7958998 | J46: 1.507446395 | K46: 1.00006343 | L46: 0.01126288361 | M46: 1.000000023 | N46: 0.0002133896178 | U46: 1.000000001 | V46: 0.0001087047406 | X46: -86.95113381 | Y46: 93.04886619 | AB46: 51.59268833 | AC46: -85.73722688 | AI46: 70.08803687 | AJ46: -1.213906934 | AN46: 0 | AO46: 0
B47: 22.909 | C47: 1.00026517 | D47: 0.02302656815 | E47: 1.000000001 | F47: 3.454595811e-05 | G47: 1.000000007 | H47: -0.0001191090245 | I47: 17.31423135 | J47: 1.513008212 | K47: 1.000076261 | L47: 0.01234955218 | M47: 1.000000027 | N47: 0.000233979933 | U47: 1.000000001 | V47: 0.0001191938402 | X47: -87.32581332 | Y47: 92.67418668 | AB47: 50.79562281 | AC47: -85.99481374 | AI47: 70.08764948 | AJ47: -1.330999583 | AN47: 0 | AO47: 0
B48: 25.119 | C48: 1.00031879 | D48: 0.02524700747 | E48: 1.000000001 | F48: 3.78785596e-05 | G48: 1.000000009 | H48: -0.0001305993096 | I48: 18.97918435 | J48: 1.518082614 | K48: 1.000091683 | L48: 0.01354075743 | M48: 1.000000033 | N48: 0.0002565516572 | U48: 1.000000002 | V48: 0.0001306923075 | X48: -87.67794541 | Y48: 92.32205459 | AB48: 49.99827015 | AC48: -86.21859781 | AI48: 70.08718389 | AJ48: -1.459347598 | AN48: 0 | AO48: 0
B49: 27.542 | C49: 1.000383246 | D49: 0.02768116599 | E49: 1.000000001 | F49: 4.153235751e-05 | G49: 1.00000001 | H49: -0.0001431970293 | I49: 20.80507308 | J49: 1.5227126 | K49: 1.000110223 | L49: 0.01484672686 | M49: 1.00000004 | N49: 0.0002812988459 | U49: 1.000000002 | V49: 0.0001432989981 | X49: -88.01051722 | Y49: 91.98948278 | AB49: 49.20059708 | AC49: -86.41046785 | AI49: 70.08662425 | AJ49: -1.600049367 | AN49: 0 | AO49: 0
B50: 30.2 | C50: 1.000460769 | D50: 0.03035102833 | E50: 1.000000001 | F50: 4.554052707e-05 | G50: 1.000000012 | H50: -0.0001570165667 | I50: 22.80847651 | J50: 1.526938919 | K50: 1.000132522 | L50: 0.0162793002 | M50: 1.000000048 | N50: 0.000308446195 | U50: 1.000000002 | V50: 0.0001571283765 | X50: -88.32646884 | Y50: 91.67353116 | AB50: 48.40225004 | AC50: -86.57209312 | AI50: 70.08595119 | AJ50: -1.754375727 | AN50: 0 | AO50: 0
B51: 33.113 | C51: 1.000553919 | D51: 0.0332765303 | E51: 1.000000001 | F51: 4.993322758e-05 | G51: 1.000000015 | H51: -0.0001721619061 | I51: 25.00446937 | J51: 1.530792808 | K51: 1.000159319 | L51: 0.01784923307 | M51: 1.000000057 | N51: 0.0003381979731 | U51: 1.000000003 | V51: 0.0001722845011 | X51: -88.6281379 | Y51: 91.3718621 | AB51: 47.60405537 | AC51: -86.70465879 | AI51: 70.08514253 | AJ51: -1.923479105 | AN51: 0 | AO51: 0
B52: 36.308 | C52: 1.000665932 | D52: 0.0364845856 | E52: 1.000000001 | F52: 5.475117406e-05 | G52: 1.000000018 | H52: -0.0001887734266 | I52: 27.41340592 | J52: 1.534309729 | K52: 1.000191543 | L52: 0.01957104562 | M52: 1.000000069 | N52: 0.0003708299433 | U52: 1.000000003 | V52: 0.0001889078509 | X52: -88.91829592 | Y52: 91.08170408 | AB52: 46.80542804 | AC52: -86.80938062 | AI52: 70.08417021 | AJ52: -2.108915304 | AN52: 0 | AO52: 0
B53: 39.811 | C53: 1.000800575 | D53: 0.04000103379 | E53: 1.000000002 | F53: 6.003357359e-05 | G53: 1.000000021 | H53: -0.0002069863079 | I53: 30.05488967 | J53: 1.537517728 | K53: 1.000230282 | L53: 0.02145870824 | M53: 1.000000083 | N53: 0.000406607655 | U53: 1.000000004 | V53: 0.0002071337021 | X53: -89.19925832 | Y53: 90.80074168 | AB53: 46.00672151 | AC53: -86.88708025 | AI53: 70.0830016 | AJ53: -2.312178071 | AN53: 0 | AO53: 0
B54: 43.652 | C54: 1.00096243 | D54: 0.04385563906 | E54: 1.000000002 | F54: 6.582566511e-05 | G54: 1.000000026 | H54: -0.0002269565268 | I54: 32.95154257 | J54: 1.540444074 | K54: 1.000276855 | L54: 0.02352833273 | M54: 1.000000099 | N54: 0.0004458375112 | U54: 1.000000005 | V54: 0.0002271181425 | X54: -89.4734025 | Y54: 90.5265975 | AB54: 45.20791354 | AC54: -86.93841444 | AI54: 70.08159702 | AJ54: -2.534988055 | AN54: 0 | AO54: 0
B55: 47.863 | C55: 1.00115696 | D55: 0.0480800527 | E55: 1.000000003 | F55: 7.217570348e-05 | G55: 1.000000031 | H55: -0.0002488504582 | I55: 36.12749714 | J55: 1.543113043 | K55: 1.000332837 | L55: 0.02579708995 | M55: 1.000000119 | N55: 0.0004888463418 | U55: 1.000000006 | V55: 0.0002490276657 | X55: -89.74298421 | Y55: 90.25701579 | AB55: 44.40915697 | AC55: -86.96380916 | AI55: 70.07990918 | AJ55: -2.77917505 | AN55: 0 | AO55: 0
B56: 52.481 | C56: 1.001390823 | D56: 0.0527107837 | E56: 1.000000003 | F56: 7.913948338e-05 | G56: 1.000000037 | H56: -0.0002728604735 | I56: 39.61065901 | J56: 1.545547914 | K56: 1.000400149 | L56: 0.02828482004 | M56: 1.000000144 | N56: 0.0005360120437 | U56: 1.000000007 | V56: 0.00027305478 | X56: -90.01033267 | Y56: 89.98966733 | AB56: 43.61025735 | AC56: -86.96348294 | AI56: 70.07788051 | AJ56: -3.046849722 | AN56: 0 | AO56: 0
B57: 57.544 | C57: 1.001671887 | D57: 0.05778513523 | E57: 1.000000004 | F57: 8.677430746e-05 | G57: 1.000000045 | H57: -0.000299184143 | I57: 43.42969004 | J57: 1.547768569 | K57: 1.000481061 | L57: 0.03101186942 | M57: 1.000000173 | N57: 0.0005877227272 | U57: 1.000000008 | V57: 0.0002993971967 | X57: -90.27760021 | Y57: 89.72239979 | AB57: 42.81146635 | AC57: -86.93743146 | AI57: 70.07544301 | AJ57: -3.34016875 | AN57: 0 | AO57: 0
B58: 63.096 | C58: 1.002009727 | D58: 0.06334615097 | E58: 1.000000005 | F58: 9.514652615e-05 | G58: 1.000000054 | H58: -0.0003280502324 | I58: 47.61777954 | J58: 1.549794224 | K58: 1.000578339 | L58: 0.03400177375 | M58: 1.000000208 | N58: 0.0006444277828 | U58: 1.00000001 | V58: 0.0003282838445 | X58: -90.54705376 | Y58: 89.45294624 | AB58: 42.01266234 | AC58: -86.88543299 | AI58: 70.07251403 | AJ58: -3.661620777 | AN58: 0 | AO58: 0
B59: 69.183 | C59: 1.002415707 | D59: 0.06943851771 | E59: 1.000000005 | F59: 0.0001043255058 | G59: 1.000000065 | H59: -0.0003596979058 | I59: 52.20962712 | J59: 1.5516416 | K59: 1.000695268 | L59: 0.03727908956 | M59: 1.00000025 | N59: 0.0007065970275 | U59: 1.000000012 | V59: 0.0003599540581 | X59: -90.82085513 | Y59: 89.17914487 | AB59: 41.21404793 | AC59: -86.80706552 | AI59: 70.06899561 | AJ59: -4.013789609 | AN59: 0 | AO59: 0
B60: 75.858 | C60: 1.002903638 | D60: 0.07611345633 | E60: 1.000000007 | F60: 0.0001143911685 | G60: 1.000000078 | H60: -0.0003944027217 | I60: 57.24521439 | J60: 1.553326729 | K60: 1.000835845 | L60: 0.04087206843 | M60: 1.0000003 | N60: 0.0007747717721 | U60: 1.000000014 | V60: 0.0003946835927 | X60: -91.10129691 | Y60: 88.89870309 | AB60: 40.4154957 | AC60: -86.70165991 | AI60: 70.06476884 | AJ60: -4.399636996 | AN60: 0 | AO60: 0
B61: 83.176 | C61: 1.003489865 | D61: 0.08342356658 | E61: 1.000000008 | F61: 0.0001254264524 | G61: 1.000000094 | H61: -0.0004324506372 | I61: 62.76603309 | J61: 1.554863469 | K61: 1.001004806 | L61: 0.04480994111 | M61: 1.000000361 | N61: 0.0008495137534 | U61: 1.000000017 | V61: 0.0004327586093 | X61: -91.39057222 | Y61: 88.60942778 | AB61: 39.6172515 | AC61: -86.56836751 | AI61: 70.05969328 | AJ61: -4.822204709 | AN61: 0 | AO61: 0
B62: 91.201 | C62: 1.004194296 | D62: 0.09142962566 | E62: 1.000000009 | F62: 0.0001375278671 | G62: 1.000000112 | H62: -0.0004741744021 | I62: 68.82036587 | J62: 1.556265233 | K62: 1.001207929 | L62: 0.04912665339 | M62: 1.000000434 | N62: 0.0009314766286 | U62: 1.000000021 | V62: 0.0004745120953 | X62: -91.69105707 | Y62: 88.30894293 | AB62: 38.8191673 | AC62: -86.40604943 | AI62: 70.05359823 | AJ62: -5.285007639 | AN62: 0 | AO62: 0
B63: 100 | C63: 1.005040534 | D63: 0.1001943326 | E63: 1.000000011 | F63: 0.0001507964462 | G63: 1.000000135 | H63: -0.0005199223637 | I63: 75.45875984 | J63: 1.557543667 | K63: 1.001452075 | L63: 0.0538575956 | M63: 1.000000522 | N63: 0.001021344694 | U63: 1.000000025 | V63: 0.0005202926469 | X63: -92.00505667 | Y63: 87.99494333 | AB63: 38.02143063 | AC63: -86.21338434 | AI63: 70.04628187 | AJ63: -5.791672322 | AN63: 0 | AO63: 0
B64: 109.65 | C64: 1.006057224 | D64: 0.1097889479 | E64: 1.000000014 | F64: 0.000165348303 | G64: 1.000000163 | H64: -0.0005700948614 | I64: 82.73930759 | J64: 1.558709879 | K64: 1.001745592 | L64: 0.05904331252 | M64: 1.000000627 | N64: 0.001119904378 | U64: 1.00000003 | V64: 0.0005705008896 | X64: -92.33505163 | Y64: 87.66494837 | AB64: 37.22393072 | AC64: -85.98873071 | AI64: 70.03749995 | AJ64: -6.346320917 | AN64: 0 | AO64: 0
B65: 120.23 | C65: 1.007278097 | D65: 0.1202848898 | E65: 1.000000016 | F65: 0.0001813025667 | G65: 1.000000195 | H65: -0.0006251026328 | I65: 90.72161154 | J65: 1.559773372 | K65: 1.002098334 | L65: 0.06472513133 | M65: 1.000000754 | N65: 0.001227962535 | U65: 1.000000036 | V65: 0.0006255478549 | X65: -92.68339706 | Y65: 87.31660294 | AB65: 36.42701014 | AC65: -85.73031141 | AI65: 70.02696608 | AJ65: -6.95308565 | AN65: 0 | AO65: 0
B66: 131.83 | C66: 1.008743869 | D66: 0.1317621196 | E66: 1.00000002 | F66: 0.000198794954 | G66: 1.000000235 | H66: -0.0006854136065 | I66: 99.47357407 | J66: 1.560743236 | K66: 1.002522235 | L66: 0.07094990545 | M66: 1.000000906 | N66: 0.001346438364 | U66: 1.000000043 | V66: 0.0006859018066 | X66: -93.05260927 | Y66: 86.94739073 | AB66: 35.63074296 | AC66: -85.43601544 | AI66: 70.01433603 | AJ66: -7.616593828 | AN66: 0 | AO66: 0
B67: 144.54 | C67: 1.010501983 | D67: 0.1442975341 | E67: 1.000000024 | F67: 0.0002179611816 | G67: 1.000000282 | H67: -0.0007514957107 | I67: 109.0630982 | J67: 1.561627194 | K67: 1.003031256 | L67: 0.07776399109 | M67: 1.00000109 | N67: 0.001476251061 | U67: 1.000000052 | V67: 0.0007520310083 | X67: -93.44497904 | Y67: 86.55502096 | AB67: 34.83574826 | AC67: -85.10368187 | AI67: 69.99921117 | AJ67: -8.341297176 | AN67: 0 | AO67: 0
B68: 158.49 | C68: 1.012613715 | D68: 0.1580034064 | E68: 1.000000029 | F68: 0.0002389972849 | G68: 1.00000034 | H68: -0.000824024842 | I68: 119.5882673 | J68: 1.562434205 | K68: 1.00364349 | L68: 0.08523452196 | M68: 1.00000131 | N68: 0.001618728354 | U68: 1.000000063 | V68: 0.0008246118411 | X68: -93.86374836 | Y68: 86.13625164 | AB68: 34.0408316 | AC68: -84.73005364 | AI68: 69.98107891 | AJ68: -9.133694721 | AN68: 0 | AO68: 0
B69: 173.78 | C69: 1.015145821 | D69: 0.1729571967 | E69: 1.000000034 | F69: 0.0002620540602 | G69: 1.000000408 | H69: -0.0009035209192 | I69: 131.1245307 | J69: 1.563169915 | K69: 1.00437879 | L69: 0.0934116816 | M69: 1.000001575 | N69: 0.001774891562 | U69: 1.000000075 | V69: 0.0009041645985 | X69: -94.31091303 | Y69: 85.68908697 | AB69: 33.24728305 | AC69: -84.31263746 | AI69: 69.95938693 | AJ69: -9.998275565 | AN69: 0 | AO69: 0
B70: 190.55 | C70: 1.018182648 | D70: 0.1892688525 | E70: 1.000000041 | F70: 0.0002873426226 | G70: 1.000000491 | H70: -0.0009907118292 | I70: 143.7775179 | J70: 1.56384108 | K70: 1.005262366 | L70: 0.1023659285 | M70: 1.000001894 | N70: 0.001946170533 | U70: 1.000000091 | V70: 0.0009914176911 | X70: -94.789276 | Y70: 85.210724 | AB70: 32.4547774 | AC70: -83.84786542 | AI70: 69.93344236 | AJ70: -10.94141058 | AN70: 0 | AO70: 0
B71: 208.93 | C71: 1.021820203 | D71: 0.2070298771 | E71: 1.00000005 | F71: 0.0003150590071 | G71: 1.00000059 | H71: -0.001086273465 | I71: 157.6453141 | J71: 1.56445293 | K71: 1.006323173 | L71: 0.1121608895 | M71: 1.000002277 | N71: 0.002133892972 | U71: 1.000000109 | V71: 0.001087047501 | X71: -95.30087639 | Y71: 84.69912361 | AB71: 31.66413338 | AC71: -83.33246763 | AI71: 69.90246727 | AJ71: -11.96840876 | AN71: 0 | AO71: 0
B72: 229.09 | C72: 1.026177875 | D72: 0.2263593625 | E72: 1.00000006 | F72: 0.0003454595675 | G72: 1.000000709 | H72: -0.001191089687 | I72: 172.856185 | J72: 1.565011139 | K72: 1.007597486 | L72: 0.1228795731 | M72: 1.000002737 | N72: 0.002339795102 | U72: 1.000000131 | V72: 0.001191938527 | X72: -95.84829279 | Y72: 84.15170721 | AB72: 30.87504426 | AC72: -82.76211258 | AI72: 69.86550496 | AJ72: -13.08618021 | AN72: 0 | AO72: 0
B73: 251.19 | C73: 1.031391407 | D73: 0.247352525 | E73: 1.000000072 | F73: 0.000378785578 | G73: 1.000000853 | H73: -0.001305992361 | I73: 189.530852 | J73: 1.565520116 | K73: 1.009127075 | L73: 0.1345971128 | M73: 1.000003291 | N73: 0.002565511 | U73: 1.000000158 | V73: 0.001306923239 | X73: -96.43310383 | Y73: 83.56689617 | AB73: 30.08831529 | AC73: -82.13284187 | AI73: 69.82148885 | AJ73: -14.30026196 | AN73: 0 | AO73: 0
B74: 275.42 | C74: 1.037624139 | D74: 0.2701154043 | E74: 1.000000086 | F74: 0.0004153235515 | G74: 1.000001025 | H74: -0.001431969324 | I74: 207.8126719 | J74: 1.565984282 | K74: 1.010962793 | L74: 0.1474012821 | M74: 1.000003956 | N74: 0.002812981114 | U74: 1.000000189 | V74: 0.001432990198 | X74: -97.05681719 | Y74: 82.94318281 | AB74: 29.30425357 | AC74: -81.43999074 | AI74: 69.76915904 | AJ74: -15.61682645 | AN74: 0 | AO74: 0
B75: 302 | C75: 1.045071813 | D75: 0.2947594831 | E75: 1.000000104 | F75: 0.0004554052396 | G75: 1.000001233 | H75: -0.001570164389 | I75: 227.8676372 | J75: 1.5664078 | K75: 1.013166445 | L75: 0.1613913663 | M75: 1.000004757 | N75: 0.003084452266 | U75: 1.000000228 | V75: 0.00157128405 | X75: -97.72061119 | Y75: 82.27938881 | AB75: 28.52294666 | AC75: -80.6782379 | AI75: 69.7070393 | AJ75: -17.04237329 | AN75: 0 | AO75: 0
B76: 331.13 | C76: 1.053951869 | D76: 0.3213498666 | E76: 1.000000125 | F76: 0.0004993322347 | G76: 1.000001482 | H76: -0.001721617377 | I76: 249.8466506 | J76: 1.566793861 | K76: 1.015808191 | L76: 0.1766505741 | M76: 1.000005719 | N76: 0.003381966966 | U76: 1.000000274 | V76: 0.001722845387 | X76: -98.42385035 | Y76: 81.57614965 | AB76: 27.7457389 | AC76: -79.84311569 | AI76: 69.63354837 | AJ76: -18.58073465 | AN76: 0 | AO76: 0
B77: 363.08 | C77: =SQRT(1+(B77/PS_Pole1)^2) -> 1.064533097 | D77: =ATAN(B77/PS_Pole1) -> 0.3499817625 | E77: =SQRT(1+(B77/PS_Zero1)^2) -> 1.00000015 | F77: =ATAN(B77/PS_Zero1) -> 0.0005475116864 | G77: =IF(VIN_nom>Vout, 1, SQRT(1+(B77/PS_RHPZ)^2)) -> 1.000001782 | H77: =IF(VIN_nom>Vout, 0, -ATAN(B77/PS_RHPZ)) -> -0.001887732046 | I77: =SQRT(1+(B77/EA_Pole1)^2) -> 273.9534311 | J77: =ATAN(B77/EA_Pole1) -> 1.567146063 | K77: =SQRT(1+(B77/EA_Zero1)^2) -> 1.018976136 | L77: =ATAN(B77/EA_Zero1) -> 0.193291686 | M77: =SQRT(1+(B77/EA_Pole2)^2) -> 1.000006876 | N77: =ATAN(B77/EA_Pole2) -> 0.003708282605 | O77: =SQRT(1+(B77/$V$5)^2) ->  | P77: =ATAN(B77/$V$5) ->  | Q77: =SQRT(1+(B77/$V$4)^2) ->  | R77: =ATAN(B77/$V$4) ->  | S77: =SQRT(1+(B77/$V$7)^2) ->  | T77: =ATAN(B77/$V$7) ->  | U77: =SQRT((1-(B77^2/pterm2))^2+(B77/pterm1)^2) -> 1.000000329 | V77: =IF((ATAN((B77/pterm1)/(1-B77^2/pterm2))>0),ATAN((B77/pterm1)/(1-B77^2/pterm2)),PI()+ATAN((B77/pterm1)/(1-B77^2/pterm2))) -> 0.001889079006 | W77: =20*LOG10(((E77*K77*G77)/(C77*I77*U77*M77))*Adc) ->  | X77: -99.16602955 | Y77: 80.83397045 | AB77: =20*LOG10((K77/(I77*M77))*AEA) -> 26.97271066 | AC77: =(L77-(J77+N77))*radconv -> -78.92852643 | AE77: =20*LOG10((Q77/(O77*S77))*AIL) ->  | AF77: =(R77-(P77+T77))*radconv ->  | AI77: =20*LOG10((E77*G77/(C77*U77))*Acs*Am) -> 69.54678291 | AJ77: =(F77+H77-(D77+V77))*radconv -> -20.23750312 | AL77: =SUM((W78<0)*(W77>0))*B77 ->  | AM77: =IF(AL77>0,Y75,0) ->  | AN77: =SUM((AB78<0)*(AB77>0))*B77 -> 0 | AO77: 0
B78: 398.11 | C78: 1.077116108 | D78: 0.3806993143 | E78: 1.00000018 | F78: 0.0006003356645 | G78: 1.000002142 | H78: -0.002069860153 | I78: 300.3841529 | J78: 1.56746725 | K78: 1.022771605 | L78: 0.2114129458 | M78: 1.000008266 | N78: 0.004066054366 | U78: 1.000000396 | V78: 0.002071337676 | X78: -99.94449662 | Y78: =IF(X78>0,X78-180,X78+180) -> 80.05550338 | AB78: 26.20498611 | AC78: -77.92915619 | AI78: 69.44471868 | AJ78: -22.01534043 | AN78: 0 | AO78: =IF(AN78>0,AC78,0) -> 0 | AP78: =SUM((AE79<0)*(AE78>0))*B78 ->  | AQ78: =IF(AP78>0,AE78,0) -> 
B79: 436.52 | C79: 1.092052465 | D79: 0.4135327377 | E79: 1.000000217 | F79: 0.000658256557 | G79: 1.000002575 | H79: -0.00226956141 | I79: 329.3651709 | J79: 1.567760178 | K79: 1.027316252 | L79: 0.2311215904 | M79: 1.000009939 | N79: 0.004458345868 | U79: 1.000000476 | V79: 0.002271182288 | X79: =IF(((F79+L79+H79)-(D79+J79+V79+N79))*radconv<-180,((F79+L79+H79)-(D79+J79+V79+N79))*radconv+360,((F79+L79+H79)-(D79+J79+V79+N79))*radconv) -> -100.7553249 | Y79: 79.24467508 | AB79: 25.44346841 | AC79: -76.83919423 | AI79: 69.32510241 | AJ79: -23.91613069 | AN79: 0 | AO79: 0
B80: 478.63 | C80: 1.109741355 | D80: 0.4484715535 | E80: 1.00000026 | F80: 0.0007217569107 | G80: 1.000003096 | H80: -0.002488499497 | I80: 361.1379307 | J80: 1.568027298 | K80: 1.032752885 | L80: 0.252520171 | M80: 1.000011948 | N80: 0.004888424868 | U80: 1.000000572 | V80: 0.002490277794 | X80: -101.592529 | Y80: 78.40747103 | AB80: 24.68938746 | AC80: -75.65309242 | AI80: 69.18554114 | AJ80: -25.93943655 | AN80: 0 | AO80: 0
B81: 524.81 | C81: 1.130645005 | D81: 0.4854803433 | E81: 1.000000313 | F81: 0.0007913946702 | G81: 1.000003723 | H81: -0.002728598031 | I81: 395.9816041 | J81: 1.568270954 | K81: 1.039252517 | L81: 0.2757177432 | M81: 1.000014365 | N81: 0.005360069618 | U81: 1.000000688 | V81: 0.0027305493 | X81: -102.4483704 | Y81: 77.55162961 | AB81: 23.94382172 | AC81: -74.36495316 | AI81: 69.02345607 | AJ81: -28.08341724 | AN81: 0 | AO81: 0
B82: 575.44 | C82: 1.155273522 | D82: 0.5244571862 | E82: 1.000000376 | F82: 0.000867742859 | G82: 1.000004476 | H82: -0.002991832593 | I82: 434.1829081 | J82: 1.568493148 | K82: 1.04701256 | L82: 0.3008046815 | M82: 1.000017271 | N82: 0.00587716028 | U82: 1.000000827 | V82: 0.002993973943 | X82: -103.3123621 | Y82: 76.6876379 | AB82: 23.20845836 | AC82: -72.96993534 | AI82: 68.83629093 | AJ82: -30.34242675 | AN82: 0 | AO82: 0
B83: 630.96 | C83: 1.184208343 | D83: 0.5652662774 | E83: 1.000000453 | F83: 0.0009514649772 | G83: 1.000005381 | H83: -0.003280490674 | I83: 476.0738313 | J83: 1.568695811 | K83: 1.056267593 | L83: 0.3278719106 | M83: 1.000020764 | N83: 0.006444189515 | U83: 1.000000994 | V83: 0.003282841051 | X83: -104.1721057 | Y83: 75.82789426 | AB83: 22.48483757 | AC83: -71.46319746 | AI83: 68.62143206 | AJ83: -32.70890828 | AN83: 0 | AO83: 0
B84: 691.83 | C84: 1.218082487 | D84: 0.6077017154 | E84: 1.000000544 | F84: 0.001043254683 | G84: 1.000006469 | H84: -0.0035969637 | I84: 522.0014525 | J84: 1.568880622 | K84: 1.067287173 | L84: 0.3569842134 | M84: 1.000024964 | N84: 0.007065853858 | U84: 1.000001196 | V84: 0.003599544016 | X84: -105.012692 | Y84: 74.98730804 | AB84: 21.77499975 | AC84: -69.84139303 | AI84: 68.37646891 | AJ84: -35.17129893 | AN84: 0 | AO84: 0
B85: 758.58 | C85: 1.257605124 | D85: 0.6515213871 | E85: 1.000000654 | F85: 0.001143911192 | G85: 1.000007778 | H85: -0.003944006972 | I85: 572.3656672 | J85: 1.569049191 | K85: 1.080388272 | L85: 0.3881966586 | M85: 1.000030013 | N85: 0.007747564252 | U85: 1.000001437 | V85: 0.003946840455 | X85: -105.8177658 | Y85: 74.18223422 | AB85: 21.08089004 | AC85: -68.10176907 | AI85: 68.09912715 | AJ85: -37.71599671 | AN85: 0 | AO85: 0
B86: 831.76 | C86: 1.303530166 | D86: 0.6964137801 | E86: 1.000000787 | F86: 0.001254263873 | G86: 1.000009351 | H86: -0.004324479684 | I86: 627.5814616 | J86: 1.569202907 | K86: 1.095929822 | L86: 0.4215222102 | M86: 1.000036083 | N86: 0.00849493523 | U86: 1.000001728 | V86: 0.004327592062 | X86: -106.5694177 | Y86: 73.43058232 | AB86: 20.40496437 | AC86: -66.24398412 | AI86: 67.78760368 | AJ86: -40.32543356 | AN86: 0 | AO86: 0
B87: 912.01 | C87: 1.35669393 | D87: 0.7420482143 | E87: 1.000000946 | F87: 0.001375277813 | G87: 1.000011242 | H87: -0.004741708839 | I87: 688.1317286 | J87: 1.569343116 | K87: 1.114330134 | L87: 0.4569550904 | M87: 1.000043382 | N87: 0.009314499595 | U87: 1.000002078 | V87: 0.004745128822 | X87: -107.2498096 | Y87: 72.75019041 | AB87: 19.74949405 | AC87: -64.26882057 | AI87: 67.44040253 | AJ87: -42.98098902 | AN87: 0 | AO87: 0
B88: 1000 | C88: 1.417973022 | D88: 0.7880459524 | E88: 1.000001137 | F88: 0.001507963331 | G88: 1.000013516 | H88: -0.005199177258 | I88: 754.5219968 | J88: 1.569470984 | K88: 1.136057172 | L88: 0.4944340986 | M88: 1.000052156 | N88: 0.01021309537 | U88: 1.000002498 | V88: 0.005202936842 | X88: -107.841548 | Y88: 72.15845195 | AB88: 19.11713765 | AC88: -62.18024361 | AI88: 67.05669857 | AJ88: -45.66130443 | AN88: 0 | AO88: 0
B89: 1096.5 | C89: 1.488325858 | D89: 0.8340307458 | E89: 1.000001367 | F89: 0.001653481539 | G89: 1.00001625 | H89: -0.005700887471 | I89: 827.3332473 | J89: 1.569587624 | K89: 1.161646709 | L89: 0.5338646417 | M89: 1.000062707 | N89: 0.01119858031 | U89: 1.000003003 | V89: 0.005705022572 | X89: -108.3294017 | Y89: 71.67059829 | AB89: 18.51035214 | AC89: -59.984187 | AI89: 66.63611875 | AJ89: -48.34521471 | AN89: 0 | AO89: 0
B90: 1202.3 | C90: 1.568730859 | D90: 0.879601832 | E90: 1.000001644 | F90: 0.0018130237 | G90: 1.000019537 | H90: -0.006250945724 | I90: 907.1615512 | J90: 1.569693987 | K90: 1.19168246 | L90: 0.5750782998 | M90: 1.000075392 | N90: 0.01227901437 | U90: 1.000003611 | V90: 0.006255496578 | X90: -108.7009772 | Y90: 71.2990228 | AB90: 17.93188843 | AC90: -57.69081682 | AI90: 66.17913618 | AJ90: -51.01016038 | AM90: =IF(AL90>0,Y90,0) ->  | AN90: 0 | AO90: 0
B91: 1318.3 | C91: 1.660246766 | D91: 0.9243919264 | E91: 1.000001976 | F91: 0.001987946947 | G91: 1.000023489 | H91: -0.006854029807 | I91: 994.6859775 | J91: 1.569790984 | K91: 1.226818273 | L91: 0.6178657972 | M91: 1.000090641 | N91: 0.01346357821 | U91: 1.000004341 | V91: 0.006859041832 | X91: -108.948258 | Y91: 71.051742 | AB91: 17.38412256 | AC91: -55.31270184 | AI91: 65.68668298 | AJ91: -53.63555616 | AN91: 0 | AO91: 0
B92: 1445.4 | C92: 1.763923382 | D92: 0.9680365677 | E92: 1.000002375 | F92: 0.002179608399 | G92: 1.000028237 | H92: -0.007514817059 | I92: 1090.585595 | J92: 1.569879388 | K92: 1.267742147 | L92: 0.6619357036 | M92: 1.00010896 | N92: 0.01476144907 | U92: 1.000005219 | V92: 0.007520341407 | X92: -109.0680884 | Y92: 70.93191161 | AB92: 16.86950208 | AC92: -52.86710989 | AI92: 65.16057858 | AJ92: -56.2009785 | AN92: 0 | AO92: 0
B93: 1584.9 | C93: 1.881130917 | D93: 1.01031362 | E93: 1.000002856 | F93: 0.002389968344 | G93: 1.00003395 | H93: -0.008240063783 | I93: 1195.841281 | J93: 1.569960095 | K93: 1.315304346 | L93: 0.7070518006 | M93: 1.000131006 | N93: 0.01618588406 | U93: 1.000006275 | V93: 0.008246159708 | X93: -109.0627486 | Y93: 70.93725142 | AB93: 16.38894146 | AC93: -50.36838624 | AI93: 64.60183712 | AJ93: -58.69436234 | AN93: 0 | AO93: 0
B94: 1737.8 | C94: 2.012983785 | D94: 1.050917486 | E94: 1.000003434 | F94: 0.002620534664 | G94: 1.000040817 | H94: -0.009034965799 | I94: 1311.207556 | J94: 1.570033671 | K94: 1.370282943 | L94: 0.7528016475 | M94: 1.0001575 | N94: 0.01774707083 | U94: 1.000007544 | V94: 0.009041700423 | X94: -108.9394857 | Y94: 71.06051427 | AB94: 15.94443326 | AC94: -47.84077808 | AI94: 64.01346565 | AJ94: -61.09870765 | AN94: 0 | AO94: 0
B95: 1905.5 | C95: 2.16092354 | D95: 1.08968447 | E95: 1.000004128 | F95: 0.002873418396 | G95: 1.000049074 | H95: -0.009906797421 | I95: 1437.74075 | J95: 1.570100791 | K95: 1.433611651 | L95: 0.7988391619 | M95: 1.000189362 | N95: 0.01945927336 | U95: 1.00000907 | V95: 0.009914248679 | X95: -108.7103192 | Y95: 71.28968082 | AB95: 15.53639918 | AC95: -45.30497049 | AI95: 63.39754767 | AJ95: -63.4053487 | AN95: 0 | AO95: 0
B96: 2089.3 | C96: 2.326295907 | D96: 1.126449832 | E96: 1.000004963 | F96: 0.003150579751 | G96: 1.000058998 | H96: -0.01086231169 | I96: 1576.421741 | J96: 1.570161979 | K96: 1.506198113 | L96: 0.8447432724 | M96: 1.00022765 | N96: 0.02133572408 | U96: 1.000010905 | V96: 0.01087056961 | X96: -108.3913859 | Y96: 71.60861413 | AB96: 15.16524157 | AC96: -42.7858772 | AI96: 62.75711406 | AJ96: -65.60550867 | AN96: 0 | AO96: 0
B97: 2290.9 | C97: 2.510797326 | D97: 1.161155544 | E97: 1.000005967 | F97: 0.00345458207 | G97: 1.000070932 | H97: -0.01191033929 | I97: 1728.533214 | J97: 1.570217802 | K97: 1.589109646 | L97: 0.8901657763 | M97: 1.000273696 | N97: 0.02339372526 | U97: 1.000013111 | V97: 0.01191950998 | X97: -108.0012015 | Y97: 71.99879855 | AB97: 14.83017074 | AC97: -40.30447262 | AI97: 62.09427325 | AJ97: -67.69672883 | AN97: 0 | AO97: 0
B98: 2511.9 | C98: 2.716030828 | D98: 1.193740912 | E98: 1.000007174 | F98: 0.003787837846 | G98: 1.000085277 | H98: -0.0130591886 | I98: 1895.282403 | J98: 1.570268701 | K98: 1.683373179 | L98: 0.9347179444 | M98: 1.00032904 | N98: 0.02564953987 | U98: 1.000015763 | V98: 0.01306939679 | X98: -107.560333 | Y98: 72.43966698 | AB98: 14.53029694 | AC98: -37.8839864 | AI98: 61.41192454 | AJ98: -69.67634662 | AN98: 0 | AO98: 0
B99: 2754.2 | C99: 2.943872523 | D99: 1.224210513 | E99: 1.000008625 | F99: 0.004153211874 | G99: 1.000102522 | H99: -0.01431872438 | I99: 2078.102899 | J99: 1.570315119 | K99: 1.790133218 | L99: 0.9780781078 | M99: 1.000395567 | N99: 0.02812246922 | U99: 1.000018951 | V99: 0.01433011868 | X99: -107.0895719 | Y99: 72.91042809 | AB99: 14.2639559 | AC99: -35.54397999 | AI99: 60.71237311 | AJ99: -71.54559192 | AN99: 0 | AO99: 0
B100: 3020 | C100: 3.196483908 | D100: 1.252610732 | E100: 1.00001037 | F100: 0.004554021228 | G100: 1.000123263 | H100: -0.01570036662 | I100: 2278.654649 | J100: 1.570357471 | K100: 1.910660734 | L100: 1.019984505 | M100: 1.000475582 | N100: 0.03083484429 | U100: 1.000022786 | V100: 0.01571312619 | X100: -106.6089973 | Y100: 73.39100275 | AB100: 14.02899653 | AC100: -33.30075457 | AI100: 59.99746465 | AJ100: -73.30824268 | AN100: 0 | AO100: 0
B101: 3311.3 | C101: 3.475838649 | D101: 1.278971527 | E101: 1.000012467 | F101: 0.004993281263 | G101: 1.000148188 | H101: -0.01721449014 | I101: 2498.446694 | J101: 1.570396078 | K101: 2.046125123 | L101: 1.060164394 | M101: 1.000571726 | N101: 0.03380691332 | U101: 1.000027395 | V101: 0.01722883045 | X101: -106.1381491 | Y101: 73.86185091 | AB101: 13.82330248 | AC101: -31.17111551 | AI101: 59.26991759 | AJ101: -74.96703358 | AN101: 0 | AO101: 0
B102: 3630.8 | C102: 3.784583386 | D102: 1.303390995 | E102: 1.000014988 | F102: 0.005475062703 | G102: 1.000178161 | H102: -0.01887510102 | I102: 2739.516243 | J102: 1.570431299 | K102: 2.198007402 | L102: 1.098471814 | M102: 1.000687338 | N102: 0.03706601183 | U102: 1.000032938 | V102: 0.01889128647 | X102: -105.6939723 | Y102: 74.30602772 | AB102: 13.64416233 | AC102: -29.16501261 | AI102: 58.53098223 | AJ102: -76.52895967 | AN102: 0 | AO102: 0
B103: 3981.1 | C103: 4.125277077 | D103: 1.325949256 | E103: 1.00001802 | F103: 0.006003285247 | G103: 1.000214194 | H103: -0.02069567585 | I103: 3003.82505 | J103: 1.570463418 | K103: 2.367736377 | L103: 1.134766258 | M103: 1.000826308 | N103: 0.04063838182 | U103: 1.000039603 | V103: 0.02071403114 | X103: -105.2919509 | Y103: 74.70804911 | AB103: 13.48902499 | AC103: -27.29201615 | AI103: 57.78256269 | AJ103: -77.99993474 | AN103: 0 | AO103: 0
B104: 4365.2 | C104: 4.5008731 | D104: 1.346747447 | E104: 1.000021665 | F104: 0.006582471449 | G104: 1.000257513 | H104: -0.02269175748 | I104: 3293.63668 | J104: 1.570492711 | K104: 2.556925512 | L104: 1.168975603 | M104: 1.000993362 | N104: 0.04455424938 | U104: 1.000047617 | V104: 0.02271268548 | X104: -104.9452861 | Y104: 75.05471392 | AB104: 13.35524877 | AC104: -25.55800615 | AI104: 57.02602803 | AJ104: -79.38727993 | AN104: 0 | AO104: 0
B105: 4786.3 | C105: 4.914528209 | D105: 1.365887054 | E105: 1.000026046 | F105: 0.007217445035 | G105: 1.000309585 | H105: -0.02487991143 | I105: 3611.3656 | J105: 1.570519423 | K105: 2.767282444 | L105: 1.201064543 | M105: 1.001194141 | N105: 0.04884575381 | U105: 1.000057252 | V105: 0.02490391498 | X105: -104.6652984 | Y105: 75.33470158 | AB105: 13.24029964 | AC105: -23.96686092 | AI105: 56.26273328 | AJ105: -80.69843749 | AN105: 0 | AO105: 0
B106: 5248.1 | C106: 5.36989876 | D106: 1.383479582 | E106: 1.000031315 | F106: 0.007913783142 | G106: 1.000372195 | H106: -0.02727927931 | I106: 3959.80354 | J106: 1.570543789 | K106: 3.000763133 | L106: 1.231049329 | M106: 1.001435514 | N106: 0.05354996412 | U106: 1.00006884 | V106: 0.02730699182 | X106: -104.4614643 | Y106: 75.53853566 | AB106: 13.14172675 | AC106: -22.51978666 | AI106: 55.49353672 | AJ106: -81.94167768 | AN106: 0 | AO106: 0
B107: 5370.3 | C107: 5.490646321 | D107: 1.387646191 | E107: 1.00003279 | F107: 0.00809804459 | G107: 1.000389726 | H107: -0.02791414073 | I107: 4052.006044 | J107: 1.570549535 | K107: 3.062953866 | L107: 1.238216866 | M107: 1.001503093 | N107: 0.05479438854 | U107: 1.000072085 | V107: 0.02794289763 | X107: -104.4234056 | Y107: 75.57659443 | AB107: 13.11938653 | AC107: -22.18074658 | AI107: 55.30052613 | AJ107: -82.24265899 | AN107: 0 | AO107: 0
B108: 5432.85 | C108: 5.552488537 | D108: 1.389708797 | E108: 1.000033558 | F108: 0.00819236151 | G108: 1.000398856 | H108: -0.0282390959 | I108: 4099.201352 | J108: 1.570552377 | K108: 3.094846211 | L108: 1.241774128 | M108: 1.001538284 | N108: 0.05543130134 | U108: 1.000073776 | V108: 0.028268398 | X108: -104.4062877 | Y108: 75.59371229 | AB108: 13.10847034 | AC108: -22.0135857 | AI108: 55.20331337 | AJ108: -82.39270202 | AN108: 0 | AO108: 0
B109: 5495.4 | C109: 5.614353856 | D109: 1.391725956 | E109: 1.000034336 | F109: 0.008286678284 | G109: 1.000408091 | H109: -0.0285640451 | I109: 4146.39666 | J109: 1.570555154 | K109: 3.126776919 | L109: 1.245258779 | M109: 1.001573881 | N109: 0.05606816913 | U109: 1.000075485 | V109: 0.0285938997 | X109: -104.3907196 | Y109: 75.60928039 | AB109: 13.09788622 | AC109: -21.85057879 | AI109: 55.10714324 | AJ109: -82.54014082 | AN109: 0 | AO109: 0
B110: 5559.4 | C110: 5.677676425 | D110: 1.393744367 | E110: 1.00003514 | F110: 0.008383181306 | G110: 1.00041765 | H110: -0.02889652085 | I110: 4194.686024 | J110: 1.57055793 | K110: 3.159486321 | L110: 1.248751265 | M110: 1.001610724 | N110: 0.05671975332 | U110: 1.000077255 | V110: 0.02892694841 | X110: -104.376356 | Y110: 75.623644 | AB110: 13.0873861 | AC110: -21.6879662 | AI110: 55.00980071 | AJ110: -82.6883898 | AN110: 0 | AO110: 0
B111: 5623.4 | C111: 5.741021616 | D111: 1.395718245 | E111: 1.000035954 | F111: 0.008479684172 | G111: 1.000427319 | H111: -0.02922899022 | I111: 4242.975388 | J111: 1.570560643 | K111: 3.192233472 | L111: 1.252172137 | M111: 1.001647992 | N111: 0.0573712893 | U111: 1.000079045 | V111: 0.02925999855 | X111: -104.3635373 | Y111: 75.6364627 | AB111: 13.0772052 | AC111: -21.52945037 | AI111: 54.9135053 | AJ111: -82.83408693 | AN111: 0 | AO111: 0
B112: 5688.9 | C112: 5.805874108 | D112: 1.39769378 | E112: 1.000036796 | F112: 0.00857844866 | G112: 1.000437329 | H112: -0.02956924514 | I112: 4292.396534 | J112: 1.570563357 | K112: 3.225786019 | L112: 1.255601229 | M112: 1.001686574 | N112: 0.05803804516 | U112: 1.000080899 | V112: 0.02960085604 | X112: -104.3519785 | Y112: 75.64802154 | AB112: 13.06710234 | AC112: -21.37133566 | AI112: 54.81601478 | AJ112: -82.9806428 | AN112: 0 | AO112: 0
B113: 5754.4 | C113: 5.870748759 | D113: 1.39962566 | E113: 1.000037648 | F113: 0.00867721298 | G113: 1.000447456 | H113: -0.02990949321 | I113: 4341.81768 | J113: 1.570566009 | K113: 3.259375716 | L113: 1.258959682 | M113: 1.001725602 | N113: 0.05870474936 | U113: 1.000082774 | V113: 0.02994171507 | X113: -104.3419589 | Y113: 75.65804106 | AB113: 13.05730639 | AC113: -21.21726175 | AI113: 54.71957621 | AJ113: -83.1246972 | AN113: 0 | AO113: 0
B114: 5821.4 | C114: 5.937131256 | D114: 1.401558095 | E114: 1.00003853 | F114: 0.008778238904 | G114: 1.000457934 | H114: -0.03025752606 | I114: 4392.370609 | J114: 1.570568659 | K114: 3.293771893 | L114: 1.262324138 | M114: 1.001765983 | N114: 0.05938666755 | U114: 1.000084714 | V114: 0.03029038163 | X114: -104.3332627 | Y114: 75.66673735 | AB114: 13.04759025 | AC114: -21.06371554 | AI114: 54.62199488 | AJ114: -83.26954711 | AN114: 0 | AO114: 0
B115: 5888.4 | C115: 6.003535435 | D115: 1.403447788 | E115: 1.000039422 | F115: 0.008879264649 | G115: 1.000468533 | H115: -0.03060555157 | I115: 4442.923537 | J115: 1.57057125 | K115: 3.328204583 | L115: 1.265619015 | M115: 1.001806831 | N115: 0.06006853044 | U115: 1.000086677 | V115: 0.03063904984 | X115: -104.3260971 | Y115: 75.67390293 | AB115: 13.03816874 | AC115: -20.91414928 | AI115: 54.52546904 | AJ115: -83.41194779 | AN115: 0 | AO115: 0
B116: 5957 | C116: 6.071547105 | D116: 1.405339773 | E116: 1.000040346 | F116: 0.008982702761 | G116: 1.000479511 | H116: -0.03096188046 | I116: 4494.683699 | J116: 1.570573842 | K116: 3.363496208 | L116: 1.268922643 | M116: 1.001849136 | N116: 0.06076661868 | U116: 1.00008871 | V116: 0.03099604616 | X116: -104.3203059 | Y116: 75.6796941 | AB116: 13.0288146 | AC116: -20.76501137 | AI116: 54.42770891 | AJ116: -83.55529452 | AN116: 0 | AO116: 0
B117: 6025.6 | C117: 6.139580027 | D117: 1.407189835 | E117: 1.00004128 | F117: 0.00908614068 | G117: 1.000490615 | H117: -0.03131820148 | I117: 4546.443861 | J117: 1.570576375 | K117: 3.398823778 | L117: 1.272157629 | M117: 1.001891929 | N117: 0.06146464762 | U117: 1.000090767 | V117: 0.03135304425 | X117: -104.3160384 | Y117: 75.68396159 | AB117: 13.01974374 | AC117: -20.61979955 | AI117: 54.33100965 | AJ117: -83.69623886 | AN117: 0 | AO117: 0
B118: 6095.8 | C118: 6.209220996 | D118: 1.409041069 | E118: 1.000042248 | F118: 0.009191990945 | G118: 1.000502111 | H118: -0.03168282496 | I118: 4599.411257 | J118: 1.570578908 | K118: 3.435011372 | L118: 1.275399145 | M118: 1.001936226 | N118: 0.06217889504 | U118: 1.000092896 | V118: 0.03171837066 | X118: -104.3132079 | Y118: 75.6867921 | AB118: 13.01074213 | AC118: -20.47514284 | AI118: 54.23313031 | AJ118: -83.83806506 | AN118: 0 | AO118: 0
B119: 6166 | C119: 6.278882772 | D119: 1.410851232 | E119: 1.000043226 | F119: 0.009297841003 | G119: 1.000513739 | H119: -0.03204744001 | I119: 4652.378654 | J119: 1.570581383 | K119: 3.471234307 | L119: 1.278573043 | M119: 1.001981035 | N119: 0.06289307894 | U119: 1.000095049 | V119: 0.03208369896 | X119: -104.3118911 | Y119: 75.68810886 | AB119: 13.00201248 | AC119: -20.33435347 | AI119: 54.1363159 | AJ119: -83.97753768 | AN119: 0 | AO119: 0
B120: 6237.8 | C120: 6.350153092 | D120: 1.412661563 | E120: 1.000044239 | F120: 0.009406103383 | G120: 1.00052577 | H120: -0.03242035656 | I120: 4706.553284 | J120: 1.570583857 | K120: 3.508318252 | L120: 1.281751449 | M120: 1.002027393 | N120: 0.06362347408 | U120: 1.000097278 | V120: 0.03245735581 | X120: -104.312069 | Y120: 75.68793097 | AB120: 12.99335319 | AC120: -20.19423451 | AI120: 54.03837337 | AJ120: -84.11783452 | AN120: 0 | AO120: 0
B121: 6309.6 | C121: 6.42144376 | D121: 1.414431703 | E121: 1.000045263 | F121: 0.009514365543 | G121: 1.00053794 | H121: -0.03279326408 | I121: 4760.727915 | J121: 1.570586275 | K121: 3.545436897 | L121: 1.284863334 | M121: 1.002074285 | N121: 0.06435380126 | U121: 1.000099532 | V121: 0.03283101467 | X121: -104.313748 | Y121: 75.68625196 | AB121: 12.98495463 | AC121: -20.05791982 | AI121: 53.94149859 | AJ121: -84.25582822 | AN121: 0 | AO121: 0
B122: 6383.05 | C122: 6.494393082 | D122: 1.416202304 | E122: 1.000046323 | F122: 0.00962511539 | G122: 1.000550534 | H122: -0.03317473177 | I122: 4816.147506 | J122: 1.570588692 | K122: 3.583443329 | L122: 1.287979994 | M122: 1.002122808 | N122: 0.06510084058 | U122: 1.000101865 | V122: 0.03321326251 | X122: -104.3169774 | Y122: 75.68302258 | AB122: 12.97662129 | AC122: -19.92228907 | AI122: 53.8434791 | AJ122: -84.39468834 | AN122: 0 | AO122: 0
B123: 6456.5 | C123: 6.567362311 | D123: 1.417933564 | E123: 1.000047395 | F123: 0.009735865002 | G123: 1.000563273 | H123: -0.0335561898 | I123: 4871.567097 | J123: 1.570591054 | K123: 3.621483838 | L123: 1.291031207 | M123: 1.002171891 | N123: 0.06584780715 | U123: 1.000104225 | V123: 0.03359551251 | X123: -104.3216948 | Y123: 75.67830519 | AB123: 12.96853792 | AC123: -19.79040081 | AI123: 53.74653041 | AJ123: -84.531294 | AN123: 0 | AO123: 0
B124: 6531.7 | C124: 6.642090025 | D124: 1.419666658 | E124: 1.000048506 | F124: 0.009849253056 | G124: 1.000576467 | H124: -0.03394672623 | I124: 4928.3071 | J124: 1.570593417 | K124: 3.660464885 | L124: 1.294089386 | M124: 1.002222721 | N124: 0.06661249451 | U124: 1.00010667 | V124: 0.03398687216 | X124: -104.3280245 | Y124: 75.67197549 | AB124: 12.96050977 | AC124: -19.65912884 | AI124: 53.64835773 | AJ124: -84.66889567 | AN124: 0 | AO124: 0
B125: 6606.9 | C125: 6.716837246 | D125: 1.421361185 | E125: 1.000049629 | F125: 0.009962640857 | G125: 1.000589813 | H125: -0.0343372523 | I125: 4985.047103 | J125: 1.570595727 | K125: 3.699479446 | L125: 1.297083089 | M125: 1.002274138 | N125: 0.06737710385 | U125: 1.000109143 | V125: 0.03437823413 | X125: -104.3358306 | Y125: 75.6641694 | AB125: 12.95272157 | AC125: -19.53154348 | AI125: 53.55126051 | AJ125: -84.80428712 | AN125: 0 | AO125: 0
B126: 6683.85 | C126: 6.79334345 | D126: 1.423056538 | E126: 1.000050792 | F126: 0.01007866707 | G126: 1.000603628 | H126: -0.03473685556 | I126: 5043.107518 | J126: 1.570598036 | K126: 3.739435522 | L126: 1.300081767 | M126: 1.002327358 | N126: 0.06815942496 | U126: 1.000111702 | V126: 0.03477870602 | X126: -104.3453048 | Y126: 75.65469523 | AB126: 12.94498975 | AC126: -19.40468793 | AI126: 53.45299337 | AJ126: -84.94061684 | AN126: 0 | AO126: 0
B127: 6760.8 | C127: 6.869868745 | D127: 1.424714126 | E127: 1.000051968 | F127: 0.01019469302 | G127: 1.000617603 | H127: -0.03513644772 | I127: 5101.167934 | J127: 1.570600293 | K127: 3.779424512 | L127: 1.303017014 | M127: 1.002381192 | N127: 0.06894166251 | U127: 1.000114292 | V127: 0.03517918039 | X127: -104.3562412 | Y127: 75.64375883 | AB127: 12.93748791 | AC127: -19.28145888 | AI127: 53.35580505 | AJ127: -85.07478229 | AN127: 0 | AO127: 0
B128: 6839.55 | C128: 6.948203214 | D128: 1.426372681 | E128: 1.000053186 | F128: 0.01031343273 | G128: 1.00063207 | H128: -0.03554537544 | I128: 5160.586488 | J128: 1.57060255 | K128: 3.820381916 | L128: 1.305957275 | M128: 1.00243692 | N128: 0.06974211053 | U128: 1.000116973 | V128: 0.03558902518 | X128: -104.3689053 | Y128: 75.63109468 | AB128: 12.93003834 | AC128: -19.15898595 | AI128: 53.25743648 | AJ128: -85.20991937 | AN128: 0 | AO128: 0
B129: 6918.3 | C129: 7.026556369 | D129: 1.42799425 | E129: 1.000054418 | F129: 0.01043217216 | G129: 1.000646704 | H129: -0.03595429128 | I129: 5220.005042 | J129: 1.570604756 | K129: 3.861371648 | L129: 1.308835137 | M129: 1.002493289 | N129: 0.07054246905 | U129: 1.000119685 | V129: 0.03599887263 | X129: -104.383017 | Y129: 75.61698297 | AB129: 12.92280914 | AC129: -19.04008015 | AI129: 53.16015019 | AJ129: -85.34293687 | AN129: 0 | AO129: 0
B130: 6998.9 | C130: 7.106768907 | D130: 1.429616883 | E130: 1.000055693 | F130: 0.01055370071 | G130: 1.000661855 | H130: -0.03637280093 | I130: 5280.81946 | J130: 1.570606962 | K130: 3.903356725 | L130: 1.311717993 | M130: 1.002551648 | N130: 0.0713615359 | U130: 1.000122493 | V130: 0.03641835104 | X130: -104.3989172 | Y130: 75.60108284 | AB130: 12.91562836 | AC130: -18.92196015 | AI130: 53.06167522 | AJ130: -85.47695701 | AN130: 0 | AO130: 0
B131: 7079.5 | C131: 7.186999739 | D131: 1.431203292 | E131: 1.000056983 | F131: 0.01067522896 | G131: 1.000677182 | H131: -0.03679129783 | I131: 5341.633879 | J131: 1.570609118 | K131: 3.945373552 | L131: 1.314539469 | M131: 1.00261068 | N131: 0.07218050684 | U131: 1.000125334 | V131: 0.03683783229 | X131: -104.4162497 | Y131: 75.5837503 | AB131: 12.9086587 | AC131: -18.80734857 | AI131: 52.96428608 | AJ131: -85.60890113 | AN131: 0 | AO131: 0
B132: 7161.95 | C132: 7.269090394 | D132: 1.432789876 | E132: 1.000058318 | F132: 0.01079954629 | G132: 1.000693041 | H132: -0.03721938709 | I132: 5403.844162 | J132: 1.570611273 | K132: 3.98838659 | L132: 1.317364173 | M132: 1.002671762 | N132: 0.07301817516 | U132: 1.000128274 | V132: 0.03726694482 | X132: -104.4354201 | Y132: 75.56457987 | AB132: 12.90173795 | AC132: -18.69362327 | AI132: 52.86576099 | AJ132: -85.74179686 | AN132: 0 | AO132: 0
B133: 7244.4 | C133: 7.351198939 | D133: 1.434341021 | E133: 1.000059668 | F133: 0.01092386329 | G133: 1.000709084 | H133: -0.03764746271 | I133: 5466.054445 | J133: 1.570613379 | K133: 4.031430771 | L133: 1.32012858 | M133: 1.002733548 | N133: 0.07385574083 | U133: 1.000131248 | V133: 0.0376960604 | X133: -104.4560056 | Y133: 75.54399438 | AB133: 12.89501917 | AC133: -18.58334409 | AI133: 52.76832402 | AJ133: -85.87266153 | AN133: 0 | AO133: 0
B134: 7328.75 | C134: 7.43521751 | D134: 1.435892455 | E134: 1.000061066 | F134: 0.01105104474 | G134: 1.000725687 | H134: -0.03808538873 | I134: 5529.698318 | J134: 1.570615485 | K134: 4.075498074 | L134: 1.322896241 | M134: 1.002797485 | N134: 0.07471250017 | U134: 1.000134326 | V134: 0.03813506783 | X134: -104.4784879 | Y134: 75.5215121 | AB134: 12.88834537 | AC134: -18.47397813 | AI134: 52.66974349 | AJ134: -86.00450977 | AN134: 0 | AO134: 0
B135: 7413.1 | C135: 7.519253577 | D135: 1.437409215 | E135: 1.00006248 | F135: 0.01117822583 | G135: 1.000742481 | H135: -0.03852330013 | I135: 5593.342192 | J135: 1.570617543 | K135: 4.119595928 | L135: 1.32560467 | M135: 1.002862158 | N135: 0.07556914963 | U135: 1.00013744 | V135: 0.03857407854 | X135: -104.5023676 | Y135: 75.49763245 | AB135: 12.88186474 | AC135: -18.36799687 | AI135: 52.57225343 | AJ135: -86.13437068 | AN135: 0 | AO135: 0
B136: 7499.45 | C136: 7.605299719 | D136: 1.438927213 | E136: 1.000063944 | F136: 0.01130842211 | G136: 1.000759873 | H136: -0.03897157942 | I136: 5658.495108 | J136: 1.570619601 | K136: 4.164770005 | L136: 1.328317886 | M136: 1.002929127 | N136: 0.07644599578 | U136: 1.000140664 | V136: 0.03902350193 | X136: -104.528219 | Y136: 75.47178098 | AB136: 12.87542169 | AC136: -18.26289857 | AI136: 52.47355703 | AJ136: -86.26532045 | AN136: 0 | AO136: 0
B137: 7585.8 | C137: 7.691362993 | D137: 1.440411243 | E137: 1.000065425 | F137: 0.01143861799 | G137: 1.000777465 | H137: -0.03941984304 | I137: 5723.648024 | J137: 1.570621613 | K137: 4.209974084 | L137: 1.330972856 | M137: 1.002996867 | N137: 0.07732272416 | U137: 1.000143927 | V137: 0.03947292883 | X137: -104.5554514 | Y137: 75.44454857 | AB137: 12.86916355 | AC137: -18.16112811 | AI137: 52.37595476 | AJ137: -86.39432332 | AN137: 0 | AO137: 0
B138: 7674.15 | C138: 7.779436766 | D138: 1.441895657 | E138: 1.000066957 | F138: 0.01157182902 | G138: 1.000795674 | H138: -0.03987847273 | I138: 5790.309983 | J138: 1.570623624 | K138: 4.256255213 | L138: 1.33363093 | M138: 1.003066974 | N138: 0.07821963566 | U138: 1.000147303 | V138: 0.03993276882 | X138: -104.5847021 | Y138: 75.41529785 | AB138: 12.86294332 | AC138: -18.06033615 | AI138: 52.27719984 | AJ138: -86.52436599 | AN138: 0 | AO138: 0
B139: 7762.5 | C139: 7.867527297 | D139: 1.443346833 | E139: 1.000068508 | F139: 0.01170503964 | G139: 1.000814092 | H139: -0.04033708564 | I139: 5856.971942 | J139: 1.57062559 | K139: 4.302565768 | L139: 1.336231802 | M139: 1.003137887 | N139: 0.07911642107 | U139: 1.000150719 | V139: 0.04039261257 | X139: -104.6153153 | Y139: 75.38468466 | AB139: 12.85689982 | AC139: -17.96281179 | AI139: 52.17954143 | AJ139: -86.65250355 | AN139: 0 | AO139: 0
B140: 7852.9 | C140: 7.957678573 | D140: 1.444798423 | E140: 1.000070113 | F140: 0.01184134073 | G140: 1.000833156 | H140: -0.04080632225 | I140: 5925.180669 | J140: 1.570627556 | K140: 4.349980351 | L140: 1.338835684 | M140: 1.003211281 | N140: 0.08003388276 | U140: 1.000154255 | V140: 0.04086313008 | X140: -104.6480076 | Y140: 75.35199239 | AB140: 12.85089082 | AC140: -17.86629965 | AI140: 52.08072742 | AJ140: -86.78170796 | AN140: 0 | AO140: 0
B141: 7943.3 | C141: =SQRT(1+(B141/PS_Pole1)^2) -> 8.047846241 | D141: =ATAN(B141/PS_Pole1) -> 1.446217488 | E141: =SQRT(1+(B141/PS_Zero1)^2) -> 1.000071736 | F141: =ATAN(B141/PS_Zero1) -> 0.01197764138 | G141: =IF(VIN_nom>Vout, 1, SQRT(1+(B141/PS_RHPZ)^2)) -> 1.00085244 | H141: =IF(VIN_nom>Vout, 0, -ATAN(B141/PS_RHPZ)) -> -0.04127554088 | I141: =SQRT(1+(B141/EA_Pole1)^2) -> 5993.389397 | J141: =ATAN(B141/EA_Pole1) -> 1.570629476 | K141: =SQRT(1+(B141/EA_Zero1)^2) -> 4.397423791 | L141: =ATAN(B141/EA_Zero1) -> 1.341383397 | M141: =SQRT(1+(B141/EA_Pole2)^2) -> 1.00328552 | N141: =ATAN(B141/EA_Pole2) -> 0.08095120945 | O141: =SQRT(1+(B141/$V$5)^2) ->  | P141: =ATAN(B141/$V$5) ->  | Q141: =SQRT(1+(B141/$V$4)^2) ->  | R141: =ATAN(B141/$V$4) ->  | S141: =SQRT(1+(B141/$V$7)^2) ->  | T141: =ATAN(B141/$V$7) ->  | U141: =SQRT((1-(B141^2/pterm2))^2+(B141/pterm1)^2) -> 1.000157832 | V141: =IF((ATAN((B141/pterm1)/(1-B141^2/pterm2))>0),ATAN((B141/pterm1)/(1-B141^2/pterm2)),PI()+ATAN((B141/pterm1)/(1-B141^2/pterm2))) -> 0.04133365161 | W141: =20*LOG10(((E141*K141*G141)/(C141*I141*U141*M141))*Adc) ->  | X141: -104.6820436 | Y141: 75.31795643 | AB141: =20*LOG10((K141/(I141*M141))*AEA) -> 12.84505066 | AC141: =(L141-(J141+N141))*radconv -> -17.77299547 | AE141: =20*LOG10((Q141/(O141*S141))*AIL) ->  | AF141: =(R141-(P141+T141))*radconv ->  | AI141: =20*LOG10((E141*G141/(C141*U141))*Acs*Am) -> 51.98301227 | AJ141: =(F141+H141-(D141+V141))*radconv -> -86.9090481 | AL141: =SUM((W142<0)*(W141>0))*B141 ->  | AN141: =SUM((AB142<0)*(AB141>0))*B141 -> 0 | AO141: 0
B142: 8035.8 | C142: 8.140124911 | D142: 1.447636974 | E142: 1.000073417 | F142: 0.01211710785 | G142: 1.000872401 | H142: -0.04175564068 | I142: 6063.18262 | J142: 1.570631397 | K142: 4.445998254 | L142: 1.343933993 | M142: 1.003362356 | N142: 0.08188970439 | U142: 1.000161535 | V142: 0.04181510761 | X142: -104.7182198 | Y142: =IF(X142>0,X142-180,X142+180) -> 75.28178022 | AB142: 12.83924172 | AC142: -17.6807389 | AI142: 51.88413995 | AJ142: -87.03748089 | AN142: 0 | AO142: =IF(AN142>0,AC142,0) -> 0 | AP142: =SUM((AE143<0)*(AE142>0))*B142 ->  | AQ142: =IF(AP142>0,AE142,0) -> 
B143: 8128.3 | C143: 8.232419616 | D143: 1.449024634 | E143: 1.000075117 | F143: 0.01225657385 | G143: 1.000892592 | H143: -0.04223572121 | I143: 6132.975842 | J143: 1.570633274 | K143: 4.494601015 | L143: 1.346429444 | M143: 1.003440076 | N143: 0.08282805478 | U143: 1.000165281 | V143: 0.04229656792 | X143: =IF(((F143+L143+H143)-(D143+J143+V143+N143))*radconv<-180,((F143+L143+H143)-(D143+J143+V143+N143))*radconv+360,((F143+L143+H143)-(D143+J143+V143+N143))*radconv) -> -104.7557206 | Y143: 75.24427943 | AB143: 12.83359399 | AC143: -17.59163119 | AI143: 51.78636881 | AJ143: -87.16408938 | AN143: 0 | AO143: 0
B144: 8222.95 | C144: 8.32687559 | D144: 1.450412703 | E144: 1.000076876 | F144: 0.012399281 | G144: 1.000913491 | H144: -0.04272694021 | I144: 6204.391285 | J144: 1.570635151 | K144: 4.544361808 | L144: 1.348927626 | M144: 1.003520517 | N144: 0.08378806416 | U144: 1.000169159 | V144: 0.04278922344 | X144: -104.7954231 | Y144: 75.2045769 | AB144: 12.82797433 | AC144: -17.50360789 | AI144: 51.68744024 | AJ144: -87.29181521 | AN144: 0 | AO144: 0
B145: 8270.275 | C145: 8.374109491 | D145: 1.451094994 | E145: 1.000077763 | F145: 0.01247063438 | G145: 1.000924031 | H145: -0.04297254199 | I145: 6240.099007 | J145: 1.570636073 | K145: 4.569252666 | L145: 1.350156309 | M145: 1.003561085 | N145: 0.08426801091 | U145: 1.000171115 | V145: 0.04303555293 | X145: -104.8157663 | Y145: 75.18423373 | AB145: 12.82522263 | AC145: -17.46076131 | AI145: 51.63839125 | AJ145: -87.35500496 | AN145: 0 | AO145: 0
B146: 8317.6 | C146: 8.421347247 | D146: 1.451769631 | E146: 1.000078656 | F146: 0.01254198764 | G146: 1.000934631 | H146: -0.04321813858 | I146: 6275.806729 | J146: 1.570636985 | K146: 4.594150347 | L146: 1.351371676 | M146: 1.003601883 | N146: 0.08474791875 | U146: 1.000173082 | V146: 0.04328188358 | X146: -104.8364308 | Y146: 75.16356922 | AB146: 12.82250852 | AC146: -17.41867484 | AI146: 51.58961509 | AJ146: -87.41775594 | AN146: 0 | AO146: 0
B147: 8366.05 | C147: 8.469711855 | D147: 1.45245251 | E147: 1.000079575 | F147: 0.01261503696 | G147: 1.000945546 | H147: -0.04346956804 | I147: 6312.363287 | J147: 1.570637908 | K147: 4.619646844 | L147: 1.352602362 | M147: 1.003643891 | N147: 0.08523919433 | U147: 1.000175107 | V147: 0.04353407116 | X147: -104.8579144 | Y147: 75.14208565 | AB147: 12.81976793 | AC147: -17.37636265 | AI147: 51.539959 | AJ147: -87.48155171 | AN147: 0 | AO147: 0
B148: 8414.5 | C148: 8.518080368 | D148: 1.453127633 | E148: 1.000080499 | F148: 0.01268808615 | G148: 1.000956524 | H148: -0.04372099199 | I148: 6348.919845 | J148: 1.57063882 | K148: 4.645150261 | L148: 1.353819535 | M148: 1.003686141 | N148: 0.08573042866 | U148: 1.000177145 | V148: 0.04378625997 | X148: -104.8797246 | Y148: 75.12027542 | AB148: 12.81706492 | AC148: -17.33482166 | AI148: 51.49058265 | AJ148: -87.54490292 | AN148: 0 | AO148: 0
B149: 8462.95 | C149: 8.56645272 | D149: 1.453795133 | E149: 1.000081429 | F149: 0.0127611352 | G149: 1.000967566 | H149: -0.04397241042 | I149: 6385.476403 | J149: 1.570639721 | K149: 4.670660485 | L149: 1.355023415 | M149: 1.003728633 | N149: 0.08622162152 | U149: 1.000179194 | V149: 0.04403845001 | X149: -104.9018564 | Y149: 75.09814355 | AB149: 12.81439864 | AC149: -17.29403939 | AI149: 51.44148296 | AJ149: -87.60781706 | AN149: 0 | AO149: 0
B150: 8511.4 | C150: 8.614828845 | D150: 1.454455136 | E150: 1.000082364 | F150: 0.01283418411 | G150: 1.000978671 | H150: -0.04422382328 | I150: 6422.032961 | J150: 1.570640613 | K150: 4.696177404 | L150: 1.356214213 | M150: 1.003771367 | N150: 0.08671277268 | U150: 1.000181255 | V150: 0.0442906413 | X150: -104.9243051 | Y150: 75.07569492 | AB150: 12.81176823 | AC150: -17.25400363 | AI150: 51.39265692 | AJ150: -87.67030145 | AN150: 0 | AO150: 0
B151: 8560.95 | C151: 8.664307131 | D151: 1.4551225 | E151: 1.000083326 | F151: 0.01290889137 | G151: 1.000990093 | H151: -0.04448093839 | I151: 6459.419493 | J151: 1.570641514 | K151: 4.722280468 | L151: 1.357418735 | M151: 1.003815322 | N151: 0.08721503147 | U151: 1.000183375 | V151: 0.04454855959 | X151: -104.947586 | Y151: 75.05241399 | AB151: 12.80911435 | AC151: -17.21381857 | AI151: 51.34300227 | AJ151: -87.73376744 | AN151: 0 | AO151: 0
B152: 8610.5 | C152: 8.713789231 | D152: 1.455782286 | E152: 1.000084293 | F152: 0.01298359849 | G152: 1.001001582 | H152: -0.04473804762 | I152: 6496.806025 | J152: 1.570642405 | K152: 4.748390307 | L152: 1.358610012 | M152: 1.00385953 | N152: 0.08771724614 | U152: 1.000185507 | V152: 0.0448064792 | X152: -104.9711882 | Y152: 75.02881181 | AB152: 12.80649627 | AC152: -17.17438925 | AI152: 51.29362759 | AJ152: -87.79679893 | AN152: 0 | AO152: 0
B153: 8660.05 | C153: 8.763275083 | D153: 1.45643462 | E153: 1.000085266 | F153: 0.01305830546 | G153: 1.001013136 | H153: -0.04499515092 | I153: 6534.192556 | J153: 1.570643286 | K153: 4.774506811 | L153: 1.359788258 | M153: 1.003903992 | N153: 0.08821941646 | U153: 1.000187652 | V153: 0.04506440013 | X153: -104.9951067 | Y153: 75.00489333 | AB153: 12.80391316 | AC153: -17.13570343 | AI153: 51.24452981 | AJ153: -87.85940324 | AN153: 0 | AO153: 0
B154: 8709.6 | C154: 8.812764621 | D154: 1.457079628 | E154: 1.000086244 | F154: 0.01313301229 | G154: 1.001024757 | H154: -0.04525224828 | I154: 6571.579088 | J154: 1.570644156 | K154: 4.800629872 | L154: 1.360953682 | M154: 1.003948706 | N154: 0.08872154217 | U154: 1.00018981 | V154: 0.04532232239 | X154: -105.0193366 | Y154: 74.98066339 | AB154: 12.80136421 | AC154: -17.09774909 | AI154: 51.19570588 | AJ154: -87.92158753 | AM154: =IF(AL154>0,Y154,0) ->  | AN154: 0 | AO154: 0
B155: 8760.325 | C155: 8.863431481 | D155: 1.457732469 | E155: 1.000087252 | F155: 0.01320949051 | G155: 1.001036722 | H155: -0.04551543609 | I155: 6609.852182 | J155: 1.570645037 | K155: 4.82737908 | L155: 1.362133676 | M155: 1.003994743 | N155: 0.08923552853 | U155: 1.000192031 | V155: 0.04558636226 | X155: -105.0444588 | Y155: 74.9555412 | AB155: 12.79878936 | AC155: -17.05964016 | AI155: 51.14600474 | AJ155: -87.98481864 | AN155: 0 | AO155: 0
B156: 8811.05 | C156: 8.914102075 | D156: 1.458377889 | E156: 1.000088265 | F156: 0.01328596859 | G156: 1.001048757 | H156: -0.04577861759 | I156: 6648.125277 | J156: 1.570645908 | K156: 4.854134935 | L156: 1.363300663 | M156: 1.004041045 | N156: 0.08974946763 | U156: 1.000194265 | V156: 0.04585040354 | X156: -105.0698974 | Y156: 74.93010258 | AB156: 12.79624867 | AC156: -17.02227317 | AI156: 51.09658434 | AJ156: -88.04762425 | AN156: 0 | AO156: 0
B157: 8861.775 | C157: 8.964776341 | D157: 1.459016013 | E157: 1.000089284 | F157: 0.01336244651 | G157: 1.00106086 | H157: -0.04604179274 | I157: 6686.398371 | J157: 1.570646769 | K157: 4.880897328 | L157: 1.364454854 | M157: 1.004087612 | N157: 0.09026335919 | U157: 1.000196512 | V157: 0.04611444624 | X157: -105.0956476 | Y157: 74.90435243 | AB157: 12.79374131 | AC157: -16.98563603 | AI157: 51.04744157 | AJ157: -88.11001155 | AN157: 0 | AO157: 0
B158: 8912.5 | C158: 9.015454216 | D158: 1.459646963 | E158: 1.000090309 | F158: 0.01343892427 | G158: 1.001073033 | H158: -0.04630496151 | I158: 6724.671465 | J158: 1.570647621 | K158: 4.907666153 | L158: 1.365596456 | M158: 1.004134445 | N158: 0.09077720295 | U158: 1.000198773 | V158: 0.04637849037 | X158: -105.1217044 | Y158: 74.87829555 | AB158: 12.79126651 | AC158: -16.94971692 | AI158: 50.9985734 | AJ158: -88.17198753 | AN158: 0 | AO158: 0
B159: 8964.4 | C159: 9.067309672 | D159: 1.460285228 | E159: 1.000091364 | F159: 0.01351717341 | G159: 1.00108556 | H159: -0.04657421971 | I159: 6763.831122 | J159: 1.570648482 | K159: 4.935061601 | L159: 1.366751682 | M159: 1.004182637 | N159: 0.09130289971 | U159: 1.000201099 | V159: 0.04664865233 | X159: -105.1486775 | Y159: 74.85132255 | AB159: 12.7887673 | AC159: -16.91369687 | AI159: 50.94885433 | AJ159: -88.23498059 | AN159: 0 | AO159: 0
B160: 9016.3 | C160: 9.11916878 | D160: 1.460916234 | E160: 1.000092425 | F160: 0.01359542238 | G160: 1.001098159 | H160: -0.04684347116 | I160: 6802.990779 | J160: 1.570649333 | K160: 4.962463562 | L160: 1.367894152 | M160: 1.004231106 | N160: 0.09182854586 | U160: 1.000203438 | V160: 0.04691881581 | X160: -105.1759617 | Y160: 74.82403833 | AB160: 12.78630059 | AC160: -16.87840424 | AI160: 50.89941643 | AJ160: -88.29755744 | AN160: 0 | AO160: 0
B161: 9068.2 | C161: 9.171031478 | D161: 1.461540104 | E161: 1.000093492 | F161: 0.01367367119 | G161: 1.001110831 | H161: -0.0471127158 | I161: 6842.150436 | J161: 1.570650174 | K161: 4.98987193 | L161: 1.369024072 | M161: 1.004279852 | N161: 0.09235414112 | U161: 1.000205792 | V161: 0.04718898081 | X161: -105.2035523 | Y161: 74.79644774 | AB161: 12.78386562 | AC161: -16.84382716 | AI161: 50.8502566 | AJ161: -88.3597251 | AN161: 0 | AO161: 0
B162: 9120.1 | C162: 9.222897705 | D162: 1.462156957 | E162: 1.000094565 | F162: 0.01375191983 | G162: 1.001123576 | H162: -0.04738195362 | I162: 6881.310092 | J162: 1.570651006 | K162: 5.017286598 | L162: 1.370141647 | M162: 1.004328876 | N162: 0.09287968523 | U162: 1.000208159 | V162: 0.04745914733 | X162: -105.2314444 | Y162: 74.76855556 | AB162: 12.78146163 | AC162: -16.809954 | AI162: 50.80137179 | AJ162: -88.42149045 | AN162: 0 | AO162: 0
B163: 9173.2 | C163: 9.275966742 | D163: 1.462780933 | E163: 1.000095669 | F163: 0.01383197751 | G163: 1.00113669 | H163: -0.04765740946 | I163: 6921.375175 | J163: 1.570651847 | K163: 5.045341546 | L163: 1.371272489 | M163: 1.004379321 | N163: 0.09341732739 | U163: 1.000210594 | V163: 0.04773556208 | X163: -105.2602888 | Y163: 74.73971119 | AB163: 12.77903336 | AC163: -16.77601429 | AI163: 50.75163819 | AJ163: -88.48427452 | AN163: 0 | AO163: 0
B164: 9226.3 | C164: 9.32903935 | D164: 1.463397809 | E164: 1.00009678 | F164: 0.01391203502 | G164: 1.00114988 | H164: -0.04793285807 | I164: 6961.440257 | J164: 1.570652678 | K164: 5.073402875 | L164: 1.372390824 | M164: 1.004430056 | N164: 0.09395491539 | U164: 1.000213044 | V164: 0.04801197844 | X164: -105.2894391 | Y164: 74.71056088 | AB164: 12.77663602 | AC164: -16.74278759 | AI164: 50.70218616 | AJ164: -88.54665152 | AN164: 0 | AO164: 0
B165: 9279.4 | C165: 9.382115468 | D165: 1.464007706 | E165: 1.000097897 | F165: 0.01399209235 | G165: 1.001163146 | H165: -0.04820829941 | I165: 7001.50534 | J165: 1.5706535 | K165: 5.101470479 | L165: 1.373496855 | M165: 1.004481081 | N165: 0.09449244893 | U165: 1.000215508 | V165: 0.04828839643 | X165: -105.3188906 | Y165: 74.68110945 | AB165: 12.77426885 | AC165: -16.71026223 | AI165: 50.65301258 | AJ165: -88.60862833 | AN165: 0 | AO165: 0
B166: 9332.5 | C166: 9.435195036 | D166: 1.464610742 | E166: 1.000099021 | F166: 0.0140721495 | G166: 1.001176488 | H166: -0.04848373342 | I166: 7041.570422 | J166: 1.570654313 | K166: 5.129544255 | L166: 1.37459078 | M166: 1.004532396 | N166: 0.09502992771 | U166: 1.000217987 | V166: 0.04856481606 | X166: -105.3486384 | Y166: 74.65136159 | AB166: 12.77193114 | AC166: -16.67842676 | AI166: 50.6041144 | AJ166: -88.67021165 | AN166: 0 | AO166: 0
B167: 9386.85 | C167: 9.489527637 | D167: 1.465220986 | E167: 1.000100178 | F167: 0.01415409104 | G167: 1.001190223 | H167: -0.04876564366 | I167: 7082.578656 | J167: 1.570655135 | K167: 5.158285188 | L167: 1.375698124 | M167: 1.00458522 | N167: 0.09558000197 | U167: 1.000220539 | V167: 0.04884774445 | X167: -105.3793887 | Y167: 74.62061129 | AB167: 12.76956818 | AC167: -16.64654465 | AI167: 50.55434719 | AJ167: -88.73284406 | AN167: 0 | AO167: 0
B168: 9441.2 | C168: 9.543863731 | D168: 1.465824283 | E168: 1.000101341 | F168: 0.0142360324 | G168: 1.001204038 | H168: -0.04904754614 | I168: 7123.58689 | J168: 1.570655948 | K168: 5.187032377 | L168: 1.376793196 | M168: 1.004638348 | N168: 0.09613001822 | U168: 1.000223105 | V168: 0.04913067457 | X168: -105.4104399 | Y168: 74.58956013 | AB168: 12.76723463 | AC168: -16.61536185 | AI168: 50.50486215 | AJ168: -88.79507801 | AN168: 0 | AO168: 0
B169: 9495.55 | C169: 9.598203259 | D169: 1.466420748 | E169: 1.000102511 | F169: 0.01431797356 | G169: 1.001217932 | H169: -0.04932944082 | I169: 7164.595124 | J169: 1.570656752 | K169: 5.215785717 | L169: 1.377876195 | M169: 1.00469178 | N169: 0.09667997614 | U169: 1.000225686 | V169: 0.04941360644 | X169: -105.4417871 | Y169: 74.55821286 | AB169: 12.76492978 | AC169: -16.58486688 | AI169: 50.45565618 | AJ169: -88.85692026 | AN169: 0 | AO169: 0
B170: 9549.9 | C170: 9.652546164 | D170: 1.467010498 | E170: 1.000103688 | F170: 0.01439991453 | G170: 1.001231905 | H170: -0.04961132765 | I170: 7205.603358 | J170: 1.570657546 | K170: 5.244545108 | L170: 1.378947317 | M170: 1.004745515 | N170: 0.0972298754 | U170: 1.000228283 | V170: 0.04969654006 | X170: -105.4734259 | Y170: 74.52657414 | AB170: 12.76265294 | AC170: -16.55504849 | AI170: 50.40672618 | AJ170: -88.91837737 | AN170: 0 | AO170: 0
B171: 9605.525 | C171: 9.708167339 | D171: 1.467607245 | E171: 1.000104899 | F171: 0.01448377757 | G171: 1.001246289 | H171: -0.04989981912 | I171: 7247.573607 | J171: 1.57065835 | K171: 5.273985328 | L171: 1.38003147 | M171: 1.004800826 | N171: 0.0977926137 | U171: 1.000230956 | V171: 0.04998611287 | X171: -105.5061038 | Y171: 74.49389617 | AB171: 12.76035099 | AC171: -16.52521968 | AI171: 50.35693095 | AJ171: -88.98088414 | AN171: 0 | AO171: 0
B172: 9661.15 | C172: 9.763791932 | D172: 1.468197194 | E172: 1.000106117 | F172: 0.01456764039 | G172: 1.001260756 | H172: -0.05018830227 | I172: 7289.543856 | J172: 1.570659144 | K172: 5.303431679 | L172: 1.381103585 | M172: 1.004856455 | N172: 0.09835528987 | U172: 1.000233644 | V172: 0.05027568754 | X172: -105.5390775 | Y172: 74.4609225 | AB172: 12.75807698 | AC172: -16.49607651 | AI172: 50.30741844 | AJ172: -89.04300099 | AN172: 0 | AO172: 0
B173: 9716.775 | C173: 9.819419884 | D173: 1.468780458 | E173: 1.000107343 | F173: 0.01465150301 | G173: 1.001275306 | H173: -0.05047677706 | I173: 7331.514105 | J173: 1.570659929 | K173: 5.332884058 | L173: 1.382163859 | M173: 1.004912402 | N173: 0.09891790357 | U173: 1.000236348 | V173: 0.05056526408 | X173: -105.5723422 | Y173: 74.42765782 | AB173: 12.75583024 | AC173: -16.46760766 | AI173: 50.25818552 | AJ173: -89.10473451 | AN173: 0 | AO173: 0
B174: 9772.4 | C174: 9.87505114 | D174: 1.469357151 | E174: 1.000108575 | F174: 0.01473536543 | G174: 1.00128994 | H174: -0.05076524344 | I174: 7373.484354 | J174: 1.570660706 | K174: 5.362342367 | L174: 1.383212485 | M174: 1.004968667 | N174: 0.09948045445 | U174: 1.000239068 | V174: 0.05085484251 | X174: -105.6058933 | Y174: 74.39410674 | AB174: 12.7536101 | AC174: -16.4398021 | AI174: 50.2092291 | AJ174: -89.16609116 | AN174: 0 | AO174: 0
B175: 9829.3 | C175: 9.931960898 | D175: 1.469940379 | E175: 1.000109843 | F175: 0.01482114987 | G175: 1.001304995 | H175: -0.05106031311 | I175: 7416.416617 | J175: 1.570661491 | K175: 5.392481933 | L175: 1.384273292 | M175: 1.00502655 | N175: 0.1000558344 | U175: 1.000241866 | V175: 0.05115106041 | X175: -105.640505 | Y175: 74.35949501 | AB175: 12.75136592 | AC175: -16.41203418 | AI175: 50.15943346 | AJ175: -89.22847081 | AN175: 0 | AO175: 0
B176: 9886.2 | C176: 9.988873996 | D176: 1.47051696 | E176: 1.000111119 | F176: 0.01490693409 | G176: 1.001320138 | H176: -0.05135537389 | I176: 7459.348881 | J176: 1.570662267 | K176: 5.4226275 | L176: 1.385322305 | M176: 1.005084767 | N176: 0.1006311479 | U176: 1.000244681 | V176: 0.05144728031 | X176: -105.6754069 | Y176: 74.32459306 | AB176: 12.74914824 | AC176: -16.38493763 | AI176: 50.10992077 | AJ176: -89.2904693 | AN176: 0 | AO176: 0
B177: 9943.1 | C177: 10.04579038 | D177: 1.471087008 | E177: 1.000112401 | F177: 0.0149927181 | G177: 1.001335368 | H177: -0.05165042571 | I177: 7502.281144 | J177: 1.570663034 | K177: 5.452778968 | L177: 1.386359719 | M177: 1.005143316 | N177: 0.1012063945 | U177: 1.000247512 | V177: 0.05174350221 | X177: -105.7105945 | Y177: 74.28940553 | AB177: 12.7469564 | AC177: -16.35850139 | AI177: 50.0606879 | AJ177: -89.35209308 | AN177: 0 | AO177: 0
B178: 10000 | C178: 10.10270999 | D178: 1.471650633 | E178: 1.000113691 | F178: 0.01507850188 | G178: 1.001350684 | H178: -0.05194546854 | I178: 7545.213408 | J178: 1.570663792 | K178: 5.48293624 | L178: 1.387385721 | M178: 1.005202197 | N178: 0.101781574 | U178: 1.000250359 | V178: 0.05203972612 | X178: -105.746063 | Y178: 74.25393697 | AB178: 12.74478978 | AC178: -16.33271459 | AI178: 50.01173175 | AJ178: -89.41334845 | AN178: 0 | AO178: 0
B179: 10058.25 | C179: 10.16098335 | D179: 1.472221089 | E179: 1.00011502 | F179: 0.01516632072 | G179: 1.001366455 | H179: -0.05224750212 | I179: 7589.164275 | J179: 1.57066456 | K179: 5.513814932 | L179: 1.388424439 | M179: 1.00526282 | N179: 0.10237033 | U179: 1.000253291 | V179: 0.0523429803 | X179: -105.7826596 | Y179: 74.21734042 | AB179: 12.74259723 | AC179: -16.30697763 | AI179: 49.96189755 | AJ179: -89.47568196 | AN179: 0 | AO179: 0
B180: 10116.5 | C180: 10.21925998 | D180: 1.472785039 | E180: 1.000116356 | F180: 0.01525413933 | G180: 1.001382317 | H180: -0.05254952616 | I180: 7633.115143 | J180: 1.570665319 | K180: 5.544699506 | L180: 1.389451587 | M180: 1.005323792 | N180: 0.1029590149 | U180: 1.000256241 | V180: 0.0526462366 | X180: -105.8195413 | Y180: 74.1804587 | AB180: 12.74042982 | AC180: -16.28189902 | AI180: 49.91234697 | AJ180: -89.53764228 | AN180: 0 | AO180: 0
B181: 10174.75 | C181: 10.27753982 | D181: 1.473342593 | E181: 1.000117699 | F181: 0.01534195771 | G181: 1.00139827 | H181: -0.05285154061 | I181: 7677.06601 | J181: 1.570666069 | K181: 5.575589865 | L181: 1.390467355 | M181: 1.005385111 | N181: 0.1035476281 | U181: 1.000259207 | V181: 0.05294949506 | X181: -105.8567036 | Y181: 74.14329639 | AB181: 12.73828692 | AC181: -16.25746785 | AI181: 49.86307685 | AJ181: -89.59923575 | AN181: 0 | AO181: 0
B182: 10233 | C182: 10.33582282 | D182: 1.47389386 | E182: 1.000119051 | F182: 0.01542977585 | G182: 1.001414315 | H182: -0.05315354541 | I182: 7721.016877 | J182: 1.57066681 | K182: 5.606485913 | L182: 1.391471928 | M182: 1.005446779 | N182: 0.1041361694 | U182: 1.000262191 | V182: 0.05325275567 | X182: -105.894142 | Y182: 74.105858 | AB182: 12.73616793 | AC182: -16.23367346 | AI182: 49.81408408 | AJ182: -89.66046854 | AN182: 0 | AO182: 0
B183: 10292.5 | C183: 10.39535974 | D183: 1.474450574 | E183: 1.000120439 | F183: 0.01551947825 | G183: 1.001430798 | H183: -0.05346202098 | I183: 7765.910896 | J183: 1.570667559 | K183: 5.638050743 | L183: 1.392486691 | M183: 1.00551013 | N183: 0.1047372655 | U183: 1.000265256 | V183: 0.05356252626 | X183: -105.9326643 | Y183: 74.06733575 | AB183: 12.73402754 | AC183: -16.21001501 | AI183: 49.76432315 | AJ183: -89.72264924 | AN183: 0 | AO183: 0
B184: 10352 | C184: 10.45489984 | D184: 1.475000947 | E184: 1.000121836 | F184: 0.0156091804 | G184: 1.001447376 | H184: -0.05377048636 | I184: 7810.804915 | J184: 1.570668299 | K184: 5.669621315 | L184: 1.393490153 | M184: 1.005573844 | N184: 0.1053382857 | U184: 1.000268339 | V184: 0.05387229913 | X184: -105.9714654 | Y184: 74.02853463 | AB184: 12.73191087 | AC184: -16.18699917 | AI184: 49.71484522 | AJ184: -89.7844662 | AN184: 0 | AO184: 0
B185: 10411.5 | C185: 10.51444307 | D185: 1.475545087 | E185: 1.00012324 | F185: 0.0156988823 | G185: 1.00146405 | H185: -0.0540789415 | I185: 7855.698934 | J185: 1.570669031 | K185: 5.701197532 | L185: 1.394482501 | M185: 1.005637922 | N185: 0.1059392295 | U185: 1.00027144 | V185: 0.0541820743 | X185: -106.0105409 | Y185: 73.98945915 | AB185: 12.72981732 | AC185: -16.16461528 | AI185: 49.66564716 | AJ185: -89.84592558 | AN185: 0 | AO185: 0
B186: 10471 | C186: 10.57398938 | D186: 1.476083099 | E186: 1.000124653 | F186: 0.01578858395 | G186: 1.001480819 | H186: -0.05438738634 | I186: 7900.592953 | J186: 1.570669754 | K186: 5.732779301 | L186: 1.395463917 | M186: 1.005702362 | N186: 0.1065400966 | U186: 1.00027456 | V186: 0.05449185176 | X186: -106.0498863 | Y186: 73.95011372 | AB186: 12.72774632 | AC186: -16.1428529 | AI186: 49.61672586 | AJ186: -89.90703338 | AN186: 0 | AO186: 0
B187: 10532 | C187: 10.63504 | D187: 1.476628419 | E187: 1.000126109 | F187: 0.01588054672 | G187: 1.00149811 | H187: -0.05470359635 | I187: 7946.618754 | J187: 1.570670487 | K187: 5.765162919 | L187: 1.39645891 | M187: 1.005768804 | N187: 0.1071560313 | U187: 1.000277776 | V187: 0.05480944115 | X187: -106.0904993 | Y187: 73.90950068 | AB187: 12.72564592 | AC187: -16.12117644 | AI187: 49.56685538 | AJ187: -89.96932288 | AN187: 0 | AO187: 0
B188: 10593 | C188: 10.69609375 | D188: 1.477167514 | E188: 1.000127574 | F188: 0.01597250922 | G188: 1.0015155 | H188: -0.05501979541 | I188: 7992.644555 | J188: 1.570671212 | K188: 5.79755218 | L188: 1.397442787 | M188: 1.005835628 | N188: 0.1077718845 | U188: 1.000281011 | V188: 0.05512703299 | X188: -106.131387 | Y188: 73.86861302 | AB188: 12.72356804 | AC188: -16.10013175 | AI188: 49.51726938 | AJ188: -90.03125524 | AN188: 0 | AO188: 0
B189: 10654 | C189: 10.75715057 | D189: 1.47770049 | E189: 1.000129047 | F189: 0.01606447146 | G189: 1.001532991 | H189: -0.05533598345 | I189: 8038.670356 | J189: 1.570671928 | K189: 5.829946991 | L189: 1.398415731 | M189: 1.005902833 | N189: 0.1083876556 | U189: 1.000284266 | V189: 0.0554446273 | X189: -106.1725448 | Y189: 73.82745521 | AB189: 12.72151211 | AC189: -16.0797083 | AI189: 49.46796468 | AJ189: -90.09283649 | AN189: 0 | AO189: 0
B190: 10715 | C190: 10.81821041 | D190: 1.478227449 | E190: 1.000130529 | F190: 0.01615643342 | G190: 1.001550582 | H190: -0.05565216042 | I190: 8084.696157 | J190: 1.570672636 | K190: 5.862347259 | L190: 1.399377921 | M190: 1.005970419 | N190: 0.1090033442 | U190: 1.000287539 | V190: 0.05576222408 | X190: -106.2139684 | Y190: 73.78603164 | AB190: 12.71947756 | AC190: -16.0598958 | AI190: 49.41893816 | AJ190: -90.15407256 | AN190: 0 | AO190: 0
B191: 10777.5 | C191: 10.8807748 | D191: 1.478761232 | E191: 1.000132056 | F191: 0.01625065645 | G191: 1.00156871 | H191: -0.05597610068 | I191: 8131.85374 | J191: 1.570673354 | K191: 5.895549822 | L191: 1.400352802 | M191: 1.006040063 | N191: 0.1096340866 | U191: 1.000290912 | V191: 0.0560876332 | X191: -106.2566817 | Y191: 73.7433183 | AB191: 12.7174146 | AC191: -16.04021923 | AI191: 49.36899138 | AJ191: -90.21646246 | AN191: 0 | AO191: 0
B192: 10840 | C192: 10.94334226 | D192: 1.479288911 | E192: 1.000133592 | F192: 0.0163448792 | G192: 1.001586942 | H192: -0.05630002918 | I192: 8179.011323 | J192: 1.570674063 | K192: 5.928757926 | L192: 1.401316762 | M192: 1.006110106 | N192: 0.1102647415 | U192: 1.000294305 | V192: 0.05641304496 | X192: -106.299665 | Y192: 73.70033499 | AB192: 12.71537295 | AC192: -16.02116286 | AI192: 49.31933016 | AJ192: -90.27850215 | AN192: 0 | AO192: 0
B193: 10902.5 | C193: 11.00591273 | D193: 1.479810591 | E193: 1.000135137 | F193: 0.01643910166 | G193: 1.00160528 | H193: -0.05662394585 | I193: 8226.168906 | J193: 1.570674764 | K193: 5.961971477 | L193: 1.402269983 | M193: 1.00618055 | N193: 0.1108953083 | U193: 1.000297718 | V193: 0.05673845936 | X193: -106.3429139 | Y193: 73.65708614 | AB193: 12.71335207 | AC193: -16.00271629 | AI193: 49.26995132 | AJ193: -90.34019757 | AN193: 0 | AO193: 0
B194: 10965 | C194: 11.06848616 | D194: 1.480326372 | E194: 1.000136691 | F194: 0.01653332382 | G194: 1.001623723 | H194: -0.05694785063 | I194: 8273.32649 | J194: 1.570675456 | K194: 5.995190385 | L194: 1.403212642 | M194: 1.006251394 | N194: 0.1115257865 | U194: 1.000301151 | V194: 0.05706387643 | X194: -106.3864239 | Y194: 73.61357609 | AB194: 12.71135143 | AC194: -15.98486938 | AI194: 49.22085171 | AJ194: -90.40155453 | AN194: 0 | AO194: 0
B195: 11028.75 | C195: 11.13231406 | D195: 1.480846496 | E195: 1.000138285 | F195: 0.01662943013 | G195: 1.001642643 | H195: -0.05727822118 | I195: 8321.427224 | J195: 1.570676155 | K195: 6.029079099 | L195: 1.404163451 | M195: 1.006324067 | N195: 0.1121687827 | U195: 1.000304672 | V195: 0.05739580459 | X195: -106.4310689 | Y195: 73.56893114 | AB195: 12.70933107 | AC195: -15.96727301 | AI195: 49.17105457 | AJ195: -90.46379584 | AN195: 0 | AO195: 0
B196: 11092.5 | C196: 11.19614493 | D196: 1.481360689 | E196: 1.000139888 | F196: 0.01672553613 | G196: 1.001661672 | H196: -0.05760857922 | I196: 8369.527959 | J196: 1.570676846 | K196: 6.062973202 | L196: 1.405103631 | M196: 1.006397156 | N196: 0.1128116857 | U196: 1.000308215 | V196: 0.05772773555 | X196: -106.4759767 | Y196: 73.52402328 | AB196: 12.70733067 | AC196: -15.95027989 | AI196: 49.12154151 | AJ196: -90.52569682 | AN196: 0 | AO196: 0
B197: 11156.25 | C197: 11.25997874 | D197: 1.481869052 | E197: 1.000141501 | F197: 0.01682164182 | G197: 1.00168081 | H197: -0.05793892466 | I197: 8417.628694 | J197: 1.570677528 | K197: 6.096872605 | L197: 1.406033356 | M197: 1.006470661 | N197: 0.113454495 | U197: 1.000311778 | V197: 0.05805966933 | X197: -106.5211432 | Y197: 73.47885682 | AB197: 12.70534973 | AC197: -15.93387994 | AI197: 49.07230936 | AJ197: -90.58726324 | AN197: 0 | AO197: 0
B198: 11220 | C198: 11.32381542 | D198: 1.482371683 | E198: 1.000143122 | F198: 0.0169177472 | G198: 1.001700058 | H198: -0.05826925745 | I198: 8465.729428 | J198: 1.570678203 | K198: 6.13077722 | L198: 1.406952799 | M198: 1.006544581 | N198: 0.1140972102 | U198: 1.000315362 | V198: 0.05839160594 | X198: -106.566564 | Y198: 73.433436 | AB198: 12.70338772 | AC198: -15.91806329 | AI198: 49.023355 | AJ198: -90.64850071 | AN198: 0 | AO198: 0
B199: 11285.5 | C199: 11.38940742 | D199: 1.482882244 | E199: 1.000144798 | F199: 0.01701649044 | G199: 1.001719948 | H199: -0.05860864493 | I199: 8515.150575 | J199: 1.570678889 | K199: 6.165617888 | L199: 1.407886948 | M199: 1.006620964 | N199: 0.11475747 | U199: 1.000319065 | V199: 0.05873265751 | X199: -106.6134922 | Y199: 73.38650777 | AB199: 12.70139107 | AC199: -15.90240984 | AI199: 48.97334292 | AJ199: -90.71108239 | AN199: 0 | AO199: 0
B200: 11351 | C200: 11.45500236 | D200: 1.483386957 | E200: 1.000146483 | F200: 0.01711523335 | G200: 1.001739954 | H200: -0.0589480189 | I200: 8564.571722 | J200: 1.570679567 | K200: 6.200463875 | L200: 1.408810599 | M200: 1.006697786 | N200: 0.1154176293 | U200: 1.000322791 | V200: 0.0590737121 | X200: -106.6606802 | Y200: 73.3393198 | AB200: 12.69941336 | AC200: -15.88735173 | AI200: 48.92361759 | AJ200: -90.77332847 | AN200: 0 | AO200: 0
B201: 11416.5 | C201: 11.52060018 | D201: 1.483885923 | E201: 1.000148179 | F201: 0.01721397593 | G201: 1.001760074 | H201: -0.05928737928 | I201: 8613.992869 | J201: 1.570680237 | K201: 6.235315093 | L201: 1.409723925 | M201: 1.006775046 | N201: 0.1160776875 | U201: 1.000326538 | V201: 0.05941476973 | X201: -106.7081236 | Y201: 73.29187642 | AB201: 12.6974541 | AC201: -15.87287892 | AI201: 48.87417579 | AJ201: -90.83524466 | AN201: 0 | AO201: 0
... 435 more rows

Sheet Schematic Management (hidden)
A2: =CHOOSE(With_CDC,CHOOSE(With_RCS, "SCH772_NO_RCS_NO_CDC", "SCH772_RCS_LIM_NO_CDC","SCH772_RCS_LIM_DAC_NO_CDC"),CHOOSE(With_RCS, "SCH772_NO_RCS","SCH772_RCS_LIM","SCH772_RCS_LIM_DAC")) -> SCH772_RCS_LIM
B6: "SCH772_NO_RCS_NO_CDC" | D6: "SCH772_RCS_LIM_NO_CDC" | F6: "SCH772_RCS_LIM_DAC_NO_CDC"
B17: "SCH772_NO_RCS" | D17: "SCH772_RCS_LIM" | F17: "SCH772_RCS_LIM_DAC"

Sheet Efficiency Plot Management (hidden)
A2: =IF(PLOT_TYPE=1, "EFF_IOUT", "EFF_VIN") -> EFF_VIN
A9: =IF(BODEPLOT_TYPE=FALSE, "BodePlot", "BodePlot_ILim") -> BodePlot

Sheet Efficiency vs VIN Calculations (hidden)
A1: BUCK-BOOST CONTROLLER POWER TOOL
H2: =BH9 -> 0.9326387134 | I2: Low VIN
H3: =BH109 -> 0.9412176283 | I3: Nom VIN
H4: =BH209 -> 0.9564222387 | I4: High VIN
A6: Enter the values of your design and MOSFET datasheet specifications below. Note that thermal resistance (θJA) will change when components are placed on the PCB | BY6: 80 | BZ6: 100 | CA6: 120 | CB6: 140 | CC6: 160 | CD6: 180 | CE6: 20 | CF6: 30 | CG6: 40 | CH6: 50
G7: Operating Point Condtions | U7: Filter Inductor | Y7: Cout | AB7: Cin | AE7: High-side BUCK "Control" MOSFET Losses | AJ7: Low-side BUCK "Sync" MOSFET Losses | AN7: Low-side BOOST "Control" MOSFET Losses | AS7: High-side BOOST "Sync" MOSFET Losses | AW7: Pass FET | AX7: External Diode | AY7: Diode/FET | AZ7: Sense Rs | BA7: Output Rs | BB7: Controller IC Losses | BF7: RESULTS | BL7: Consolidated Buck/Boost Efficiency & Losses
A8: Input Parameters | G8: Step | H8: Vin | I8: Mode | J8: Mode Digit | K8: Iout | L8: Iin | M8: Avg IL | N8: Duty Cycle BUCK Leg | O8: Duty Cycle BOOST Leg | P8: BOE/BUD BUBO ratio | Q8: T BOE | R8: T BOD/BUE | S8: T BUD | T8: Ripple Current pk-pk | U8: Irms Lf | V8: DCR Loss | W8: Core Loss | X8: Total Inductor Loss | Y8: Irms Cout | Z8: Cout ESR Loss | AA8: Total Cout Loss | AB8: Irms Cin | AC8: Cin ESR Loss | AD8: Total Cin Loss | AE8: Irms BuCtrl | AF8: RDS(on) Loss BuCtrl | AG8: Transition Loss BuCtrl | AH8: Dead Time Loss BuCtrl | AI8: Total Control Bu MOSFET Loss | AJ8: Irms BuSync | AK8: RDS(on) Loss BuSync | AL8: Deadtime Loss BuSync | AM8: Total Sync Bu MOSFET Loss | AN8: Irms BoCtlr | AO8: RDS(on) Loss BoCtlr | AP8: Transition Loss BoCtlr | AQ8: Dead Time Loss BoCtlr | AR8: Total Control Bo MOSFET Loss | AS8: Irms BoSync | AT8: RDS(on) Loss BoSync | AU8: Deadtime Loss BoSync | AV8: Total Sync Bo MOSFET Loss | AW8: Q1/Q3 RDS(on) Loss @ D = 100% | AX8: Deadtime Loss ext D | AY8: Reverse Recovery Loss MOSFET D | AZ8: Isense Shunt Loss | BA8: Iout Shunt Loss | BB8: IQ Loss | BC8: Switching Current Loss | BD8: Switching Current Diss | BE8: Total IC Loss | BF8: Total Loss | BG8: Pout | BH8: EFF, h | BI8: Control FET Temp Rise | BJ8: Sync FET Temp Rise | BK8: Column1 | BL8: h | BM8: Inductor Cu & Core Loss | BN8: Total MOSFET Loss | BO8: Total Sync MOSFET Loss | BP8: Shunt Loss | BW8: Qg | BY8: θJA=80 | BZ8: θJA=100 | CA8: θJA=120 | CB8: θJA=140 | CC8: θJA=160 | CD8: θJA=180 | CE8: θJA=20 | CF8: θJA=30 | CG8: θJA=40 | CH8: θJA=50
A9: Design | B9: Input Value | C9: Units | D9: Description | G9: 0 | H9: =VIN_min+(VIN_max-VIN_min)*(Table1[[#This Row],[Step]]/200) -> 12 | I9: =IF(Table1[[#This Row],[Vin]]>VIN_BB_to_buck, "BUCK", IF(Table1[[#This Row],[Vin]]<=VIN_boost_to_BB,"BOOST","BUCK-BST")) -> BOOST | J9: =IF(Table1[[#This Row],[Mode]]="BOOST",2, IF(Table1[[#This Row],[Mode]]="BUCK", 1,3)) -> 2 | K9: =Iout -> 6 | L9: =Vout*Table1[[#This Row],[Iout]]/(Table1[[#This Row],[Vin]]*Efficiency) -> 12.63157895 | M9: =Iout/(1-Table1[[#This Row],[Duty Cycle BOOST Leg]]) -> 12.13364596 | N9: =CHOOSE(Table1[[#This Row],[Mode Digit]],(Vout+(Rdson2+Rs+Rdcr)*Table1[[#This Row],[Iout]])/(Table1[[#This Row],[Vin]]+(Rs+Rdson2-Rdson1)*Table1[[#This Row],[Iout]]),1,IF(Table1[[#This Row],[Vin]]<Vout,D_max_buck_BB,Vout/Table1[[#This Row],[Vin]]*(1-D_min_boost_exitBB_to_buck))) -> 1 | O9: =CHOOSE(Table1[[#This Row],[Mode Digit]],0,(Vout+(Rdson3+Rdcr)*Table1[[#This Row],[Iin]]-Table1[[#This Row],[Vin]])/(Vout+(Rdson3-Rdson4-Rs)*Table1[[#This Row],[Iin]]),IF(Table1[[#This Row],[Vin]]>Vout, (Vout-Table1[[#This Row],[Vin]]*D_max_exitBB_to_buck)/Vout, (Vout-Table1[[#This Row],[Vin]]*D_max_buck_BB)/Vout)) -> 0.5055072464 | P9: =CHOOSE(Table1[[#This Row],[Mode Digit]],0,0,1-((Table1[[#This Row],[Vin]]-Vout)+((VIN_BB_to_buck-VIN_BB_to_boost)/2))/((VIN_BB_to_buck-VIN_BB_to_boost))) -> 0 | Q9: =CHOOSE(Table1[[#This Row],[Mode Digit]],0,Table1[[#This Row],[Duty Cycle BOOST Leg]]/Fsw,(1/Fsw-Table1[[#This Row],[T BOD/BUE]])*Table1[[#This Row],[BOE/BUD BUBO ratio]]) -> 8.397130338e-07 | R9: =CHOOSE(Table1[[#This Row],[Mode Digit]],Table1[[#This Row],[Duty Cycle BUCK Leg]]/Fsw,(1-Table1[[#This Row],[Duty Cycle BOOST Leg]])/Fsw,TonBubo) -> 8.214165343e-07 | S9: =CHOOSE(Table1[[#This Row],[Mode Digit]],(1-Table1[[#This Row],[Duty Cycle BUCK Leg]])/Fsw,0,(1/Fsw-Table1[[#This Row],[T BOD/BUE]]-Table1[[#This Row],[T BOE]])) -> 0 | T9: =MAX(0, CHOOSE(Table1[[#This Row],[Mode Digit]], (Table1[[#This Row],[Vin]]-(Rdson1+Rdcr)*Table1[[#This Row],[Iout]]-Vout)*Table1[[#This Row],[Duty Cycle BUCK Leg]]/(Fsw*Lf), (Table1[[#This Row],[Vin]]-(Rdson4+Rdcr+Rs)*Table1[[#This Row],[Iin]])*Table1[[#This Row],[Duty Cycle BOOST Leg]]/(Fsw*Lf), IF(Table1[[#This Row],[Vin]]<Vout, (Table1[[#This Row],[Vin]]-(Rdson1+Rdson3+Rdcr+Rs)*Table1[[#This Row],[Iin]])*Table1[[#This Row],[T BOE]]/(Lf),(Vout-(Rdson2+Rdson4+Rdcr+Rs)*Table1[[#This Row],[Iout]])*Table1[[#This Row],[T BUD]]/(Lf)))) -> 3.015895654 | U9: =CHOOSE(Table1[[#This Row],[Mode Digit]], SQRT(Table1[[#This Row],[Iout]]^2+(Table1[[#This Row],[Ripple Current pk-pk]]^2)/12), SQRT(Table1[[#This Row],[Iin]]^2+(Table1[[#This Row],[Ripple Current pk-pk]]^2)/12), SQRT(Table1[[#This Row],[Avg IL]]^2+(Table1[[#This Row],[Ripple Current pk-pk]]^2)/12)) -> 12.66154633 | V9: =(Table1[[#This Row],[Irms Lf]]^2*Rdcr*(1+Ltc*Ta-Ltc*25))/(1-Table1[[#This Row],[Irms Lf]]^2*Rdcr*Ltc*ThetaCa) -> 0.9858642631 | W9: =ABS(7.759*10^-3*Fsw^0.9458*(0.00787*Table1[[#This Row],[Ripple Current pk-pk]])^2.304) -> 0.4102504615 | X9: =Table1[[#This Row],[DCR Loss]]+Table1[[#This Row],[Core Loss]] -> 1.396114725 | Y9: =IF(Table1[[#This Row],[Vin]]>Vout, Table1[[#This Row],[Ripple Current pk-pk]]/SQRT(12), SQRT(Table1[[#This Row],[Duty Cycle BOOST Leg]]/(1-Table1[[#This Row],[Duty Cycle BOOST Leg]]))*SQRT(Table1[[#This Row],[Iout]]^2+(Table1[[#This Row],[Ripple Current pk-pk]]^2)/12)) -> 6.129985959 | Z9: =RCoutEsr*Table1[[#This Row],[Irms Cout]]^2 -> 0.1127301836 | AA9: =Table1[[#This Row],[Cout ESR Loss]] -> 0.1127301836 | AB9: =IF(Table1[[#This Row],[Vin]]>Vout, SQRT(Table1[[#This Row],[Duty Cycle BUCK Leg]]*(1-Table1[[#This Row],[Duty Cycle BUCK Leg]]))*SQRT(Table1[[#This Row],[Iout]]^2+(Table1[[#This Row],[Ripple Current pk-pk]]^2)/12), Table1[[#This Row],[Ripple Current pk-pk]]/SQRT(12)) -> 0.8706140839 | AC9: =RCinEsr*Table1[[#This Row],[Irms Cin]]^2 -> 0.001515937766 | AD9: =Table1[[#This Row],[Cin ESR Loss]] -> 0.001515937766 | AE9: =Table1[[#This Row],[Irms Lf]] -> 12.66154633 | AF9: =Rdson1*Table1[[#This Row],[Irms BuCtrl]]^2 -> 0.5611016446 | AG9: =CHOOSE(Table1[[#This Row],[Mode Digit]], (Table1[[#This Row],[Vin]]*Table1[[#This Row],[Iout]]/2)*(Fsw)*(Tr_buck+Tf_buck), 0, (Table1[[#This Row],[Vin]]*Table1[[#This Row],[Avg IL]]/2)*(Fsw/1)*(Tr_buck+Tf_buck)) -> 0 | AH9: =IF(Table1[[#This Row],[Vin]]>Vout, IF(Table1[[#This Row],[Iout]]>Table1[[#This Row],[Ripple Current pk-pk]]/2,0,ABS(Table1[[#This Row],[Iout]]-Table1[[#This Row],[Ripple Current pk-pk]]/2)*Vsd_Q1*Deadtime*Fsw),0) -> 0 | AI9: =(Table1[[#This Row],[Dead Time Loss BuCtrl]]+Table1[[#This Row],[Transition Loss BuCtrl]]+Table1[[#This Row],[RDS(on) Loss BuCtrl]]*(1+RdsonTopTc*Ta-RdsonTopTc*25))/(1-Table1[[#This Row],[RDS(on) Loss BuCtrl]]*RdsonTopTc*ThetaJA_Q1) -> 0.6569403211 | AJ9: =Table1[[#This Row],[Irms Lf]] -> 12.66154633 | AK9: =Rdson2*Table1[[#This Row],[Irms BuSync]]^2 -> 0.5611016446 | AL9: =CHOOSE(Table1[[#This Row],[Mode Digit]], IF(Table1[[#This Row],[Iout]]<Table1[[#This Row],[Ripple Current pk-pk]]/2,Deadtime*Fsw*IF(VfdSky_Q2>0,0,Vsd_Q2)*(Table1[[#This Row],[Iout]]+Table1[[#This Row],[Ripple Current pk-pk]]/2),2*Deadtime*Fsw*IF(VfdSky_Q2>0,0,Vsd_Q2)*Table1[[#This Row],[Iout]]),0, IF(Table1[[#This Row],[Iout]]<Table1[[#This Row],[Ripple Current pk-pk]]/2,Deadtime*Fsw*IF(VfdSky_Q2>0,0,Vsd_Q2)*(Table1[[#This Row],[Iout]]+Table1[[#This Row],[Ripple Current pk-pk]]/2),2*Deadtime*Fsw*IF(VfdSky_Q2>0,0,Vsd_Q2)*Table1[[#This Row],[Iout]])) -> 0 | AM9: =(Table1[[#This Row],[Deadtime Loss BuSync]]+Table1[[#This Row],[RDS(on) Loss BuSync]]*(1+RdsonBotTc*Ta-RdsonBotTc*25))/(1-Table1[[#This Row],[RDS(on) Loss BuSync]]*RdsonBotTc*ThetaJA_Q2) -> 0.6569403211 | AN9: =Table1[[#This Row],[Irms Lf]] -> 12.66154633 | AO9: =Rdson4*Table1[[#This Row],[Irms BoCtlr]]^2 -> 0.5611016446 | AP9: =CHOOSE(Table1[[#This Row],[Mode Digit]], 0, (Vout*Table1[[#This Row],[Iin]]/2)*(Fsw)*(Tr_boost+Tf_boost), (Vout*Iout/2)*(Fsw/1)*(Tr_boost+Tf_boost)) -> 1.722633844 | AQ9: =IF(Table1[[#This Row],[Vin]]>Vout, 0, IF(Table1[[#This Row],[Iin]]>Table1[[#This Row],[Ripple Current pk-pk]]/2,0,ABS(Table1[[#This Row],[Iin]]-Table1[[#This Row],[Ripple Current pk-pk]]/2)*Vsd_Q4*Deadtime*Fsw)) -> 0 | AR9: =(Table1[[#This Row],[Dead Time Loss BoCtlr]]+Table1[[#This Row],[Transition Loss BoCtlr]]+Table1[[#This Row],[RDS(on) Loss BoCtlr]]*(1+RdsonTopTc*Ta-RdsonTopTc*25))/(1-Table1[[#This Row],[RDS(on) Loss BoCtlr]]*RdsonTopTc*ThetaJA_Q4) -> 2.673807749 | AS9: =Table1[[#This Row],[Irms Lf]] -> 12.66154633 | AT9: =Rdson3*Table1[[#This Row],[Irms BoSync]]^2 -> 0.5611016446 | AU9: =CHOOSE(Table1[[#This Row],[Mode Digit]], 0, IF(Table1[[#This Row],[Iin]]<Table1[[#This Row],[Ripple Current pk-pk]]/2,Deadtime*Fsw*IF(VfdSky_Q3>0,0,Vsd_Q3)*(Table1[[#This Row],[Iin]]+Table1[[#This Row],[Ripple Current pk-pk]]/2), 2*Deadtime*Fsw*IF(VfdSky_Q3>0,0,Vsd_Q3)*Table1[[#This Row],[Iin]]), IF(Table1[[#This Row],[Iin]]<Table1[[#This Row],[Ripple Current pk-pk]]/2,Deadtime*Fsw*IF(VfdSky_Q3>0,0,Vsd_Q3)*(Table1[[#This Row],[Iin]]+Table1[[#This Row],[Ripple Current pk-pk]]/2), 2*Deadtime*Fsw*IF(VfdSky_Q3>0,0,Vsd_Q3)*Table1[[#This Row],[Iin]])) -> 0.5703157895 | AV9: =(Table1[[#This Row],[Deadtime Loss BoSync]]+Table1[[#This Row],[RDS(on) Loss BoSync]]*(1+RdsonBotTc*Ta-RdsonBotTc*25))/(1-Table1[[#This Row],[RDS(on) Loss BoSync]]*RdsonBotTc*ThetaJA_Q3) -> 1.324668604 | AW9: =CHOOSE(Table1[[#This Row],[Mode Digit]], Rdson3*Table1[[#This Row],[Irms Lf]]^2, Rdson1*Table1[[#This Row],[Irms Lf]]^2, 0) -> 0.5611016446 | AX9: =CHOOSE(Table1[[#This Row],[Mode Digit]], 2*Deadtime*Fsw*IF(VfdSky_Q2>0,VfdSky_Q2,0)*Table1[[#This Row],[Iout]], 2*Deadtime*Fsw*IF(VfdSky_Q3>0,VfdSky_Q3,0)*Table1[[#This Row],[Iin]], 2*Deadtime*Fsw*IF(VfdSky_Q2>0,VfdSky_Q2,0)*Table1[[#This Row],[Iout]]+2*Deadtime*Fsw*IF(VfdSky_Q3>0,VfdSky_Q3,0)*Table1[[#This Row],[Iin]]) -> 0 | AY9: =CHOOSE(Table1[[#This Row],[Mode Digit]], IF(QrrSky_Q2>0,QrrSky_Q2,Qrr_Q2)*Fsw*(Table1[[#This Row],[Vin]]-Table1[[#This Row],[Iout]]*Rdson1), IF(QrrSky_Q3>0,QrrSky_Q3,Qrr_Q3)*Fsw*Vout, IF(QrrSky_Q2>0,QrrSky_Q2,Qrr_Q2)*Fsw*(Table1[[#This Row],[Vin]]-Table1[[#This Row],[Iout]]*Rdson1)+IF(QrrSky_Q3>0,QrrSky_Q3,Qrr_Q3)*Fsw*Vout) -> 0.809088 | AZ9: =CHOOSE(Table1[[#This Row],[Mode Digit]], Rs*Table1[[#This Row],[Irms BuSync]]^2, Rs*Table1[[#This Row],[Irms BoCtlr]]^2, Rs*(Table1[[#This Row],[Irms BuSync]]^2+Table1[[#This Row],[Irms BoCtlr]]^2)) -> 0.400786889 | BA9: =Rshunt/1000*Iout^2 -> 0.36 | BB9: =IF(Vout>8, Iq*Vout, Iq*Table1[[#This Row],[Vin]]) -> 0.072 | BC9: =CHOOSE(Table1[[#This Row],[Mode Digit]], (Qg_Q1+Qg_Q2)*Fsw, (Qg_Q3+Qg_Q4)*Fsw, (Qg_Q1+Qg_Q2+Qg_Q3+Qg_Q4)*Fsw)*IF(Vout>8, Vout, Table1[[#This Row],[Vin]]) -> 1.936032 | BD9: =(Vin-Vdd)*Fsw*(Qg_Q1+Qg_Q2)+(RdsonDRT+RdsonDRT2)*Fsw*Qg_Q1*Vdd/(RdsonDRT+2*Rgate1+RdsonDRT2)+(RdsonDRB+RdsonDRB2)*Fsw*Qg_Q2*Vdd/(RdsonDRB+2*Rgate2+RdsonDRB2) -> 1.733289287 | BE9: =Table1[[#This Row],[IQ Loss]]+Table1[[#This Row],[Switching Current Loss]] -> 2.008032 | BF9: =SUM(Table1[[#This Row],[Total Inductor Loss]],Table1[[#This Row],[Total Cout Loss]],Table1[[#This Row],[Total Cin Loss]],Table1[[#This Row],[Total Control Bu MOSFET Loss]],Table1[[#This Row],[Total Sync Bu MOSFET Loss]],Table1[[#This Row],[Total Control Bo MOSFET Loss]],Table1[[#This Row],[Total Sync Bo MOSFET Loss]], Table1[[#This Row],[Deadtime Loss ext D]],Table1[[#This Row],[Reverse Recovery Loss MOSFET D]],Table1[[#This Row],[Total IC Loss]],Table1[[#This Row],[Isense Shunt Loss]],Table1[[#This Row],[Iout Shunt Loss]]) -> 10.40062473 | BG9: =Vout*Table1[[#This Row],[Iout]] -> 144 | BH9: =Table1[[#This Row],[Pout]]/(Table1[[#This Row],[Pout]]+Table1[[#This Row],[Total Loss]]) -> 0.9326387134 | BI9: =IF(Table1[[#This Row],[Vin]]>Vout,ThetaJA_Q1*(Table1[[#This Row],[Total Control Bu MOSFET Loss]]+Table1[[#This Row],[Reverse Recovery Loss MOSFET D]]),ThetaJA_Q4*(Table1[[#This Row],[Total Control Bo MOSFET Loss]]+Table1[[#This Row],[Reverse Recovery Loss MOSFET D]])) -> 226.3882237 | BJ9: =IF(Table1[[#This Row],[Vin]]>Vout, Table1[[#This Row],[Total Sync Bu MOSFET Loss]]*ThetaJA_Q2, ThetaJA_Q3*Table1[[#This Row],[Total Sync Bo MOSFET Loss]]) -> 86.10345929 | BL9: =Table1[[#This Row],[EFF, h]]*100 -> 93.26387134 | BM9: =Table1[[#This Row],[Total Inductor Loss]] -> 1.396114725 | BN9: =Table1[[#This Row],[Total Control Bu MOSFET Loss]]+Table1[[#This Row],[Total Sync Bu MOSFET Loss]]+Table1[[#This Row],[Total Control Bo MOSFET Loss]]+Table1[[#This Row],[Total Sync Bo MOSFET Loss]]+Table1[[#This Row],[Reverse Recovery Loss MOSFET D]] -> 6.121444996 | BO9: =Table1[[#This Row],[Total Sync Bu MOSFET Loss]]+Table1[[#This Row],[Reverse Recovery Loss MOSFET D]]*0.33 -> 0.9239393611 | BP9: =Table1[[#This Row],[Isense Shunt Loss]] -> 0.400786889 | BT9: 250kHz / 5-1.2V /25A | BU9: 70 | BV9: 70 | BW9: 70 | BX9: =250000*(5-Vdd)*BW9/1000000000+((250000*BW9/1000000000*Vdd)*2.5/(2*4)) -> -0.002734375 | BY9: =BY$6*$BX9 -> -0.21875 | BZ9: -0.2734375 | CA9: -0.328125 | CB9: -0.3828125 | CC9: -0.4375 | CD9: -0.4921875 | CE9: -0.0546875 | CF9: -0.08203125 | CG9: -0.109375 | CH9: -0.13671875
G10: 1 | H10: =VIN_min+(VIN_max-VIN_min)*(Table1[[#This Row],[Step]]/200) -> 12.12 | I10: =IF(Table1[[#This Row],[Vin]]>VIN_BB_to_buck, "BUCK", IF(Table1[[#This Row],[Vin]]<=VIN_boost_to_BB,"BOOST","BUCK-BST")) -> BOOST | J10: =IF(Table1[[#This Row],[Mode]]="BOOST",2, IF(Table1[[#This Row],[Mode]]="BUCK", 1,3)) -> 2 | K10: 6 | L10: =Vout*Table1[[#This Row],[Iout]]/(Table1[[#This Row],[Vin]]*Efficiency) -> 12.50651381 | M10: =Iout/(1-Table1[[#This Row],[Duty Cycle BOOST Leg]]) -> 12.01071658 | N10: =CHOOSE(Table1[[#This Row],[Mode Digit]],(Vout+(Rdson2+Rs+Rdcr)*Table1[[#This Row],[Iout]])/(Table1[[#This Row],[Vin]]+(Rs+Rdson2-Rdson1)*Table1[[#This Row],[Iout]]),1,IF(Table1[[#This Row],[Vin]]<Vout,D_max_buck_BB,Vout/Table1[[#This Row],[Vin]]*(1-D_min_boost_exitBB_to_buck))) -> 1 | O10: =CHOOSE(Table1[[#This Row],[Mode Digit]],0,(Vout+(Rdson3+Rdcr)*Table1[[#This Row],[Iin]]-Table1[[#This Row],[Vin]])/(Vout+(Rdson3-Rdson4-Rs)*Table1[[#This Row],[Iin]]),IF(Table1[[#This Row],[Vin]]>Vout, (Vout-Table1[[#This Row],[Vin]]*D_max_exitBB_to_buck)/Vout, (Vout-Table1[[#This Row],[Vin]]*D_max_buck_BB)/Vout)) -> 0.5004461258 | P10: =CHOOSE(Table1[[#This Row],[Mode Digit]],0,0,1-((Table1[[#This Row],[Vin]]-Vout)+((VIN_BB_to_buck-VIN_BB_to_boost)/2))/((VIN_BB_to_buck-VIN_BB_to_boost))) -> 0 | Q10: =CHOOSE(Table1[[#This Row],[Mode Digit]],0,Table1[[#This Row],[Duty Cycle BOOST Leg]]/Fsw,(1/Fsw-Table1[[#This Row],[T BOD/BUE]])*Table1[[#This Row],[BOE/BUD BUBO ratio]]) -> 8.313058567e-07 | R10: =CHOOSE(Table1[[#This Row],[Mode Digit]],Table1[[#This Row],[Duty Cycle BUCK Leg]]/Fsw,(1-Table1[[#This Row],[Duty Cycle BOOST Leg]])/Fsw,TonBubo) -> 8.298237114e-07 | S10: =CHOOSE(Table1[[#This Row],[Mode Digit]],(1-Table1[[#This Row],[Duty Cycle BUCK Leg]])/Fsw,0,(1/Fsw-Table1[[#This Row],[T BOD/BUE]]-Table1[[#This Row],[T BOE]])) -> 0 | T10: =MAX(0, CHOOSE(Table1[[#This Row],[Mode Digit]], (Table1[[#This Row],[Vin]]-(Rdson1+Rdcr)*Table1[[#This Row],[Iout]]-Vout)*Table1[[#This Row],[Duty Cycle BUCK Leg]]/(Fsw*Lf), (Table1[[#This Row],[Vin]]-(Rdson4+Rdcr+Rs)*Table1[[#This Row],[Iin]])*Table1[[#This Row],[Duty Cycle BOOST Leg]]/(Fsw*Lf), IF(Table1[[#This Row],[Vin]]<Vout, (Table1[[#This Row],[Vin]]-(Rdson1+Rdson3+Rdcr+Rs)*Table1[[#This Row],[Iin]])*Table1[[#This Row],[T BOE]]/(Lf),(Vout-(Rdson2+Rdson4+Rdcr+Rs)*Table1[[#This Row],[Iout]])*Table1[[#This Row],[T BUD]]/(Lf)))) -> 3.016298529 | U10: =CHOOSE(Table1[[#This Row],[Mode Digit]], SQRT(Table1[[#This Row],[Iout]]^2+(Table1[[#This Row],[Ripple Current pk-pk]]^2)/12), SQRT(Table1[[#This Row],[Iin]]^2+(Table1[[#This Row],[Ripple Current pk-pk]]^2)/12), SQRT(Table1[[#This Row],[Avg IL]]^2+(Table1[[#This Row],[Ripple Current pk-pk]]^2)/12)) -> 12.53678823 | V10: =(Table1[[#This Row],[Irms Lf]]^2*Rdcr*(1+Ltc*Ta-Ltc*25))/(1-Table1[[#This Row],[Irms Lf]]^2*Rdcr*Ltc*ThetaCa) -> 0.9650394143 | W10: =ABS(7.759*10^-3*Fsw^0.9458*(0.00787*Table1[[#This Row],[Ripple Current pk-pk]])^2.304) -> 0.4103767383 | X10: =Table1[[#This Row],[DCR Loss]]+Table1[[#This Row],[Core Loss]] -> 1.375416153 | Y10: =IF(Table1[[#This Row],[Vin]]>Vout, Table1[[#This Row],[Ripple Current pk-pk]]/SQRT(12), SQRT(Table1[[#This Row],[Duty Cycle BOOST Leg]]/(1-Table1[[#This Row],[Duty Cycle BOOST Leg]]))*SQRT(Table1[[#This Row],[Iout]]^2+(Table1[[#This Row],[Ripple Current pk-pk]]^2)/12)) -> 6.068263759 | Z10: =RCoutEsr*Table1[[#This Row],[Irms Cout]]^2 -> 0.1104714751 | AA10: =Table1[[#This Row],[Cout ESR Loss]] -> 0.1104714751 | AB10: =IF(Table1[[#This Row],[Vin]]>Vout, SQRT(Table1[[#This Row],[Duty Cycle BUCK Leg]]*(1-Table1[[#This Row],[Duty Cycle BUCK Leg]]))*SQRT(Table1[[#This Row],[Iout]]^2+(Table1[[#This Row],[Ripple Current pk-pk]]^2)/12), Table1[[#This Row],[Ripple Current pk-pk]]/SQRT(12)) -> 0.8707303839 | AC10: =RCinEsr*Table1[[#This Row],[Irms Cin]]^2 -> 0.001516342803 | AD10: =Table1[[#This Row],[Cin ESR Loss]] -> 0.001516342803 | AE10: =Table1[[#This Row],[Irms Lf]] -> 12.53678823 | AF10: =Rdson1*Table1[[#This Row],[Irms BuCtrl]]^2 -> 0.5500987067 | AG10: =CHOOSE(Table1[[#This Row],[Mode Digit]], (Table1[[#This Row],[Vin]]*Table1[[#This Row],[Iout]]/2)*(Fsw)*(Tr_buck+Tf_buck), 0, (Table1[[#This Row],[Vin]]*Table1[[#This Row],[Avg IL]]/2)*(Fsw/1)*(Tr_buck+Tf_buck)) -> 0 | AH10: =IF(Table1[[#This Row],[Vin]]>Vout, IF(Table1[[#This Row],[Iout]]>Table1[[#This Row],[Ripple Current pk-pk]]/2,0,ABS(Table1[[#This Row],[Iout]]-Table1[[#This Row],[Ripple Current pk-pk]]/2)*Vsd_Q1*Deadtime*Fsw),0) -> 0 | AI10: =(Table1[[#This Row],[Dead Time Loss BuCtrl]]+Table1[[#This Row],[Transition Loss BuCtrl]]+Table1[[#This Row],[RDS(on) Loss BuCtrl]]*(1+RdsonTopTc*Ta-RdsonTopTc*25))/(1-Table1[[#This Row],[RDS(on) Loss BuCtrl]]*RdsonTopTc*ThetaJA_Q1) -> 0.6419080286 | AJ10: =Table1[[#This Row],[Irms Lf]] -> 12.53678823 | AK10: =Rdson2*Table1[[#This Row],[Irms BuSync]]^2 -> 0.5500987067 | AL10: =CHOOSE(Table1[[#This Row],[Mode Digit]], IF(Table1[[#This Row],[Iout]]<Table1[[#This Row],[Ripple Current pk-pk]]/2,Deadtime*Fsw*IF(VfdSky_Q2>0,0,Vsd_Q2)*(Table1[[#This Row],[Iout]]+Table1[[#This Row],[Ripple Current pk-pk]]/2),2*Deadtime*Fsw*IF(VfdSky_Q2>0,0,Vsd_Q2)*Table1[[#This Row],[Iout]]),0, IF(Table1[[#This Row],[Iout]]<Table1[[#This Row],[Ripple Current pk-pk]]/2,Deadtime*Fsw*IF(VfdSky_Q2>0,0,Vsd_Q2)*(Table1[[#This Row],[Iout]]+Table1[[#This Row],[Ripple Current pk-pk]]/2),2*Deadtime*Fsw*IF(VfdSky_Q2>0,0,Vsd_Q2)*Table1[[#This Row],[Iout]])) -> 0 | AM10: =(Table1[[#This Row],[Deadtime Loss BuSync]]+Table1[[#This Row],[RDS(on) Loss BuSync]]*(1+RdsonBotTc*Ta-RdsonBotTc*25))/(1-Table1[[#This Row],[RDS(on) Loss BuSync]]*RdsonBotTc*ThetaJA_Q2) -> 0.6419080286 | AN10: =Table1[[#This Row],[Irms Lf]] -> 12.53678823 | AO10: =Rdson4*Table1[[#This Row],[Irms BoCtlr]]^2 -> 0.5500987067 | AP10: =CHOOSE(Table1[[#This Row],[Mode Digit]], 0, (Vout*Table1[[#This Row],[Iin]]/2)*(Fsw)*(Tr_boost+Tf_boost), (Vout*Iout/2)*(Fsw/1)*(Tr_boost+Tf_boost)) -> 1.705578063 | AQ10: =IF(Table1[[#This Row],[Vin]]>Vout, 0, IF(Table1[[#This Row],[Iin]]>Table1[[#This Row],[Ripple Current pk-pk]]/2,0,ABS(Table1[[#This Row],[Iin]]-Table1[[#This Row],[Ripple Current pk-pk]]/2)*Vsd_Q4*Deadtime*Fsw)) -> 0 | AR10: =(Table1[[#This Row],[Dead Time Loss BoCtlr]]+Table1[[#This Row],[Transition Loss BoCtlr]]+Table1[[#This Row],[RDS(on) Loss BoCtlr]]*(1+RdsonTopTc*Ta-RdsonTopTc*25))/(1-Table1[[#This Row],[RDS(on) Loss BoCtlr]]*RdsonTopTc*ThetaJA_Q4) -> 2.632140397 | AS10: =Table1[[#This Row],[Irms Lf]] -> 12.53678823 | AT10: =Rdson3*Table1[[#This Row],[Irms BoSync]]^2 -> 0.5500987067 | AU10: =CHOOSE(Table1[[#This Row],[Mode Digit]], 0, IF(Table1[[#This Row],[Iin]]<Table1[[#This Row],[Ripple Current pk-pk]]/2,Deadtime*Fsw*IF(VfdSky_Q3>0,0,Vsd_Q3)*(Table1[[#This Row],[Iin]]+Table1[[#This Row],[Ripple Current pk-pk]]/2), 2*Deadtime*Fsw*IF(VfdSky_Q3>0,0,Vsd_Q3)*Table1[[#This Row],[Iin]]), IF(Table1[[#This Row],[Iin]]<Table1[[#This Row],[Ripple Current pk-pk]]/2,Deadtime*Fsw*IF(VfdSky_Q3>0,0,Vsd_Q3)*(Table1[[#This Row],[Iin]]+Table1[[#This Row],[Ripple Current pk-pk]]/2), 2*Deadtime*Fsw*IF(VfdSky_Q3>0,0,Vsd_Q3)*Table1[[#This Row],[Iin]])) -> 0.5646690985 | AV10: =(Table1[[#This Row],[Deadtime Loss BoSync]]+Table1[[#This Row],[RDS(on) Loss BoSync]]*(1+RdsonBotTc*Ta-RdsonBotTc*25))/(1-Table1[[#This Row],[RDS(on) Loss BoSync]]*RdsonBotTc*ThetaJA_Q3) -> 1.30081819 | AW10: =CHOOSE(Table1[[#This Row],[Mode Digit]], Rdson3*Table1[[#This Row],[Irms Lf]]^2, Rdson1*Table1[[#This Row],[Irms Lf]]^2, 0) -> 0.5500987067 | AX10: =CHOOSE(Table1[[#This Row],[Mode Digit]], 2*Deadtime*Fsw*IF(VfdSky_Q2>0,VfdSky_Q2,0)*Table1[[#This Row],[Iout]], 2*Deadtime*Fsw*IF(VfdSky_Q3>0,VfdSky_Q3,0)*Table1[[#This Row],[Iin]], 2*Deadtime*Fsw*IF(VfdSky_Q2>0,VfdSky_Q2,0)*Table1[[#This Row],[Iout]]+2*Deadtime*Fsw*IF(VfdSky_Q3>0,VfdSky_Q3,0)*Table1[[#This Row],[Iin]]) -> 0 | AY10: =CHOOSE(Table1[[#This Row],[Mode Digit]], IF(QrrSky_Q2>0,QrrSky_Q2,Qrr_Q2)*Fsw*(Table1[[#This Row],[Vin]]-Table1[[#This Row],[Iout]]*Rdson1), IF(QrrSky_Q3>0,QrrSky_Q3,Qrr_Q3)*Fsw*Vout, IF(QrrSky_Q2>0,QrrSky_Q2,Qrr_Q2)*Fsw*(Table1[[#This Row],[Vin]]-Table1[[#This Row],[Iout]]*Rdson1)+IF(QrrSky_Q3>0,QrrSky_Q3,Qrr_Q3)*Fsw*Vout) -> 0.809088 | AZ10: =CHOOSE(Table1[[#This Row],[Mode Digit]], Rs*Table1[[#This Row],[Irms BuSync]]^2, Rs*Table1[[#This Row],[Irms BoCtlr]]^2, Rs*(Table1[[#This Row],[Irms BuSync]]^2+Table1[[#This Row],[Irms BoCtlr]]^2)) -> 0.3929276477 | BA10: 0.36 | BB10: =IF(Vout>8, Iq*Vout, Iq*Table1[[#This Row],[Vin]]) -> 0.072 | BC10: =CHOOSE(Table1[[#This Row],[Mode Digit]], (Qg_Q1+Qg_Q2)*Fsw, (Qg_Q3+Qg_Q4)*Fsw, (Qg_Q1+Qg_Q2+Qg_Q3+Qg_Q4)*Fsw)*IF(Vout>8, Vout, Table1[[#This Row],[Vin]]) -> 1.936032 | BD10: 1.733289287 | BE10: =Table1[[#This Row],[IQ Loss]]+Table1[[#This Row],[Switching Current Loss]] -> 2.008032 | BF10: =SUM(Table1[[#This Row],[Total Inductor Loss]],Table1[[#This Row],[Total Cout Loss]],Table1[[#This Row],[Total Cin Loss]],Table1[[#This Row],[Total Control Bu MOSFET Loss]],Table1[[#This Row],[Total Sync Bu MOSFET Loss]],Table1[[#This Row],[Total Control Bo MOSFET Loss]],Table1[[#This Row],[Total Sync Bo MOSFET Loss]], Table1[[#This Row],[Deadtime Loss ext D]],Table1[[#This Row],[Reverse Recovery Loss MOSFET D]],Table1[[#This Row],[Total IC Loss]],Table1[[#This Row],[Isense Shunt Loss]],Table1[[#This Row],[Iout Shunt Loss]]) -> 10.27422626 | BG10: =Vout*Table1[[#This Row],[Iout]] -> 144 | BH10: =Table1[[#This Row],[Pout]]/(Table1[[#This Row],[Pout]]+Table1[[#This Row],[Total Loss]]) -> 0.933402834 | BI10: =IF(Table1[[#This Row],[Vin]]>Vout,ThetaJA_Q1*(Table1[[#This Row],[Total Control Bu MOSFET Loss]]+Table1[[#This Row],[Reverse Recovery Loss MOSFET D]]),ThetaJA_Q4*(Table1[[#This Row],[Total Control Bo MOSFET Loss]]+Table1[[#This Row],[Reverse Recovery Loss MOSFET D]])) -> 223.6798458 | BJ10: =IF(Table1[[#This Row],[Vin]]>Vout, Table1[[#This Row],[Total Sync Bu MOSFET Loss]]*ThetaJA_Q2, ThetaJA_Q3*Table1[[#This Row],[Total Sync Bo MOSFET Loss]]) -> 84.55318237 | BL10: =Table1[[#This Row],[EFF, h]]*100 -> 93.3402834 | BM10: =Table1[[#This Row],[Total Inductor Loss]] -> 1.375416153 | BN10: =Table1[[#This Row],[Total Control Bu MOSFET Loss]]+Table1[[#This Row],[Total Sync Bu MOSFET Loss]]+Table1[[#This Row],[Total Control Bo MOSFET Loss]]+Table1[[#This Row],[Total Sync Bo MOSFET Loss]]+Table1[[#This Row],[Reverse Recovery Loss MOSFET D]] -> 6.025862645 | BO10: =Table1[[#This Row],[Total Sync Bu MOSFET Loss]]+Table1[[#This Row],[Reverse Recovery Loss MOSFET D]]*0.33 -> 0.9089070686 | BP10: =Table1[[#This Row],[Isense Shunt Loss]] -> 0.3929276477
A11: Vin | B11: =Vin -> 24 | C11: V | D11: Vin | G11: 2 | H11: =VIN_min+(VIN_max-VIN_min)*(Table1[[#This Row],[Step]]/200) -> 12.24 | I11: =IF(Table1[[#This Row],[Vin]]>VIN_BB_to_buck, "BUCK", IF(Table1[[#This Row],[Vin]]<=VIN_boost_to_BB,"BOOST","BUCK-BST")) -> BOOST | J11: =IF(Table1[[#This Row],[Mode]]="BOOST",2, IF(Table1[[#This Row],[Mode]]="BUCK", 1,3)) -> 2 | K11: 6 | L11: =Vout*Table1[[#This Row],[Iout]]/(Table1[[#This Row],[Vin]]*Efficiency) -> 12.38390093 | M11: =Iout/(1-Table1[[#This Row],[Duty Cycle BOOST Leg]]) -> 11.89028136 | N11: =CHOOSE(Table1[[#This Row],[Mode Digit]],(Vout+(Rdson2+Rs+Rdcr)*Table1[[#This Row],[Iout]])/(Table1[[#This Row],[Vin]]+(Rs+Rdson2-Rdson1)*Table1[[#This Row],[Iout]]),1,IF(Table1[[#This Row],[Vin]]<Vout,D_max_buck_BB,Vout/Table1[[#This Row],[Vin]]*(1-D_min_boost_exitBB_to_buck))) -> 1 | O11: =CHOOSE(Table1[[#This Row],[Mode Digit]],0,(Vout+(Rdson3+Rdcr)*Table1[[#This Row],[Iin]]-Table1[[#This Row],[Vin]])/(Vout+(Rdson3-Rdson4-Rs)*Table1[[#This Row],[Iin]]),IF(Table1[[#This Row],[Vin]]>Vout, (Vout-Table1[[#This Row],[Vin]]*D_max_exitBB_to_buck)/Vout, (Vout-Table1[[#This Row],[Vin]]*D_max_buck_BB)/Vout)) -> 0.4953862051 | P11: =CHOOSE(Table1[[#This Row],[Mode Digit]],0,0,1-((Table1[[#This Row],[Vin]]-Vout)+((VIN_BB_to_buck-VIN_BB_to_boost)/2))/((VIN_BB_to_buck-VIN_BB_to_boost))) -> 0 | Q11: =CHOOSE(Table1[[#This Row],[Mode Digit]],0,Table1[[#This Row],[Duty Cycle BOOST Leg]]/Fsw,(1/Fsw-Table1[[#This Row],[T BOD/BUE]])*Table1[[#This Row],[BOE/BUD BUBO ratio]]) -> 8.229006729e-07 | R11: =CHOOSE(Table1[[#This Row],[Mode Digit]],Table1[[#This Row],[Duty Cycle BUCK Leg]]/Fsw,(1-Table1[[#This Row],[Duty Cycle BOOST Leg]])/Fsw,TonBubo) -> 8.382288952e-07 | S11: =CHOOSE(Table1[[#This Row],[Mode Digit]],(1-Table1[[#This Row],[Duty Cycle BUCK Leg]])/Fsw,0,(1/Fsw-Table1[[#This Row],[T BOD/BUE]]-Table1[[#This Row],[T BOE]])) -> 0 | T11: =MAX(0, CHOOSE(Table1[[#This Row],[Mode Digit]], (Table1[[#This Row],[Vin]]-(Rdson1+Rdcr)*Table1[[#This Row],[Iout]]-Vout)*Table1[[#This Row],[Duty Cycle BUCK Leg]]/(Fsw*Lf), (Table1[[#This Row],[Vin]]-(Rdson4+Rdcr+Rs)*Table1[[#This Row],[Iin]])*Table1[[#This Row],[Duty Cycle BOOST Leg]]/(Fsw*Lf), IF(Table1[[#This Row],[Vin]]<Vout, (Table1[[#This Row],[Vin]]-(Rdson1+Rdson3+Rdcr+Rs)*Table1[[#This Row],[Iin]])*Table1[[#This Row],[T BOE]]/(Lf),(Vout-(Rdson2+Rdson4+Rdcr+Rs)*Table1[[#This Row],[Iout]])*Table1[[#This Row],[T BUD]]/(Lf)))) -> 3.016082669 | U11: =CHOOSE(Table1[[#This Row],[Mode Digit]], SQRT(Table1[[#This Row],[Iout]]^2+(Table1[[#This Row],[Ripple Current pk-pk]]^2)/12), SQRT(Table1[[#This Row],[Iin]]^2+(Table1[[#This Row],[Ripple Current pk-pk]]^2)/12), SQRT(Table1[[#This Row],[Avg IL]]^2+(Table1[[#This Row],[Ripple Current pk-pk]]^2)/12)) -> 12.41446999 | V11: =(Table1[[#This Row],[Irms Lf]]^2*Rdcr*(1+Ltc*Ta-Ltc*25))/(1-Table1[[#This Row],[Irms Lf]]^2*Rdcr*Ltc*ThetaCa) -> 0.944883469 | W11: =ABS(7.759*10^-3*Fsw^0.9458*(0.00787*Table1[[#This Row],[Ripple Current pk-pk]])^2.304) -> 0.4103090766 | X11: =Table1[[#This Row],[DCR Loss]]+Table1[[#This Row],[Core Loss]] -> 1.355192546 | Y11: =IF(Table1[[#This Row],[Vin]]>Vout, Table1[[#This Row],[Ripple Current pk-pk]]/SQRT(12), SQRT(Table1[[#This Row],[Duty Cycle BOOST Leg]]/(1-Table1[[#This Row],[Duty Cycle BOOST Leg]]))*SQRT(Table1[[#This Row],[Iout]]^2+(Table1[[#This Row],[Ripple Current pk-pk]]^2)/12)) -> 6.007153135 | Z11: =RCoutEsr*Table1[[#This Row],[Irms Cout]]^2 -> 0.1082576664 | AA11: =Table1[[#This Row],[Cout ESR Loss]] -> 0.1082576664 | AB11: =IF(Table1[[#This Row],[Vin]]>Vout, SQRT(Table1[[#This Row],[Duty Cycle BUCK Leg]]*(1-Table1[[#This Row],[Duty Cycle BUCK Leg]]))*SQRT(Table1[[#This Row],[Iout]]^2+(Table1[[#This Row],[Ripple Current pk-pk]]^2)/12), Table1[[#This Row],[Ripple Current pk-pk]]/SQRT(12)) -> 0.8706680705 | AC11: =RCinEsr*Table1[[#This Row],[Irms Cin]]^2 -> 0.001516125778 | AD11: =Table1[[#This Row],[Cin ESR Loss]] -> 0.001516125778 | AE11: =Table1[[#This Row],[Irms Lf]] -> 12.41446999 | AF11: =Rdson1*Table1[[#This Row],[Irms BuCtrl]]^2 -> 0.5394167279 | AG11: =CHOOSE(Table1[[#This Row],[Mode Digit]], (Table1[[#This Row],[Vin]]*Table1[[#This Row],[Iout]]/2)*(Fsw)*(Tr_buck+Tf_buck), 0, (Table1[[#This Row],[Vin]]*Table1[[#This Row],[Avg IL]]/2)*(Fsw/1)*(Tr_buck+Tf_buck)) -> 0 | AH11: =IF(Table1[[#This Row],[Vin]]>Vout, IF(Table1[[#This Row],[Iout]]>Table1[[#This Row],[Ripple Current pk-pk]]/2,0,ABS(Table1[[#This Row],[Iout]]-Table1[[#This Row],[Ripple Current pk-pk]]/2)*Vsd_Q1*Deadtime*Fsw),0) -> 0 | AI11: =(Table1[[#This Row],[Dead Time Loss BuCtrl]]+Table1[[#This Row],[Transition Loss BuCtrl]]+Table1[[#This Row],[RDS(on) Loss BuCtrl]]*(1+RdsonTopTc*Ta-RdsonTopTc*25))/(1-Table1[[#This Row],[RDS(on) Loss BuCtrl]]*RdsonTopTc*ThetaJA_Q1) -> 0.6274099356 | AJ11: =Table1[[#This Row],[Irms Lf]] -> 12.41446999 | AK11: =Rdson2*Table1[[#This Row],[Irms BuSync]]^2 -> 0.5394167279 | AL11: =CHOOSE(Table1[[#This Row],[Mode Digit]], IF(Table1[[#This Row],[Iout]]<Table1[[#This Row],[Ripple Current pk-pk]]/2,Deadtime*Fsw*IF(VfdSky_Q2>0,0,Vsd_Q2)*(Table1[[#This Row],[Iout]]+Table1[[#This Row],[Ripple Current pk-pk]]/2),2*Deadtime*Fsw*IF(VfdSky_Q2>0,0,Vsd_Q2)*Table1[[#This Row],[Iout]]),0, IF(Table1[[#This Row],[Iout]]<Table1[[#This Row],[Ripple Current pk-pk]]/2,Deadtime*Fsw*IF(VfdSky_Q2>0,0,Vsd_Q2)*(Table1[[#This Row],[Iout]]+Table1[[#This Row],[Ripple Current pk-pk]]/2),2*Deadtime*Fsw*IF(VfdSky_Q2>0,0,Vsd_Q2)*Table1[[#This Row],[Iout]])) -> 0 | AM11: =(Table1[[#This Row],[Deadtime Loss BuSync]]+Table1[[#This Row],[RDS(on) Loss BuSync]]*(1+RdsonBotTc*Ta-RdsonBotTc*25))/(1-Table1[[#This Row],[RDS(on) Loss BuSync]]*RdsonBotTc*ThetaJA_Q2) -> 0.6274099356 | AN11: =Table1[[#This Row],[Irms Lf]] -> 12.41446999 | AO11: =Rdson4*Table1[[#This Row],[Irms BoCtlr]]^2 -> 0.5394167279 | AP11: =CHOOSE(Table1[[#This Row],[Mode Digit]], 0, (Vout*Table1[[#This Row],[Iin]]/2)*(Fsw)*(Tr_boost+Tf_boost), (Vout*Iout/2)*(Fsw/1)*(Tr_boost+Tf_boost)) -> 1.68885671 | AQ11: =IF(Table1[[#This Row],[Vin]]>Vout, 0, IF(Table1[[#This Row],[Iin]]>Table1[[#This Row],[Ripple Current pk-pk]]/2,0,ABS(Table1[[#This Row],[Iin]]-Table1[[#This Row],[Ripple Current pk-pk]]/2)*Vsd_Q4*Deadtime*Fsw)) -> 0 | AR11: =(Table1[[#This Row],[Dead Time Loss BoCtlr]]+Table1[[#This Row],[Transition Loss BoCtlr]]+Table1[[#This Row],[RDS(on) Loss BoCtlr]]*(1+RdsonTopTc*Ta-RdsonTopTc*25))/(1-Table1[[#This Row],[RDS(on) Loss BoCtlr]]*RdsonTopTc*ThetaJA_Q4) -> 2.59176407 | AS11: =Table1[[#This Row],[Irms Lf]] -> 12.41446999 | AT11: =Rdson3*Table1[[#This Row],[Irms BoSync]]^2 -> 0.5394167279 | AU11: =CHOOSE(Table1[[#This Row],[Mode Digit]], 0, IF(Table1[[#This Row],[Iin]]<Table1[[#This Row],[Ripple Current pk-pk]]/2,Deadtime*Fsw*IF(VfdSky_Q3>0,0,Vsd_Q3)*(Table1[[#This Row],[Iin]]+Table1[[#This Row],[Ripple Current pk-pk]]/2), 2*Deadtime*Fsw*IF(VfdSky_Q3>0,0,Vsd_Q3)*Table1[[#This Row],[Iin]]), IF(Table1[[#This Row],[Iin]]<Table1[[#This Row],[Ripple Current pk-pk]]/2,Deadtime*Fsw*IF(VfdSky_Q3>0,0,Vsd_Q3)*(Table1[[#This Row],[Iin]]+Table1[[#This Row],[Ripple Current pk-pk]]/2), 2*Deadtime*Fsw*IF(VfdSky_Q3>0,0,Vsd_Q3)*Table1[[#This Row],[Iin]])) -> 0.5591331269 | AV11: =(Table1[[#This Row],[Deadtime Loss BoSync]]+Table1[[#This Row],[RDS(on) Loss BoSync]]*(1+RdsonBotTc*Ta-RdsonBotTc*25))/(1-Table1[[#This Row],[RDS(on) Loss BoSync]]*RdsonBotTc*ThetaJA_Q3) -> 1.277752539 | AW11: =CHOOSE(Table1[[#This Row],[Mode Digit]], Rdson3*Table1[[#This Row],[Irms Lf]]^2, Rdson1*Table1[[#This Row],[Irms Lf]]^2, 0) -> 0.5394167279 | AX11: =CHOOSE(Table1[[#This Row],[Mode Digit]], 2*Deadtime*Fsw*IF(VfdSky_Q2>0,VfdSky_Q2,0)*Table1[[#This Row],[Iout]], 2*Deadtime*Fsw*IF(VfdSky_Q3>0,VfdSky_Q3,0)*Table1[[#This Row],[Iin]], 2*Deadtime*Fsw*IF(VfdSky_Q2>0,VfdSky_Q2,0)*Table1[[#This Row],[Iout]]+2*Deadtime*Fsw*IF(VfdSky_Q3>0,VfdSky_Q3,0)*Table1[[#This Row],[Iin]]) -> 0 | AY11: =CHOOSE(Table1[[#This Row],[Mode Digit]], IF(QrrSky_Q2>0,QrrSky_Q2,Qrr_Q2)*Fsw*(Table1[[#This Row],[Vin]]-Table1[[#This Row],[Iout]]*Rdson1), IF(QrrSky_Q3>0,QrrSky_Q3,Qrr_Q3)*Fsw*Vout, IF(QrrSky_Q2>0,QrrSky_Q2,Qrr_Q2)*Fsw*(Table1[[#This Row],[Vin]]-Table1[[#This Row],[Iout]]*Rdson1)+IF(QrrSky_Q3>0,QrrSky_Q3,Qrr_Q3)*Fsw*Vout) -> 0.809088 | AZ11: =CHOOSE(Table1[[#This Row],[Mode Digit]], Rs*Table1[[#This Row],[Irms BuSync]]^2, Rs*Table1[[#This Row],[Irms BoCtlr]]^2, Rs*(Table1[[#This Row],[Irms BuSync]]^2+Table1[[#This Row],[Irms BoCtlr]]^2)) -> 0.3852976628 | BA11: 0.36 | BB11: =IF(Vout>8, Iq*Vout, Iq*Table1[[#This Row],[Vin]]) -> 0.072 | BC11: =CHOOSE(Table1[[#This Row],[Mode Digit]], (Qg_Q1+Qg_Q2)*Fsw, (Qg_Q3+Qg_Q4)*Fsw, (Qg_Q1+Qg_Q2+Qg_Q3+Qg_Q4)*Fsw)*IF(Vout>8, Vout, Table1[[#This Row],[Vin]]) -> 1.936032 | BD11: 1.733289287 | BE11: =Table1[[#This Row],[IQ Loss]]+Table1[[#This Row],[Switching Current Loss]] -> 2.008032 | BF11: =SUM(Table1[[#This Row],[Total Inductor Loss]],Table1[[#This Row],[Total Cout Loss]],Table1[[#This Row],[Total Cin Loss]],Table1[[#This Row],[Total Control Bu MOSFET Loss]],Table1[[#This Row],[Total Sync Bu MOSFET Loss]],Table1[[#This Row],[Total Control Bo MOSFET Loss]],Table1[[#This Row],[Total Sync Bo MOSFET Loss]], Table1[[#This Row],[Deadtime Loss ext D]],Table1[[#This Row],[Reverse Recovery Loss MOSFET D]],Table1[[#This Row],[Total IC Loss]],Table1[[#This Row],[Isense Shunt Loss]],Table1[[#This Row],[Iout Shunt Loss]]) -> 10.15172048 | BG11: =Vout*Table1[[#This Row],[Iout]] -> 144 | BH11: =Table1[[#This Row],[Pout]]/(Table1[[#This Row],[Pout]]+Table1[[#This Row],[Total Loss]]) -> 0.9341446177 | BI11: =IF(Table1[[#This Row],[Vin]]>Vout,ThetaJA_Q1*(Table1[[#This Row],[Total Control Bu MOSFET Loss]]+Table1[[#This Row],[Reverse Recovery Loss MOSFET D]]),ThetaJA_Q4*(Table1[[#This Row],[Total Control Bo MOSFET Loss]]+Table1[[#This Row],[Reverse Recovery Loss MOSFET D]])) -> 221.0553846 | BJ11: =IF(Table1[[#This Row],[Vin]]>Vout, Table1[[#This Row],[Total Sync Bu MOSFET Loss]]*ThetaJA_Q2, ThetaJA_Q3*Table1[[#This Row],[Total Sync Bo MOSFET Loss]]) -> 83.05391505 | BL11: =Table1[[#This Row],[EFF, h]]*100 -> 93.41446177 | BM11: =Table1[[#This Row],[Total Inductor Loss]] -> 1.355192546 | BN11: =Table1[[#This Row],[Total Control Bu MOSFET Loss]]+Table1[[#This Row],[Total Sync Bu MOSFET Loss]]+Table1[[#This Row],[Total Control Bo MOSFET Loss]]+Table1[[#This Row],[Total Sync Bo MOSFET Loss]]+Table1[[#This Row],[Reverse Recovery Loss MOSFET D]] -> 5.93342448 | BO11: =Table1[[#This Row],[Total Sync Bu MOSFET Loss]]+Table1[[#This Row],[Reverse Recovery Loss MOSFET D]]*0.33 -> 0.8944089756 | BP11: =Table1[[#This Row],[Isense Shunt Loss]] -> 0.3852976628 | BT11: 250kHz / 12-5V / 30A | BU11: 90 | BV11: 90 | BW11: 90 | BX11: =250000*(12-Vdd)*BW11/1000000000+((250000*BW9/1000000000*Vdd)*2.5/(2*4)) -> 0.142265625 | BY11: 11.38125 | BZ11: 14.2265625 | CA11: 17.071875 | CB11: 19.9171875 | CC11: 22.7625 | CD11: 25.6078125 | CE11: 2.8453125 | CF11: 4.26796875 | CG11: 5.690625 | CH11: 7.11328125
A12: Vout | B12: =Vout -> 24 | C12: V | D12: Vout | G12: 3 | H12: =VIN_min+(VIN_max-VIN_min)*(Table1[[#This Row],[Step]]/200) -> 12.36 | I12: =IF(Table1[[#This Row],[Vin]]>VIN_BB_to_buck, "BUCK", IF(Table1[[#This Row],[Vin]]<=VIN_boost_to_BB,"BOOST","BUCK-BST")) -> BOOST | J12: =IF(Table1[[#This Row],[Mode]]="BOOST",2, IF(Table1[[#This Row],[Mode]]="BUCK", 1,3)) -> 2 | K12: 6 | L12: =Vout*Table1[[#This Row],[Iout]]/(Table1[[#This Row],[Vin]]*Efficiency) -> 12.26366888 | M12: =Iout/(1-Table1[[#This Row],[Duty Cycle BOOST Leg]]) -> 11.77226436 | N12: =CHOOSE(Table1[[#This Row],[Mode Digit]],(Vout+(Rdson2+Rs+Rdcr)*Table1[[#This Row],[Iout]])/(Table1[[#This Row],[Vin]]+(Rs+Rdson2-Rdson1)*Table1[[#This Row],[Iout]]),1,IF(Table1[[#This Row],[Vin]]<Vout,D_max_buck_BB,Vout/Table1[[#This Row],[Vin]]*(1-D_min_boost_exitBB_to_buck))) -> 1 | O12: =CHOOSE(Table1[[#This Row],[Mode Digit]],0,(Vout+(Rdson3+Rdcr)*Table1[[#This Row],[Iin]]-Table1[[#This Row],[Vin]])/(Vout+(Rdson3-Rdson4-Rs)*Table1[[#This Row],[Iin]]),IF(Table1[[#This Row],[Vin]]>Vout, (Vout-Table1[[#This Row],[Vin]]*D_max_exitBB_to_buck)/Vout, (Vout-Table1[[#This Row],[Vin]]*D_max_buck_BB)/Vout)) -> 0.4903274495 | P12: =CHOOSE(Table1[[#This Row],[Mode Digit]],0,0,1-((Table1[[#This Row],[Vin]]-Vout)+((VIN_BB_to_buck-VIN_BB_to_boost)/2))/((VIN_BB_to_buck-VIN_BB_to_boost))) -> 0 | Q12: =CHOOSE(Table1[[#This Row],[Mode Digit]],0,Table1[[#This Row],[Duty Cycle BOOST Leg]]/Fsw,(1/Fsw-Table1[[#This Row],[T BOD/BUE]])*Table1[[#This Row],[BOE/BUD BUBO ratio]]) -> 8.144974244e-07 | R12: =CHOOSE(Table1[[#This Row],[Mode Digit]],Table1[[#This Row],[Duty Cycle BUCK Leg]]/Fsw,(1-Table1[[#This Row],[Duty Cycle BOOST Leg]])/Fsw,TonBubo) -> 8.466321437e-07 | S12: =CHOOSE(Table1[[#This Row],[Mode Digit]],(1-Table1[[#This Row],[Duty Cycle BUCK Leg]])/Fsw,0,(1/Fsw-Table1[[#This Row],[T BOD/BUE]]-Table1[[#This Row],[T BOE]])) -> 0 | T12: =MAX(0, CHOOSE(Table1[[#This Row],[Mode Digit]], (Table1[[#This Row],[Vin]]-(Rdson1+Rdcr)*Table1[[#This Row],[Iout]]-Vout)*Table1[[#This Row],[Duty Cycle BUCK Leg]]/(Fsw*Lf), (Table1[[#This Row],[Vin]]-(Rdson4+Rdcr+Rs)*Table1[[#This Row],[Iin]])*Table1[[#This Row],[Duty Cycle BOOST Leg]]/(Fsw*Lf), IF(Table1[[#This Row],[Vin]]<Vout, (Table1[[#This Row],[Vin]]-(Rdson1+Rdson3+Rdcr+Rs)*Table1[[#This Row],[Iin]])*Table1[[#This Row],[T BOE]]/(Lf),(Vout-(Rdson2+Rdson4+Rdcr+Rs)*Table1[[#This Row],[Iout]])*Table1[[#This Row],[T BUD]]/(Lf)))) -> 3.015248504 | U12: =CHOOSE(Table1[[#This Row],[Mode Digit]], SQRT(Table1[[#This Row],[Iout]]^2+(Table1[[#This Row],[Ripple Current pk-pk]]^2)/12), SQRT(Table1[[#This Row],[Iin]]^2+(Table1[[#This Row],[Ripple Current pk-pk]]^2)/12), SQRT(Table1[[#This Row],[Avg IL]]^2+(Table1[[#This Row],[Ripple Current pk-pk]]^2)/12)) -> 12.29451984 | V12: =(Table1[[#This Row],[Irms Lf]]^2*Rdcr*(1+Ltc*Ta-Ltc*25))/(1-Table1[[#This Row],[Irms Lf]]^2*Rdcr*Ltc*ThetaCa) -> 0.9253673329 | W12: =ABS(7.759*10^-3*Fsw^0.9458*(0.00787*Table1[[#This Row],[Ripple Current pk-pk]])^2.304) -> 0.4100476654 | X12: =Table1[[#This Row],[DCR Loss]]+Table1[[#This Row],[Core Loss]] -> 1.335414998 | Y12: =IF(Table1[[#This Row],[Vin]]>Vout, Table1[[#This Row],[Ripple Current pk-pk]]/SQRT(12), SQRT(Table1[[#This Row],[Duty Cycle BOOST Leg]]/(1-Table1[[#This Row],[Duty Cycle BOOST Leg]]))*SQRT(Table1[[#This Row],[Iout]]^2+(Table1[[#This Row],[Ripple Current pk-pk]]^2)/12)) -> 5.946635409 | Z12: =RCoutEsr*Table1[[#This Row],[Irms Cout]]^2 -> 0.1060874181 | AA12: =Table1[[#This Row],[Cout ESR Loss]] -> 0.1060874181 | AB12: =IF(Table1[[#This Row],[Vin]]>Vout, SQRT(Table1[[#This Row],[Duty Cycle BUCK Leg]]*(1-Table1[[#This Row],[Duty Cycle BUCK Leg]]))*SQRT(Table1[[#This Row],[Iout]]^2+(Table1[[#This Row],[Ripple Current pk-pk]]^2)/12), Table1[[#This Row],[Ripple Current pk-pk]]/SQRT(12)) -> 0.8704272677 | AC12: =RCinEsr*Table1[[#This Row],[Irms Cin]]^2 -> 0.001515287257 | AD12: =Table1[[#This Row],[Cin ESR Loss]] -> 0.001515287257 | AE12: =Table1[[#This Row],[Irms Lf]] -> 12.29451984 | AF12: =Rdson1*Table1[[#This Row],[Irms BuCtrl]]^2 -> 0.5290432632 | AG12: =CHOOSE(Table1[[#This Row],[Mode Digit]], (Table1[[#This Row],[Vin]]*Table1[[#This Row],[Iout]]/2)*(Fsw)*(Tr_buck+Tf_buck), 0, (Table1[[#This Row],[Vin]]*Table1[[#This Row],[Avg IL]]/2)*(Fsw/1)*(Tr_buck+Tf_buck)) -> 0 | AH12: =IF(Table1[[#This Row],[Vin]]>Vout, IF(Table1[[#This Row],[Iout]]>Table1[[#This Row],[Ripple Current pk-pk]]/2,0,ABS(Table1[[#This Row],[Iout]]-Table1[[#This Row],[Ripple Current pk-pk]]/2)*Vsd_Q1*Deadtime*Fsw),0) -> 0 | AI12: =(Table1[[#This Row],[Dead Time Loss BuCtrl]]+Table1[[#This Row],[Transition Loss BuCtrl]]+Table1[[#This Row],[RDS(on) Loss BuCtrl]]*(1+RdsonTopTc*Ta-RdsonTopTc*25))/(1-Table1[[#This Row],[RDS(on) Loss BuCtrl]]*RdsonTopTc*ThetaJA_Q1) -> 0.613419942 | AJ12: =Table1[[#This Row],[Irms Lf]] -> 12.29451984 | AK12: =Rdson2*Table1[[#This Row],[Irms BuSync]]^2 -> 0.5290432632 | AL12: =CHOOSE(Table1[[#This Row],[Mode Digit]], IF(Table1[[#This Row],[Iout]]<Table1[[#This Row],[Ripple Current pk-pk]]/2,Deadtime*Fsw*IF(VfdSky_Q2>0,0,Vsd_Q2)*(Table1[[#This Row],[Iout]]+Table1[[#This Row],[Ripple Current pk-pk]]/2),2*Deadtime*Fsw*IF(VfdSky_Q2>0,0,Vsd_Q2)*Table1[[#This Row],[Iout]]),0, IF(Table1[[#This Row],[Iout]]<Table1[[#This Row],[Ripple Current pk-pk]]/2,Deadtime*Fsw*IF(VfdSky_Q2>0,0,Vsd_Q2)*(Table1[[#This Row],[Iout]]+Table1[[#This Row],[Ripple Current pk-pk]]/2),2*Deadtime*Fsw*IF(VfdSky_Q2>0,0,Vsd_Q2)*Table1[[#This Row],[Iout]])) -> 0 | AM12: =(Table1[[#This Row],[Deadtime Loss BuSync]]+Table1[[#This Row],[RDS(on) Loss BuSync]]*(1+RdsonBotTc*Ta-RdsonBotTc*25))/(1-Table1[[#This Row],[RDS(on) Loss BuSync]]*RdsonBotTc*ThetaJA_Q2) -> 0.613419942 | AN12: =Table1[[#This Row],[Irms Lf]] -> 12.29451984 | AO12: =Rdson4*Table1[[#This Row],[Irms BoCtlr]]^2 -> 0.5290432632 | AP12: =CHOOSE(Table1[[#This Row],[Mode Digit]], 0, (Vout*Table1[[#This Row],[Iin]]/2)*(Fsw)*(Tr_boost+Tf_boost), (Vout*Iout/2)*(Fsw/1)*(Tr_boost+Tf_boost)) -> 1.672460043 | AQ12: =IF(Table1[[#This Row],[Vin]]>Vout, 0, IF(Table1[[#This Row],[Iin]]>Table1[[#This Row],[Ripple Current pk-pk]]/2,0,ABS(Table1[[#This Row],[Iin]]-Table1[[#This Row],[Ripple Current pk-pk]]/2)*Vsd_Q4*Deadtime*Fsw)) -> 0 | AR12: =(Table1[[#This Row],[Dead Time Loss BoCtlr]]+Table1[[#This Row],[Transition Loss BoCtlr]]+Table1[[#This Row],[RDS(on) Loss BoCtlr]]*(1+RdsonTopTc*Ta-RdsonTopTc*25))/(1-Table1[[#This Row],[RDS(on) Loss BoCtlr]]*RdsonTopTc*ThetaJA_Q4) -> 2.552619274 | AS12: =Table1[[#This Row],[Irms Lf]] -> 12.29451984 | AT12: =Rdson3*Table1[[#This Row],[Irms BoSync]]^2 -> 0.5290432632 | AU12: =CHOOSE(Table1[[#This Row],[Mode Digit]], 0, IF(Table1[[#This Row],[Iin]]<Table1[[#This Row],[Ripple Current pk-pk]]/2,Deadtime*Fsw*IF(VfdSky_Q3>0,0,Vsd_Q3)*(Table1[[#This Row],[Iin]]+Table1[[#This Row],[Ripple Current pk-pk]]/2), 2*Deadtime*Fsw*IF(VfdSky_Q3>0,0,Vsd_Q3)*Table1[[#This Row],[Iin]]), IF(Table1[[#This Row],[Iin]]<Table1[[#This Row],[Ripple Current pk-pk]]/2,Deadtime*Fsw*IF(VfdSky_Q3>0,0,Vsd_Q3)*(Table1[[#This Row],[Iin]]+Table1[[#This Row],[Ripple Current pk-pk]]/2), 2*Deadtime*Fsw*IF(VfdSky_Q3>0,0,Vsd_Q3)*Table1[[#This Row],[Iin]])) -> 0.55370465 | AV12: =(Table1[[#This Row],[Deadtime Loss BoSync]]+Table1[[#This Row],[RDS(on) Loss BoSync]]*(1+RdsonBotTc*Ta-RdsonBotTc*25))/(1-Table1[[#This Row],[RDS(on) Loss BoSync]]*RdsonBotTc*ThetaJA_Q3) -> 1.255434495 | AW12: =CHOOSE(Table1[[#This Row],[Mode Digit]], Rdson3*Table1[[#This Row],[Irms Lf]]^2, Rdson1*Table1[[#This Row],[Irms Lf]]^2, 0) -> 0.5290432632 | AX12: =CHOOSE(Table1[[#This Row],[Mode Digit]], 2*Deadtime*Fsw*IF(VfdSky_Q2>0,VfdSky_Q2,0)*Table1[[#This Row],[Iout]], 2*Deadtime*Fsw*IF(VfdSky_Q3>0,VfdSky_Q3,0)*Table1[[#This Row],[Iin]], 2*Deadtime*Fsw*IF(VfdSky_Q2>0,VfdSky_Q2,0)*Table1[[#This Row],[Iout]]+2*Deadtime*Fsw*IF(VfdSky_Q3>0,VfdSky_Q3,0)*Table1[[#This Row],[Iin]]) -> 0 | AY12: =CHOOSE(Table1[[#This Row],[Mode Digit]], IF(QrrSky_Q2>0,QrrSky_Q2,Qrr_Q2)*Fsw*(Table1[[#This Row],[Vin]]-Table1[[#This Row],[Iout]]*Rdson1), IF(QrrSky_Q3>0,QrrSky_Q3,Qrr_Q3)*Fsw*Vout, IF(QrrSky_Q2>0,QrrSky_Q2,Qrr_Q2)*Fsw*(Table1[[#This Row],[Vin]]-Table1[[#This Row],[Iout]]*Rdson1)+IF(QrrSky_Q3>0,QrrSky_Q3,Qrr_Q3)*Fsw*Vout) -> 0.809088 | AZ12: =CHOOSE(Table1[[#This Row],[Mode Digit]], Rs*Table1[[#This Row],[Irms BuSync]]^2, Rs*Table1[[#This Row],[Irms BoCtlr]]^2, Rs*(Table1[[#This Row],[Irms BuSync]]^2+Table1[[#This Row],[Irms BoCtlr]]^2)) -> 0.3778880451 | BA12: 0.36 | BB12: =IF(Vout>8, Iq*Vout, Iq*Table1[[#This Row],[Vin]]) -> 0.072 | BC12: =CHOOSE(Table1[[#This Row],[Mode Digit]], (Qg_Q1+Qg_Q2)*Fsw, (Qg_Q3+Qg_Q4)*Fsw, (Qg_Q1+Qg_Q2+Qg_Q3+Qg_Q4)*Fsw)*IF(Vout>8, Vout, Table1[[#This Row],[Vin]]) -> 1.936032 | BD12: 1.733289287 | BE12: =Table1[[#This Row],[IQ Loss]]+Table1[[#This Row],[Switching Current Loss]] -> 2.008032 | BF12: =SUM(Table1[[#This Row],[Total Inductor Loss]],Table1[[#This Row],[Total Cout Loss]],Table1[[#This Row],[Total Cin Loss]],Table1[[#This Row],[Total Control Bu MOSFET Loss]],Table1[[#This Row],[Total Sync Bu MOSFET Loss]],Table1[[#This Row],[Total Control Bo MOSFET Loss]],Table1[[#This Row],[Total Sync Bo MOSFET Loss]], Table1[[#This Row],[Deadtime Loss ext D]],Table1[[#This Row],[Reverse Recovery Loss MOSFET D]],Table1[[#This Row],[Total IC Loss]],Table1[[#This Row],[Isense Shunt Loss]],Table1[[#This Row],[Iout Shunt Loss]]) -> 10.0329194 | BG12: =Vout*Table1[[#This Row],[Iout]] -> 144 | BH12: =Table1[[#This Row],[Pout]]/(Table1[[#This Row],[Pout]]+Table1[[#This Row],[Total Loss]]) -> 0.9348650961 | BI12: =IF(Table1[[#This Row],[Vin]]>Vout,ThetaJA_Q1*(Table1[[#This Row],[Total Control Bu MOSFET Loss]]+Table1[[#This Row],[Reverse Recovery Loss MOSFET D]]),ThetaJA_Q4*(Table1[[#This Row],[Total Control Bo MOSFET Loss]]+Table1[[#This Row],[Reverse Recovery Loss MOSFET D]])) -> 218.5109728 | BJ12: =IF(Table1[[#This Row],[Vin]]>Vout, Table1[[#This Row],[Total Sync Bu MOSFET Loss]]*ThetaJA_Q2, ThetaJA_Q3*Table1[[#This Row],[Total Sync Bo MOSFET Loss]]) -> 81.60324219 | BL12: =Table1[[#This Row],[EFF, h]]*100 -> 93.48650961 | BM12: =Table1[[#This Row],[Total Inductor Loss]] -> 1.335414998 | BN12: =Table1[[#This Row],[Total Control Bu MOSFET Loss]]+Table1[[#This Row],[Total Sync Bu MOSFET Loss]]+Table1[[#This Row],[Total Control Bo MOSFET Loss]]+Table1[[#This Row],[Total Sync Bo MOSFET Loss]]+Table1[[#This Row],[Reverse Recovery Loss MOSFET D]] -> 5.843981653 | BO12: =Table1[[#This Row],[Total Sync Bu MOSFET Loss]]+Table1[[#This Row],[Reverse Recovery Loss MOSFET D]]*0.33 -> 0.880418982 | BP12: =Table1[[#This Row],[Isense Shunt Loss]] -> 0.3778880451 | BT12: 250kHz / 18-1.2V / 20A | BU12: 60 | BV12: 60 | BW12: 60 | BX12: =250000*(18-Vdd)*BW12/1000000000+((250000*BW9/1000000000*Vdd)*2.5/(2*4)) -> 0.198515625 | BY12: 15.88125 | BZ12: 19.8515625 | CA12: 23.821875 | CB12: 27.7921875 | CC12: 31.7625 | CD12: 35.7328125 | CE12: 3.9703125 | CF12: 5.95546875 | CG12: 7.940625 | CH12: 9.92578125
A13: Fsw | B13: =Fsw/1000 -> 602 | C13: kHz | D13: Switching Frequency | G13: 4 | H13: =VIN_min+(VIN_max-VIN_min)*(Table1[[#This Row],[Step]]/200) -> 12.48 | I13: =IF(Table1[[#This Row],[Vin]]>VIN_BB_to_buck, "BUCK", IF(Table1[[#This Row],[Vin]]<=VIN_boost_to_BB,"BOOST","BUCK-BST")) -> BOOST | J13: =IF(Table1[[#This Row],[Mode]]="BOOST",2, IF(Table1[[#This Row],[Mode]]="BUCK", 1,3)) -> 2 | K13: 6 | L13: =Vout*Table1[[#This Row],[Iout]]/(Table1[[#This Row],[Vin]]*Efficiency) -> 12.14574899 | M13: =Iout/(1-Table1[[#This Row],[Duty Cycle BOOST Leg]]) -> 11.6565927 | N13: =CHOOSE(Table1[[#This Row],[Mode Digit]],(Vout+(Rdson2+Rs+Rdcr)*Table1[[#This Row],[Iout]])/(Table1[[#This Row],[Vin]]+(Rs+Rdson2-Rdson1)*Table1[[#This Row],[Iout]]),1,IF(Table1[[#This Row],[Vin]]<Vout,D_max_buck_BB,Vout/Table1[[#This Row],[Vin]]*(1-D_min_boost_exitBB_to_buck))) -> 1 | O13: =CHOOSE(Table1[[#This Row],[Mode Digit]],0,(Vout+(Rdson3+Rdcr)*Table1[[#This Row],[Iin]]-Table1[[#This Row],[Vin]])/(Vout+(Rdson3-Rdson4-Rs)*Table1[[#This Row],[Iin]]),IF(Table1[[#This Row],[Vin]]>Vout, (Vout-Table1[[#This Row],[Vin]]*D_max_exitBB_to_buck)/Vout, (Vout-Table1[[#This Row],[Vin]]*D_max_buck_BB)/Vout)) -> 0.4852698252 | P13: =CHOOSE(Table1[[#This Row],[Mode Digit]],0,0,1-((Table1[[#This Row],[Vin]]-Vout)+((VIN_BB_to_buck-VIN_BB_to_boost)/2))/((VIN_BB_to_buck-VIN_BB_to_boost))) -> 0 | Q13: =CHOOSE(Table1[[#This Row],[Mode Digit]],0,Table1[[#This Row],[Duty Cycle BOOST Leg]]/Fsw,(1/Fsw-Table1[[#This Row],[T BOD/BUE]])*Table1[[#This Row],[BOE/BUD BUBO ratio]]) -> 8.060960551e-07 | R13: =CHOOSE(Table1[[#This Row],[Mode Digit]],Table1[[#This Row],[Duty Cycle BUCK Leg]]/Fsw,(1-Table1[[#This Row],[Duty Cycle BOOST Leg]])/Fsw,TonBubo) -> 8.55033513e-07 | S13: =CHOOSE(Table1[[#This Row],[Mode Digit]],(1-Table1[[#This Row],[Duty Cycle BUCK Leg]])/Fsw,0,(1/Fsw-Table1[[#This Row],[T BOD/BUE]]-Table1[[#This Row],[T BOE]])) -> 0 | T13: =MAX(0, CHOOSE(Table1[[#This Row],[Mode Digit]], (Table1[[#This Row],[Vin]]-(Rdson1+Rdcr)*Table1[[#This Row],[Iout]]-Vout)*Table1[[#This Row],[Duty Cycle BUCK Leg]]/(Fsw*Lf), (Table1[[#This Row],[Vin]]-(Rdson4+Rdcr+Rs)*Table1[[#This Row],[Iin]])*Table1[[#This Row],[Duty Cycle BOOST Leg]]/(Fsw*Lf), IF(Table1[[#This Row],[Vin]]<Vout, (Table1[[#This Row],[Vin]]-(Rdson1+Rdson3+Rdcr+Rs)*Table1[[#This Row],[Iin]])*Table1[[#This Row],[T BOE]]/(Lf),(Vout-(Rdson2+Rdson4+Rdcr+Rs)*Table1[[#This Row],[Iout]])*Table1[[#This Row],[T BUD]]/(Lf)))) -> 3.013796447 | U13: =CHOOSE(Table1[[#This Row],[Mode Digit]], SQRT(Table1[[#This Row],[Iout]]^2+(Table1[[#This Row],[Ripple Current pk-pk]]^2)/12), SQRT(Table1[[#This Row],[Iin]]^2+(Table1[[#This Row],[Ripple Current pk-pk]]^2)/12), SQRT(Table1[[#This Row],[Avg IL]]^2+(Table1[[#This Row],[Ripple Current pk-pk]]^2)/12)) -> 12.17686875 | V13: =(Table1[[#This Row],[Irms Lf]]^2*Rdcr*(1+Ltc*Ta-Ltc*25))/(1-Table1[[#This Row],[Irms Lf]]^2*Rdcr*Ltc*ThetaCa) -> 0.9064635032 | W13: =ABS(7.759*10^-3*Fsw^0.9458*(0.00787*Table1[[#This Row],[Ripple Current pk-pk]])^2.304) -> 0.409592844 | X13: =Table1[[#This Row],[DCR Loss]]+Table1[[#This Row],[Core Loss]] -> 1.316056347 | Y13: =IF(Table1[[#This Row],[Vin]]>Vout, Table1[[#This Row],[Ripple Current pk-pk]]/SQRT(12), SQRT(Table1[[#This Row],[Duty Cycle BOOST Leg]]/(1-Table1[[#This Row],[Duty Cycle BOOST Leg]]))*SQRT(Table1[[#This Row],[Iout]]^2+(Table1[[#This Row],[Ripple Current pk-pk]]^2)/12)) -> 5.886692507 | Z13: =RCoutEsr*Table1[[#This Row],[Irms Cout]]^2 -> 0.103959446 | AA13: =Table1[[#This Row],[Cout ESR Loss]] -> 0.103959446 | AB13: =IF(Table1[[#This Row],[Vin]]>Vout, SQRT(Table1[[#This Row],[Duty Cycle BUCK Leg]]*(1-Table1[[#This Row],[Duty Cycle BUCK Leg]]))*SQRT(Table1[[#This Row],[Iout]]^2+(Table1[[#This Row],[Ripple Current pk-pk]]^2)/12), Table1[[#This Row],[Ripple Current pk-pk]]/SQRT(12)) -> 0.870008095 | AC13: =RCinEsr*Table1[[#This Row],[Irms Cin]]^2 -> 0.001513828171 | AD13: =Table1[[#This Row],[Cin ESR Loss]] -> 0.001513828171 | AE13: =Table1[[#This Row],[Irms Lf]] -> 12.17686875 | AF13: =Rdson1*Table1[[#This Row],[Irms BuCtrl]]^2 -> 0.518966464 | AG13: =CHOOSE(Table1[[#This Row],[Mode Digit]], (Table1[[#This Row],[Vin]]*Table1[[#This Row],[Iout]]/2)*(Fsw)*(Tr_buck+Tf_buck), 0, (Table1[[#This Row],[Vin]]*Table1[[#This Row],[Avg IL]]/2)*(Fsw/1)*(Tr_buck+Tf_buck)) -> 0 | AH13: =IF(Table1[[#This Row],[Vin]]>Vout, IF(Table1[[#This Row],[Iout]]>Table1[[#This Row],[Ripple Current pk-pk]]/2,0,ABS(Table1[[#This Row],[Iout]]-Table1[[#This Row],[Ripple Current pk-pk]]/2)*Vsd_Q1*Deadtime*Fsw),0) -> 0 | AI13: =(Table1[[#This Row],[Dead Time Loss BuCtrl]]+Table1[[#This Row],[Transition Loss BuCtrl]]+Table1[[#This Row],[RDS(on) Loss BuCtrl]]*(1+RdsonTopTc*Ta-RdsonTopTc*25))/(1-Table1[[#This Row],[RDS(on) Loss BuCtrl]]*RdsonTopTc*ThetaJA_Q1) -> 0.5999135703 | AJ13: =Table1[[#This Row],[Irms Lf]] -> 12.17686875 | AK13: =Rdson2*Table1[[#This Row],[Irms BuSync]]^2 -> 0.518966464 | AL13: =CHOOSE(Table1[[#This Row],[Mode Digit]], IF(Table1[[#This Row],[Iout]]<Table1[[#This Row],[Ripple Current pk-pk]]/2,Deadtime*Fsw*IF(VfdSky_Q2>0,0,Vsd_Q2)*(Table1[[#This Row],[Iout]]+Table1[[#This Row],[Ripple Current pk-pk]]/2),2*Deadtime*Fsw*IF(VfdSky_Q2>0,0,Vsd_Q2)*Table1[[#This Row],[Iout]]),0, IF(Table1[[#This Row],[Iout]]<Table1[[#This Row],[Ripple Current pk-pk]]/2,Deadtime*Fsw*IF(VfdSky_Q2>0,0,Vsd_Q2)*(Table1[[#This Row],[Iout]]+Table1[[#This Row],[Ripple Current pk-pk]]/2),2*Deadtime*Fsw*IF(VfdSky_Q2>0,0,Vsd_Q2)*Table1[[#This Row],[Iout]])) -> 0 | AM13: =(Table1[[#This Row],[Deadtime Loss BuSync]]+Table1[[#This Row],[RDS(on) Loss BuSync]]*(1+RdsonBotTc*Ta-RdsonBotTc*25))/(1-Table1[[#This Row],[RDS(on) Loss BuSync]]*RdsonBotTc*ThetaJA_Q2) -> 0.5999135703 | AN13: =Table1[[#This Row],[Irms Lf]] -> 12.17686875 | AO13: =Rdson4*Table1[[#This Row],[Irms BoCtlr]]^2 -> 0.518966464 | AP13: =CHOOSE(Table1[[#This Row],[Mode Digit]], 0, (Vout*Table1[[#This Row],[Iin]]/2)*(Fsw)*(Tr_boost+Tf_boost), (Vout*Iout/2)*(Fsw/1)*(Tr_boost+Tf_boost)) -> 1.656378696 | AQ13: =IF(Table1[[#This Row],[Vin]]>Vout, 0, IF(Table1[[#This Row],[Iin]]>Table1[[#This Row],[Ripple Current pk-pk]]/2,0,ABS(Table1[[#This Row],[Iin]]-Table1[[#This Row],[Ripple Current pk-pk]]/2)*Vsd_Q4*Deadtime*Fsw)) -> 0 | AR13: =(Table1[[#This Row],[Dead Time Loss BoCtlr]]+Table1[[#This Row],[Transition Loss BoCtlr]]+Table1[[#This Row],[RDS(on) Loss BoCtlr]]*(1+RdsonTopTc*Ta-RdsonTopTc*25))/(1-Table1[[#This Row],[RDS(on) Loss BoCtlr]]*RdsonTopTc*ThetaJA_Q4) -> 2.514650121 | AS13: =Table1[[#This Row],[Irms Lf]] -> 12.17686875 | AT13: =Rdson3*Table1[[#This Row],[Irms BoSync]]^2 -> 0.518966464 | AU13: =CHOOSE(Table1[[#This Row],[Mode Digit]], 0, IF(Table1[[#This Row],[Iin]]<Table1[[#This Row],[Ripple Current pk-pk]]/2,Deadtime*Fsw*IF(VfdSky_Q3>0,0,Vsd_Q3)*(Table1[[#This Row],[Iin]]+Table1[[#This Row],[Ripple Current pk-pk]]/2), 2*Deadtime*Fsw*IF(VfdSky_Q3>0,0,Vsd_Q3)*Table1[[#This Row],[Iin]]), IF(Table1[[#This Row],[Iin]]<Table1[[#This Row],[Ripple Current pk-pk]]/2,Deadtime*Fsw*IF(VfdSky_Q3>0,0,Vsd_Q3)*(Table1[[#This Row],[Iin]]+Table1[[#This Row],[Ripple Current pk-pk]]/2), 2*Deadtime*Fsw*IF(VfdSky_Q3>0,0,Vsd_Q3)*Table1[[#This Row],[Iin]])) -> 0.5483805668 | AV13: =(Table1[[#This Row],[Deadtime Loss BoSync]]+Table1[[#This Row],[RDS(on) Loss BoSync]]*(1+RdsonBotTc*Ta-RdsonBotTc*25))/(1-Table1[[#This Row],[RDS(on) Loss BoSync]]*RdsonBotTc*ThetaJA_Q3) -> 1.233829182 | AW13: =CHOOSE(Table1[[#This Row],[Mode Digit]], Rdson3*Table1[[#This Row],[Irms Lf]]^2, Rdson1*Table1[[#This Row],[Irms Lf]]^2, 0) -> 0.518966464 | AX13: =CHOOSE(Table1[[#This Row],[Mode Digit]], 2*Deadtime*Fsw*IF(VfdSky_Q2>0,VfdSky_Q2,0)*Table1[[#This Row],[Iout]], 2*Deadtime*Fsw*IF(VfdSky_Q3>0,VfdSky_Q3,0)*Table1[[#This Row],[Iin]], 2*Deadtime*Fsw*IF(VfdSky_Q2>0,VfdSky_Q2,0)*Table1[[#This Row],[Iout]]+2*Deadtime*Fsw*IF(VfdSky_Q3>0,VfdSky_Q3,0)*Table1[[#This Row],[Iin]]) -> 0 | AY13: =CHOOSE(Table1[[#This Row],[Mode Digit]], IF(QrrSky_Q2>0,QrrSky_Q2,Qrr_Q2)*Fsw*(Table1[[#This Row],[Vin]]-Table1[[#This Row],[Iout]]*Rdson1), IF(QrrSky_Q3>0,QrrSky_Q3,Qrr_Q3)*Fsw*Vout, IF(QrrSky_Q2>0,QrrSky_Q2,Qrr_Q2)*Fsw*(Table1[[#This Row],[Vin]]-Table1[[#This Row],[Iout]]*Rdson1)+IF(QrrSky_Q3>0,QrrSky_Q3,Qrr_Q3)*Fsw*Vout) -> 0.809088 | AZ13: =CHOOSE(Table1[[#This Row],[Mode Digit]], Rs*Table1[[#This Row],[Irms BuSync]]^2, Rs*Table1[[#This Row],[Irms BoCtlr]]^2, Rs*(Table1[[#This Row],[Irms BuSync]]^2+Table1[[#This Row],[Irms BoCtlr]]^2)) -> 0.3706903314 | BA13: 0.36 | BB13: =IF(Vout>8, Iq*Vout, Iq*Table1[[#This Row],[Vin]]) -> 0.072 | BC13: =CHOOSE(Table1[[#This Row],[Mode Digit]], (Qg_Q1+Qg_Q2)*Fsw, (Qg_Q3+Qg_Q4)*Fsw, (Qg_Q1+Qg_Q2+Qg_Q3+Qg_Q4)*Fsw)*IF(Vout>8, Vout, Table1[[#This Row],[Vin]]) -> 1.936032 | BD13: 1.733289287 | BE13: =Table1[[#This Row],[IQ Loss]]+Table1[[#This Row],[Switching Current Loss]] -> 2.008032 | BF13: =SUM(Table1[[#This Row],[Total Inductor Loss]],Table1[[#This Row],[Total Cout Loss]],Table1[[#This Row],[Total Cin Loss]],Table1[[#This Row],[Total Control Bu MOSFET Loss]],Table1[[#This Row],[Total Sync Bu MOSFET Loss]],Table1[[#This Row],[Total Control Bo MOSFET Loss]],Table1[[#This Row],[Total Sync Bo MOSFET Loss]], Table1[[#This Row],[Deadtime Loss ext D]],Table1[[#This Row],[Reverse Recovery Loss MOSFET D]],Table1[[#This Row],[Total IC Loss]],Table1[[#This Row],[Isense Shunt Loss]],Table1[[#This Row],[Iout Shunt Loss]]) -> 9.917646397 | BG13: =Vout*Table1[[#This Row],[Iout]] -> 144 | BH13: =Table1[[#This Row],[Pout]]/(Table1[[#This Row],[Pout]]+Table1[[#This Row],[Total Loss]]) -> 0.9355652414 | BI13: =IF(Table1[[#This Row],[Vin]]>Vout,ThetaJA_Q1*(Table1[[#This Row],[Total Control Bu MOSFET Loss]]+Table1[[#This Row],[Reverse Recovery Loss MOSFET D]]),ThetaJA_Q4*(Table1[[#This Row],[Total Control Bo MOSFET Loss]]+Table1[[#This Row],[Reverse Recovery Loss MOSFET D]])) -> 216.0429779 | BJ13: =IF(Table1[[#This Row],[Vin]]>Vout, Table1[[#This Row],[Total Sync Bu MOSFET Loss]]*ThetaJA_Q2, ThetaJA_Q3*Table1[[#This Row],[Total Sync Bo MOSFET Loss]]) -> 80.19889686 | BL13: =Table1[[#This Row],[EFF, h]]*100 -> 93.55652414 | BM13: =Table1[[#This Row],[Total Inductor Loss]] -> 1.316056347 | BN13: =Table1[[#This Row],[Total Control Bu MOSFET Loss]]+Table1[[#This Row],[Total Sync Bu MOSFET Loss]]+Table1[[#This Row],[Total Control Bo MOSFET Loss]]+Table1[[#This Row],[Total Sync Bo MOSFET Loss]]+Table1[[#This Row],[Reverse Recovery Loss MOSFET D]] -> 5.757394444 | BO13: =Table1[[#This Row],[Total Sync Bu MOSFET Loss]]+Table1[[#This Row],[Reverse Recovery Loss MOSFET D]]*0.33 -> 0.8669126103 | BP13: =Table1[[#This Row],[Isense Shunt Loss]] -> 0.3706903314 | BT13: 500kHz / 5-1.2V / 15A | BU13: 30 | BV13: 30 | BW13: 30 | BX13: =500000*(5-Vdd)*BW13/1000000000+((500000*BW9/1000000000*Vdd)*2.5/(2*4)) -> 0.04453125 | BY13: 3.5625 | BZ13: 4.453125 | CA13: 5.34375 | CB13: 6.234375 | CC13: 7.125 | CD13: 8.015625 | CE13: 0.890625 | CF13: 1.3359375 | CG13: 1.78125 | CH13: 2.2265625
A14: Iout | B14: =Iout -> 6 | C14: A | D14: Max Output Current | G14: 5 | H14: =VIN_min+(VIN_max-VIN_min)*(Table1[[#This Row],[Step]]/200) -> 12.6 | I14: =IF(Table1[[#This Row],[Vin]]>VIN_BB_to_buck, "BUCK", IF(Table1[[#This Row],[Vin]]<=VIN_boost_to_BB,"BOOST","BUCK-BST")) -> BOOST | J14: =IF(Table1[[#This Row],[Mode]]="BOOST",2, IF(Table1[[#This Row],[Mode]]="BUCK", 1,3)) -> 2 | K14: 6 | L14: =Vout*Table1[[#This Row],[Iout]]/(Table1[[#This Row],[Vin]]*Efficiency) -> 12.03007519 | M14: =Iout/(1-Table1[[#This Row],[Duty Cycle BOOST Leg]]) -> 11.54319647 | N14: =CHOOSE(Table1[[#This Row],[Mode Digit]],(Vout+(Rdson2+Rs+Rdcr)*Table1[[#This Row],[Iout]])/(Table1[[#This Row],[Vin]]+(Rs+Rdson2-Rdson1)*Table1[[#This Row],[Iout]]),1,IF(Table1[[#This Row],[Vin]]<Vout,D_max_buck_BB,Vout/Table1[[#This Row],[Vin]]*(1-D_min_boost_exitBB_to_buck))) -> 1 | O14: =CHOOSE(Table1[[#This Row],[Mode Digit]],0,(Vout+(Rdson3+Rdcr)*Table1[[#This Row],[Iin]]-Table1[[#This Row],[Vin]])/(Vout+(Rdson3-Rdson4-Rs)*Table1[[#This Row],[Iin]]),IF(Table1[[#This Row],[Vin]]>Vout, (Vout-Table1[[#This Row],[Vin]]*D_max_exitBB_to_buck)/Vout, (Vout-Table1[[#This Row],[Vin]]*D_max_buck_BB)/Vout)) -> 0.4802132999 | P14: =CHOOSE(Table1[[#This Row],[Mode Digit]],0,0,1-((Table1[[#This Row],[Vin]]-Vout)+((VIN_BB_to_buck-VIN_BB_to_boost)/2))/((VIN_BB_to_buck-VIN_BB_to_boost))) -> 0 | Q14: =CHOOSE(Table1[[#This Row],[Mode Digit]],0,Table1[[#This Row],[Duty Cycle BOOST Leg]]/Fsw,(1/Fsw-Table1[[#This Row],[T BOD/BUE]])*Table1[[#This Row],[BOE/BUD BUBO ratio]]) -> 7.976965114e-07 | R14: =CHOOSE(Table1[[#This Row],[Mode Digit]],Table1[[#This Row],[Duty Cycle BUCK Leg]]/Fsw,(1-Table1[[#This Row],[Duty Cycle BOOST Leg]])/Fsw,TonBubo) -> 8.634330567e-07 | S14: =CHOOSE(Table1[[#This Row],[Mode Digit]],(1-Table1[[#This Row],[Duty Cycle BUCK Leg]])/Fsw,0,(1/Fsw-Table1[[#This Row],[T BOD/BUE]]-Table1[[#This Row],[T BOE]])) -> 0 | T14: =MAX(0, CHOOSE(Table1[[#This Row],[Mode Digit]], (Table1[[#This Row],[Vin]]-(Rdson1+Rdcr)*Table1[[#This Row],[Iout]]-Vout)*Table1[[#This Row],[Duty Cycle BUCK Leg]]/(Fsw*Lf), (Table1[[#This Row],[Vin]]-(Rdson4+Rdcr+Rs)*Table1[[#This Row],[Iin]])*Table1[[#This Row],[Duty Cycle BOOST Leg]]/(Fsw*Lf), IF(Table1[[#This Row],[Vin]]<Vout, (Table1[[#This Row],[Vin]]-(Rdson1+Rdson3+Rdcr+Rs)*Table1[[#This Row],[Iin]])*Table1[[#This Row],[T BOE]]/(Lf),(Vout-(Rdson2+Rdson4+Rdcr+Rs)*Table1[[#This Row],[Iout]])*Table1[[#This Row],[T BUD]]/(Lf)))) -> 3.011726897 | U14: =CHOOSE(Table1[[#This Row],[Mode Digit]], SQRT(Table1[[#This Row],[Iout]]^2+(Table1[[#This Row],[Ripple Current pk-pk]]^2)/12), SQRT(Table1[[#This Row],[Iin]]^2+(Table1[[#This Row],[Ripple Current pk-pk]]^2)/12), SQRT(Table1[[#This Row],[Avg IL]]^2+(Table1[[#This Row],[Ripple Current pk-pk]]^2)/12)) -> 12.06145032 | V14: =(Table1[[#This Row],[Irms Lf]]^2*Rdcr*(1+Ltc*Ta-Ltc*25))/(1-Table1[[#This Row],[Irms Lf]]^2*Rdcr*Ltc*ThetaCa) -> 0.8881459634 | W14: =ABS(7.759*10^-3*Fsw^0.9458*(0.00787*Table1[[#This Row],[Ripple Current pk-pk]])^2.304) -> 0.4089451015 | X14: =Table1[[#This Row],[DCR Loss]]+Table1[[#This Row],[Core Loss]] -> 1.297091065 | Y14: =IF(Table1[[#This Row],[Vin]]>Vout, Table1[[#This Row],[Ripple Current pk-pk]]/SQRT(12), SQRT(Table1[[#This Row],[Duty Cycle BOOST Leg]]/(1-Table1[[#This Row],[Duty Cycle BOOST Leg]]))*SQRT(Table1[[#This Row],[Iout]]^2+(Table1[[#This Row],[Ripple Current pk-pk]]^2)/12)) -> 5.827306924 | Z14: =RCoutEsr*Table1[[#This Row],[Irms Cout]]^2 -> 0.101872518 | AA14: =Table1[[#This Row],[Cout ESR Loss]] -> 0.101872518 | AB14: =IF(Table1[[#This Row],[Vin]]>Vout, SQRT(Table1[[#This Row],[Duty Cycle BUCK Leg]]*(1-Table1[[#This Row],[Duty Cycle BUCK Leg]]))*SQRT(Table1[[#This Row],[Iout]]^2+(Table1[[#This Row],[Ripple Current pk-pk]]^2)/12), Table1[[#This Row],[Ripple Current pk-pk]]/SQRT(12)) -> 0.8694106674 | AC14: =RCinEsr*Table1[[#This Row],[Irms Cin]]^2 -> 0.001511749817 | AD14: =Table1[[#This Row],[Cin ESR Loss]] -> 0.001511749817 | AE14: =Table1[[#This Row],[Irms Lf]] -> 12.06145032 | AF14: =Rdson1*Table1[[#This Row],[Irms BuCtrl]]^2 -> 0.5091750438 | AG14: =CHOOSE(Table1[[#This Row],[Mode Digit]], (Table1[[#This Row],[Vin]]*Table1[[#This Row],[Iout]]/2)*(Fsw)*(Tr_buck+Tf_buck), 0, (Table1[[#This Row],[Vin]]*Table1[[#This Row],[Avg IL]]/2)*(Fsw/1)*(Tr_buck+Tf_buck)) -> 0 | AH14: =IF(Table1[[#This Row],[Vin]]>Vout, IF(Table1[[#This Row],[Iout]]>Table1[[#This Row],[Ripple Current pk-pk]]/2,0,ABS(Table1[[#This Row],[Iout]]-Table1[[#This Row],[Ripple Current pk-pk]]/2)*Vsd_Q1*Deadtime*Fsw),0) -> 0 | AI14: =(Table1[[#This Row],[Dead Time Loss BuCtrl]]+Table1[[#This Row],[Transition Loss BuCtrl]]+Table1[[#This Row],[RDS(on) Loss BuCtrl]]*(1+RdsonTopTc*Ta-RdsonTopTc*25))/(1-Table1[[#This Row],[RDS(on) Loss BuCtrl]]*RdsonTopTc*ThetaJA_Q1) -> 0.5868678433 | AJ14: =Table1[[#This Row],[Irms Lf]] -> 12.06145032 | AK14: =Rdson2*Table1[[#This Row],[Irms BuSync]]^2 -> 0.5091750438 | AL14: =CHOOSE(Table1[[#This Row],[Mode Digit]], IF(Table1[[#This Row],[Iout]]<Table1[[#This Row],[Ripple Current pk-pk]]/2,Deadtime*Fsw*IF(VfdSky_Q2>0,0,Vsd_Q2)*(Table1[[#This Row],[Iout]]+Table1[[#This Row],[Ripple Current pk-pk]]/2),2*Deadtime*Fsw*IF(VfdSky_Q2>0,0,Vsd_Q2)*Table1[[#This Row],[Iout]]),0, IF(Table1[[#This Row],[Iout]]<Table1[[#This Row],[Ripple Current pk-pk]]/2,Deadtime*Fsw*IF(VfdSky_Q2>0,0,Vsd_Q2)*(Table1[[#This Row],[Iout]]+Table1[[#This Row],[Ripple Current pk-pk]]/2),2*Deadtime*Fsw*IF(VfdSky_Q2>0,0,Vsd_Q2)*Table1[[#This Row],[Iout]])) -> 0 | AM14: =(Table1[[#This Row],[Deadtime Loss BuSync]]+Table1[[#This Row],[RDS(on) Loss BuSync]]*(1+RdsonBotTc*Ta-RdsonBotTc*25))/(1-Table1[[#This Row],[RDS(on) Loss BuSync]]*RdsonBotTc*ThetaJA_Q2) -> 0.5868678433 | AN14: =Table1[[#This Row],[Irms Lf]] -> 12.06145032 | AO14: =Rdson4*Table1[[#This Row],[Irms BoCtlr]]^2 -> 0.5091750438 | AP14: =CHOOSE(Table1[[#This Row],[Mode Digit]], 0, (Vout*Table1[[#This Row],[Iin]]/2)*(Fsw)*(Tr_boost+Tf_boost), (Vout*Iout/2)*(Fsw/1)*(Tr_boost+Tf_boost)) -> 1.640603661 | AQ14: =IF(Table1[[#This Row],[Vin]]>Vout, 0, IF(Table1[[#This Row],[Iin]]>Table1[[#This Row],[Ripple Current pk-pk]]/2,0,ABS(Table1[[#This Row],[Iin]]-Table1[[#This Row],[Ripple Current pk-pk]]/2)*Vsd_Q4*Deadtime*Fsw)) -> 0 | AR14: =(Table1[[#This Row],[Dead Time Loss BoCtlr]]+Table1[[#This Row],[Transition Loss BoCtlr]]+Table1[[#This Row],[RDS(on) Loss BoCtlr]]*(1+RdsonTopTc*Ta-RdsonTopTc*25))/(1-Table1[[#This Row],[RDS(on) Loss BoCtlr]]*RdsonTopTc*ThetaJA_Q4) -> 2.477804063 | AS14: =Table1[[#This Row],[Irms Lf]] -> 12.06145032 | AT14: =Rdson3*Table1[[#This Row],[Irms BoSync]]^2 -> 0.5091750438 | AU14: =CHOOSE(Table1[[#This Row],[Mode Digit]], 0, IF(Table1[[#This Row],[Iin]]<Table1[[#This Row],[Ripple Current pk-pk]]/2,Deadtime*Fsw*IF(VfdSky_Q3>0,0,Vsd_Q3)*(Table1[[#This Row],[Iin]]+Table1[[#This Row],[Ripple Current pk-pk]]/2), 2*Deadtime*Fsw*IF(VfdSky_Q3>0,0,Vsd_Q3)*Table1[[#This Row],[Iin]]), IF(Table1[[#This Row],[Iin]]<Table1[[#This Row],[Ripple Current pk-pk]]/2,Deadtime*Fsw*IF(VfdSky_Q3>0,0,Vsd_Q3)*(Table1[[#This Row],[Iin]]+Table1[[#This Row],[Ripple Current pk-pk]]/2), 2*Deadtime*Fsw*IF(VfdSky_Q3>0,0,Vsd_Q3)*Table1[[#This Row],[Iin]])) -> 0.5431578947 | AV14: =(Table1[[#This Row],[Deadtime Loss BoSync]]+Table1[[#This Row],[RDS(on) Loss BoSync]]*(1+RdsonBotTc*Ta-RdsonBotTc*25))/(1-Table1[[#This Row],[RDS(on) Loss BoSync]]*RdsonBotTc*ThetaJA_Q3) -> 1.212903833 | AW14: =CHOOSE(Table1[[#This Row],[Mode Digit]], Rdson3*Table1[[#This Row],[Irms Lf]]^2, Rdson1*Table1[[#This Row],[Irms Lf]]^2, 0) -> 0.5091750438 | AX14: =CHOOSE(Table1[[#This Row],[Mode Digit]], 2*Deadtime*Fsw*IF(VfdSky_Q2>0,VfdSky_Q2,0)*Table1[[#This Row],[Iout]], 2*Deadtime*Fsw*IF(VfdSky_Q3>0,VfdSky_Q3,0)*Table1[[#This Row],[Iin]], 2*Deadtime*Fsw*IF(VfdSky_Q2>0,VfdSky_Q2,0)*Table1[[#This Row],[Iout]]+2*Deadtime*Fsw*IF(VfdSky_Q3>0,VfdSky_Q3,0)*Table1[[#This Row],[Iin]]) -> 0 | AY14: =CHOOSE(Table1[[#This Row],[Mode Digit]], IF(QrrSky_Q2>0,QrrSky_Q2,Qrr_Q2)*Fsw*(Table1[[#This Row],[Vin]]-Table1[[#This Row],[Iout]]*Rdson1), IF(QrrSky_Q3>0,QrrSky_Q3,Qrr_Q3)*Fsw*Vout, IF(QrrSky_Q2>0,QrrSky_Q2,Qrr_Q2)*Fsw*(Table1[[#This Row],[Vin]]-Table1[[#This Row],[Iout]]*Rdson1)+IF(QrrSky_Q3>0,QrrSky_Q3,Qrr_Q3)*Fsw*Vout) -> 0.809088 | AZ14: =CHOOSE(Table1[[#This Row],[Mode Digit]], Rs*Table1[[#This Row],[Irms BuSync]]^2, Rs*Table1[[#This Row],[Irms BoCtlr]]^2, Rs*(Table1[[#This Row],[Irms BuSync]]^2+Table1[[#This Row],[Irms BoCtlr]]^2)) -> 0.3636964598 | BA14: 0.36 | BB14: =IF(Vout>8, Iq*Vout, Iq*Table1[[#This Row],[Vin]]) -> 0.072 | BC14: =CHOOSE(Table1[[#This Row],[Mode Digit]], (Qg_Q1+Qg_Q2)*Fsw, (Qg_Q3+Qg_Q4)*Fsw, (Qg_Q1+Qg_Q2+Qg_Q3+Qg_Q4)*Fsw)*IF(Vout>8, Vout, Table1[[#This Row],[Vin]]) -> 1.936032 | BD14: 1.733289287 | BE14: =Table1[[#This Row],[IQ Loss]]+Table1[[#This Row],[Switching Current Loss]] -> 2.008032 | BF14: =SUM(Table1[[#This Row],[Total Inductor Loss]],Table1[[#This Row],[Total Cout Loss]],Table1[[#This Row],[Total Cin Loss]],Table1[[#This Row],[Total Control Bu MOSFET Loss]],Table1[[#This Row],[Total Sync Bu MOSFET Loss]],Table1[[#This Row],[Total Control Bo MOSFET Loss]],Table1[[#This Row],[Total Sync Bo MOSFET Loss]], Table1[[#This Row],[Deadtime Loss ext D]],Table1[[#This Row],[Reverse Recovery Loss MOSFET D]],Table1[[#This Row],[Total IC Loss]],Table1[[#This Row],[Isense Shunt Loss]],Table1[[#This Row],[Iout Shunt Loss]]) -> 9.805735374 | BG14: =Vout*Table1[[#This Row],[Iout]] -> 144 | BH14: =Table1[[#This Row],[Pout]]/(Table1[[#This Row],[Pout]]+Table1[[#This Row],[Total Loss]]) -> 0.9362459706 | BI14: =IF(Table1[[#This Row],[Vin]]>Vout,ThetaJA_Q1*(Table1[[#This Row],[Total Control Bu MOSFET Loss]]+Table1[[#This Row],[Reverse Recovery Loss MOSFET D]]),ThetaJA_Q4*(Table1[[#This Row],[Total Control Bo MOSFET Loss]]+Table1[[#This Row],[Reverse Recovery Loss MOSFET D]])) -> 213.6479841 | BJ14: =IF(Table1[[#This Row],[Vin]]>Vout, Table1[[#This Row],[Total Sync Bu MOSFET Loss]]*ThetaJA_Q2, ThetaJA_Q3*Table1[[#This Row],[Total Sync Bo MOSFET Loss]]) -> 78.83874912 | BL14: =Table1[[#This Row],[EFF, h]]*100 -> 93.62459706 | BM14: =Table1[[#This Row],[Total Inductor Loss]] -> 1.297091065 | BN14: =Table1[[#This Row],[Total Control Bu MOSFET Loss]]+Table1[[#This Row],[Total Sync Bu MOSFET Loss]]+Table1[[#This Row],[Total Control Bo MOSFET Loss]]+Table1[[#This Row],[Total Sync Bo MOSFET Loss]]+Table1[[#This Row],[Reverse Recovery Loss MOSFET D]] -> 5.673531582 | BO14: =Table1[[#This Row],[Total Sync Bu MOSFET Loss]]+Table1[[#This Row],[Reverse Recovery Loss MOSFET D]]*0.33 -> 0.8538668833 | BP14: =Table1[[#This Row],[Isense Shunt Loss]] -> 0.3636964598 | BT14: 500kHz / 12-5V / 15A | BU14: 45 | BV14: 45 | BW14: 45 | BX14: =500000*(12-Vdd)*BW14/1000000000+((500000*BW9/1000000000*Vdd)*2.5/(2*4)) -> 0.18328125 | BY14: 14.6625 | BZ14: 18.328125 | CA14: 21.99375 | CB14: 25.659375 | CC14: 29.325 | CD14: 32.990625 | CE14: 3.665625 | CF14: 5.4984375 | CG14: 7.33125 | CH14: 9.1640625
A15: Ta | B15: =Ta -> 25 | C15: °C | D15: Ambient Temperature | G15: 6 | H15: =VIN_min+(VIN_max-VIN_min)*(Table1[[#This Row],[Step]]/200) -> 12.72 | I15: =IF(Table1[[#This Row],[Vin]]>VIN_BB_to_buck, "BUCK", IF(Table1[[#This Row],[Vin]]<=VIN_boost_to_BB,"BOOST","BUCK-BST")) -> BOOST | J15: =IF(Table1[[#This Row],[Mode]]="BOOST",2, IF(Table1[[#This Row],[Mode]]="BUCK", 1,3)) -> 2 | K15: 6 | L15: =Vout*Table1[[#This Row],[Iout]]/(Table1[[#This Row],[Vin]]*Efficiency) -> 11.91658391 | M15: =Iout/(1-Table1[[#This Row],[Duty Cycle BOOST Leg]]) -> 11.43200849 | N15: =CHOOSE(Table1[[#This Row],[Mode Digit]],(Vout+(Rdson2+Rs+Rdcr)*Table1[[#This Row],[Iout]])/(Table1[[#This Row],[Vin]]+(Rs+Rdson2-Rdson1)*Table1[[#This Row],[Iout]]),1,IF(Table1[[#This Row],[Vin]]<Vout,D_max_buck_BB,Vout/Table1[[#This Row],[Vin]]*(1-D_min_boost_exitBB_to_buck))) -> 1 | O15: =CHOOSE(Table1[[#This Row],[Mode Digit]],0,(Vout+(Rdson3+Rdcr)*Table1[[#This Row],[Iin]]-Table1[[#This Row],[Vin]])/(Vout+(Rdson3-Rdson4-Rs)*Table1[[#This Row],[Iin]]),IF(Table1[[#This Row],[Vin]]>Vout, (Vout-Table1[[#This Row],[Vin]]*D_max_exitBB_to_buck)/Vout, (Vout-Table1[[#This Row],[Vin]]*D_max_buck_BB)/Vout)) -> 0.4751578424 | P15: =CHOOSE(Table1[[#This Row],[Mode Digit]],0,0,1-((Table1[[#This Row],[Vin]]-Vout)+((VIN_BB_to_buck-VIN_BB_to_boost)/2))/((VIN_BB_to_buck-VIN_BB_to_boost))) -> 0 | Q15: =CHOOSE(Table1[[#This Row],[Mode Digit]],0,Table1[[#This Row],[Duty Cycle BOOST Leg]]/Fsw,(1/Fsw-Table1[[#This Row],[T BOD/BUE]])*Table1[[#This Row],[BOE/BUD BUBO ratio]]) -> 7.892987415e-07 | R15: =CHOOSE(Table1[[#This Row],[Mode Digit]],Table1[[#This Row],[Duty Cycle BUCK Leg]]/Fsw,(1-Table1[[#This Row],[Duty Cycle BOOST Leg]])/Fsw,TonBubo) -> 8.718308266e-07 | S15: =CHOOSE(Table1[[#This Row],[Mode Digit]],(1-Table1[[#This Row],[Duty Cycle BUCK Leg]])/Fsw,0,(1/Fsw-Table1[[#This Row],[T BOD/BUE]]-Table1[[#This Row],[T BOE]])) -> 0 | T15: =MAX(0, CHOOSE(Table1[[#This Row],[Mode Digit]], (Table1[[#This Row],[Vin]]-(Rdson1+Rdcr)*Table1[[#This Row],[Iout]]-Vout)*Table1[[#This Row],[Duty Cycle BUCK Leg]]/(Fsw*Lf), (Table1[[#This Row],[Vin]]-(Rdson4+Rdcr+Rs)*Table1[[#This Row],[Iin]])*Table1[[#This Row],[Duty Cycle BOOST Leg]]/(Fsw*Lf), IF(Table1[[#This Row],[Vin]]<Vout, (Table1[[#This Row],[Vin]]-(Rdson1+Rdson3+Rdcr+Rs)*Table1[[#This Row],[Iin]])*Table1[[#This Row],[T BOE]]/(Lf),(Vout-(Rdson2+Rdson4+Rdcr+Rs)*Table1[[#This Row],[Iout]])*Table1[[#This Row],[T BUD]]/(Lf)))) -> 3.009040236 | U15: =CHOOSE(Table1[[#This Row],[Mode Digit]], SQRT(Table1[[#This Row],[Iout]]^2+(Table1[[#This Row],[Ripple Current pk-pk]]^2)/12), SQRT(Table1[[#This Row],[Iin]]^2+(Table1[[#This Row],[Ripple Current pk-pk]]^2)/12), SQRT(Table1[[#This Row],[Avg IL]]^2+(Table1[[#This Row],[Ripple Current pk-pk]]^2)/12)) -> 11.94820066 | V15: =(Table1[[#This Row],[Irms Lf]]^2*Rdcr*(1+Ltc*Ta-Ltc*25))/(1-Table1[[#This Row],[Irms Lf]]^2*Rdcr*Ltc*ThetaCa) -> 0.8703900872 | W15: =ABS(7.759*10^-3*Fsw^0.9458*(0.00787*Table1[[#This Row],[Ripple Current pk-pk]])^2.304) -> 0.4081050767 | X15: =Table1[[#This Row],[DCR Loss]]+Table1[[#This Row],[Core Loss]] -> 1.278495164 | Y15: =IF(Table1[[#This Row],[Vin]]>Vout, Table1[[#This Row],[Ripple Current pk-pk]]/SQRT(12), SQRT(Table1[[#This Row],[Duty Cycle BOOST Leg]]/(1-Table1[[#This Row],[Duty Cycle BOOST Leg]]))*SQRT(Table1[[#This Row],[Iout]]^2+(Table1[[#This Row],[Ripple Current pk-pk]]^2)/12)) -> 5.768461699 | Z15: =RCoutEsr*Table1[[#This Row],[Irms Cout]]^2 -> 0.09982545111 | AA15: =Table1[[#This Row],[Cout ESR Loss]] -> 0.09982545111 | AB15: =IF(Table1[[#This Row],[Vin]]>Vout, SQRT(Table1[[#This Row],[Duty Cycle BUCK Leg]]*(1-Table1[[#This Row],[Duty Cycle BUCK Leg]]))*SQRT(Table1[[#This Row],[Iout]]^2+(Table1[[#This Row],[Ripple Current pk-pk]]^2)/12), Table1[[#This Row],[Ripple Current pk-pk]]/SQRT(12)) -> 0.8686350952 | AC15: =RCinEsr*Table1[[#This Row],[Irms Cin]]^2 -> 0.001509053857 | AD15: =Table1[[#This Row],[Cin ESR Loss]] -> 0.001509053857 | AE15: =Table1[[#This Row],[Irms Lf]] -> 11.94820066 | AF15: =Rdson1*Table1[[#This Row],[Irms BuCtrl]]^2 -> 0.4996582468 | AG15: =CHOOSE(Table1[[#This Row],[Mode Digit]], (Table1[[#This Row],[Vin]]*Table1[[#This Row],[Iout]]/2)*(Fsw)*(Tr_buck+Tf_buck), 0, (Table1[[#This Row],[Vin]]*Table1[[#This Row],[Avg IL]]/2)*(Fsw/1)*(Tr_buck+Tf_buck)) -> 0 | AH15: =IF(Table1[[#This Row],[Vin]]>Vout, IF(Table1[[#This Row],[Iout]]>Table1[[#This Row],[Ripple Current pk-pk]]/2,0,ABS(Table1[[#This Row],[Iout]]-Table1[[#This Row],[Ripple Current pk-pk]]/2)*Vsd_Q1*Deadtime*Fsw),0) -> 0 | AI15: =(Table1[[#This Row],[Dead Time Loss BuCtrl]]+Table1[[#This Row],[Transition Loss BuCtrl]]+Table1[[#This Row],[RDS(on) Loss BuCtrl]]*(1+RdsonTopTc*Ta-RdsonTopTc*25))/(1-Table1[[#This Row],[RDS(on) Loss BuCtrl]]*RdsonTopTc*ThetaJA_Q1) -> 0.5742611728 | AJ15: =Table1[[#This Row],[Irms Lf]] -> 11.94820066 | AK15: =Rdson2*Table1[[#This Row],[Irms BuSync]]^2 -> 0.4996582468 | AL15: =CHOOSE(Table1[[#This Row],[Mode Digit]], IF(Table1[[#This Row],[Iout]]<Table1[[#This Row],[Ripple Current pk-pk]]/2,Deadtime*Fsw*IF(VfdSky_Q2>0,0,Vsd_Q2)*(Table1[[#This Row],[Iout]]+Table1[[#This Row],[Ripple Current pk-pk]]/2),2*Deadtime*Fsw*IF(VfdSky_Q2>0,0,Vsd_Q2)*Table1[[#This Row],[Iout]]),0, IF(Table1[[#This Row],[Iout]]<Table1[[#This Row],[Ripple Current pk-pk]]/2,Deadtime*Fsw*IF(VfdSky_Q2>0,0,Vsd_Q2)*(Table1[[#This Row],[Iout]]+Table1[[#This Row],[Ripple Current pk-pk]]/2),2*Deadtime*Fsw*IF(VfdSky_Q2>0,0,Vsd_Q2)*Table1[[#This Row],[Iout]])) -> 0 | AM15: =(Table1[[#This Row],[Deadtime Loss BuSync]]+Table1[[#This Row],[RDS(on) Loss BuSync]]*(1+RdsonBotTc*Ta-RdsonBotTc*25))/(1-Table1[[#This Row],[RDS(on) Loss BuSync]]*RdsonBotTc*ThetaJA_Q2) -> 0.5742611728 | AN15: =Table1[[#This Row],[Irms Lf]] -> 11.94820066 | AO15: =Rdson4*Table1[[#This Row],[Irms BoCtlr]]^2 -> 0.4996582468 | AP15: =CHOOSE(Table1[[#This Row],[Mode Digit]], 0, (Vout*Table1[[#This Row],[Iin]]/2)*(Fsw)*(Tr_boost+Tf_boost), (Vout*Iout/2)*(Fsw/1)*(Tr_boost+Tf_boost)) -> 1.625126268 | AQ15: =IF(Table1[[#This Row],[Vin]]>Vout, 0, IF(Table1[[#This Row],[Iin]]>Table1[[#This Row],[Ripple Current pk-pk]]/2,0,ABS(Table1[[#This Row],[Iin]]-Table1[[#This Row],[Ripple Current pk-pk]]/2)*Vsd_Q4*Deadtime*Fsw)) -> 0 | AR15: =(Table1[[#This Row],[Dead Time Loss BoCtlr]]+Table1[[#This Row],[Transition Loss BoCtlr]]+Table1[[#This Row],[RDS(on) Loss BoCtlr]]*(1+RdsonTopTc*Ta-RdsonTopTc*25))/(1-Table1[[#This Row],[RDS(on) Loss BoCtlr]]*RdsonTopTc*ThetaJA_Q4) -> 2.442031639 | AS15: =Table1[[#This Row],[Irms Lf]] -> 11.94820066 | AT15: =Rdson3*Table1[[#This Row],[Irms BoSync]]^2 -> 0.4996582468 | AU15: =CHOOSE(Table1[[#This Row],[Mode Digit]], 0, IF(Table1[[#This Row],[Iin]]<Table1[[#This Row],[Ripple Current pk-pk]]/2,Deadtime*Fsw*IF(VfdSky_Q3>0,0,Vsd_Q3)*(Table1[[#This Row],[Iin]]+Table1[[#This Row],[Ripple Current pk-pk]]/2), 2*Deadtime*Fsw*IF(VfdSky_Q3>0,0,Vsd_Q3)*Table1[[#This Row],[Iin]]), IF(Table1[[#This Row],[Iin]]<Table1[[#This Row],[Ripple Current pk-pk]]/2,Deadtime*Fsw*IF(VfdSky_Q3>0,0,Vsd_Q3)*(Table1[[#This Row],[Iin]]+Table1[[#This Row],[Ripple Current pk-pk]]/2), 2*Deadtime*Fsw*IF(VfdSky_Q3>0,0,Vsd_Q3)*Table1[[#This Row],[Iin]])) -> 0.5380337637 | AV15: =(Table1[[#This Row],[Deadtime Loss BoSync]]+Table1[[#This Row],[RDS(on) Loss BoSync]]*(1+RdsonBotTc*Ta-RdsonBotTc*25))/(1-Table1[[#This Row],[RDS(on) Loss BoSync]]*RdsonBotTc*ThetaJA_Q3) -> 1.19262763 | AW15: =CHOOSE(Table1[[#This Row],[Mode Digit]], Rdson3*Table1[[#This Row],[Irms Lf]]^2, Rdson1*Table1[[#This Row],[Irms Lf]]^2, 0) -> 0.4996582468 | AX15: =CHOOSE(Table1[[#This Row],[Mode Digit]], 2*Deadtime*Fsw*IF(VfdSky_Q2>0,VfdSky_Q2,0)*Table1[[#This Row],[Iout]], 2*Deadtime*Fsw*IF(VfdSky_Q3>0,VfdSky_Q3,0)*Table1[[#This Row],[Iin]], 2*Deadtime*Fsw*IF(VfdSky_Q2>0,VfdSky_Q2,0)*Table1[[#This Row],[Iout]]+2*Deadtime*Fsw*IF(VfdSky_Q3>0,VfdSky_Q3,0)*Table1[[#This Row],[Iin]]) -> 0 | AY15: =CHOOSE(Table1[[#This Row],[Mode Digit]], IF(QrrSky_Q2>0,QrrSky_Q2,Qrr_Q2)*Fsw*(Table1[[#This Row],[Vin]]-Table1[[#This Row],[Iout]]*Rdson1), IF(QrrSky_Q3>0,QrrSky_Q3,Qrr_Q3)*Fsw*Vout, IF(QrrSky_Q2>0,QrrSky_Q2,Qrr_Q2)*Fsw*(Table1[[#This Row],[Vin]]-Table1[[#This Row],[Iout]]*Rdson1)+IF(QrrSky_Q3>0,QrrSky_Q3,Qrr_Q3)*Fsw*Vout) -> 0.809088 | AZ15: =CHOOSE(Table1[[#This Row],[Mode Digit]], Rs*Table1[[#This Row],[Irms BuSync]]^2, Rs*Table1[[#This Row],[Irms BoCtlr]]^2, Rs*(Table1[[#This Row],[Irms BuSync]]^2+Table1[[#This Row],[Irms BoCtlr]]^2)) -> 0.3568987477 | BA15: 0.36 | BB15: =IF(Vout>8, Iq*Vout, Iq*Table1[[#This Row],[Vin]]) -> 0.072 | BC15: =CHOOSE(Table1[[#This Row],[Mode Digit]], (Qg_Q1+Qg_Q2)*Fsw, (Qg_Q3+Qg_Q4)*Fsw, (Qg_Q1+Qg_Q2+Qg_Q3+Qg_Q4)*Fsw)*IF(Vout>8, Vout, Table1[[#This Row],[Vin]]) -> 1.936032 | BD15: 1.733289287 | BE15: =Table1[[#This Row],[IQ Loss]]+Table1[[#This Row],[Switching Current Loss]] -> 2.008032 | BF15: =SUM(Table1[[#This Row],[Total Inductor Loss]],Table1[[#This Row],[Total Cout Loss]],Table1[[#This Row],[Total Cin Loss]],Table1[[#This Row],[Total Control Bu MOSFET Loss]],Table1[[#This Row],[Total Sync Bu MOSFET Loss]],Table1[[#This Row],[Total Control Bo MOSFET Loss]],Table1[[#This Row],[Total Sync Bo MOSFET Loss]], Table1[[#This Row],[Deadtime Loss ext D]],Table1[[#This Row],[Reverse Recovery Loss MOSFET D]],Table1[[#This Row],[Total IC Loss]],Table1[[#This Row],[Isense Shunt Loss]],Table1[[#This Row],[Iout Shunt Loss]]) -> 9.697030031 | BG15: =Vout*Table1[[#This Row],[Iout]] -> 144 | BH15: =Table1[[#This Row],[Pout]]/(Table1[[#This Row],[Pout]]+Table1[[#This Row],[Total Loss]]) -> 0.9369081496 | BI15: =IF(Table1[[#This Row],[Vin]]>Vout,ThetaJA_Q1*(Table1[[#This Row],[Total Control Bu MOSFET Loss]]+Table1[[#This Row],[Reverse Recovery Loss MOSFET D]]),ThetaJA_Q4*(Table1[[#This Row],[Total Control Bo MOSFET Loss]]+Table1[[#This Row],[Reverse Recovery Loss MOSFET D]])) -> 211.3227765 | BJ15: =IF(Table1[[#This Row],[Vin]]>Vout, Table1[[#This Row],[Total Sync Bu MOSFET Loss]]*ThetaJA_Q2, ThetaJA_Q3*Table1[[#This Row],[Total Sync Bo MOSFET Loss]]) -> 77.52079598 | BL15: =Table1[[#This Row],[EFF, h]]*100 -> 93.69081496 | BM15: =Table1[[#This Row],[Total Inductor Loss]] -> 1.278495164 | BN15: =Table1[[#This Row],[Total Control Bu MOSFET Loss]]+Table1[[#This Row],[Total Sync Bu MOSFET Loss]]+Table1[[#This Row],[Total Control Bo MOSFET Loss]]+Table1[[#This Row],[Total Sync Bo MOSFET Loss]]+Table1[[#This Row],[Reverse Recovery Loss MOSFET D]] -> 5.592269615 | BO15: =Table1[[#This Row],[Total Sync Bu MOSFET Loss]]+Table1[[#This Row],[Reverse Recovery Loss MOSFET D]]*0.33 -> 0.8412602128 | BP15: =Table1[[#This Row],[Isense Shunt Loss]] -> 0.3568987477 | BT15: 1Mhz / 5-1.2V / 10A | BU15: 20 | BV15: 20 | BW15: 20 | BX15: =1000000*(5-Vdd)*BW15/1000000000+((1000000*BW9/1000000000*Vdd)*2.5/(2*4)) -> 0.1140625 | BY15: 9.125 | BZ15: 11.40625 | CA15: 13.6875 | CB15: 15.96875 | CC15: 18.25 | CD15: 20.53125 | CE15: 2.28125 | CF15: 3.421875 | CG15: 4.5625 | CH15: 5.703125
A16: Vcc | B16: =Vdd -> 7.5 | C16: V | D16: Subregulated VCC Voltage | G16: 7 | H16: =VIN_min+(VIN_max-VIN_min)*(Table1[[#This Row],[Step]]/200) -> 12.84 | I16: =IF(Table1[[#This Row],[Vin]]>VIN_BB_to_buck, "BUCK", IF(Table1[[#This Row],[Vin]]<=VIN_boost_to_BB,"BOOST","BUCK-BST")) -> BOOST | J16: =IF(Table1[[#This Row],[Mode]]="BOOST",2, IF(Table1[[#This Row],[Mode]]="BUCK", 1,3)) -> 2 | K16: 6 | L16: =Vout*Table1[[#This Row],[Iout]]/(Table1[[#This Row],[Vin]]*Efficiency) -> 11.80521397 | M16: =Iout/(1-Table1[[#This Row],[Duty Cycle BOOST Leg]]) -> 11.32296425 | N16: =CHOOSE(Table1[[#This Row],[Mode Digit]],(Vout+(Rdson2+Rs+Rdcr)*Table1[[#This Row],[Iout]])/(Table1[[#This Row],[Vin]]+(Rs+Rdson2-Rdson1)*Table1[[#This Row],[Iout]]),1,IF(Table1[[#This Row],[Vin]]<Vout,D_max_buck_BB,Vout/Table1[[#This Row],[Vin]]*(1-D_min_boost_exitBB_to_buck))) -> 1 | O16: =CHOOSE(Table1[[#This Row],[Mode Digit]],0,(Vout+(Rdson3+Rdcr)*Table1[[#This Row],[Iin]]-Table1[[#This Row],[Vin]])/(Vout+(Rdson3-Rdson4-Rs)*Table1[[#This Row],[Iin]]),IF(Table1[[#This Row],[Vin]]>Vout, (Vout-Table1[[#This Row],[Vin]]*D_max_exitBB_to_buck)/Vout, (Vout-Table1[[#This Row],[Vin]]*D_max_buck_BB)/Vout)) -> 0.4701034228 | P16: =CHOOSE(Table1[[#This Row],[Mode Digit]],0,0,1-((Table1[[#This Row],[Vin]]-Vout)+((VIN_BB_to_buck-VIN_BB_to_boost)/2))/((VIN_BB_to_buck-VIN_BB_to_boost))) -> 0 | Q16: =CHOOSE(Table1[[#This Row],[Mode Digit]],0,Table1[[#This Row],[Duty Cycle BOOST Leg]]/Fsw,(1/Fsw-Table1[[#This Row],[T BOD/BUE]])*Table1[[#This Row],[BOE/BUD BUBO ratio]]) -> 7.809026957e-07 | R16: =CHOOSE(Table1[[#This Row],[Mode Digit]],Table1[[#This Row],[Duty Cycle BUCK Leg]]/Fsw,(1-Table1[[#This Row],[Duty Cycle BOOST Leg]])/Fsw,TonBubo) -> 8.802268724e-07 | S16: =CHOOSE(Table1[[#This Row],[Mode Digit]],(1-Table1[[#This Row],[Duty Cycle BUCK Leg]])/Fsw,0,(1/Fsw-Table1[[#This Row],[T BOD/BUE]]-Table1[[#This Row],[T BOE]])) -> 0 | T16: =MAX(0, CHOOSE(Table1[[#This Row],[Mode Digit]], (Table1[[#This Row],[Vin]]-(Rdson1+Rdcr)*Table1[[#This Row],[Iout]]-Vout)*Table1[[#This Row],[Duty Cycle BUCK Leg]]/(Fsw*Lf), (Table1[[#This Row],[Vin]]-(Rdson4+Rdcr+Rs)*Table1[[#This Row],[Iin]])*Table1[[#This Row],[Duty Cycle BOOST Leg]]/(Fsw*Lf), IF(Table1[[#This Row],[Vin]]<Vout, (Table1[[#This Row],[Vin]]-(Rdson1+Rdson3+Rdcr+Rs)*Table1[[#This Row],[Iin]])*Table1[[#This Row],[T BOE]]/(Lf),(Vout-(Rdson2+Rdson4+Rdcr+Rs)*Table1[[#This Row],[Iout]])*Table1[[#This Row],[T BUD]]/(Lf)))) -> 3.005736833 | U16: =CHOOSE(Table1[[#This Row],[Mode Digit]], SQRT(Table1[[#This Row],[Iout]]^2+(Table1[[#This Row],[Ripple Current pk-pk]]^2)/12), SQRT(Table1[[#This Row],[Iin]]^2+(Table1[[#This Row],[Ripple Current pk-pk]]^2)/12), SQRT(Table1[[#This Row],[Avg IL]]^2+(Table1[[#This Row],[Ripple Current pk-pk]]^2)/12)) -> 11.83705825 | V16: =(Table1[[#This Row],[Irms Lf]]^2*Rdcr*(1+Ltc*Ta-Ltc*25))/(1-Table1[[#This Row],[Irms Lf]]^2*Rdcr*Ltc*ThetaCa) -> 0.8531725484 | W16: =ABS(7.759*10^-3*Fsw^0.9458*(0.00787*Table1[[#This Row],[Ripple Current pk-pk]])^2.304) -> 0.4070735579 | X16: =Table1[[#This Row],[DCR Loss]]+Table1[[#This Row],[Core Loss]] -> 1.260246106 | Y16: =IF(Table1[[#This Row],[Vin]]>Vout, Table1[[#This Row],[Ripple Current pk-pk]]/SQRT(12), SQRT(Table1[[#This Row],[Duty Cycle BOOST Leg]]/(1-Table1[[#This Row],[Duty Cycle BOOST Leg]]))*SQRT(Table1[[#This Row],[Iout]]^2+(Table1[[#This Row],[Ripple Current pk-pk]]^2)/12)) -> 5.710140385 | Z16: =RCoutEsr*Table1[[#This Row],[Irms Cout]]^2 -> 0.09781710964 | AA16: =Table1[[#This Row],[Cout ESR Loss]] -> 0.09781710964 | AB16: =IF(Table1[[#This Row],[Vin]]>Vout, SQRT(Table1[[#This Row],[Duty Cycle BUCK Leg]]*(1-Table1[[#This Row],[Duty Cycle BUCK Leg]]))*SQRT(Table1[[#This Row],[Iout]]^2+(Table1[[#This Row],[Ripple Current pk-pk]]^2)/12), Table1[[#This Row],[Ripple Current pk-pk]]/SQRT(12)) -> 0.8676814848 | AC16: =RCinEsr*Table1[[#This Row],[Irms Cin]]^2 -> 0.001505742318 | AD16: =Table1[[#This Row],[Cin ESR Loss]] -> 0.001505742318 | AE16: =Table1[[#This Row],[Irms Lf]] -> 11.83705825 | AF16: =Rdson1*Table1[[#This Row],[Irms BuCtrl]]^2 -> 0.4904058181 | AG16: =CHOOSE(Table1[[#This Row],[Mode Digit]], (Table1[[#This Row],[Vin]]*Table1[[#This Row],[Iout]]/2)*(Fsw)*(Tr_buck+Tf_buck), 0, (Table1[[#This Row],[Vin]]*Table1[[#This Row],[Avg IL]]/2)*(Fsw/1)*(Tr_buck+Tf_buck)) -> 0 | AH16: =IF(Table1[[#This Row],[Vin]]>Vout, IF(Table1[[#This Row],[Iout]]>Table1[[#This Row],[Ripple Current pk-pk]]/2,0,ABS(Table1[[#This Row],[Iout]]-Table1[[#This Row],[Ripple Current pk-pk]]/2)*Vsd_Q1*Deadtime*Fsw),0) -> 0 | AI16: =(Table1[[#This Row],[Dead Time Loss BuCtrl]]+Table1[[#This Row],[Transition Loss BuCtrl]]+Table1[[#This Row],[RDS(on) Loss BuCtrl]]*(1+RdsonTopTc*Ta-RdsonTopTc*25))/(1-Table1[[#This Row],[RDS(on) Loss BuCtrl]]*RdsonTopTc*ThetaJA_Q1) -> 0.5620732569 | AJ16: =Table1[[#This Row],[Irms Lf]] -> 11.83705825 | AK16: =Rdson2*Table1[[#This Row],[Irms BuSync]]^2 -> 0.4904058181 | AL16: =CHOOSE(Table1[[#This Row],[Mode Digit]], IF(Table1[[#This Row],[Iout]]<Table1[[#This Row],[Ripple Current pk-pk]]/2,Deadtime*Fsw*IF(VfdSky_Q2>0,0,Vsd_Q2)*(Table1[[#This Row],[Iout]]+Table1[[#This Row],[Ripple Current pk-pk]]/2),2*Deadtime*Fsw*IF(VfdSky_Q2>0,0,Vsd_Q2)*Table1[[#This Row],[Iout]]),0, IF(Table1[[#This Row],[Iout]]<Table1[[#This Row],[Ripple Current pk-pk]]/2,Deadtime*Fsw*IF(VfdSky_Q2>0,0,Vsd_Q2)*(Table1[[#This Row],[Iout]]+Table1[[#This Row],[Ripple Current pk-pk]]/2),2*Deadtime*Fsw*IF(VfdSky_Q2>0,0,Vsd_Q2)*Table1[[#This Row],[Iout]])) -> 0 | AM16: =(Table1[[#This Row],[Deadtime Loss BuSync]]+Table1[[#This Row],[RDS(on) Loss BuSync]]*(1+RdsonBotTc*Ta-RdsonBotTc*25))/(1-Table1[[#This Row],[RDS(on) Loss BuSync]]*RdsonBotTc*ThetaJA_Q2) -> 0.5620732569 | AN16: =Table1[[#This Row],[Irms Lf]] -> 11.83705825 | AO16: =Rdson4*Table1[[#This Row],[Irms BoCtlr]]^2 -> 0.4904058181 | AP16: =CHOOSE(Table1[[#This Row],[Mode Digit]], 0, (Vout*Table1[[#This Row],[Iin]]/2)*(Fsw)*(Tr_boost+Tf_boost), (Vout*Iout/2)*(Fsw/1)*(Tr_boost+Tf_boost)) -> 1.609938172 | AQ16: =IF(Table1[[#This Row],[Vin]]>Vout, 0, IF(Table1[[#This Row],[Iin]]>Table1[[#This Row],[Ripple Current pk-pk]]/2,0,ABS(Table1[[#This Row],[Iin]]-Table1[[#This Row],[Ripple Current pk-pk]]/2)*Vsd_Q4*Deadtime*Fsw)) -> 0 | AR16: =(Table1[[#This Row],[Dead Time Loss BoCtlr]]+Table1[[#This Row],[Transition Loss BoCtlr]]+Table1[[#This Row],[RDS(on) Loss BoCtlr]]*(1+RdsonTopTc*Ta-RdsonTopTc*25))/(1-Table1[[#This Row],[RDS(on) Loss BoCtlr]]*RdsonTopTc*ThetaJA_Q4) -> 2.407286259 | AS16: =Table1[[#This Row],[Irms Lf]] -> 11.83705825 | AT16: =Rdson3*Table1[[#This Row],[Irms BoSync]]^2 -> 0.4904058181 | AU16: =CHOOSE(Table1[[#This Row],[Mode Digit]], 0, IF(Table1[[#This Row],[Iin]]<Table1[[#This Row],[Ripple Current pk-pk]]/2,Deadtime*Fsw*IF(VfdSky_Q3>0,0,Vsd_Q3)*(Table1[[#This Row],[Iin]]+Table1[[#This Row],[Ripple Current pk-pk]]/2), 2*Deadtime*Fsw*IF(VfdSky_Q3>0,0,Vsd_Q3)*Table1[[#This Row],[Iin]]), IF(Table1[[#This Row],[Iin]]<Table1[[#This Row],[Ripple Current pk-pk]]/2,Deadtime*Fsw*IF(VfdSky_Q3>0,0,Vsd_Q3)*(Table1[[#This Row],[Iin]]+Table1[[#This Row],[Ripple Current pk-pk]]/2), 2*Deadtime*Fsw*IF(VfdSky_Q3>0,0,Vsd_Q3)*Table1[[#This Row],[Iin]])) -> 0.5330054107 | AV16: =(Table1[[#This Row],[Deadtime Loss BoSync]]+Table1[[#This Row],[RDS(on) Loss BoSync]]*(1+RdsonBotTc*Ta-RdsonBotTc*25))/(1-Table1[[#This Row],[RDS(on) Loss BoSync]]*RdsonBotTc*ThetaJA_Q3) -> 1.17297157 | AW16: =CHOOSE(Table1[[#This Row],[Mode Digit]], Rdson3*Table1[[#This Row],[Irms Lf]]^2, Rdson1*Table1[[#This Row],[Irms Lf]]^2, 0) -> 0.4904058181 | AX16: =CHOOSE(Table1[[#This Row],[Mode Digit]], 2*Deadtime*Fsw*IF(VfdSky_Q2>0,VfdSky_Q2,0)*Table1[[#This Row],[Iout]], 2*Deadtime*Fsw*IF(VfdSky_Q3>0,VfdSky_Q3,0)*Table1[[#This Row],[Iin]], 2*Deadtime*Fsw*IF(VfdSky_Q2>0,VfdSky_Q2,0)*Table1[[#This Row],[Iout]]+2*Deadtime*Fsw*IF(VfdSky_Q3>0,VfdSky_Q3,0)*Table1[[#This Row],[Iin]]) -> 0 | AY16: =CHOOSE(Table1[[#This Row],[Mode Digit]], IF(QrrSky_Q2>0,QrrSky_Q2,Qrr_Q2)*Fsw*(Table1[[#This Row],[Vin]]-Table1[[#This Row],[Iout]]*Rdson1), IF(QrrSky_Q3>0,QrrSky_Q3,Qrr_Q3)*Fsw*Vout, IF(QrrSky_Q2>0,QrrSky_Q2,Qrr_Q2)*Fsw*(Table1[[#This Row],[Vin]]-Table1[[#This Row],[Iout]]*Rdson1)+IF(QrrSky_Q3>0,QrrSky_Q3,Qrr_Q3)*Fsw*Vout) -> 0.809088 | AZ16: =CHOOSE(Table1[[#This Row],[Mode Digit]], Rs*Table1[[#This Row],[Irms BuSync]]^2, Rs*Table1[[#This Row],[Irms BoCtlr]]^2, Rs*(Table1[[#This Row],[Irms BuSync]]^2+Table1[[#This Row],[Irms BoCtlr]]^2)) -> 0.3502898701 | BA16: 0.36 | BB16: =IF(Vout>8, Iq*Vout, Iq*Table1[[#This Row],[Vin]]) -> 0.072 | BC16: =CHOOSE(Table1[[#This Row],[Mode Digit]], (Qg_Q1+Qg_Q2)*Fsw, (Qg_Q3+Qg_Q4)*Fsw, (Qg_Q1+Qg_Q2+Qg_Q3+Qg_Q4)*Fsw)*IF(Vout>8, Vout, Table1[[#This Row],[Vin]]) -> 1.936032 | BD16: 1.733289287 | BE16: =Table1[[#This Row],[IQ Loss]]+Table1[[#This Row],[Switching Current Loss]] -> 2.008032 | BF16: =SUM(Table1[[#This Row],[Total Inductor Loss]],Table1[[#This Row],[Total Cout Loss]],Table1[[#This Row],[Total Cin Loss]],Table1[[#This Row],[Total Control Bu MOSFET Loss]],Table1[[#This Row],[Total Sync Bu MOSFET Loss]],Table1[[#This Row],[Total Control Bo MOSFET Loss]],Table1[[#This Row],[Total Sync Bo MOSFET Loss]], Table1[[#This Row],[Deadtime Loss ext D]],Table1[[#This Row],[Reverse Recovery Loss MOSFET D]],Table1[[#This Row],[Total IC Loss]],Table1[[#This Row],[Isense Shunt Loss]],Table1[[#This Row],[Iout Shunt Loss]]) -> 9.591383171 | BG16: =Vout*Table1[[#This Row],[Iout]] -> 144 | BH16: =Table1[[#This Row],[Pout]]/(Table1[[#This Row],[Pout]]+Table1[[#This Row],[Total Loss]]) -> 0.9375525959 | BI16: =IF(Table1[[#This Row],[Vin]]>Vout,ThetaJA_Q1*(Table1[[#This Row],[Total Control Bu MOSFET Loss]]+Table1[[#This Row],[Reverse Recovery Loss MOSFET D]]),ThetaJA_Q4*(Table1[[#This Row],[Total Control Bo MOSFET Loss]]+Table1[[#This Row],[Reverse Recovery Loss MOSFET D]])) -> 209.0643268 | BJ16: =IF(Table1[[#This Row],[Vin]]>Vout, Table1[[#This Row],[Total Sync Bu MOSFET Loss]]*ThetaJA_Q2, ThetaJA_Q3*Table1[[#This Row],[Total Sync Bo MOSFET Loss]]) -> 76.24315207 | BL16: =Table1[[#This Row],[EFF, h]]*100 -> 93.75525959 | BM16: =Table1[[#This Row],[Total Inductor Loss]] -> 1.260246106 | BN16: =Table1[[#This Row],[Total Control Bu MOSFET Loss]]+Table1[[#This Row],[Total Sync Bu MOSFET Loss]]+Table1[[#This Row],[Total Control Bo MOSFET Loss]]+Table1[[#This Row],[Total Sync Bo MOSFET Loss]]+Table1[[#This Row],[Reverse Recovery Loss MOSFET D]] -> 5.513492343 | BO16: =Table1[[#This Row],[Total Sync Bu MOSFET Loss]]+Table1[[#This Row],[Reverse Recovery Loss MOSFET D]]*0.33 -> 0.8290722969 | BP16: =Table1[[#This Row],[Isense Shunt Loss]] -> 0.3502898701 | BT16: 1Mhz / 12-1.2V/ 10A | BU16: 25 | BV16: 25 | BW16: 25 | BX16: =1000000*(12-Vdd)*BW16/1000000000+((1000000*BW9/1000000000*Vdd)*2.5/(2*4)) -> 0.2765625 | BY16: 22.125 | BZ16: 27.65625 | CA16: 33.1875 | CB16: 38.71875 | CC16: 44.25 | CD16: 49.78125 | CE16: 5.53125 | CF16: 8.296875 | CG16: 11.0625 | CH16: 13.828125
A17: Components | B17: Input Value | C17: Units | D17: Description | G17: 8 | H17: =VIN_min+(VIN_max-VIN_min)*(Table1[[#This Row],[Step]]/200) -> 12.96 | I17: =IF(Table1[[#This Row],[Vin]]>VIN_BB_to_buck, "BUCK", IF(Table1[[#This Row],[Vin]]<=VIN_boost_to_BB,"BOOST","BUCK-BST")) -> BOOST | J17: =IF(Table1[[#This Row],[Mode]]="BOOST",2, IF(Table1[[#This Row],[Mode]]="BUCK", 1,3)) -> 2 | K17: 6 | L17: =Vout*Table1[[#This Row],[Iout]]/(Table1[[#This Row],[Vin]]*Efficiency) -> 11.69590643 | M17: =Iout/(1-Table1[[#This Row],[Duty Cycle BOOST Leg]]) -> 11.21600175 | N17: =CHOOSE(Table1[[#This Row],[Mode Digit]],(Vout+(Rdson2+Rs+Rdcr)*Table1[[#This Row],[Iout]])/(Table1[[#This Row],[Vin]]+(Rs+Rdson2-Rdson1)*Table1[[#This Row],[Iout]]),1,IF(Table1[[#This Row],[Vin]]<Vout,D_max_buck_BB,Vout/Table1[[#This Row],[Vin]]*(1-D_min_boost_exitBB_to_buck))) -> 1 | O17: =CHOOSE(Table1[[#This Row],[Mode Digit]],0,(Vout+(Rdson3+Rdcr)*Table1[[#This Row],[Iin]]-Table1[[#This Row],[Vin]])/(Vout+(Rdson3-Rdson4-Rs)*Table1[[#This Row],[Iin]]),IF(Table1[[#This Row],[Vin]]>Vout, (Vout-Table1[[#This Row],[Vin]]*D_max_exitBB_to_buck)/Vout, (Vout-Table1[[#This Row],[Vin]]*D_max_buck_BB)/Vout)) -> 0.4650500122 | P17: =CHOOSE(Table1[[#This Row],[Mode Digit]],0,0,1-((Table1[[#This Row],[Vin]]-Vout)+((VIN_BB_to_buck-VIN_BB_to_boost)/2))/((VIN_BB_to_buck-VIN_BB_to_boost))) -> 0 | Q17: =CHOOSE(Table1[[#This Row],[Mode Digit]],0,Table1[[#This Row],[Duty Cycle BOOST Leg]]/Fsw,(1/Fsw-Table1[[#This Row],[T BOD/BUE]])*Table1[[#This Row],[BOE/BUD BUBO ratio]]) -> 7.725083259e-07 | R17: =CHOOSE(Table1[[#This Row],[Mode Digit]],Table1[[#This Row],[Duty Cycle BUCK Leg]]/Fsw,(1-Table1[[#This Row],[Duty Cycle BOOST Leg]])/Fsw,TonBubo) -> 8.886212422e-07 | S17: =CHOOSE(Table1[[#This Row],[Mode Digit]],(1-Table1[[#This Row],[Duty Cycle BUCK Leg]])/Fsw,0,(1/Fsw-Table1[[#This Row],[T BOD/BUE]]-Table1[[#This Row],[T BOE]])) -> 0 | T17: =MAX(0, CHOOSE(Table1[[#This Row],[Mode Digit]], (Table1[[#This Row],[Vin]]-(Rdson1+Rdcr)*Table1[[#This Row],[Iout]]-Vout)*Table1[[#This Row],[Duty Cycle BUCK Leg]]/(Fsw*Lf), (Table1[[#This Row],[Vin]]-(Rdson4+Rdcr+Rs)*Table1[[#This Row],[Iin]])*Table1[[#This Row],[Duty Cycle BOOST Leg]]/(Fsw*Lf), IF(Table1[[#This Row],[Vin]]<Vout, (Table1[[#This Row],[Vin]]-(Rdson1+Rdson3+Rdcr+Rs)*Table1[[#This Row],[Iin]])*Table1[[#This Row],[T BOE]]/(Lf),(Vout-(Rdson2+Rdson4+Rdcr+Rs)*Table1[[#This Row],[Iout]])*Table1[[#This Row],[T BUD]]/(Lf)))) -> 3.001817042 | U17: =CHOOSE(Table1[[#This Row],[Mode Digit]], SQRT(Table1[[#This Row],[Iout]]^2+(Table1[[#This Row],[Ripple Current pk-pk]]^2)/12), SQRT(Table1[[#This Row],[Iin]]^2+(Table1[[#This Row],[Ripple Current pk-pk]]^2)/12), SQRT(Table1[[#This Row],[Avg IL]]^2+(Table1[[#This Row],[Ripple Current pk-pk]]^2)/12)) -> 11.72796385 | V17: =(Table1[[#This Row],[Irms Lf]]^2*Rdcr*(1+Ltc*Ta-Ltc*25))/(1-Table1[[#This Row],[Irms Lf]]^2*Rdcr*Ltc*ThetaCa) -> 0.8364712386 | W17: =ABS(7.759*10^-3*Fsw^0.9458*(0.00787*Table1[[#This Row],[Ripple Current pk-pk]])^2.304) -> 0.4058514827 | X17: =Table1[[#This Row],[DCR Loss]]+Table1[[#This Row],[Core Loss]] -> 1.242322721 | Y17: =IF(Table1[[#This Row],[Vin]]>Vout, Table1[[#This Row],[Ripple Current pk-pk]]/SQRT(12), SQRT(Table1[[#This Row],[Duty Cycle BOOST Leg]]/(1-Table1[[#This Row],[Duty Cycle BOOST Leg]]))*SQRT(Table1[[#This Row],[Iout]]^2+(Table1[[#This Row],[Ripple Current pk-pk]]^2)/12)) -> 5.652327023 | Z17: =RCoutEsr*Table1[[#This Row],[Irms Cout]]^2 -> 0.09584640232 | AA17: =Table1[[#This Row],[Cout ESR Loss]] -> 0.09584640232 | AB17: =IF(Table1[[#This Row],[Vin]]>Vout, SQRT(Table1[[#This Row],[Duty Cycle BUCK Leg]]*(1-Table1[[#This Row],[Duty Cycle BUCK Leg]]))*SQRT(Table1[[#This Row],[Iout]]^2+(Table1[[#This Row],[Ripple Current pk-pk]]^2)/12), Table1[[#This Row],[Ripple Current pk-pk]]/SQRT(12)) -> 0.8665499386 | AC17: =RCinEsr*Table1[[#This Row],[Irms Cin]]^2 -> 0.001501817592 | AD17: =Table1[[#This Row],[Cin ESR Loss]] -> 0.001501817592 | AE17: =Table1[[#This Row],[Irms Lf]] -> 11.72796385 | AF17: =Rdson1*Table1[[#This Row],[Irms BuCtrl]]^2 -> 0.4814079763 | AG17: =CHOOSE(Table1[[#This Row],[Mode Digit]], (Table1[[#This Row],[Vin]]*Table1[[#This Row],[Iout]]/2)*(Fsw)*(Tr_buck+Tf_buck), 0, (Table1[[#This Row],[Vin]]*Table1[[#This Row],[Avg IL]]/2)*(Fsw/1)*(Tr_buck+Tf_buck)) -> 0 | AH17: =IF(Table1[[#This Row],[Vin]]>Vout, IF(Table1[[#This Row],[Iout]]>Table1[[#This Row],[Ripple Current pk-pk]]/2,0,ABS(Table1[[#This Row],[Iout]]-Table1[[#This Row],[Ripple Current pk-pk]]/2)*Vsd_Q1*Deadtime*Fsw),0) -> 0 | AI17: =(Table1[[#This Row],[Dead Time Loss BuCtrl]]+Table1[[#This Row],[Transition Loss BuCtrl]]+Table1[[#This Row],[RDS(on) Loss BuCtrl]]*(1+RdsonTopTc*Ta-RdsonTopTc*25))/(1-Table1[[#This Row],[RDS(on) Loss BuCtrl]]*RdsonTopTc*ThetaJA_Q1) -> 0.5502849877 | AJ17: =Table1[[#This Row],[Irms Lf]] -> 11.72796385 | AK17: =Rdson2*Table1[[#This Row],[Irms BuSync]]^2 -> 0.4814079763 | AL17: =CHOOSE(Table1[[#This Row],[Mode Digit]], IF(Table1[[#This Row],[Iout]]<Table1[[#This Row],[Ripple Current pk-pk]]/2,Deadtime*Fsw*IF(VfdSky_Q2>0,0,Vsd_Q2)*(Table1[[#This Row],[Iout]]+Table1[[#This Row],[Ripple Current pk-pk]]/2),2*Deadtime*Fsw*IF(VfdSky_Q2>0,0,Vsd_Q2)*Table1[[#This Row],[Iout]]),0, IF(Table1[[#This Row],[Iout]]<Table1[[#This Row],[Ripple Current pk-pk]]/2,Deadtime*Fsw*IF(VfdSky_Q2>0,0,Vsd_Q2)*(Table1[[#This Row],[Iout]]+Table1[[#This Row],[Ripple Current pk-pk]]/2),2*Deadtime*Fsw*IF(VfdSky_Q2>0,0,Vsd_Q2)*Table1[[#This Row],[Iout]])) -> 0 | AM17: =(Table1[[#This Row],[Deadtime Loss BuSync]]+Table1[[#This Row],[RDS(on) Loss BuSync]]*(1+RdsonBotTc*Ta-RdsonBotTc*25))/(1-Table1[[#This Row],[RDS(on) Loss BuSync]]*RdsonBotTc*ThetaJA_Q2) -> 0.5502849877 | AN17: =Table1[[#This Row],[Irms Lf]] -> 11.72796385 | AO17: =Rdson4*Table1[[#This Row],[Irms BoCtlr]]^2 -> 0.4814079763 | AP17: =CHOOSE(Table1[[#This Row],[Mode Digit]], 0, (Vout*Table1[[#This Row],[Iin]]/2)*(Fsw)*(Tr_boost+Tf_boost), (Vout*Iout/2)*(Fsw/1)*(Tr_boost+Tf_boost)) -> 1.595031337 | AQ17: =IF(Table1[[#This Row],[Vin]]>Vout, 0, IF(Table1[[#This Row],[Iin]]>Table1[[#This Row],[Ripple Current pk-pk]]/2,0,ABS(Table1[[#This Row],[Iin]]-Table1[[#This Row],[Ripple Current pk-pk]]/2)*Vsd_Q4*Deadtime*Fsw)) -> 0 | AR17: =(Table1[[#This Row],[Dead Time Loss BoCtlr]]+Table1[[#This Row],[Transition Loss BoCtlr]]+Table1[[#This Row],[RDS(on) Loss BoCtlr]]*(1+RdsonTopTc*Ta-RdsonTopTc*25))/(1-Table1[[#This Row],[RDS(on) Loss BoCtlr]]*RdsonTopTc*ThetaJA_Q4) -> 2.373523993 | AS17: =Table1[[#This Row],[Irms Lf]] -> 11.72796385 | AT17: =Rdson3*Table1[[#This Row],[Irms BoSync]]^2 -> 0.4814079763 | AU17: =CHOOSE(Table1[[#This Row],[Mode Digit]], 0, IF(Table1[[#This Row],[Iin]]<Table1[[#This Row],[Ripple Current pk-pk]]/2,Deadtime*Fsw*IF(VfdSky_Q3>0,0,Vsd_Q3)*(Table1[[#This Row],[Iin]]+Table1[[#This Row],[Ripple Current pk-pk]]/2), 2*Deadtime*Fsw*IF(VfdSky_Q3>0,0,Vsd_Q3)*Table1[[#This Row],[Iin]]), IF(Table1[[#This Row],[Iin]]<Table1[[#This Row],[Ripple Current pk-pk]]/2,Deadtime*Fsw*IF(VfdSky_Q3>0,0,Vsd_Q3)*(Table1[[#This Row],[Iin]]+Table1[[#This Row],[Ripple Current pk-pk]]/2), 2*Deadtime*Fsw*IF(VfdSky_Q3>0,0,Vsd_Q3)*Table1[[#This Row],[Iin]])) -> 0.5280701754 | AV17: =(Table1[[#This Row],[Deadtime Loss BoSync]]+Table1[[#This Row],[RDS(on) Loss BoSync]]*(1+RdsonBotTc*Ta-RdsonBotTc*25))/(1-Table1[[#This Row],[RDS(on) Loss BoSync]]*RdsonBotTc*ThetaJA_Q3) -> 1.153908327 | AW17: =CHOOSE(Table1[[#This Row],[Mode Digit]], Rdson3*Table1[[#This Row],[Irms Lf]]^2, Rdson1*Table1[[#This Row],[Irms Lf]]^2, 0) -> 0.4814079763 | AX17: =CHOOSE(Table1[[#This Row],[Mode Digit]], 2*Deadtime*Fsw*IF(VfdSky_Q2>0,VfdSky_Q2,0)*Table1[[#This Row],[Iout]], 2*Deadtime*Fsw*IF(VfdSky_Q3>0,VfdSky_Q3,0)*Table1[[#This Row],[Iin]], 2*Deadtime*Fsw*IF(VfdSky_Q2>0,VfdSky_Q2,0)*Table1[[#This Row],[Iout]]+2*Deadtime*Fsw*IF(VfdSky_Q3>0,VfdSky_Q3,0)*Table1[[#This Row],[Iin]]) -> 0 | AY17: =CHOOSE(Table1[[#This Row],[Mode Digit]], IF(QrrSky_Q2>0,QrrSky_Q2,Qrr_Q2)*Fsw*(Table1[[#This Row],[Vin]]-Table1[[#This Row],[Iout]]*Rdson1), IF(QrrSky_Q3>0,QrrSky_Q3,Qrr_Q3)*Fsw*Vout, IF(QrrSky_Q2>0,QrrSky_Q2,Qrr_Q2)*Fsw*(Table1[[#This Row],[Vin]]-Table1[[#This Row],[Iout]]*Rdson1)+IF(QrrSky_Q3>0,QrrSky_Q3,Qrr_Q3)*Fsw*Vout) -> 0.809088 | AZ17: =CHOOSE(Table1[[#This Row],[Mode Digit]], Rs*Table1[[#This Row],[Irms BuSync]]^2, Rs*Table1[[#This Row],[Irms BoCtlr]]^2, Rs*(Table1[[#This Row],[Irms BuSync]]^2+Table1[[#This Row],[Irms BoCtlr]]^2)) -> 0.3438628402 | BA17: 0.36 | BB17: =IF(Vout>8, Iq*Vout, Iq*Table1[[#This Row],[Vin]]) -> 0.072 | BC17: =CHOOSE(Table1[[#This Row],[Mode Digit]], (Qg_Q1+Qg_Q2)*Fsw, (Qg_Q3+Qg_Q4)*Fsw, (Qg_Q1+Qg_Q2+Qg_Q3+Qg_Q4)*Fsw)*IF(Vout>8, Vout, Table1[[#This Row],[Vin]]) -> 1.936032 | BD17: 1.733289287 | BE17: =Table1[[#This Row],[IQ Loss]]+Table1[[#This Row],[Switching Current Loss]] -> 2.008032 | BF17: =SUM(Table1[[#This Row],[Total Inductor Loss]],Table1[[#This Row],[Total Cout Loss]],Table1[[#This Row],[Total Cin Loss]],Table1[[#This Row],[Total Control Bu MOSFET Loss]],Table1[[#This Row],[Total Sync Bu MOSFET Loss]],Table1[[#This Row],[Total Control Bo MOSFET Loss]],Table1[[#This Row],[Total Sync Bo MOSFET Loss]], Table1[[#This Row],[Deadtime Loss ext D]],Table1[[#This Row],[Reverse Recovery Loss MOSFET D]],Table1[[#This Row],[Total IC Loss]],Table1[[#This Row],[Isense Shunt Loss]],Table1[[#This Row],[Iout Shunt Loss]]) -> 9.488656076 | BG17: =Vout*Table1[[#This Row],[Iout]] -> 144 | BH17: =Table1[[#This Row],[Pout]]/(Table1[[#This Row],[Pout]]+Table1[[#This Row],[Total Loss]]) -> 0.9381800824 | BI17: =IF(Table1[[#This Row],[Vin]]>Vout,ThetaJA_Q1*(Table1[[#This Row],[Total Control Bu MOSFET Loss]]+Table1[[#This Row],[Reverse Recovery Loss MOSFET D]]),ThetaJA_Q4*(Table1[[#This Row],[Total Control Bo MOSFET Loss]]+Table1[[#This Row],[Reverse Recovery Loss MOSFET D]])) -> 206.8697795 | BJ17: =IF(Table1[[#This Row],[Vin]]>Vout, Table1[[#This Row],[Total Sync Bu MOSFET Loss]]*ThetaJA_Q2, ThetaJA_Q3*Table1[[#This Row],[Total Sync Bo MOSFET Loss]]) -> 75.00404122 | BL17: =Table1[[#This Row],[EFF, h]]*100 -> 93.81800824 | BM17: =Table1[[#This Row],[Total Inductor Loss]] -> 1.242322721 | BN17: =Table1[[#This Row],[Total Control Bu MOSFET Loss]]+Table1[[#This Row],[Total Sync Bu MOSFET Loss]]+Table1[[#This Row],[Total Control Bo MOSFET Loss]]+Table1[[#This Row],[Total Sync Bo MOSFET Loss]]+Table1[[#This Row],[Reverse Recovery Loss MOSFET D]] -> 5.437090294 | BO17: =Table1[[#This Row],[Total Sync Bu MOSFET Loss]]+Table1[[#This Row],[Reverse Recovery Loss MOSFET D]]*0.33 -> 0.8172840277 | BP17: =Table1[[#This Row],[Isense Shunt Loss]] -> 0.3438628402 | BT17: 500kHz / 18-1.2V / 20A | BU17: 50 | BV17: 50 | BW17: 50 | BX17: =500000*(18-Vdd)*BW17/1000000000+((500000*BW15/1000000000*Vdd)*2.5/(2*4)) -> 0.2859375 | BY17: 22.875 | BZ17: 28.59375 | CA17: 34.3125 | CB17: 40.03125 | CC17: 45.75 | CD17: 51.46875 | CE17: 5.71875 | CF17: 8.578125 | CG17: 11.4375 | CH17: 14.296875
A18: L | B18: =Lf*1000000 -> 3.3 | C18: uH | D18: Filter Inductance | G18: 9 | H18: =VIN_min+(VIN_max-VIN_min)*(Table1[[#This Row],[Step]]/200) -> 13.08 | I18: =IF(Table1[[#This Row],[Vin]]>VIN_BB_to_buck, "BUCK", IF(Table1[[#This Row],[Vin]]<=VIN_boost_to_BB,"BOOST","BUCK-BST")) -> BOOST | J18: =IF(Table1[[#This Row],[Mode]]="BOOST",2, IF(Table1[[#This Row],[Mode]]="BUCK", 1,3)) -> 2 | K18: 6 | L18: =Vout*Table1[[#This Row],[Iout]]/(Table1[[#This Row],[Vin]]*Efficiency) -> 11.58860454 | M18: =Iout/(1-Table1[[#This Row],[Duty Cycle BOOST Leg]]) -> 11.11106137 | N18: =CHOOSE(Table1[[#This Row],[Mode Digit]],(Vout+(Rdson2+Rs+Rdcr)*Table1[[#This Row],[Iout]])/(Table1[[#This Row],[Vin]]+(Rs+Rdson2-Rdson1)*Table1[[#This Row],[Iout]]),1,IF(Table1[[#This Row],[Vin]]<Vout,D_max_buck_BB,Vout/Table1[[#This Row],[Vin]]*(1-D_min_boost_exitBB_to_buck))) -> 1 | O18: =CHOOSE(Table1[[#This Row],[Mode Digit]],0,(Vout+(Rdson3+Rdcr)*Table1[[#This Row],[Iin]]-Table1[[#This Row],[Vin]])/(Vout+(Rdson3-Rdson4-Rs)*Table1[[#This Row],[Iin]]),IF(Table1[[#This Row],[Vin]]>Vout, (Vout-Table1[[#This Row],[Vin]]*D_max_exitBB_to_buck)/Vout, (Vout-Table1[[#This Row],[Vin]]*D_max_buck_BB)/Vout)) -> 0.4599975828 | P18: =CHOOSE(Table1[[#This Row],[Mode Digit]],0,0,1-((Table1[[#This Row],[Vin]]-Vout)+((VIN_BB_to_buck-VIN_BB_to_boost)/2))/((VIN_BB_to_buck-VIN_BB_to_boost))) -> 0 | Q18: =CHOOSE(Table1[[#This Row],[Mode Digit]],0,Table1[[#This Row],[Duty Cycle BOOST Leg]]/Fsw,(1/Fsw-Table1[[#This Row],[T BOD/BUE]])*Table1[[#This Row],[BOE/BUD BUBO ratio]]) -> 7.64115586e-07 | R18: =CHOOSE(Table1[[#This Row],[Mode Digit]],Table1[[#This Row],[Duty Cycle BUCK Leg]]/Fsw,(1-Table1[[#This Row],[Duty Cycle BOOST Leg]])/Fsw,TonBubo) -> 8.970139821e-07 | S18: =CHOOSE(Table1[[#This Row],[Mode Digit]],(1-Table1[[#This Row],[Duty Cycle BUCK Leg]])/Fsw,0,(1/Fsw-Table1[[#This Row],[T BOD/BUE]]-Table1[[#This Row],[T BOE]])) -> 0 | T18: =MAX(0, CHOOSE(Table1[[#This Row],[Mode Digit]], (Table1[[#This Row],[Vin]]-(Rdson1+Rdcr)*Table1[[#This Row],[Iout]]-Vout)*Table1[[#This Row],[Duty Cycle BUCK Leg]]/(Fsw*Lf), (Table1[[#This Row],[Vin]]-(Rdson4+Rdcr+Rs)*Table1[[#This Row],[Iin]])*Table1[[#This Row],[Duty Cycle BOOST Leg]]/(Fsw*Lf), IF(Table1[[#This Row],[Vin]]<Vout, (Table1[[#This Row],[Vin]]-(Rdson1+Rdson3+Rdcr+Rs)*Table1[[#This Row],[Iin]])*Table1[[#This Row],[T BOE]]/(Lf),(Vout-(Rdson2+Rdson4+Rdcr+Rs)*Table1[[#This Row],[Iout]])*Table1[[#This Row],[T BUD]]/(Lf)))) -> 2.997281205 | U18: =CHOOSE(Table1[[#This Row],[Mode Digit]], SQRT(Table1[[#This Row],[Iout]]^2+(Table1[[#This Row],[Ripple Current pk-pk]]^2)/12), SQRT(Table1[[#This Row],[Iin]]^2+(Table1[[#This Row],[Ripple Current pk-pk]]^2)/12), SQRT(Table1[[#This Row],[Avg IL]]^2+(Table1[[#This Row],[Ripple Current pk-pk]]^2)/12)) -> 11.6208604 | V18: =(Table1[[#This Row],[Irms Lf]]^2*Rdcr*(1+Ltc*Ta-Ltc*25))/(1-Table1[[#This Row],[Irms Lf]]^2*Rdcr*Ltc*ThetaCa) -> 0.8202651905 | W18: =ABS(7.759*10^-3*Fsw^0.9458*(0.00787*Table1[[#This Row],[Ripple Current pk-pk]])^2.304) -> 0.4044399373 | X18: =Table1[[#This Row],[DCR Loss]]+Table1[[#This Row],[Core Loss]] -> 1.224705128 | Y18: =IF(Table1[[#This Row],[Vin]]>Vout, Table1[[#This Row],[Ripple Current pk-pk]]/SQRT(12), SQRT(Table1[[#This Row],[Duty Cycle BOOST Leg]]/(1-Table1[[#This Row],[Duty Cycle BOOST Leg]]))*SQRT(Table1[[#This Row],[Iout]]^2+(Table1[[#This Row],[Ripple Current pk-pk]]^2)/12)) -> 5.595006117 | Z18: =RCoutEsr*Table1[[#This Row],[Irms Cout]]^2 -> 0.09391228035 | AA18: =Table1[[#This Row],[Cout ESR Loss]] -> 0.09391228035 | AB18: =IF(Table1[[#This Row],[Vin]]>Vout, SQRT(Table1[[#This Row],[Duty Cycle BUCK Leg]]*(1-Table1[[#This Row],[Duty Cycle BUCK Leg]]))*SQRT(Table1[[#This Row],[Iout]]^2+(Table1[[#This Row],[Ripple Current pk-pk]]^2)/12), Table1[[#This Row],[Ripple Current pk-pk]]/SQRT(12)) -> 0.8652405551 | AC18: =RCinEsr*Table1[[#This Row],[Irms Cin]]^2 -> 0.001497282437 | AD18: =Table1[[#This Row],[Cin ESR Loss]] -> 0.001497282437 | AE18: =Table1[[#This Row],[Irms Lf]] -> 11.6208604 | AF18: =Rdson1*Table1[[#This Row],[Irms BuCtrl]]^2 -> 0.4726553873 | AG18: =CHOOSE(Table1[[#This Row],[Mode Digit]], (Table1[[#This Row],[Vin]]*Table1[[#This Row],[Iout]]/2)*(Fsw)*(Tr_buck+Tf_buck), 0, (Table1[[#This Row],[Vin]]*Table1[[#This Row],[Avg IL]]/2)*(Fsw/1)*(Tr_buck+Tf_buck)) -> 0 | AH18: =IF(Table1[[#This Row],[Vin]]>Vout, IF(Table1[[#This Row],[Iout]]>Table1[[#This Row],[Ripple Current pk-pk]]/2,0,ABS(Table1[[#This Row],[Iout]]-Table1[[#This Row],[Ripple Current pk-pk]]/2)*Vsd_Q1*Deadtime*Fsw),0) -> 0 | AI18: =(Table1[[#This Row],[Dead Time Loss BuCtrl]]+Table1[[#This Row],[Transition Loss BuCtrl]]+Table1[[#This Row],[RDS(on) Loss BuCtrl]]*(1+RdsonTopTc*Ta-RdsonTopTc*25))/(1-Table1[[#This Row],[RDS(on) Loss BuCtrl]]*RdsonTopTc*ThetaJA_Q1) -> 0.5388783656 | AJ18: =Table1[[#This Row],[Irms Lf]] -> 11.6208604 | AK18: =Rdson2*Table1[[#This Row],[Irms BuSync]]^2 -> 0.4726553873 | AL18: =CHOOSE(Table1[[#This Row],[Mode Digit]], IF(Table1[[#This Row],[Iout]]<Table1[[#This Row],[Ripple Current pk-pk]]/2,Deadtime*Fsw*IF(VfdSky_Q2>0,0,Vsd_Q2)*(Table1[[#This Row],[Iout]]+Table1[[#This Row],[Ripple Current pk-pk]]/2),2*Deadtime*Fsw*IF(VfdSky_Q2>0,0,Vsd_Q2)*Table1[[#This Row],[Iout]]),0, IF(Table1[[#This Row],[Iout]]<Table1[[#This Row],[Ripple Current pk-pk]]/2,Deadtime*Fsw*IF(VfdSky_Q2>0,0,Vsd_Q2)*(Table1[[#This Row],[Iout]]+Table1[[#This Row],[Ripple Current pk-pk]]/2),2*Deadtime*Fsw*IF(VfdSky_Q2>0,0,Vsd_Q2)*Table1[[#This Row],[Iout]])) -> 0 | AM18: =(Table1[[#This Row],[Deadtime Loss BuSync]]+Table1[[#This Row],[RDS(on) Loss BuSync]]*(1+RdsonBotTc*Ta-RdsonBotTc*25))/(1-Table1[[#This Row],[RDS(on) Loss BuSync]]*RdsonBotTc*ThetaJA_Q2) -> 0.5388783656 | AN18: =Table1[[#This Row],[Irms Lf]] -> 11.6208604 | AO18: =Rdson4*Table1[[#This Row],[Irms BoCtlr]]^2 -> 0.4726553873 | AP18: =CHOOSE(Table1[[#This Row],[Mode Digit]], 0, (Vout*Table1[[#This Row],[Iin]]/2)*(Fsw)*(Tr_boost+Tf_boost), (Vout*Iout/2)*(Fsw/1)*(Tr_boost+Tf_boost)) -> 1.580398022 | AQ18: =IF(Table1[[#This Row],[Vin]]>Vout, 0, IF(Table1[[#This Row],[Iin]]>Table1[[#This Row],[Ripple Current pk-pk]]/2,0,ABS(Table1[[#This Row],[Iin]]-Table1[[#This Row],[Ripple Current pk-pk]]/2)*Vsd_Q4*Deadtime*Fsw)) -> 0 | AR18: =(Table1[[#This Row],[Dead Time Loss BoCtlr]]+Table1[[#This Row],[Transition Loss BoCtlr]]+Table1[[#This Row],[RDS(on) Loss BoCtlr]]*(1+RdsonTopTc*Ta-RdsonTopTc*25))/(1-Table1[[#This Row],[RDS(on) Loss BoCtlr]]*RdsonTopTc*ThetaJA_Q4) -> 2.340703386 | AS18: =Table1[[#This Row],[Irms Lf]] -> 11.6208604 | AT18: =Rdson3*Table1[[#This Row],[Irms BoSync]]^2 -> 0.4726553873 | AU18: =CHOOSE(Table1[[#This Row],[Mode Digit]], 0, IF(Table1[[#This Row],[Iin]]<Table1[[#This Row],[Ripple Current pk-pk]]/2,Deadtime*Fsw*IF(VfdSky_Q3>0,0,Vsd_Q3)*(Table1[[#This Row],[Iin]]+Table1[[#This Row],[Ripple Current pk-pk]]/2), 2*Deadtime*Fsw*IF(VfdSky_Q3>0,0,Vsd_Q3)*Table1[[#This Row],[Iin]]), IF(Table1[[#This Row],[Iin]]<Table1[[#This Row],[Ripple Current pk-pk]]/2,Deadtime*Fsw*IF(VfdSky_Q3>0,0,Vsd_Q3)*(Table1[[#This Row],[Iin]]+Table1[[#This Row],[Ripple Current pk-pk]]/2), 2*Deadtime*Fsw*IF(VfdSky_Q3>0,0,Vsd_Q3)*Table1[[#This Row],[Iin]])) -> 0.5232254949 | AV18: =(Table1[[#This Row],[Deadtime Loss BoSync]]+Table1[[#This Row],[RDS(on) Loss BoSync]]*(1+RdsonBotTc*Ta-RdsonBotTc*25))/(1-Table1[[#This Row],[RDS(on) Loss BoSync]]*RdsonBotTc*ThetaJA_Q3) -> 1.135412134 | AW18: =CHOOSE(Table1[[#This Row],[Mode Digit]], Rdson3*Table1[[#This Row],[Irms Lf]]^2, Rdson1*Table1[[#This Row],[Irms Lf]]^2, 0) -> 0.4726553873 | AX18: =CHOOSE(Table1[[#This Row],[Mode Digit]], 2*Deadtime*Fsw*IF(VfdSky_Q2>0,VfdSky_Q2,0)*Table1[[#This Row],[Iout]], 2*Deadtime*Fsw*IF(VfdSky_Q3>0,VfdSky_Q3,0)*Table1[[#This Row],[Iin]], 2*Deadtime*Fsw*IF(VfdSky_Q2>0,VfdSky_Q2,0)*Table1[[#This Row],[Iout]]+2*Deadtime*Fsw*IF(VfdSky_Q3>0,VfdSky_Q3,0)*Table1[[#This Row],[Iin]]) -> 0 | AY18: =CHOOSE(Table1[[#This Row],[Mode Digit]], IF(QrrSky_Q2>0,QrrSky_Q2,Qrr_Q2)*Fsw*(Table1[[#This Row],[Vin]]-Table1[[#This Row],[Iout]]*Rdson1), IF(QrrSky_Q3>0,QrrSky_Q3,Qrr_Q3)*Fsw*Vout, IF(QrrSky_Q2>0,QrrSky_Q2,Qrr_Q2)*Fsw*(Table1[[#This Row],[Vin]]-Table1[[#This Row],[Iout]]*Rdson1)+IF(QrrSky_Q3>0,QrrSky_Q3,Qrr_Q3)*Fsw*Vout) -> 0.809088 | AZ18: =CHOOSE(Table1[[#This Row],[Mode Digit]], Rs*Table1[[#This Row],[Irms BuSync]]^2, Rs*Table1[[#This Row],[Irms BoCtlr]]^2, Rs*(Table1[[#This Row],[Irms BuSync]]^2+Table1[[#This Row],[Irms BoCtlr]]^2)) -> 0.3376109909 | BA18: 0.36 | BB18: =IF(Vout>8, Iq*Vout, Iq*Table1[[#This Row],[Vin]]) -> 0.072 | BC18: =CHOOSE(Table1[[#This Row],[Mode Digit]], (Qg_Q1+Qg_Q2)*Fsw, (Qg_Q3+Qg_Q4)*Fsw, (Qg_Q1+Qg_Q2+Qg_Q3+Qg_Q4)*Fsw)*IF(Vout>8, Vout, Table1[[#This Row],[Vin]]) -> 1.936032 | BD18: 1.733289287 | BE18: =Table1[[#This Row],[IQ Loss]]+Table1[[#This Row],[Switching Current Loss]] -> 2.008032 | BF18: =SUM(Table1[[#This Row],[Total Inductor Loss]],Table1[[#This Row],[Total Cout Loss]],Table1[[#This Row],[Total Cin Loss]],Table1[[#This Row],[Total Control Bu MOSFET Loss]],Table1[[#This Row],[Total Sync Bu MOSFET Loss]],Table1[[#This Row],[Total Control Bo MOSFET Loss]],Table1[[#This Row],[Total Sync Bo MOSFET Loss]], Table1[[#This Row],[Deadtime Loss ext D]],Table1[[#This Row],[Reverse Recovery Loss MOSFET D]],Table1[[#This Row],[Total IC Loss]],Table1[[#This Row],[Isense Shunt Loss]],Table1[[#This Row],[Iout Shunt Loss]]) -> 9.388717933 | BG18: =Vout*Table1[[#This Row],[Iout]] -> 144 | BH18: =Table1[[#This Row],[Pout]]/(Table1[[#This Row],[Pout]]+Table1[[#This Row],[Total Loss]]) -> 0.9387913397 | BI18: =IF(Table1[[#This Row],[Vin]]>Vout,ThetaJA_Q1*(Table1[[#This Row],[Total Control Bu MOSFET Loss]]+Table1[[#This Row],[Reverse Recovery Loss MOSFET D]]),ThetaJA_Q4*(Table1[[#This Row],[Total Control Bo MOSFET Loss]]+Table1[[#This Row],[Reverse Recovery Loss MOSFET D]])) -> 204.7364401 | BJ18: =IF(Table1[[#This Row],[Vin]]>Vout, Table1[[#This Row],[Total Sync Bu MOSFET Loss]]*ThetaJA_Q2, ThetaJA_Q3*Table1[[#This Row],[Total Sync Bo MOSFET Loss]]) -> 73.80178874 | BL18: =Table1[[#This Row],[EFF, h]]*100 -> 93.87913397 | BM18: =Table1[[#This Row],[Total Inductor Loss]] -> 1.224705128 | BN18: =Table1[[#This Row],[Total Control Bu MOSFET Loss]]+Table1[[#This Row],[Total Sync Bu MOSFET Loss]]+Table1[[#This Row],[Total Control Bo MOSFET Loss]]+Table1[[#This Row],[Total Sync Bo MOSFET Loss]]+Table1[[#This Row],[Reverse Recovery Loss MOSFET D]] -> 5.362960252 | BO18: =Table1[[#This Row],[Total Sync Bu MOSFET Loss]]+Table1[[#This Row],[Reverse Recovery Loss MOSFET D]]*0.33 -> 0.8058774056 | BP18: =Table1[[#This Row],[Isense Shunt Loss]] -> 0.3376109909 | BT18: θJA=120°C/W - 160°C/W
